Workbook

Sheet Letter (hidden)
A1: clean
A2: Important!!
A3: If you accidentally stumbled into this page do not change any information on this page.
A5: Contact Name | B5: Contact Name
A6: Company Name | B6: Co Name
A7: Address | B7: Address
A8: =B8&", "&C8&" "&D8 -> City, State, Zip, | B8: City, State, Zip
A9: Dear | B9: Dear
A10: Rep Name | B10: Rep Name
A11: Contact Phone | B11: Contact Phone
B12: SAP ID
B13: Cust Grp 3
A14: Date | B14: Date
A24: Please do not change cell A25.
A25: 2020-09-22 | B25: Quote Date
A36: Equipment Type | B36: Sweeper
A37: Country | B37: Canada
B40: 39107.48756

Sheet CRM Mapping (hidden)

Sheet Log (hidden)
A1: Date | B1: UpdatedBy | C1: Description
A2: 2019-08-23 | B2: Pao Leepalao | C2: show user ID instead of full name on approve box
A3: 2019-08-23 | B3: Pao Leepalao | C3: date stamp when it's approved (yellow and red)
A4: 2019-08-23 | B4: Pao Leepalao | C4: revision date on all machine tabs
A5: 2019-08-23 | B5: Pao Leepalao | C5: change log (date, name, what changed) - hide tab
A6: 2019-08-23 | B6: Pao Leepalao | C6: fix T6 quick ship hide/show blank qty issue
A7: 2019-08-23 | B7: Jeannie Smallish | C7: T300/SS300: removed drain hose/cap
A8: 2019-08-23 | B8: Jeannie Smallish | C8: T20/M20/M30/S30/800/T16 quick ship: update built-in values
A9: 2019-08-23 | B9: Jeannie Smallish | C9: T16: update preconfigured machines
A10: 2019-08-23 | B10: Jeannie Smallish | C10: T20/S30: prices correction
A11: 2019-09-16 | B11: Jeannie Smallish | C11: corrected column issue on Extractors
A12: 2019-09-16 | B12: Jeannie Smallish | C12: Add new machine S10_Quick_Ship
A13: 2019-09-16 | B13: Pao Leepalao | C13: Discount/Service rates for S10_Quick_Ship
A14: 2019-09-16 | B14: Pao Leepalao | C14: Update leasing contact for Tennant
A15: 2019-10-02 | B15: Pao Leepalao | C15: Update finance rates - US Bank
A16: 2019-10-02 | B16: Pao Leepalao | C16: Add governance approval process
A17: 2019-11-08 | B17: Pao Leepalao | C17: Fix GT formatting issue
A18: 2019-12-04 | B18: Pao/Jeannie | C18: New 2020 price increase
A19: 2019-12-04 | B19: Pao Leepalao | C19: Only positive allow in custom solution

Sheet Start_Here
A1: Distributor | C1: Please fill out as much buyer information as you can. Overkey addresses and contacts for proper display on the machine sheets. | O1: Alabama | P1: Discount | Q1: ALL OTHER COUNTIES
O2: Arkansas | P2: =TTDiscountLow -> 0 | Q2: BARBOUR
A3: Buyer Information | O3: Arizona | P3: =TTDiscountHigh -> 5 | Q3: COVINGTON
B4: CRM Address Information | F4: Who is Buying the Machine? (Bill-To for Machine Aquisition Info) (Please Verify) | I4: Select One | O4: British Columbia | Q4: DALE
B5: Company | C5: =Letter!$A$6 -> Company Name | F5: Company | H5: Company Name | O5: Canada | Q5: ESCAMBIA
B6: Address | C6: =Address -> Address | F6: Address | H6: Address | O6: California | Q6: GENEVA
B7: City, State Zip | C7: =CityStateZip -> City, State, Zip, | F7: City, State Zip | H7: City, State Zip | O7: Colorado | Q7: HENRY
B8: Name | C8: =ContactName -> Contact Name | F8: Name | H8: Contact Name | O8: Connecticut | Q8: HOUSTON
B9: Phone | C9: =Letter!$A$11 -> Contact Phone | F9: Phone | H9: Contact Phone | O9: District of Columbia | Q9: LEE
O10: Delaware | Q10: RUSSELL
B11: Where is the Machine Being Shipped? (Ship-To Info) (Please Verify) | D11: Select One | F11: Where is the Machine Being Used? (Machine Use Location - Specific) (Please Verify) | I11: Select One | O11: Florida
B12: Company | C12: Company Name | F12: Company | H12: Company Name | O12: Georgia
B13: Address | C13: Address | F13: Address | H13: Address | O13: Hawaii
B14: City, State Zip | C14: City, State Zip | F14: City, State Zip | H14: City, State Zip | O14: Iowa
B15: Name | C15: Contact Name | F15: Name | H15: Contact Name | O15: Idaho
B16: Phone | C16: Contact Phone | F16: Phone | H16: Contact Phone | O16: Illinois
O17: Indiana
B18: Who Owns the Machine? (Sold-To Info) (Please Verify) | D18: Select One | F18: Who Pays for Service on the Machine? (Service Bill-To Info) (Please Verify) | I18: Select One | O18: Kansas
B19: Company | C19: Company Name | F19: Company | H19: Company Name | O19: Kentucky
B20: Address | C20: Address | F20: Address | H20: Address | O20: Louisiana
B21: City, State Zip | C21: City, State Zip | F21: City, State Zip | H21: City, State Zip | O21: Massachusetts
B22: Name | C22: Contact Name | F22: Name | H22: Contact Name | O22: Maryland
B23: Phone | C23: Contact Phone | F23: Phone | H23: Contact Phone | O23: Maine
O24: Michigan
B25: Customer Number | C25: =Letter!$A$12 -> 0 | F25: Finance Partner | H25: TennantTrue Details | O25: Minnesota
B26: Authorized Buyer's Name | F26: First Western Equipment Finance | H26: State | O26: Missouri
B27: Buyer's Phone # | O27: Mississippi
B28: Requested Delivery Date | F28: Select Market | H28: County | O28: Montana
B29: Cust Grp 3 | C29: =Letter!$A$13 -> 0 | F29: Internal use only | O29: North Carolina
H30: National Account | O30: North Dakota
B31: Shipping / Carrier Instructions: | F31: Quote Service | O31: Nebraska
F32: Yes | H32: TennantTrue Discount (%) | O32: New Hampshire
O33: New Jersey
O34: New Mexico
B35: Seller Info | O35: Nevada
B36: Letter/Quote | E36: Terms and Conditions | O36: New York
B37: Company | C37: Tennant Sales and Service Company | E37: Ask your local sales rep for estimated lead times. Verify when placing order | O37: Ohio
B38: Address | C38: 10400 Clean Street | E38: All orders subject to acceptance by Tennant Sales and Service Company, Minneapolis, Minnesota | O38: Oklahoma
C39: Eden Prairie, MN 55344 | E39: Prices subject to change without notice. Subject to any applicable taxes. | O39: Ontario
E40: Terms: Net 30 days. Payable in Canadian Funds | O40: Oregon
B41: Name | C41: =RepName -> Rep Name | E41: Freight: Accessories, parts, supplies, detergents, and floor coatings orders delivered DDP | O41: Pennsylvania
E42: shipping point Frt PPD. Machine orders delivered DDP shipping point Frt PPD and add. | O42: Prince Edward Isle
B43: Phone | C43: 800-553-8033 | E43: Returned Merchandise is subject to a restocking fee. | O43: Rhode Island
B44: Fax | C44: 763-513-2116 | E44: All orders are subject to Tennant’s General Terms and Conditions available at http://www.tennantco.com/terms. | O44: Quebec
E45: Printed General Terms and Conditions are also available upon request. | O45: South Carolina
O46: South Dakota
B47: Footer | O47: Tennessee
B48: Line 1 | C48: TENNANT · 10400 Clean Street · Eden Prairie, MN 55344 · | O48: Texas
B49: Line 2 | C49: PHONE:800-553-8033 · FAX:763-513-2116 | O49: Utah
O50: Virginia
O51: Vermont
O52: Washington
O53: West Virginia
O54: Wisconsin
O55: Wyoming
C57: Battery Surcharge | D57: Price
C58: 36 Volt Machines | D58: 0
C59: 24 Volt Machines | D59: 0
C60: Small 24 Volt Machines | D60: 0

Sheet Cover_Letter
A1: =Letter!$A$25 -> 2020-09-22
A4: =Start_Here!C37 -> Tennant Sales and Service Company
A5: =Start_Here!C38 -> 10400 Clean Street
A6: =Start_Here!C39 -> Eden Prairie, MN 55344
A7: =Start_Here!C40 -> 0
A9: =Start_Here!$C$22 -> Contact Name
A10: =Start_Here!$C$19 -> Company Name
A11: =Start_Here!$C$20 -> Address
A12: =Start_Here!$C$21 -> City, State Zip
A14: =Salutation -> Dear
A16: Thank you for your interest in TENNANT maintenance equipment. We are pleased to send you the attached quotation and literature on the products you are considering.
A18: A variety of lease and finance programs are available that will allow you to maximize the cost savings and productivity advantages that Tennant provides.
A20: I will be in contact with you, but in the meantime, feel free to call my sales office listed below, should you need to--your questions are invited and your orders will be given prompt attention.
A22: Yours Truly,
A26: =Start_Here!$C$41 -> Rep Name
A27: =Start_Here!C37 -> Tennant Sales and Service Company
A28: =Start_Here!C38 -> 10400 Clean Street
A29: =Start_Here!$C$39 -> Eden Prairie, MN 55344
A30: =Start_Here!$C$43 -> 800-553-8033
A32: attachment
A35: =Start_Here!C48 -> TENNANT · 10400 Clean Street · Eden Prairie, MN 55344 ·
A36: =Start_Here!C49 -> PHONE:800-553-8033 · FAX:763-513-2116

Sheet Dual_Tech_ReadySpace_R14
A1: Dual_Tech_ReadySpace_R14 | C1: =Start_Here!$C19 -> Company Name
A2: =SUM(G91) -> 0 | C2: =Start_Here!$C20 -> Address
C3: =Start_Here!$C21 -> City, State Zip
C4: =Start_Here!$C22 -> Contact Name
C5: =Start_Here!$C$41 -> Rep Name
C6: =Start_Here!$C$37 -> Tennant Sales and Service Company
C7: =Start_Here!$C$38 -> 10400 Clean Street
C8: =Start_Here!$C$39 -> Eden Prairie, MN 55344
C9: =Start_Here!$C$43 -> 800-553-8033 | E9: Quote Date : | G9: =Letter!$A$25 -> 2020-09-22
C11: =Help!C2 -> CAN Date Rev - 9/30/2024
B13: BUILT-IN “TENNANT VALUE” INCLUDES:
B15: ReadySpace® cleaning technology and deep extraction | D15: Standard (4) 6V 360AH battery pack
B16: 700mm/28" cleaning path | D16: Battery Tray
B17: 121 l/32-gal. solution & 106 l/28-gal. recovery tanks | D17: 25 Amp Off-board charger
B18: Hygenic® fully cleanable solution/recovery tanks | D18: One set of ReadySpace® rollers & extraction brushes
B19: Solution tank empty indicator | D19: Rugged DuramerTM Tank Construction
B20: Recovery tank full indicator | D20: Vacuum fan in-line air filter
B21: Touch Panel Controls | D21: Virtual DVD manual
C22: Featuring on-board diagnostics | D22: Operators manual
C23: One-button operation | D23: CRI certified, Bronze Cleaning Performance
B24: E-stop, hour meter and horn
B26: TENNANT COMPANY WARRANTY
B27: 3 YEARS OR 1500 HOURS ON ALL COMPONENTS, 3 YEARS LABOR
B28: 90 DAYS TRAVEL, 10 YEARS ON DURAMERTM TANKS
E31: Quote Request Information
G32: Fax (quote only)
G33: Mail (quote,lit, specs)
G34: Fax + Mail
E36: Primary Use
G37: Inside
G38: Outside
C40: Description | D40: Reference # | E40: Price Each | F40: Qty | G40: Extended Price
B41: Base Configuration | F41: =SUM(F42,F45,F51) -> 0
C42: Cleaning Type | F42: =SUM(F43) -> 0 | L42: =SUM(F42) -> 0 | M42: Surcharge Qty
C43: R14 Ride-On Dual Technolgy Carpet Maintainer 700mm/28" | D43: R14-700 | E43: 37776 | G43: =F43*E43 -> 0 | H43: =IFERROR(IFERROR(VLOOKUP(D43,Surcharge!A:B,2,FALSE)*F43, VLOOKUP(D43 & "",Surcharge!A:B,2,FALSE)*F43), "") -> 0 | P43: =VLOOKUP(Q43,'MPF SAP Download Canada'!A:D,4,FALSE) -> 37776 | Q43: M-R14VK_BASE_R14-700
H44: =IFERROR(IFERROR(VLOOKUP(D44,Surcharge!A:B,2,FALSE)*F44, VLOOKUP(D44 & "",Surcharge!A:B,2,FALSE)*F44), "") -> 
C45: Battery Type | F45: =SUM(F46:F49) -> 0 | H45: =IFERROR(IFERROR(VLOOKUP(D45,Surcharge!A:B,2,FALSE)*F45, VLOOKUP(D45 & "",Surcharge!A:B,2,FALSE)*F45), "") -> 
C46: Wet 360AH C/20 (Kit of 4 batteries) | D46: 9000815 | E46: N/C | G46: =IF(F46=0," ","N/C") ->  | H46: =IFERROR(IFERROR(VLOOKUP(D46,Surcharge!A:B,2,FALSE)*F46, VLOOKUP(D46 & "",Surcharge!A:B,2,FALSE)*F46), "") ->  | P46: =VLOOKUP(Q46,'MPF SAP Download Canada'!$A:$D,4,FALSE) -> N/C | Q46: M-R14VK_BTY_W360C20
C47: Without Battery | E47: -922 | G47: =F47*E47 -> 0 | H47: =IFERROR(IFERROR(VLOOKUP(D47,Surcharge!A:B,2,FALSE)*F47, VLOOKUP(D47 & "",Surcharge!A:B,2,FALSE)*F47), "") ->  | P47: =VLOOKUP(Q47,'MPF SAP Download Canada'!$A:$D,4,FALSE) -> -922 | Q47: M-R14VK_BTY_WO
H48: =IFERROR(IFERROR(VLOOKUP(D48,Surcharge!A:B,2,FALSE)*F48, VLOOKUP(D48 & "",Surcharge!A:B,2,FALSE)*F48), "") -> 
C49: Manual Battery Watering Kit (See Note 1) | D49: 9009619 | E49: 818 | G49: =F49*E49 -> 0 | H49: =IFERROR(IFERROR(VLOOKUP(D49,Surcharge!A:B,2,FALSE)*F49, VLOOKUP(D49 & "",Surcharge!A:B,2,FALSE)*F49), "") ->  | P49: =VLOOKUP(Q49,'MPF SAP Download Canada'!$A:$D,4,FALSE) -> 818 | Q49: M-R14VK_BTYWTRSYS
H50: =IFERROR(IFERROR(VLOOKUP(D50,Surcharge!A:B,2,FALSE)*F50, VLOOKUP(D50 & "",Surcharge!A:B,2,FALSE)*F50), "") -> 
C51: Charger | D51: Reference Number | F51: =SUM(F52:F53) -> 0 | H51: =IFERROR(IFERROR(VLOOKUP(D51,Surcharge!A:B,2,FALSE)*F51, VLOOKUP(D51 & "",Surcharge!A:B,2,FALSE)*F51), "") -> 
C52: 25A 100-240V AC 50/60Hz 1Ph | D52: 1043663 | E52: N/C | G52: =IF(F52=0," ","N/C") ->  | H52: =IFERROR(IFERROR(VLOOKUP(D52,Surcharge!A:B,2,FALSE)*F52, VLOOKUP(D52 & "",Surcharge!A:B,2,FALSE)*F52), "") ->  | P52: =VLOOKUP(Q52,'MPF SAP Download Canada'!$A:$D,4,FALSE) -> N/C | Q52: M-R14VK_CHG_25A100V5060H1
C53: Without Charger | E53: -525 | G53: =F53*E53 -> 0 | H53: =IFERROR(IFERROR(VLOOKUP(D53,Surcharge!A:B,2,FALSE)*F53, VLOOKUP(D53 & "",Surcharge!A:B,2,FALSE)*F53), "") ->  | P53: =VLOOKUP(Q53,'MPF SAP Download Canada'!$A:$D,4,FALSE) -> -525 | Q53: M-R14VK_CHG_WO
H54: =IFERROR(IFERROR(VLOOKUP(D54,Surcharge!A:B,2,FALSE)*F54, VLOOKUP(D54 & "",Surcharge!A:B,2,FALSE)*F54), "") -> 
B55: Machine Protection & Safety | D55: Reference Number | F55: =SUM(F56:F58) -> 0 | H55: =IFERROR(IFERROR(VLOOKUP(D55,Surcharge!A:B,2,FALSE)*F55, VLOOKUP(D55 & "",Surcharge!A:B,2,FALSE)*F55), "") -> 
C56: Seat Belt | D56: 9018587 | E56: 126 | G56: =F56*E56 -> 0 | H56: =IFERROR(IFERROR(VLOOKUP(D56,Surcharge!A:B,2,FALSE)*F56, VLOOKUP(D56 & "",Surcharge!A:B,2,FALSE)*F56), "") ->  | P56: =VLOOKUP(Q56,'MPF SAP Download Canada'!$A:$D,4,FALSE) -> 126 | Q56: M-R14VK_SETBLT
C57: Strobe Light on Tank | D57: 9000580 | E57: 1028 | G57: =F57*E57 -> 0 | H57: =IFERROR(IFERROR(VLOOKUP(D57,Surcharge!A:B,2,FALSE)*F57, VLOOKUP(D57 & "",Surcharge!A:B,2,FALSE)*F57), "") ->  | P57: =VLOOKUP(Q57,'MPF SAP Download Canada'!$A:$D,4,FALSE) -> 1028 | Q57: M-R14VK_WRNLGTANDALM_ST
C58: Utility Basket (small storage) | D58: 1018315 | E58: 323 | G58: =F58*E58 -> 0 | H58: =IFERROR(IFERROR(VLOOKUP(D58,Surcharge!A:B,2,FALSE)*F58, VLOOKUP(D58 & "",Surcharge!A:B,2,FALSE)*F58), "") ->  | P58: =VLOOKUP(Q58,'MPF SAP Download Canada'!$A:$D,4,FALSE) -> 323 | Q58: M-R14VK_UTLBSK
H59: =IFERROR(IFERROR(VLOOKUP(D59,Surcharge!A:B,2,FALSE)*F59, VLOOKUP(D59 & "",Surcharge!A:B,2,FALSE)*F59), "") -> 
B60: Support | D60: Reference Number | F60: =SUM(F61:F68) -> 0 | H60: =IFERROR(IFERROR(VLOOKUP(D60,Surcharge!A:B,2,FALSE)*F60, VLOOKUP(D60 & "",Surcharge!A:B,2,FALSE)*F60), "") -> 
C61: R14 Operator Manual (English) | D61: 1032047 | E61: N/C | G61: =IF(F61=0," ","N/C") ->  | H61: =IFERROR(IFERROR(VLOOKUP(D61,Surcharge!A:B,2,FALSE)*F61, VLOOKUP(D61 & "",Surcharge!A:B,2,FALSE)*F61), "") ->  | Q61: M-R14
C62: R14 Operator Manual (Spanish) | D62: 1032123 | E62: N/C | G62: =IF(F62=0," ","N/C") ->  | H62: =IFERROR(IFERROR(VLOOKUP(D62,Surcharge!A:B,2,FALSE)*F62, VLOOKUP(D62 & "",Surcharge!A:B,2,FALSE)*F62), "") ->  | Q62: M-R14
C63: R14 Operator Manual (French) (Note 2) | D63: 1032124 | E63: N/C | G63: =IF(F63=0," ","N/C") ->  | H63: =IFERROR(IFERROR(VLOOKUP(D63,Surcharge!A:B,2,FALSE)*F63, VLOOKUP(D63 & "",Surcharge!A:B,2,FALSE)*F63), "") ->  | Q63: M-R14
C64: Additional Operator Manual | D64: see above | E64: 224 | G64: =F64*E64 -> 0 | H64: =IFERROR(IFERROR(VLOOKUP(D64,Surcharge!A:B,2,FALSE)*F64, VLOOKUP(D64 & "",Surcharge!A:B,2,FALSE)*F64), "") ->  | P64: =VLOOKUP(Q64,'MPF SAP Download Canada'!$A:$D,4,FALSE) -> 224 | Q64: M-R14VK_ADLOPRMNL
C65: R14 Parts Manual | D65: 1032125 | E65: 27 | G65: =F65*E65 -> 0 | H65: =IFERROR(IFERROR(VLOOKUP(D65,Surcharge!A:B,2,FALSE)*F65, VLOOKUP(D65 & "",Surcharge!A:B,2,FALSE)*F65), "") ->  | P65: =VLOOKUP(Q65,'MPF SAP Download Canada'!$A:$D,4,FALSE) -> 27 | Q65: M-R14VK_PARMNL
C66: Service Manual | D66: 1032129 | E66: N/C | G66: =IF(F66=0," ","N/C") ->  | H66: =IFERROR(IFERROR(VLOOKUP(D66,Surcharge!A:B,2,FALSE)*F66, VLOOKUP(D66 & "",Surcharge!A:B,2,FALSE)*F66), "") ->  | P66: =VLOOKUP(Q66,'MPF SAP Download Canada'!$A:$D,4,FALSE) -> N/C | Q66: M-R14VK_SRVMNL
H67: =IFERROR(IFERROR(VLOOKUP(D67,Surcharge!A:B,2,FALSE)*F67, VLOOKUP(D67 & "",Surcharge!A:B,2,FALSE)*F67), "") -> 
C68: Packaging | F68: =SUM(F69:F69) -> 0 | H68: =IFERROR(IFERROR(VLOOKUP(D68,Surcharge!A:B,2,FALSE)*F68, VLOOKUP(D68 & "",Surcharge!A:B,2,FALSE)*F68), "") -> 
C69: Skid w/Carton, Non-Stackable | D69: 9002882 | E69: N/C | G69: =IF(F69=0," ","N/C") ->  | H69: =IFERROR(IFERROR(VLOOKUP(D69,Surcharge!A:B,2,FALSE)*F69, VLOOKUP(D69 & "",Surcharge!A:B,2,FALSE)*F69), "") ->  | P69: =VLOOKUP(Q69,'MPF SAP Download Canada'!$A:$D,4,FALSE) -> N/C | Q69: M-R14VK_PKG_SCNS
B72: Custom Solution--write in description, qty, price, and PN if applicable | F72: =SUM(F73) -> 0
E73: Insert Prices Here | F73: =SUM(F74:F77) -> 0
D74: Custom | F74: =IF(E74 <> "", 1, 0) -> 0 | G74: =F74*E74 -> 0
D75: Custom | F75: =IF(E75 <> "", 1, 0) -> 0 | G75: =F75*E75 -> 0
D76: Custom | F76: =IF(E76 <> "", 1, 0) -> 0 | G76: =F76*E76 -> 0
D77: Custom | F77: =IF(E77 <> "", 1, 0) -> 0 | G77: =F77*E77 -> 0
E78: =ROUND(SUM(G43:G77), 0) -> 0 | F78: =SUM(E79) -> 0
D79: Machine Subtotal | E79: =ROUND(SUM(G43:G77), 0) -> 0 | F79: =F78 -> 0
B80: Discounts | F80: =SUM(F81) -> 0
F81: =SUM(F83:F84) -> 0
D82: Applicable Currency Adj % | F82: =IF(E82 <> "", 1, 0) -> 0 | G82: =IF(F82*(E82*0.01)*E78 < 0, F82*(E82*0.01)*E78, -(F82*(E82*0.01)*E78)) -> 0
D83: Discount % | F83: =IF(E83 <> "", 1, 0) -> 0 | G83: =IF(F83*(E83*0.01)*(E78+G82) < 0, F83*(E83*0.01)*(E78+G82), -(F83*(E83*0.01)*(E78+G82))) -> 0
D84: Discount $ | F84: =IF(E84 <> "", 1, 0) -> 0 | G84: =IF(F84*E84 < 0, F84*E84, -(F84*E84)) -> 0
D85: Discount Total | E85: =SUM(G82:G84) -> 0 | F85: =SUM(E85) -> 0
F86: =#REF! -> 
F87: =F86 -> 
C88: Prepaid and Add | D88: Freight | F88: =IF(E88 <> "", 1, 0) -> 0 | G88: =F88*E88 -> 0
C89: Subject to all applicable taxes | D89: Tax | F89: =IF(E89 <> "", 1, 0) -> 0 | G89: =F89*E89 -> 0
F90: =SUM(F91) -> 0
D91: MACHINE TOTAL* | F91: =SUM(G91) -> 0 | G91: =SUM(G43:G89) -> 0 | N91: This goes to "My Documents"
G92: =SUM(G91) -> 0
C97: First Western Equipment Finance - Leasing Calculation Option: | D97: Option 1 | F97: Option 2 | J97: =Financing!A38 -> Rates 2023 - Rev 10/10/2023
D98: Monthly Payment | E98: Cost Per Day | F98: Monthly Payment | G98: Cost Per Day | J98: =Financing!A39 -> “Blank Payment Amounts Indicate The Financing Option Or Purchase Options Selected Are Not
C99: Purchase Option: | D99: FWEF: $1 Buyout Lease | F99: FWEF: Municipal Lease | J99: =Financing!A40 -> Applicable Or The Machine Total Is Below The Minimum Amount For The Selected Vendor”
C100: 24 Months | D100: FALSE | E100: 0 | F100: FALSE | G100: 0 | J100: =Financing!A41 -> "Quoted monthly payments are estimates only and are based on a certain level of credit rating.
C101: 30 Months | D101: FALSE | E101: 0 | F101: FALSE | G101: 0 | J101: =Financing!A42 -> Actual monthly payments may be higher depending on your credit rating."
C102: 36 Months | D102: FALSE | E102: 0 | F102: FALSE | G102: 0 | J102: =Financing!A43 -> “Financing rates do not include Pre-Paid Service”
C103: 48 Months | D103: 0 | E103: 0 | F103: 0 | G103: 0 | J103: =Financing!A44 -> 0
D105: Benefits of Equipment Financing:
D106: • Spreads out investment over time. | F106: • Keep current with latest technology.
D107: • Preserve capital. | F107: • Service and parts bundling available.
D108: • Low monthly payment. | F108: • Pay for labor savings as you go.
B111: TennantTrue | D111: 0 | E111: 0
C113: Is customer interested in service program? | D113: Yes | E113: *State/County selection required for TennantTrue service options
C115: If not, why?
C117: Term: | D117: 36 | G117: AB Brushes | H117: No
C118: Monthly machine usage (hrs): | D118: < 30/mo. (Avg. 1hr./day)
C120: TennantTrue: | D120: Gold Contract | F120: Silver Contract
C121: Per Visit | F121: 487
C122: Monthly | D122: 160 | F122: 85
C123: Annually | F123: 1004
C124: Pre-Pay Full Term | D124: 5517 | F124: 2953
C125: Hourly Labor Rate
C126: Site Visit
C128: * Verify customer current pricing prior to quote.
C129: **All rates and fees above reflect service for one (1) unit with the exception of Block of Time service.
C130: *Block of Time is available in 1 Year Term only and is priced as such no matter the term selection on this template.
B134: Quote Special Instructions:
B137: =Start_Here!E36 -> Terms and Conditions
B138: =Start_Here!E37 -> Ask your local sales rep for estimated lead times. Verify when placing order
B139: =Start_Here!E38 -> All orders subject to acceptance by Tennant Sales and Service Company, Minneapolis, Minnesota
B140: =Start_Here!E39 -> Prices subject to change without notice. Subject to any applicable taxes.
B141: =Start_Here!E40 -> Terms: Net 30 days. Payable in Canadian Funds
B142: =Start_Here!E41 -> Freight: Accessories, parts, supplies, detergents, and floor coatings orders delivered DDP
B143: =Start_Here!E42 -> shipping point Frt PPD. Machine orders delivered DDP shipping point Frt PPD and add.
B144: =Start_Here!E43 -> Returned Merchandise is subject to a restocking fee.
B145: =Start_Here!E44 -> All orders are subject to Tennant’s General Terms and Conditions available at http://www.tennantco.com/terms.
B146: =Start_Here!E45 -> Printed General Terms and Conditions are also available upon request.
B147: =Start_Here!E46 -> 0
E149: Quote Date : | G149: =Letter!$A$25 -> 2020-09-22
B150: Order Placement Information: To place your order, fill in PO# and customer signatures,
B151: call or fax to the numbers listed below. Customer Purchase Order is required.
B152: If information is missing, orders will be entered and held until all information is received.
C153: Customer Number | E153: Cust Grp 3
C154: =Start_Here!$C$25 -> 0 | E154: =Start_Here!$C$29 -> 0
C155: =Start_Here!$B$18 -> Who Owns the Machine? (Sold-To Info) (Please Verify)
A156: Company | C156: =Start_Here!$C$19 -> Company Name
A157: Address | C157: =Start_Here!$C$20 -> Address
C158: =Start_Here!$C$21 -> City, State Zip
A159: Name | C159: =Start_Here!$C$22 -> Contact Name
A160: Phone | C160: =Start_Here!$C$23 -> Contact Phone
C161: =Start_Here!$B$11 -> Where is the Machine Being Shipped? (Ship-To Info) (Please Verify)
A162: Company | C162: =Start_Here!$C$12 -> Company Name
A163: Address | C163: =Start_Here!$C$13 -> Address
C164: =Start_Here!$C$14 -> City, State Zip
A165: Name | C165: =Start_Here!$C$15 -> Contact Name
A166: Phone | C166: =Start_Here!$C$16 -> Contact Phone
C167: =Start_Here!$B$31 -> Shipping / Carrier Instructions: | E167: Order Special Instructions:
C168: =Start_Here!$C$32 -> 0
C170: Customer Purchase Order No.
C171: (please attach copy)
C174: Tax Exempt | E174: Yes
E175: No
C176: If Yes, attach a copy of your exemption certificate.
C178: Requested Delivery Date
C179: =Start_Here!$C$28 -> 0
C181: =Start_Here!$C$26 -> 0 | E181: =Start_Here!$C$27 -> 0
C182: Authorized Buyer (please print) | E182: Phone Number
C185: Authorized Buyer Signature
C187: =Start_Here!$C$41 -> Rep Name
C188: Tennant Representative
A190: Specialized Maintenance Equipment
A191: =Start_Here!$C$48 -> TENNANT · 10400 Clean Street · Eden Prairie, MN 55344 ·
A192: =Start_Here!$C$49 -> PHONE:800-553-8033 · FAX:763-513-2116
B194: Notes
B195: 1 | C195: Only available as factory-installed when batteries are ordered with machine.
B197: 2 | C197: A French and English manual will be supplied for all units shipping into Quebec, Canada at no charge. An additional manual
C198: can be ordered (for a total of 3 manuals) for an additional charge as stated under 'Additional Operator Manual'.
B200: 3 | C200: Shipping Weights and Dimensions | D200: Skid w/Carton
C202: Weight (w/360AH batteries) | D202: 650 lbs / 295 Kg
C203: Length | D203: 68" / 1,727mm
C204: Width | D204: 33" / 838mm
C205: Height | D205: 48" / 1,219mm

Sheet MPF SAP Download Canada (hidden)
A1: Master Price File Canada (Canadian MPF) - Products with Variant Numbers (VKs)
A3: Download Date: | B3: 11/02/2022
A4: Price Adj Effective Date: | B4: 2023-01-01
A5: Table name = | B5: MPF_Table_Canada
A7: Material + Variant Lookup Key | B7: Material | C7: Variant | D7: 2023 Amount | E7: Description | F7: Unit | G7: Product hierarchy
A8: =B8&C8 -> M-3640VK_CHG_19A100V5060H1 | B8: M-3640 | C8: VK_CHG_19A100V5060H1 | D8: 240 | E8: Ch19A 100V 5060H1P | F8: CAD | G8: 302406
A9: M-3640VK_HPRDMPAST | B9: M-3640 | C9: VK_HPRDMPAST | D9: 272 | E9: Hopper Dump Assist | F9: CAD | G9: 302406
A10: M-3640VK_BASE_3640-BTY | B10: M-3640 | C10: VK_BASE_3640-BTY | D10: 22803 | E10: 3640-E | F10: CAD | G10: 302406
A11: M-3640VK_BTY_W225C20 | B11: M-3640 | C11: VK_BTY_W225C20 | D11: 665 | E11: Bty Wet 225AH C20 | F11: CAD | G11: 302406
A12: M-3640VK_SDEBRSLOC_D | B12: M-3640 | C12: VK_SDEBRSLOC_D | D12: 1230 | E12: Side Brush: Dual | F12: CAD | G12: 302406
A13: M-3640VK_UL TYPE E | B13: M-3640 | C13: VK_UL TYPE E | D13: N/C | E13: UL® Type E | F13: CAD | G13: 302406
A14: M-3640VK_PWRVACWND_WO | B14: M-3640 | C14: VK_PWRVACWND_WO | D14: N/C | E14: Pump w/o WandPump | F14: CAD | G14: 302406
A15: M-3640VK_PKG_SSKD_USCAMX | B15: M-3640 | C15: VK_PKG_SSKD_USCAMX | D15: N/C | E15: Skid-Cart,Stack | F15: CAD | G15: 302406
A16: M-3640VK_UL TYPE EE | B16: M-3640 | C16: VK_UL TYPE EE | D16: 3708 | E16: UL® Type EE | F16: CAD | G16: 302406
A17: M-3640VK_CHG_WO | B17: M-3640 | C17: VK_CHG_WO | D17: -194 | E17: Without Charger | F17: CAD | G17: 302406
A18: M-3640VK_ULERTG_E | B18: M-3640 | C18: VK_ULERTG_E | D18: N/C | E18: UL® Type E | F18: CAD | G18: 302406
A19: M-3640VK_NONMKTTRE_WTP | B19: M-3640 | C19: VK_NONMKTTRE_WTP | D19: 883 | E19: Trs,WideTrackPneum. | F19: CAD | G19: 302406
A20: M-3640VK_BTY_WO | B20: M-3640 | C20: VK_BTY_WO | D20: -367 | E20: Without Battery | F20: CAD | G20: 302406
A21: M-3640VK_PARMNL | B21: M-3640 | C21: VK_PARMNL | D21: 29 | E21: Parts Manual | F21: CAD | G21: 302406
A22: M-3640VK_DSTCTLFLR_PFB | B22: M-3640 | C22: VK_DSTCTLFLR_PFB | D22: -784 | E22: Paper Filter Bag | F22: CAD | G22: 302406
A23: M-3640VK_CLNTOL_PYPW | B23: M-3640 | C23: VK_CLNTOL_PYPW | D23: N/C | E23: Poly & Wire Brush | F23: CAD | G23: 302406
A24: M-3640VK_CHG_11A100V5060H1 | B24: M-3640 | C24: VK_CHG_11A100V5060H1 | D24: N/C | E24: Ch11A 100V 5060H1P | F24: CAD | G24: 302406
A25: M-3640VK_CARCLNEQUPKG_SRT | B25: M-3640 | C25: VK_CARCLNEQUPKG_SRT | D25: 847 | E25: Carp Clean Eqp Std | F25: CAD | G25: 302406
A26: M-3640VK_CARCLNEQUPKG_ERT | B26: M-3640 | C26: VK_CARCLNEQUPKG_ERT | D26: 847 | E26: Carp Clean Eqp Ext | F26: CAD | G26: 302406
A27: M-3640VK_BTY_W130C20 | B27: M-3640 | C27: VK_BTY_W130C20 | D27: N/C | E27: Bty Wet 130AH C20 | F27: CAD | G27: 302406
A28: M-3640VK_BTYWTRSYS | B28: M-3640 | C28: VK_BTYWTRSYS | D28: 825 | E28: Battery Watering Sys | F28: CAD | G28: 302406
A29: M-3640VK_ADLOPRMNL | B29: M-3640 | C29: VK_ADLOPRMNL | D29: 130 | E29: Add Operator Manual | F29: CAD | G29: 302406
A30: M-3640VK_ULERTG_EE | B30: M-3640 | C30: VK_ULERTG_EE | D30: 3708 | E30: UL® Type EE | F30: CAD | G30: 302406
A31: M-3640VK_SRVMNL | B31: M-3640 | C31: VK_SRVMNL | D31: 298 | E31: Service Manual | F31: CAD | G31: 302406
A32: M-3640VK_SDECLNTOL_PYP | B32: M-3640 | C32: VK_SDECLNTOL_PYP | D32: N/C | E32: Side Poly Brush | F32: CAD | G32: 302406
A33: M-3640VK_SDEBRSLOC_RH | B33: M-3640 | C33: VK_SDEBRSLOC_RH | D33: N/C | E33: Side Brush: RH | F33: CAD | G33: 302406
A34: M-3640VK_PWRVACWND_LW | B34: M-3640 | C34: VK_PWRVACWND_LW | D34: N/C | E34: Live Wand | F34: CAD | G34: 302406
A35: M-3640VK_PWRVACWND_AWK | B35: M-3640 | C35: VK_PWRVACWND_AWK | D35: 432 | E35: Accessory Wand Kit | F35: CAD | G35: 302406
A36: M-3640VK_PKG_WSKD | B36: M-3640 | C36: VK_PKG_WSKD | D36: N/C | E36: Skid w/Stretch Wrap | F36: CAD | G36: 302406
A37: M-3640VK_NONMKTTRE_BSR | B37: M-3640 | C37: VK_NONMKTTRE_BSR | D37: N/C | E37: Tire Blk Sld Rubber | F37: CAD | G37: 302406
A38: M-3640VK_HEPFLR | B38: M-3640 | C38: VK_HEPFLR | D38: 9439 | E38: HEPA Filter | F38: CAD | G38: 302406
A39: M-3640VK_EMYSTP | B39: M-3640 | C39: VK_EMYSTP | D39: 451 | E39: Emergency Stop | F39: CAD | G39: 302406
A40: M-3640VK_DSTCTLFLR_PFLR | B40: M-3640 | C40: VK_DSTCTLFLR_PFLR | D40: N/C | E40: Panel Filter Kit | F40: CAD | G40: 302406
A41: M-3640VK_CLNTOL_UMB | B41: M-3640 | C41: VK_CLNTOL_UMB | D41: N/C | E41: Union Mix Brush | F41: CAD | G41: 302406
A42: M-3640VK_CLNTOL_SWB | B42: M-3640 | C42: VK_CLNTOL_SWB | D42: N/C | E42: Sand Wedge Brush | F42: CAD | G42: 302406
A43: M-3640VK_CLNTOL_PYP | B43: M-3640 | C43: VK_CLNTOL_PYP | D43: N/C | E43: Poly Brush | F43: CAD | G43: 302406
A44: M-S10VK_CLNTOL_FBWB18 | B44: M-S10 | C44: VK_CLNTOL_FBWB18 | D44: 423 | E44: Fiber & Wire, 18-row | F44: CAD | G44: 302601
A45: M-S10VK_CLNTOL_UMB18 | B45: M-S10 | C45: VK_CLNTOL_UMB18 | D45: 365 | E45: Union Mix, 18-row | F45: CAD | G45: 302601
A46: M-S10VK_BASE_S10-BTY_STD | B46: M-S10 | C46: VK_BASE_S10-BTY_STD | D46: 20305 | E46: S10 Bty Sweeper - STD | F46: CAD | G46: 302601
A47: M-S10VK_PKG_PAD | B47: M-S10 | C47: VK_PKG_PAD | D47: N/C | E47: Pad Wrap | F47: CAD | G47: 302601
A48: M-S10VK_S10-B | B48: M-S10 | C48: VK_S10-B | D48: 20305 | E48: S10 Battery Swpr | F48: CAD | G48: 302601
A49: M-S10VK_BTY_W110C5 | B49: M-S10 | C49: VK_BTY_W110C5 | D49: N/C | E49: Bty Wet 110AH C5 | F49: CAD | G49: 302601
A50: M-S10VK_FLRSYS_HEPA | B50: M-S10 | C50: VK_FLRSYS_HEPA | D50: 6678 | E50: HEPA Filter System | F50: CAD | G50: 302601
A51: M-S10VK_SDECLNTOL_NYL | B51: M-S10 | C51: VK_SDECLNTOL_NYL | D51: N/C | E51: Side Nylon Brush | F51: CAD | G51: 302601
A52: M-S10VK_SRVMNL | B52: M-S10 | C52: VK_SRVMNL | D52: 342 | E52: Service Manual | F52: CAD | G52: 302601
A53: M-S10VK_BASE_S10-BTY | B53: M-S10 | C53: VK_BASE_S10-BTY | D53: 20305 | E53: S10 BTY | F53: CAD | G53: 302601
A54: M-S10VK_ADLOPRMNL | B54: M-S10 | C54: VK_ADLOPRMNL | D54: 79 | E54: Add Operator Manual | F54: CAD | G54: 302601
A55: M-S10VK_SDECLNTOL_PYP | B55: M-S10 | C55: VK_SDECLNTOL_PYP | D55: N/C | E55: Side Poly Brush | F55: CAD | G55: 302601
A56: M-S10VK_PKG_SSKD | B56: M-S10 | C56: VK_PKG_SSKD | D56: N/C | E56: Stack Skid/Carton | F56: CAD | G56: 302601
A57: M-S10VK_OPRVID | B57: M-S10 | C57: VK_OPRVID | D57: N/C | E57: Operator Video | F57: CAD | G57: 302601
A58: M-S10VK_CLNTOL_UMB | B58: M-S10 | C58: VK_CLNTOL_UMB | D58: 284 | E58: Union Mix Brush | F58: CAD | G58: 302601
A59: M-S10VK_CLNTOL_PYP | B59: M-S10 | C59: VK_CLNTOL_PYP | D59: N/C | E59: Poly Brush | F59: CAD | G59: 302601
A60: M-S10VK_CLNTOL_NYL | B60: M-S10 | C60: VK_CLNTOL_NYL | D60: 305 | E60: Nylon Brush | F60: CAD | G60: 302601
A61: M-S10VK_CLNTOL_FBWB | B61: M-S10 | C61: VK_CLNTOL_FBWB | D61: N/C | E61: Fiber & Wire Brush | F61: CAD | G61: 302601
A62: M-6100VK_BLULGT | B62: M-6100 | C62: VK_BLULGT | D62: 1434 | E62: Blue Light | F62: CAD | G62: 303050
A63: M-6100VK_PKG_SKD_NO_CHG | B63: M-6100 | C63: VK_PKG_SKD_NO_CHG | D63: N/C | E63: Skid | F63: CAD | G63: 303050
A64: M-6100VK_PKG_CRT_NO_CHG | B64: M-6100 | C64: VK_PKG_CRT_NO_CHG | D64: N/C | E64: Crate No Charge | F64: CAD | G64: 303050
A65: M-6100VK_PKG_PAD | B65: M-6100 | C65: VK_PKG_PAD | D65: N/C | E65: Pad Wrap | F65: CAD | G65: 303050
A66: M-6100VK_BASE_6100-B_STD | B66: M-6100 | C66: VK_BASE_6100-B_STD | D66: 30732 | E66: 6100 Bty Standard Config | F66: CAD | G66: 303050
A67: M-6100VK_21A85V5060H1P_G180_ON | B67: M-6100 | C67: VK_21A85V5060H1P_G180_ON | D67: 2482 | E67: Ch21A 85V 5060H1P | F67: CAD | G67: 303050
A68: M-6100VK_CHG_WO | B68: M-6100 | C68: VK_CHG_WO | D68: -450 | E68: Without Charger | F68: CAD | G68: 303050
A69: M-6100VK_BTYWTRSYS | B69: M-6100 | C69: VK_BTYWTRSYS | D69: 1074 | E69: Battery Watering Sys | F69: CAD | G69: 303050
A70: M-6100VK_CSMSLN_CC | B70: M-6100 | C70: VK_CSMSLN_CC | D70: 5600 | E70: Custom Color | F70: CAD | G70: 303050
A71: M-6100VK_SET_ADJFB | B71: M-6100 | C71: VK_SET_ADJFB | D71: 216 | E71: Adjustable Seat | F71: CAD | G71: 303050
A72: =B72&C72 -> M-6100VK_STLCSENOTBTY_Y | B72: M-6100 | C72: VK_STLCSENOTBTY_Y | D72: 641 | E72: Steel Case | F72: CAD | G72: 303050
A73: M-6100VK_FREEXT | B73: M-6100 | C73: VK_FREEXT | D73: 298 | E73: Fire Extinguisher | F73: CAD | G73: 303050
A74: M-6100VK_CHG_21A85V5060H1_ONBD | B74: M-6100 | C74: VK_CHG_21A85V5060H1_ONBD | D74: 2803 | E74: Ch21A 85V 5060H1P | F74: CAD | G74: 303050
A75: M-6100VK_CSMSBTPARKIT | B75: M-6100 | C75: VK_CSMSBTPARKIT | D75: 8109 | E75: Sunbelt -Parts Kit | F75: CAD | G75: 303050
A76: M-6100VK_SLADSTFLTPKG_RH | B76: M-6100 | C76: VK_SLADSTFLTPKG_RH | D76: 9896 | E76: HEPA Dust Filter Pkg: RH | F76: CAD | G76: 303050
A77: M-6100VK_SLADSTFLTPKG_D | B77: M-6100 | C77: VK_SLADSTFLTPKG_D | D77: 10736 | E77: HEPA Dust Filter Pkg: Dual | F77: CAD | G77: 303050
A78: M-6100VK_SDEBRSLOC_D_NC | B78: M-6100 | C78: VK_SDEBRSLOC_D_NC | D78: N/C | E78: Side Brush: Dual | F78: CAD | G78: 303050
A79: M-6100VK_SDEBRSDSTCTL_D_RH_NC | B79: M-6100 | C79: VK_SDEBRSDSTCTL_D_RH_NC | D79: N/C | E79: SideBrshDustCntrl Dry RH | F79: CAD | G79: 303050
A80: M-6100VK_SDEBRSDSTCTL_D_RH | B80: M-6100 | C80: VK_SDEBRSDSTCTL_D_RH | D80: 1585 | E80: SideBrshDustCntrl Dry RH | F80: CAD | G80: 303050
A81: M-6100VK_SDEBRSDSTCTL_D_D_NC | B81: M-6100 | C81: VK_SDEBRSDSTCTL_D_D_NC | D81: N/C | E81: SideBrshDustCntrl Dry D | F81: CAD | G81: 303050
A82: M-6100VK_SDEBRSDSTCTL_D_D | B82: M-6100 | C82: VK_SDEBRSDSTCTL_D_D | D82: 2424 | E82: SideBrshDustCntrl Dry D | F82: CAD | G82: 303050
A83: M-6100VK_PWRVACWND_VACWND_ON | B83: M-6100 | C83: VK_PWRVACWND_VACWND_ON | D83: 6377 | E83: Vacuum Wand | F83: CAD | G83: 303050
A84: M-6100VK_PWRVACWND_VACWNDHP_ON | B84: M-6100 | C84: VK_PWRVACWND_VACWNDHP_ON | D84: 6777 | E84: Vacuum Wand HP | F84: CAD | G84: 303050
A85: M-6100VK_FLRSYS_HEPA_NC | B85: M-6100 | C85: VK_FLRSYS_HEPA_NC | D85: N/C | E85: HEPA Filter System | F85: CAD | G85: 303050
A86: M-6100VK_FLRSYS_HEPA | B86: M-6100 | C86: VK_FLRSYS_HEPA | D86: 8318 | E86: HEPA Filter System | F86: CAD | G86: 303050
A87: M-6100VK_21A85V5060H1P_W225_ON | B87: M-6100 | C87: VK_21A85V5060H1P_W225_ON | D87: 2803 | E87: Ch21A 85V 5060H1P | F87: CAD | G87: 303050
A88: M-6100VK_MCHCOM | B88: M-6100 | C88: VK_MCHCOM | D88: 1916 | E88: IRIS Telemetry | F88: CAD | G88: 303050
A89: M-6100VK_STLCSENOTBTY | B89: M-6100 | C89: VK_STLCSENOTBTY | D89: 641 | E89: Steel Case | F89: CAD | G89: 303050
A90: M-6100VK_PKG_CRT_NC | B90: M-6100 | C90: VK_PKG_CRT_NC | D90: N/C | E90: Crate | F90: CAD | G90: 303050
A91: M-6100VK_PARMNL | B91: M-6100 | C91: VK_PARMNL | D91: 32 | E91: Parts Manual | F91: CAD | G91: 303050
A92: M-6100VK_BASE_6100-BTY | B92: M-6100 | C92: VK_BASE_6100-BTY | D92: 30732 | E92: 6100 Battery Sweeper | F92: CAD | G92: 303050
A93: M-6100VK_21A85V5060H1P | B93: M-6100 | C93: VK_21A85V5060H1P | D93: N/C | E93: Ch21A 85V 5060H1P | F93: CAD | G93: 303050
A94: M-6100VK_OPRVID | B94: M-6100 | C94: VK_OPRVID | D94: N/C | E94: Operator Video | F94: CAD | G94: 303050
A95: M-6100VK_SDECLNTOL_HDPYP | B95: M-6100 | C95: VK_SDECLNTOL_HDPYP | D95: N/C | E95: Side HD Poly Brush | F95: CAD | G95: 303050
A96: M-6100VK_ALTSTBFLSLNS_R | B96: M-6100 | C96: VK_ALTSTBFLSLNS_R | D96: N/C | E96: Alternate Lens-Red | F96: CAD | G96: 303050
A97: M-6100VK_BTY_W225C20 | B97: M-6100 | C97: VK_BTY_W225C20 | D97: N/C | E97: Bty Wet 225AH C20 | F97: CAD | G97: 303050
A98: M-6100VK_SRVMNL | B98: M-6100 | C98: VK_SRVMNL | D98: 343 | E98: Service Manual | F98: CAD | G98: 303050
A99: M-6100VK_WTY_STD | B99: M-6100 | C99: VK_WTY_STD | D99: N/C | E99: Warranty STD | F99: CAD | G99: 303050
A100: M-6100VK_CLNTOL_UMB | B100: M-6100 | C100: VK_CLNTOL_UMB | D100: 374 | E100: Union Mix Brush | F100: CAD | G100: 303050
A101: M-6100VK_CLNTOL_PYPWIN | B101: M-6100 | C101: VK_CLNTOL_PYPWIN | D101: N/C | E101: Poly Window Brush | F101: CAD | G101: 303050
A102: M-6100VK_CLNTOL_PYP | B102: M-6100 | C102: VK_CLNTOL_PYP | D102: N/C | E102: Poly Brush | F102: CAD | G102: 303050
A103: M-6100VK_ALTSTBFLSLNS_B | B103: M-6100 | C103: VK_ALTSTBFLSLNS_B | D103: N/C | E103: Alternate Lens-Blue | F103: CAD | G103: 303050
A104: M-6100VK_RERTRE_SR | B104: M-6100 | C104: VK_RERTRE_SR | D104: N/C | E104: Trs Rear Solid Rbr | F104: CAD | G104: 303050
A105: M-6100VK_BTYCRT_1 | B105: M-6100 | C105: VK_BTYCRT_1 | D105: 3314 | E105: Battery Cart | F105: CAD | G105: 303050
A106: M-6100VK_BTY_WO | B106: M-6100 | C106: VK_BTY_WO | D106: -695 | E106: Without Battery | F106: CAD | G106: 303050
A107: M-6100VK_BTY_G180C20 | B107: M-6100 | C107: VK_BTY_G180C20 | D107: 3601 | E107: Bty Gel 180AH C20 | F107: CAD | G107: 303050
A108: M-6100VK_PKG_SKD | B108: M-6100 | C108: VK_PKG_SKD | D108: N/C | E108: Skid | F108: CAD | G108: 303050
A109: M-6100VK_SDECLNTOL_PYP | B109: M-6100 | C109: VK_SDECLNTOL_PYP | D109: N/C | E109: Side Poly Brush | F109: CAD | G109: 303050
A110: M-6100VK_SETBLT | B110: M-6100 | C110: VK_SETBLT | D110: 220 | E110: Seat Belt | F110: CAD | G110: 303050
A111: M-6100VK_MOPTYP_NWM | B111: M-6100 | C111: VK_MOPTYP_NWM | D111: N/C | E111: White Mop | F111: CAD | G111: 303050
A112: M-6100VK_ADLOPRMNL | B112: M-6100 | C112: VK_ADLOPRMNL | D112: 264 | E112: Add Operator Manual | F112: CAD | G112: 303050
A113: M-6100VK_WTY_XTD | B113: M-6100 | C113: VK_WTY_XTD | D113: 3064 | E113: Warranty Plus | F113: CAD | G113: 303050
A114: M-6100VK_MOPTYP_BM | B114: M-6100 | C114: VK_MOPTYP_BM | D114: N/C | E114: Blue Mop | F114: CAD | G114: 303050
A115: M-6100VK_21A85V5060H1P_G180 | B115: M-6100 | C115: VK_21A85V5060H1P_G180 | D115: 610 | E115: Ch21A 85V 5060H1P | F115: CAD | G115: 303050
A116: M-6100VK_PWRVACWND_VACWNDHP | B116: M-6100 | C116: VK_PWRVACWND_VACWNDHP | D116: 2967 | E116: Vacuum Wand HP | F116: CAD | G116: 303050
A117: M-6100VK_BTYEXCSYS_RO | B117: M-6100 | C117: VK_BTYEXCSYS_RO | D117: 1390 | E117: Bty Rollout Sys. | F117: CAD | G117: 303050
A118: M-6100VK_PKG_CRT | B118: M-6100 | C118: VK_PKG_CRT | D118: N/C | E118: Crate | F118: CAD | G118: 303050
A119: M-6100VK_UPG | B119: M-6100 | C119: VK_UPG | D119: N/C | E119: UPG | F119: CAD | G119: 303050
A120: M-6100VK_CLNTOL_SWB | B120: M-6100 | C120: VK_CLNTOL_SWB | D120: 374 | E120: Sand Wedge Brush | F120: CAD | G120: 303050
A121: M-6100VK_PWRVACWND_VACWND | B121: M-6100 | C121: VK_PWRVACWND_VACWND | D121: 2564 | E121: Vacuum Wand | F121: CAD | G121: 303050
A122: M-6100VK_MOP | B122: M-6100 | C122: VK_MOP | D122: 3115 | E122: QuickMop | F122: CAD | G122: 303050
A123: M-6100VK_SDEBRSLOC_RH | B123: M-6100 | C123: VK_SDEBRSLOC_RH | D123: N/C | E123: Side Brush: RH | F123: CAD | G123: 303050
A124: M-6100VK_SDEBRSLOC_D | B124: M-6100 | C124: VK_SDEBRSLOC_D | D124: 1519 | E124: Side Brush: Dual | F124: CAD | G124: 303050
A125: M-6100VK_BTYCRT_2 | B125: M-6100 | C125: VK_BTYCRT_2 | D125: 6462 | E125: Battery Cart 2 | F125: CAD | G125: 303050
A126: M-6100VK_ADLBTY_1 | B126: M-6100 | C126: VK_ADLBTY_1 | D126: 2301 | E126: Add. Bty | F126: CAD | G126: 303050
A127: M-6100VK_WRKLGT | B127: M-6100 | C127: VK_WRKLGT | D127: 550 | E127: Work Light | F127: CAD | G127: 303050
A128: M-6100VK_WRNLGTANDALM_AU | B128: M-6100 | C128: VK_WRNLGTANDALM_AU | D128: 730 | E128: Audio BU Alarm | F128: CAD | G128: 303050
A129: M-6100VK_WRNLGTANDALM_AUSL | B129: M-6100 | C129: VK_WRNLGTANDALM_AUSL | D129: 1004 | E129: AV BU AlrmStrobe Lnl | F129: CAD | G129: 303050
A130: M-6100VK_WRNLGTANDALM_SL | B130: M-6100 | C130: VK_WRNLGTANDALM_SL | D130: 720 | E130: Strobe Light Lintel | F130: CAD | G130: 303050
A131: M-6100VK_RERTRE_SNM | B131: M-6100 | C131: VK_RERTRE_SNM | D131: 470 | E131: Trs Rear Solid NM | F131: CAD | G131: 303050
A132: M-6100VK_SDEBMP | B132: M-6100 | C132: VK_SDEBMP | D132: 284 | E132: Side Bumper | F132: CAD | G132: 303050
A133: M-S16HVK_SET_DLXW | B133: M-S16H | C133: VK_SET_DLXW | D133: 794 | E133: Deluxe Seat w/Armr. | F133: CAD | G133: 304007
A134: M-S16HVK_BTY_L36V4M | B134: M-S16H | C134: VK_BTY_L36V4M | D134: 21396 | E134: Bty Li-Ion 36v, 8.2kWh | F134: CAD | G134: 304007
A135: M-S16HVK_BTY_W360C20 | B135: M-S16H | C135: VK_BTY_W360C20 | D135: 1510 | E135: Bty Wet 360AH C20 | F135: CAD | G135: 304007
A136: =B136&C136 -> M-S16HVK_SDEBRSDSTCTL_D_D | B136: M-S16H | C136: VK_SDEBRSDSTCTL_D_D | D136: 2362 | E136: SideBrshDustCntrl Dry D | F136: CAD | G136: 304007
A137: M-S16HVK_BTY_L36V2M | B137: M-S16H | C137: VK_BTY_L36V2M | D137: 10772 | E137: Bty Li-Ion 36v, 4.1kWh | F137: CAD | G137: 304007
A138: M-S16HVK_SRVMNL | B138: M-S16H | C138: VK_SRVMNL | D138: 340 | E138: Service Manual | F138: CAD | G138: 304007
A139: M-S16HVK_CLNTOL_NFB | B139: M-S16H | C139: VK_CLNTOL_NFB | D139: 318 | E139: Natural Fiber Brush | F139: CAD | G139: 304007
A140: M-S16HVK_BLULGT_NC | B140: M-S16H | C140: VK_BLULGT_NC | D140: N/C | E140: Blue Light | F140: CAD | G140: 304007
A141: M-S16HVK_CHG_25A100V5060H1OFF | B141: M-S16H | C141: VK_CHG_25A100V5060H1OFF | D141: N/C | E141: Ch25A 100V 50/60Hz 1Ph Off | F141: CAD | G141: 304007
A142: M-S16HVK_BLULGT | B142: M-S16H | C142: VK_BLULGT | D142: 1433 | E142: Blue Light | F142: CAD | G142: 304007
A143: M-S16HVK_SDEBRSLOC_D | B143: M-S16H | C143: VK_SDEBRSLOC_D | D143: 1519 | E143: Side Brush: Dual | F143: CAD | G143: 304007
A144: M-S16HVK_CLNTOL_PYPW | B144: M-S16H | C144: VK_CLNTOL_PYPW | D144: N/C | E144: Poly & Wire Brush | F144: CAD | G144: 304007
A145: M-S16HVK_BTY_W240C20 | B145: M-S16H | C145: VK_BTY_W240C20 | D145: N/C | E145: Bty Wet 240AH C20 | F145: CAD | G145: 304007
A146: M-S16HVK_WRNLGTANDALM_AUSL | B146: M-S16H | C146: VK_WRNLGTANDALM_AUSL | D146: 934 | E146: AV BU AlrmStrobe Lnl | F146: CAD | G146: 304007
A147: M-S16HVK_ADLOPRMNL | B147: M-S16H | C147: VK_ADLOPRMNL | D147: 264 | E147: Add Operator Manual | F147: CAD | G147: 304007
A148: M-S16HVK_CHG_33A100V5060H1POFF | B148: M-S16H | C148: VK_CHG_33A100V5060H1POFF | D148: 342 | E148: Ch33A 100V 50/60Hz 1Ph Off | F148: CAD | G148: 304007
A149: M-S16HVK_BTYWTRSYS_ML | B149: M-S16H | C149: VK_BTYWTRSYS_ML | D149: 1042 | E149: Battery Watering Manual | F149: CAD | G149: 304007
A150: M-S16HVK_SFYLGTPKG | B150: M-S16H | C150: VK_SFYLGTPKG | D150: 3037 | E150: Safety Light Package | F150: CAD | G150: 304007
A151: M-S16HVK_CHG_33A100V5060H1PFLI | B151: M-S16H | C151: VK_CHG_33A100V5060H1PFLI | D151: 1490 | E151: Ch33A 100V 50/60Hz 1Ph Off | F151: CAD | G151: 304007
A152: M-S16HVK_SLADSTFLTPKG_RH | B152: M-S16H | C152: VK_SLADSTFLTPKG_RH | D152: 10259 | E152: HEPA Dust Filter Pkg: RH | F152: CAD | G152: 304007
A153: M-S16HVK_MCHCOM_SBT | B153: M-S16H | C153: VK_MCHCOM_SBT | D153: 1916 | E153: IRIS Telemetry | F153: CAD | G153: 304007
A154: M-S16HVK_BASE_S16H_STD | B154: M-S16H | C154: VK_BASE_S16H_STD | D154: 53207 | E154: S16 High Dump - STD | F154: CAD | G154: 304007
A155: M-S16HVK_CLNTOL_PYP | B155: M-S16H | C155: VK_CLNTOL_PYP | D155: N/C | E155: Poly Brush | F155: CAD | G155: 304007
A156: M-S16HVK_CHG_WO | B156: M-S16H | C156: VK_CHG_WO | D156: -279 | E156: Without Charger | F156: CAD | G156: 304007
A157: M-S16HVK_CHG_33A100V5060H1PON | B157: M-S16H | C157: VK_CHG_33A100V5060H1PON | D157: 1490 | E157: Ch33A 100V 50/60Hz 1Ph On | F157: CAD | G157: 304007
A158: M-S16HVK_CHG_25A100V5060H1ON | B158: M-S16H | C158: VK_CHG_25A100V5060H1ON | D158: 1152 | E158: Ch25A 100V 50/60Hz 1Ph On | F158: CAD | G158: 304007
A159: M-S16HVK_CARCREPKG | B159: M-S16H | C159: VK_CARCREPKG | D159: 901 | E159: Carpet Care Pkg | F159: CAD | G159: 304007
A160: M-S16HVK_BTY_WO | B160: M-S16H | C160: VK_BTY_WO | D160: -693 | E160: Without Battery | F160: CAD | G160: 304007
A161: M-S16HVK_BTY_L36V6M | B161: M-S16H | C161: VK_BTY_L36V6M | D161: 29680 | E161: Bty Li-Ion 36v, 12.2kWh | F161: CAD | G161: 304007
A162: M-S16HVK_BTYWTRSYS_SF | B162: M-S16H | C162: VK_BTYWTRSYS_SF | D162: 1603 | E162: Smart Fill | F162: CAD | G162: 304007
A163: M-S16HVK_BASE_S16H | B163: M-S16H | C163: VK_BASE_S16H | D163: 53207 | E163: Sweeper S16 High Dump | F163: CAD | G163: 304007
A164: M-S16HVK_ULERTG_ES | B164: M-S16H | C164: VK_ULERTG_ES | D164: 3994 | E164: UL® Type ES | F164: CAD | G164: 304007
A165: M-S16HVK_SLADSTFLTPKG_D | B165: M-S16H | C165: VK_SLADSTFLTPKG_D | D165: 11069 | E165: HEPA Dust Filter Pkg: Dual | F165: CAD | G165: 304007
A166: M-S16HVK_SDECLNTOL_PYP | B166: M-S16H | C166: VK_SDECLNTOL_PYP | D166: N/C | E166: Side Poly Brush | F166: CAD | G166: 304007
A167: M-S16HVK_SDEBRSDSTCTL_D_RH | B167: M-S16H | C167: VK_SDEBRSDSTCTL_D_RH | D167: 1551 | E167: SideBrshDustCntrl Dry RH | F167: CAD | G167: 304007
A168: M-S16HVK_PWRVACWND_VACWND | B168: M-S16H | C168: VK_PWRVACWND_VACWND | D168: 2564 | E168: Vacuum Wand | F168: CAD | G168: 304007
A169: M-S16HVK_PRDPKG | B169: M-S16H | C169: VK_PRDPKG | D169: 3874 | E169: Productivity Package | F169: CAD | G169: 304007
A170: M-S16HVK_PKG_SKD | B170: M-S16H | C170: VK_PKG_SKD | D170: 645 | E170: Skid | F170: CAD | G170: 304007
A171: M-S16HVK_PKG_SCNS | B171: M-S16H | C171: VK_PKG_SCNS | D171: N/C | E171: NonStack Skid/Carton | F171: CAD | G171: 304007
A172: M-S16HVK_OVHGRD | B172: M-S16H | C172: VK_OVHGRD | D172: 2288 | E172: Overhead Guard | F172: CAD | G172: 304007
A173: M-S16HVK_MCHCOM | B173: M-S16H | C173: VK_MCHCOM | D173: 1916 | E173: IRIS Telemetry | F173: CAD | G173: 304007
A174: M-S16HVK_HLTANDTALLGT | B174: M-S16H | C174: VK_HLTANDTALLGT | D174: 834 | E174: Headlghts/Tail Lghts | F174: CAD | G174: 304007
A175: M-S16HVK_FREEXT | B175: M-S16H | C175: VK_FREEXT | D175: 475 | E175: Fire Extinguisher | F175: CAD | G175: 304007
A176: M-S16HVK_FLRSYS_HEPA | B176: M-S16H | C176: VK_FLRSYS_HEPA | D176: 8709 | E176: HEPA Filter System | F176: CAD | G176: 304007
A177: M-S16HVK_CLNTOL_SWB | B177: M-S16H | C177: VK_CLNTOL_SWB | D177: 318 | E177: Sand Wedge Brush | F177: CAD | G177: 304007
A178: M-S16HVK_CLNTOL_PYPWIN | B178: M-S16H | C178: VK_CLNTOL_PYPWIN | D178: 318 | E178: Poly Window Brush | F178: CAD | G178: 304007
A179: M-S16LVK_CLNTOL_PYP | B179: M-S16L | C179: VK_CLNTOL_PYP | D179: N/C | E179: Poly Brush | F179: CAD | G179: 304008
A180: M-S16LVK_CHG_25A100V5060H1ON | B180: M-S16L | C180: VK_CHG_25A100V5060H1ON | D180: 1152 | E180: Ch25A 100V 50/60Hz 1Ph On | F180: CAD | G180: 304008
A181: M-S16LVK_BTYWTRSYS_SF | B181: M-S16L | C181: VK_BTYWTRSYS_SF | D181: 1603 | E181: Smart Fill | F181: CAD | G181: 304008
A182: M-S16LVK_OVHGRD | B182: M-S16L | C182: VK_OVHGRD | D182: 2288 | E182: Overhead Guard | F182: CAD | G182: 304008
A183: M-S16LVK_CHG_33A100V5060H1PON | B183: M-S16L | C183: VK_CHG_33A100V5060H1PON | D183: 1490 | E183: Ch33A 100V 50/60Hz 1Ph On | F183: CAD | G183: 304008
A184: M-S16LVK_BTY_W240C20 | B184: M-S16L | C184: VK_BTY_W240C20 | D184: N/C | E184: Bty Wet 240AH C20 | F184: CAD | G184: 304008
A185: M-S16LVK_BASE_S16L | B185: M-S16L | C185: VK_BASE_S16L | D185: 42637 | E185: Sweeper S16 Low Dump | F185: CAD | G185: 304008
A186: M-S16LVK_CLNTOL_PYPWIN | B186: M-S16L | C186: VK_CLNTOL_PYPWIN | D186: 318 | E186: Poly Window Brush | F186: CAD | G186: 304008
A187: M-S16LVK_CHG_33A100V5060H1PFLI | B187: M-S16L | C187: VK_CHG_33A100V5060H1PFLI | D187: 1490 | E187: Ch33A 100V 50/60Hz 1Ph Off | F187: CAD | G187: 304008
A188: M-S16LVK_FLRSYS_HEPA | B188: M-S16L | C188: VK_FLRSYS_HEPA | D188: 8709 | E188: HEPA Filter System | F188: CAD | G188: 304008
A189: M-S16LVK_CLNTOL_SWB | B189: M-S16L | C189: VK_CLNTOL_SWB | D189: 318 | E189: Sand Wedge Brush | F189: CAD | G189: 304008
A190: M-S16LVK_BTY_L36V6M | B190: M-S16L | C190: VK_BTY_L36V6M | D190: 29680 | E190: Bty Li-Ion 36v, 12.2kWh | F190: CAD | G190: 304008
A191: M-S16LVK_PKG_SKD | B191: M-S16L | C191: VK_PKG_SKD | D191: 645 | E191: Skid | F191: CAD | G191: 304008
A192: M-S16LVK_BLULGT | B192: M-S16L | C192: VK_BLULGT | D192: 1433 | E192: Blue Light | F192: CAD | G192: 304008
A193: M-S16LVK_PWRVACWND_VACWND | B193: M-S16L | C193: VK_PWRVACWND_VACWND | D193: 2564 | E193: Vacuum Wand | F193: CAD | G193: 304008
A194: M-S16LVK_BTY_W360C20 | B194: M-S16L | C194: VK_BTY_W360C20 | D194: 1510 | E194: Bty Wet 360AH C20 | F194: CAD | G194: 304008
A195: M-S16LVK_MCHCOM | B195: M-S16L | C195: VK_MCHCOM | D195: 1916 | E195: IRIS Telemetry | F195: CAD | G195: 304008
A196: M-S16LVK_PKG_SCNS | B196: M-S16L | C196: VK_PKG_SCNS | D196: N/C | E196: NonStack Skid/Carton | F196: CAD | G196: 304008
A197: M-S16LVK_CARCREPKG | B197: M-S16L | C197: VK_CARCREPKG | D197: 901 | E197: Carpet Care Pkg | F197: CAD | G197: 304008
A198: M-S16LVK_CHG_33A100V5060H1POFF | B198: M-S16L | C198: VK_CHG_33A100V5060H1POFF | D198: 342 | E198: Ch33A 100V 50/60Hz 1Ph Off | F198: CAD | G198: 304008
A199: M-S16LVK_BTY_L36V2M | B199: M-S16L | C199: VK_BTY_L36V2M | D199: 10772 | E199: Bty Li-Ion 36v, 4.1kWh | F199: CAD | G199: 304008
A200: =B200&C200 -> M-S16LVK_HLTANDTALLGT | B200: M-S16L | C200: VK_HLTANDTALLGT | D200: 834 | E200: Headlghts/Tail Lghts | F200: CAD | G200: 304008
A201: M-S16LVK_ADLOPRMNL | B201: M-S16L | C201: VK_ADLOPRMNL | D201: 264 | E201: Add Operator Manual | F201: CAD | G201: 304008
A202: M-S16LVK_BLULGT_NC | B202: M-S16L | C202: VK_BLULGT_NC | D202: N/C | E202: Blue Light | F202: CAD | G202: 304008
... 2268 more rows

Sheet MPF SAP Canada Pre-Configured (hidden)
A1: Master Price File Canada (Canadian MPF) - PreConfigured Machines
A3: Download Date: | C3: 2022-11-02
A4: Price Adj Effective Date: | C4: 2023-01-01
A5: Table name = | C5: MPF_Table_Canada_PreConfigured
A7: Product Hierarchy | B7: Description | C7: Material | D7: Material Description | E7: 2022 List
A8: 301003 | B8: CS5 | C8: 1251580 | D8: SCRUBBER [CS5 BATTERY NAM] | E8: 4224
A9: 301004135 | B9: CS16 | C9: LPTB03328 | D9: SCRUBBER [CS16 BATTERY NA] | E9: 5944
A10: 302404 | B10: S8 | C10: 9001401 | D10: SWEEPER, 28INCH, 12VDC, GEL, TJ | E10: 7569
A11: 302506 | B11: S9 (Battery Sweeper) | C11: 1069648 | D11: SWEEPER, 90CM, 12V [S9 NA, W/O B,W/ C] | E11: 6792
A12: 302508 | B12: S6 | C12: 1251268 | D12: SWEEPER [S6 NA EX W/ BATT, CORD] | E12: 4606
A13: 302509 | B13: Scout 6 | C13: 1251270 | D13: SWEEPER [SCOUT 6 W/ BATT, CORD] | E13: 4606
A14: 302510 | B14: S7 | C14: 1251272 | D14: SWEEPER [S7 NA W/ BATT, CORD] | E14: 9206
A15: 302511 | B15: Scout 7 | C15: 1251274 | D15: SWEEPER [SCOUT 7 W BATT, CORD] | E15: 9206
A16: 302601 | B16: SS10 | C16: 9003573 | D16: SWEEPER, NA, FI [S10] | E16: 17231
A17: 304053 | B17: S20 | C17: MS20-1781 | D17: MODEL S20 SWEEPER | E17: 52297
A18: 304053 | B18: S20 | C18: MS20-5902 | D18: MODEL S20 SWEEPER | E18: 45502
A19: 304215 | B19: S30 | C19: MS30-3567 | D19: MODEL S30 RIDER SWEEPER | E19: 29211
A20: 304215 | B20: S30 | C20: MS30-1766 | D20: MODEL S30 RIDER SWEEPER | E20: 44940
A21: 306200 | B21: T1 | C21: 9004191 | D21: SCRUBBER, 38CM, 11L, 120VAC [T1] | E21: 6663
A22: 306200 | B22: T1 | C22: 9004191-H | D22: SCRUBBER, 38CM, 11L, 120VAC [T1] | E22: 6663
A23: 306201 | B23: Speed Scrub 15" (3gal, Cord Elec Cyli | C23: 9004200-H | D23: SCRUBBER, 38CM, 11L, 120VAC [SS-15"] | E23: 6663
A24: 306201 | B24: Speed Scrub 15" (3gal, Cord Elec Cyli | C24: 9004200 | D24: SCRUBBER, 38CM, 11L, 120VAC [SS-15] | E24: 6663
A25: 306202 | B25: T1B | C25: 9008635 | D25: SCRUBBER, 38CM, 11L, 12VDC [T1B NA, AGM] | E25: 8611
A26: 306202 | B26: T1B | C26: 9016537 | D26: SCRUBBER, 38CM, 11L, 12VDC [T1B AGM IRIS | E26: 10176
A27: 306202 | B27: T1B | C27: 9008638 | D27: SCRUBBER, 38CM, 11L, 12VDC [T1B NA, Li] | E27: 11109
A28: 306203 | B28: SPEEDSCRUB BATT 15" | C28: 9008640 | D28: SCRUBBER, 2 GAL, Li BATT [NOB SS15] | E28: 11109
A29: 306203 | B29: SPEEDSCRUB BATT 15" | C29: 9008637 | D29: SCRUBBER, 38CM, 11L, 12VDC [SS-15", AGM] | E29: 8611
A30: 306300 | B30: T2 | C30: MV-T2-0001 | D30: SCRUBBER, 43CM, PUSH [T2, NA] | E30: 11537
A31: 306300 | B31: T2 | C31: MV-T2-0008 | D31: SCRUBBER, 43CM, PUSH [T2, NA GEL W/BRSH] | E31: 10916
A32: 306304 | B32: WB-20 20" Autoscrub | C32: 9002791 | D32: SCRUBBER, 20INCH, 24VDC[WB-20B CTX CMPT] | E32: 9715
A33: 306307 | B33: T300 | C33: MV-T300-0001 | D33: SCRUBBER, 430D, PUSH, MEM [T300D NA] | E33: 11848
A34: 306307 | B34: T300 | C34: MV-T300-0003 | D34: SCRUBBER, 500D, PUSH, MEM [T300D NA] | E34: 13316
A35: 306307 | B35: T300 | C35: MV-T300-0011 | D35: SCRUBBER, 500O, DR, MEM, ECNC[T300 O NA] | E35: 19549
A36: 306307 | B36: T300 | C36: MV-T300-0007 | D36: SCRUBBER, 500D, DR, PRO, ECNC [T300D NA] | E36: 19379
A37: 306307 | B37: T300 | C37: MV-T300-0010 | D37: SCRUBBER, 500O, DR, MEM [T300 O NA] | E37: 16644
A38: 306307 | B38: T300 | C38: MV-T300-0008 | D38: SCRUBBER, 600D, DR, MEM [T300D NA] | E38: 17738
A39: 306307 | B39: T300 | C39: MV-T300-0004 | D39: SCRUBBER, 500D, DR, MEM [T300D NA] | E39: 15594
A40: 306307 | B40: T300 | C40: MV-T300-0006 | D40: SCRUBBER, 500D, DR, PRO [T300D NA] | E40: 16474
A41: 306307 | B41: T300 | C41: MV-T300-0135 | D41: SCRUBBER, 500D, DR, ECNC[T300D, ARMKCB]Y | E41: 21894
A42: 306307 | B42: T300 | C42: MV-T300-0134 | D42: SCRUBBER,500D, DR, ECNC [T300D,ARMK]PW Y | E42: 21484
A43: 306307 | B43: T300 | C43: MV-T300-0009 | D43: SCRUBBER, 600D, DR, PRO, ECNC [T300 NA] | E43: 21524
A44: 306307 | B44: T300 | C44: MV-T300-0005 | D44: SCRUBBER, 500D, DR, MEM, ECNC [T300D NA] | E44: 18499
A45: 306308 | B45: T300e | C45: MV-T300E-0007 | D45: SCRUBBER, 600D, DR [T300e D NA] | E45: 13973
A46: 306308 | B46: T300e | C46: MV-T300E-0002 | D46: SCRUBBER, 430D, PUSH [T300e D ECNC NA] | E46: 12507
A47: 306308 | B47: T300e | C47: MV-T300E-0004 | D47: SCRUBBER, 500D, PUSH, IC,ECN[T300e D NA] | E47: 14321
A48: 306308 | B48: T300e | C48: MV-T300E-0010 | D48: SCRUBBER, 500O, DR, ECNC [T300e O NA] | E48: 17225
A49: 306308 | B49: T300e | C49: MV-T300E-0008 | D49: SCRUBBER, 600D, DR, IC, ECNC[T300e D NA] | E49: 17914
A50: 306308 | B50: T300e | C50: MV-T300E-0085 | D50: SCRUBBER, EX, 500D, PUSH, CNV, 130AH[CA] | E50: 11272
A51: 306308 | B51: T300e | C51: MV-T300E-0003 | D51: SCRUBBER, 500D, PUSH [T300e D NA] | E51: 10752
A52: 306308 | B52: T300e | C52: MV-T300E-0086 | D52: SCRUBBER, EX, 500D, PUSH, CNV, AGM [CA] | E52: 12992
A53: 306308 | B53: T300e | C53: MV-T300E-0006 | D53: SCRUBBER, 500D, DR, IC, ECNC[T300e D NA] | E53: 16895
A54: 306308 | B54: T300e | C54: MV-T300E-0027 | D54: SCRUBBER, 500O, DR, ECNC [T300e O WM] | E54: 19207
A55: 306308 | B55: T300e | C55: MV-T300E-0005 | D55: SCRUBBER, 500D,DR,IC,130AH [T300e D NA] | E55: 13989
A56: 306308 | B56: T300e | C56: MV-T300E-0009 | D56: SCRUBBER, 500O, DR [T300e O NA] | E56: 14320
A57: 306309 | B57: SS300 | C57: MV-SS300-0006 | D57: SCRUBBER, 500D, DR, IC,ECN,130AH[SS300D] | E57: 16886
A58: 306309 | B58: SS300 | C58: MV-SS300-0003 | D58: SCRUBBER, 500D, PUSH, 130AH [SS300D] | E58: 10752
A59: 306309 | B59: SS300 | C59: MV-SS300-0005 | D59: SCRUBBER, 500D, DR, IC, 130AH [SS300D] | E59: 13981
A60: 306309 | B60: SS300 | C60: MV-SS300-0009 | D60: SCRUBBER, 500O, DR, 150AH [SS300 O] | E60: 14324
A61: 306309 | B61: SS300 | C61: MV-SS300-0010 | D61: SCRUBBER, 500O, DR, ECNC, 150AH[SS300 O] | E61: 17230
A62: 306309 | B62: SS300 | C62: MV-SS300-0012 | D62: SCRUBBER, 430D, P, IC,ECNC,130AH[SS300D] | E62: 13122
A63: 306309 | B63: SS300 | C63: MV-SS300-0001 | D63: SCRUBBER, 430D, PUSH, 130AH [SS300D] | E63: 9609
A64: 306309 | B64: SS300 | C64: MV-SS300-0007 | D64: SCRUBBER, 600D, DR, 150AH [SS300D] | E64: 13978
A65: 306309 | B65: SS300 | C65: MV-SS300-0002 | D65: SCRUBBER, 430D, PUSH, ECNC,130AH[SS300D] | E65: 12514
A66: 306309 | B66: SS300 | C66: MV-SS300-0004 | D66: SCRUBBER, 500D, P, IC,ECNC,130AH[SS300D] | E66: 14299
A67: 306309 | B67: SS300 | C67: MV-SS300-0008 | D67: SCRUBBER, 600D, DR, IC,ECNC,150A[SS300D] | E67: 17924
A68: 306327 | B68: T290 | C68: 9022001 | D68: SCRUBBER [T290 50CM, PA, 150AH WET, NA] | E68: 8676
A69: 306327 | B69: T290 | C69: 9022004 | D69: SCRUBBER [T290 50CM, 150AH WET, NA] | E69: 10585
A70: 306327 | B70: T290 | C70: 1255468 | D70: SCRUBBER [T290 50CM, W/O BATT, NA] | E70: 9836
A71: 306327 | B71: T290 | C71: 9022003 | D71: SCRUBBER [T290 50CM, 130AH WET, NA] | E71: 10403
A72: 306327 | B72: T290 | C72: 1255467 | D72: SCRUBBER [T290 50CM, PA, W/O BATT, NA] | E72: 7931
A73: 306327 | B73: T290 | C73: 9022002 | D73: SCRUBBER [T290 50CM, PA, 140AH AGM, NA] | E73: 10188
A74: 306327 | B74: T290 | C74: 9022000 | D74: SCRUBBER [T290 50CM, PA, 130AH WET, NA] | E74: 8497
A75: 306327 | B75: T290 | C75: 9022005 | D75: SCRUBBER [T290 50CM, 140AH AGM, NA] | E75: 12094
A76: 306407 | B76: T500 | C76: MV-T500-0019 | D76: SCRUBBER,T500,650D,MEM,ECNC,225AH,OBC,CA | E76: 27165
A77: 306407 | B77: T500 | C77: MV-T500-0017 | D77: SCRUBBER,T500, 700O, MEM, 225AH, OBC, CA | E77: 26040
A78: 306407 | B78: T500 | C78: MV-T500-0026 | D78: SCRUBBER,T500, 700O, PPAN, 225AH, OBC,CA | E78: 31409
A79: 306407 | B79: T500 | C79: MV-T500-0023 | D79: SCRUBBER,T500,700C,MEM,ECNC,225AH,OBC,CA | E79: 30674
A80: 306407 | B80: T500 | C80: MV-T500-0025 | D80: SCRUBBER,T500, 800D, PPAN, 225AH, OBC,CA | E80: 31593
A81: 306407 | B81: T500 | C81: MV-T500-0020 | D81: SCRUBBER,T500,700D,MEM,ECNC,225AH,OBC,CA | E81: 28671
A82: 306407 | B82: T500 | C82: MV-T500-0021 | D82: SCRUBBER,T500,800D,MEM,ECNC,225AH,OBC,CA | E82: 30386
A83: 306407 | B83: T500 | C83: MV-T500-0014 | D83: SCRUBBER,T500, 650D, MEM, 225AH, OBC, CA | E83: 23188
A84: 306407 | B84: T500 | C84: MV-T500-0016 | D84: SCRUBBER,T500, 800D, MEM, 225AH, OBC, CA | E84: 26411
A85: 306407 | B85: T500 | C85: MV-T500-0022 | D85: SCRUBBER,T500,700O,MEM,ECNC,225AH,OBC,CA | E85: 30015
A86: 306407 | B86: T500 | C86: MV-T500-0018 | D86: SCRUBBER,T500, 700C, MEM, 225AH, OBC, CA | E86: 26699
A87: 306407 | B87: T500 | C87: MV-T500-0015 | D87: SCRUBBER,T500, 700D, MEM, 225AH, OBC, CA | E87: 25119
A88: 306407 | B88: T500 | C88: MV-T500-0024 | D88: SCRUBBER,T500, 700D, PPAN, 225AH, OBC,CA | E88: 30463
A89: 306408 | B89: T500e | C89: MV-T500E-0023 | D89: SCRUBBER,T500E,650D,ECNC,225AH,OBC,SF,CA | E89: 25570
A90: 306408 | B90: T500e | C90: MV-T500E-0017 | D90: SCRUBBER, T500E, 800D, 225AH, OBC, CA | E90: 22534
A91: 306408 | B91: T500e | C91: MV-T500E-0050 | D91: SCRUBBER, T500E,800D,CNV,225AH,OBC,PW,WM | E91: 25920
A92: 306408 | B92: T500e | C92: MV-T500E-0024 | D92: SCRUBBER,T500E,700D,ECNC,225AH,OBC,SF,CA | E92: 26260
A93: 306408 | B93: T500e | C93: MV-T500E-0021 | D93: SCRUBBER, T500E, 800D, 225AH, OBC, SF,CA | E93: 23818
A94: 306408 | B94: T500e | C94: MV-T500E-0025 | D94: SCRUBBER,T500E,800D,ECNC,225AH,OBC,SF,CA | E94: 27792
A95: 306408 | B95: T500e | C95: MV-T500E-0018 | D95: SCRUBBER, T500E, 700O, 225AH, OBC, CA | E95: 22343
A96: 306408 | B96: T500e | C96: MV-T500E-0015 | D96: SCRUBBER, T500E, 650D, 225AH, OBC, CA | E96: 20312
A97: 306408 | B97: T500e | C97: MV-T500E-0016 | D97: SCRUBBER, T500E, 700D, 225AH, OBC, CA | E97: 20955
A98: 306408 | B98: T500e | C98: MV-T500E-0020 | D98: SCRUBBER, T500E, 700D, 225AH, OBC, SF,CA | E98: 22659
A99: 306408 | B99: T500e | C99: MV-T500E-0026 | D99: SCRUBBER,T500E,700O,ECNC,225AH,OBC,SF,CA | E99: 27601
A100: 306408 | B100: T500e | C100: MV-T500E-0022 | D100: SCRUBBER, T500E, 700O, 225AH, OBC, SF,CA | E100: 23626
A101: 306408 | B101: T500e | C101: MV-T500E-0051 | D101: SCRUBBER,T500E, 700D,CNV,225AH,OBC,PW,WM | E101: 24753
A102: 306408 | B102: T500e | C102: MV-T500E-0019 | D102: SCRUBBER, T500E, 650D, 225AH, OBC, SF,CA | E102: 21595
A103: 306408 | B103: T500e | C103: MV-T500E-0049 | D103: SCRUBBER, T500E 800D, CNV, 225AH,OBC,WM | E103: 26348
A104: 306409 | B104: SS500 | C104: MV-SS500-0015 | D104: SCRUBBER, SS500, 800D, 225AH, OBC, CA | E104: 22534
A105: 306409 | B105: SS500 | C105: MV-SS500-0016 | D105: SCRUBBER, SS500, 700O, 225AH, OBC, CA | E105: 22343
A106: 306409 | B106: SS500 | C106: MV-SS500-0020 | D106: SCRUBBER, SS500, 700O, 225AH, OBC, SF,CA | E106: 23626
A107: 306409 | B107: SS500 | C107: MV-SS500-0024 | D107: SCRUBBER,SS500,700O,ECNC,225AH,OBC,SF,CA | E107: 27601
A108: 306409 | B108: SS500 | C108: MV-SS500-0021 | D108: SCRUBBER,SS500,650D,ECNC,225AH,OBC,SF,CA | E108: 25570
A109: 306409 | B109: SS500 | C109: MV-SS500-0019 | D109: SCRUBBER, SS500, 800D, 225AH, OBC, SF,CA | E109: 23818
A110: 306409 | B110: SS500 | C110: MV-SS500-0010 | D110: SCRUBBER,SS500,700D,ECNC,225AH,OBC,SF,PW | E110: 26631
A111: 306409 | B111: SS500 | C111: MV-SS500-0022 | D111: SCRUBBER,SS500,700D,ECNC,225AH,OBC,SF,CA | E111: 26786
A112: 306409 | B112: SS500 | C112: MV-SS500-0023 | D112: SCRUBBER,SS500,800D,ECNC,225AH,OBC,SF,CA | E112: 27792
A113: 306409 | B113: SS500 | C113: MV-SS500-0014 | D113: SCRUBBER, SS500, 700D, 225AH, OBC, CA | E113: 21376
A114: 306409 | B114: SS500 | C114: MV-SS500-0013 | D114: SCRUBBER, SS500, 650D, 225AH, OBC, CA | E114: 20309
A115: 306409 | B115: SS500 | C115: MV-SS500-0018 | D115: SCRUBBER SS500, 700D, 225AH, OBC, SF, CA | E115: 22659
A116: 306409 | B116: SS500 | C116: MV-SS500-0017 | D116: SCRUBBER, SS500, 650D, 225AH, OBC, SF,CA | E116: 21595
A117: 306413 | B117: T390 | C117: 9022007 | D117: SCRUBBER [T390, 70CM, 140AH AGM, NA] | E117: 15919
A118: 306413 | B118: T390 | C118: 9022006 | D118: SCRUBBER [T390, 70CM, 150AH WET, NA] | E118: 14408
A119: 306413 | B119: T390 | C119: 1255469 | D119: SCRUBBER [T390, 70CM, W/O BATT, NA] | E119: 13842
A120: 306505 | B120: T600e | C120: MV-T600E-0001 | D120: SCRUBBER, T600E, 700D, CNV, 360AH [CA] | E120: 26975
A121: 306505 | B121: T600e | C121: MV-T600E-0012 | D121: SCRUBBER,T600E,800D, CNV, 360AH [CA] | E121: 28123
A122: 307200 | B122: 2180SR | C122: 9017766 | D122: SCRUBBER [2180SR 50CM NA AND EXPORT] | E122: 14295
A123: 307202 | B123: T581 | C123: 9022009 | D123: SCRUBBER [T581, 50CM, 140AH AGM, NA] | E123: 18320
A124: 307202 | B124: T581 | C124: 1255470 | D124: SCRUBBER [T581, 50CM, W/O BATT, NA] | E124: 16243
A125: 307202 | B125: T581 | C125: 9022008 | D125: SCRUBBER [T581, 50CM, 150AH WET, NA] | E125: 16810
A126: 307500 | B126: T7 | C126: MV-T7-0049 | D126: SCRUBBER, T7, 650D, CNV, 220AH AGM [CA] | E126: 36542
A127: 307500 | B127: T7 | C127: MV-T7-0073 | D127: MV T7 SCRUBBER, 800 DISK [WM] | E127: 41069
A128: 307500 | B128: T7 | C128: MV-T7-0001 | D128: SCRUBBER, 650MM, DISK [T7 RIDER] | E128: 32400
A129: 307500 | B129: T7 | C129: MV-T7-0048 | D129: SCRUBBER, T7, 650D, ECNC, 240AH [CA] | E129: 38675
A130: 307500 | B130: T7 | C130: MV-T7-0047 | D130: SCRUBBER, T7, 650D, CNV, 240AH [CA] | E130: 34211
A131: 307500 | B131: T7 | C131: MV-T7-0050 | D131: SCRUBBER, T7, 650D, ECNC, 220AH AGM [CA] | E131: 41006
A132: 307500 | B132: T7 | C132: MV-T7-0045 | D132: SCRUBBER, 800MM, DISK, 360AH[T7 WALMART | E132: 37550
A133: 307500 | B133: T7 | C133: MV-T7-0078 | D133: SCRUBBER, 650MM, DISK, CNV [T7], [MX] | E133: 34859
A134: 307500 | B134: T7 | C134: MV-T7-0074 | D134: MV T7 SCRUBBER, 800 DISK [WM] PW | E134: 40608
A135: 307600 | B135: T12 | C135: MV-T12-0011 | D135: SCRUBBER MODEL T12, DISK, GRAINGER [US] | E135: 38684
A136: 307600 | B136: T12 | C136: MV-T12-0012 | D136: SCRUBBER MODEL T12, CYL, GRAINGER [US] | E136: 39735
A137: 309100 | B137: T350 | C137: MV-T350-0013 | D137: SCRUBBER,T350,500D,MEM,CNV,210AH,OBC[CA] | E137: 20289
A138: 309100 | B138: T350 | C138: MV-T350-0017 | D138: SCRUBBER,T350,600D,MEM,ECNC,240AH,OBC[CA | E138: 27354
A139: 309100 | B139: T350 | C139: MV-T350-0033 | D139: SCRUBBER,T350,500D,MEM,CNV,210AH,OBC[CA] | E139: 21516
A140: 309100 | B140: T350 | C140: MV-T350-0016 | D140: SCRUBBER,T350,600D,MEM,CNV,210AH,OBC[CA] | E140: 22548
A141: 309100 | B141: T350 | C141: MV-T350-0015 | D141: SCRUBBER, T350,500D,PPAN,ECNC,240AH [CA] | E141: 26447
A142: 309100 | B142: T350 | C142: MV-T350-0018 | D142: SCRUBBER, T350,600D,PPAN,ECNC,240AH [CA] | E142: 28705
A143: 309100 | B143: T350 | C143: MV-T350-0032 | D143: SCRUBBER,T350,600D,MEM,CNV,210AH,SF [CA] | E143: 23426
A144: 309100 | B144: T350 | C144: MV-T350-0014 | D144: SCRUBBER,T350,500D,MEM,ECNC,240AH,OBC[CA | E144: 25095
A145: 309200 | B145: SS350 | C145: MV-SS350-0011 | D145: SCRUBBER,SS350,600D,MEM,CNV,210AH,OBC[CA | E145: 22548
A146: 309200 | B146: SS350 | C146: MV-SS350-0012 | D146: SCRUBBER, SS350,600D,MEM,ECNC,240AH [CA] | E146: 27354
A147: 309200 | B147: SS350 | C147: MV-SS350-0010 | D147: SCRUBBER, SS350,500D,MEM,ECNC,240AH [CA] | E147: 25092
A148: 309200 | B148: SS350 | C148: MV-SS350-0009 | D148: SCRUBBER, SS350,500D,MEM,CNV,210AH [CA] | E148: 20286
A149: 311302 | B149: M20 | C149: MM20-2032 | D149: MODEL M20 SCRUBBER/SWEEPER | E149: 32582
A150: 311302 | B150: M20 | C150: MV-M20-0032 | D150: M20, LP, MEM, CNV [BRAZIL] | E150: 110504
A151: 311302 | B151: M20 | C151: MM20-3250 | D151: MODEL M20 SCRUBBER/SWEEPER | E151: 50558
A152: 311302 | B152: M20 | C152: MM20-3461 | D152: MODEL M20 SCRUBBER/SWEEPER | E152: 44812
A153: 321020 | B153: V-BP-6 | C153: 1217839 | D153: VACUUM, V-BP-6, 120V [TENNANT MEX] | E153: 859
A154: 321020 | B154: V-BP-6 | C154: 9013473 | D154: VACUUM, BACKPACK, W/BASE TOOLS [V-BP-6] | E154: 1058
A155: 321020 | B155: V-BP-6 | C155: 9013475 | D155: VACUUM, BACKPACK, W/PREM TOOLS [V-BP-6] | E155: 1248
A156: 321020 | B156: V-BP-6 | C156: 1060830 | D156: VACUUM, V-BP-6, 120V | E156: 950
A157: 321020 | B157: V-BP-6 | C157: 1215364 | D157: VACUUM, BACKPACK, 120V [TENNANT V-BP-6] | E157: 800
A158: 321020 | B158: V-BP-6 | C158: 9013474 | D158: VACUUM, BACKPACK, W/STD TOOLS [V-BP-6] | E158: 1092
A159: 321023 | B159: Aspen 6 | C159: 1215365 | D159: VACUUM, BACKPACK, 120V [NOBLES ASPEN 6] | E159: 830
A160: 321023 | B160: Aspen 6 | C160: 9013476 | D160: VACUUM, BACKPACK, W/BASE TOOLS [ASPEN 6] | E160: 1058
A161: 321023 | B161: Aspen 6 | C161: 9013478 | D161: VACUUM, BACKPACK, W/PREM TOOLS [ASPEN 6] | E161: 1248
A162: 321023 | B162: Aspen 6 | C162: 9013477 | D162: VACUUM, BACKPACK, W/STD TOOLS [ASPEN 6] | E162: 1092
A163: 321025 | B163: V-BP-6B | C163: 9017571 | D163: VACUUM, BACKPACK, W/PREM TOOLS[V-BP-6B] | E163: 3001
A164: 321025 | B164: V-BP-6B | C164: 1236569 | D164: VACUUM, BATTERY [TENNANT, V-BP-6B] | E164: 1550
A165: 321025 | B165: V-BP-6B | C165: 9017567 | D165: VACUUM, BACKPACK, W/BASIC TOOLS[V-BP-6B] | E165: 2722
A166: 321025 | B166: V-BP-6B | C166: 9017570 | D166: VACUUM, BACKPACK, W/STD TOOLS [V-BP-6B] | E166: 2815
A167: 321026 | B167: Aspen 6B | C167: 9017569 | D167: VACUUM, BACKPACK, W/STD TOOLS [ASPEN 6B] | E167: 2815
A168: 321026 | B168: Aspen 6B | C168: 9017572 | D168: VACUUM, BACKPACK, W/PREM TOOLS[ASPEN 6B] | E168: 3001
A169: 321026 | B169: Aspen 6B | C169: 9017568 | D169: VACUUM, BACKPACK, W/BASIC TOOLS[ASPEN6B] | E169: 2722
A170: 322075 | B170: V-CAN-10 | C170: 1244292 | D170: VACUUM, CANISTER, 120V [V-CAN-10, NA] | E170: 449
A171: 322076 | B171: V-CAN-12 | C171: 1252616 | D171: VACUUM, CANISTER, 120V [V-CAN-12,NA,STD] | E171: 621
A172: 322077 | B172: V-CAN-16 | C172: 1252618 | D172: VACUUM, CANISTER, 120V [V-CAN-16,NA,STD] | E172: 764
A173: 322078 | B173: Denali-10 | C173: 1244294 | D173: VACUUM, CANISTER, 120V [DENALI-10, NA] | E173: 449
A174: 322079 | B174: Denali-12 | C174: 1252617 | D174: VACUUM, CANISTER,120V [DENALI-12,NA,STD] | E174: 621
A175: 322080 | B175: Denali-16 | C175: 1252619 | D175: VACUUM, CANISTER,120V [DENALI-16,NA,STD] | E175: 764
A176: 323123 | B176: V-SMU-14 | C176: 1060829 | D176: VACUUM, V-SMU-14, 120V | E176: 866
A177: 323126 | B177: V-DMU-14 | C177: 1068027 | D177: VACUUM, V-DMU-14, 120V | E177: 1131
A178: 323129 | B178: V-WA-30 | C178: 1068029 | D178: VACUUM, 120VAC [V-WA-30] | E178: 5646
A179: 323132 | B179: V-LWU-13B | C179: 1236914 | D179: VACUUM, BATTERY [TENNANT, V-LWU-13B] | E179: 1328
A180: 323133 | B180: Independence | C180: 1236915 | D180: VACUUM, BATTERY [NOBLES,INDEPENDENCE] | E180: 1328
A181: 324075 | B181: V-WD-9 | C181: 1244345 | D181: VACUUM, WET/DRY, 120V [V-WD-9, NA] | E181: 804
A182: 324076 | B182: V-WD-24P | C182: 9019349 | D182: VACUUM, WET/DRY, 120V [V-WD-24P, W/SQGE] | E182: 3128
A183: 324076 | B183: V-WD-24P | C183: 1244346 | D183: VACUUM, WET/DRY, 120V [V-WD-24P, NA] | E183: 2519
A184: 324077 | B184: V-WD-24 | C184: 9019348 | D184: VACUUM, WET/DRY, 120V [V-WD-24, W/SQGE] | E184: 1882
A185: 324077 | B185: V-WD-24 | C185: 1245656 | D185: VACUUM, WET/DRY, 120V [V-WD-24, NA] | E185: 1273
A186: 326025 | B186: EX-CAN-10 | C186: 9007483 | D186: CANISTER, 10GAL [EX-CAN-10]PAC120VCSA-SI | E186: 3844
A187: 326026 | B187: EX-CAN-15-HPH | C187: 9007628 | D187: CANISTER, 15G [EX-CAN-15-HP]120V CSA-SI | E187: 4358
A188: 326036 | B188: EH5 | C188: 1072858 | D188: EXTRACTOR, 120V, 500PSI, HEAT [EH5] | E188: 10023
A189: 326036 | B189: EH5 | C189: 9011454 | D189: EXTRACTOR, FLOOR TOOL [TCO EH5 PAC] | E189: 11983
A190: 326038 | B190: EC2 | C190: 1072862 | D190: EXTRACTOR, 120V, 200PSI, HEAT [EC2] | E190: 5810
A191: 326038 | B191: EC2 | C191: 9011638 | D191: EXTRACTOR, FLOOR TOOL [TCO EC2 PAC] | E191: 7216
A192: 326038 | B192: EC2 | C192: 9012278 | D192: EXTRACTOR, FLOOR TOOL, TI [TCO EC2 PAC] | E192: 7767
A193: 327002 | B193: R3 ReadySpace (15" Cord Electric) | C193: 9004192 | D193: READYSPACE, 5 GAL, 120VAC, TCO [R3] | E193: 8181
A194: 327002 | B194: R3 ReadySpace (15" Cord Electric) | C194: 9004192-H | D194: READYSPACE, 5 GAL, 120VAC, TCO [R3] | E194: 8181
A195: 327003 | B195: 1610 w/ ReadySpace (Tennant) | C195: MV-1610-0001 | D195: READYSPACE, 21GAL TCO [1610] | E195: 26221
A196: 327003 | B196: 1610 w/ ReadySpace (Tennant) | C196: MV-1610-0002 | D196: READYSPACE, 21GAL TCO [1610 AGM BAT] | E196: 26964
A197: 327004 | B197: Strive w/ ReadySpace (Nobles) | C197: 9000504 | D197: READYSPACE, 21GAL [STRIVE] W/O BAT | E197: 23192
A198: 327004 | B198: Strive w/ ReadySpace (Nobles) | C198: MV-STRV-0001 | D198: READYSPACE, 21GAL NOB [STRIVE] | E198: 26221
A199: 327004 | B199: Strive w/ ReadySpace (Nobles) | C199: MV-STRV-0002 | D199: READYSPACE, 21GAL NOB [STRIVE AGM BAT] | E199: 26964
A200: 327007 | B200: Nobles ReadySpace (15" Cord Electric) | C200: 9004202-H | D200: READYSPACE, 5 GAL, NOB [STRIVE COMPACT] | E200: 8181
A201: 327007 | B201: Nobles ReadySpace (15" Cord Electric) | C201: 9004202 | D201: READYSPACE, 5 GAL, NOB [STRIVE COMPACT] | E201: 8181
A202: 328033 | B202: EX-SC-1020 | C202: 9007486 | D202: EXTRACTOR, 10GAL 20W[120V UL EX-SC-1020] | E202: 6659
... 22 more rows

Sheet Dual_Tech_ReadySpace_1610
A1: Dual_Tech_ReadySpace_1610 | C1: =Start_Here!$C19 -> Company Name
A2: =SUM(G86) -> 0 | C2: =Start_Here!$C20 -> Address
C3: =Start_Here!$C21 -> City, State Zip
C4: =Start_Here!$C22 -> Contact Name
C5: =Start_Here!$C$41 -> Rep Name
C6: =Start_Here!$C$37 -> Tennant Sales and Service Company
C7: =Start_Here!$C$38 -> 10400 Clean Street
C8: =Start_Here!$C$39 -> Eden Prairie, MN 55344
C9: =Start_Here!$C$43 -> 800-553-8033 | E9: Quote Date : | G9: =Letter!$A$25 -> 2020-09-22
C11: =Help!C2 -> CAN Date Rev - 9/30/2024
B13: BUILT-IN “TENNANT VALUE” INCLUDES:
B15: ReadySpace® cleaning technology and deep extraction | D15: Standard (4) 6V 240 AH battery pack
B16: 560mm/22" cleaning path | D16: Battery Tray
B17: 72 l/21-gal. solution and recovery tanks | D17: 19 AH Off-board charger
B18: One set of ReadySpace® rollers & extraction brushes | D18: Rugged DuramerTM Tank Construction
B19: High Traction Tires | D19: Operators video
B20: Battery Discharger Indicator | D20: Operators manual
B21: Hour meter | D21: CRI certified, Bronze Cleaning Performance
B23: TENNANT COMPANY WARRANTY
B24: 3 YEARS OR 2500 HOURS ON ALL COMPONENTS, 3 YEARS LABOR
B25: 90 DAYS TRAVEL, 10 YEARS ON DURAMERTM TANKS
E28: Quote Request Information
G29: Fax (quote only)
G30: Mail (quote,lit, specs)
G31: Fax + Mail
E33: Primary Use
G34: Inside
G35: Outside
C37: Description | D37: Reference # | E37: Price Each | F37: Qty | G37: Extended Price
F38: *
B39: Pre-Configured Machines (Note 1) | F39: =SUM(F40:F41) -> 0
C40: 1610 ReadySpace Walk-Behind w/ Wet 240AH Battery and Charger | D40: MV-1610-0001 | E40: 26221 | G40: =F40*E40 -> 0 | H40: =IFERROR(IFERROR(VLOOKUP(D40,Surcharge!A:B,2,FALSE)*F40, VLOOKUP(D40 & "",Surcharge!A:B,2,FALSE)*F40), "") -> 0 | Q40: =VLOOKUP(D40,'MPF SAP Canada Pre-Configured'!$C:$E,3,FALSE) -> 26221
C41: 1610 ReadySpace Walk-Behind w/ AGM 200AH Battery and Charger | D41: MV-1610-0002 | E41: 26964 | G41: =F41*E41 -> 0 | H41: =IFERROR(IFERROR(VLOOKUP(D41,Surcharge!A:B,2,FALSE)*F41, VLOOKUP(D41 & "",Surcharge!A:B,2,FALSE)*F41), "") -> 0 | Q41: =VLOOKUP(D41,'MPF SAP Canada Pre-Configured'!$C:$E,3,FALSE) -> 26964
B42: All Pre-Configured Machines are packaged in a Skid w/Carton for shipment via LTL carriers. No additional options can be added or changed. | F42: =SUM(F39) -> 0 | H42: =IFERROR(IFERROR(VLOOKUP(D42,Surcharge!A:B,2,FALSE)*F42, VLOOKUP(D42 & "",Surcharge!A:B,2,FALSE)*F42), "") -> 
H43: =IFERROR(IFERROR(VLOOKUP(D43,Surcharge!A:B,2,FALSE)*F43, VLOOKUP(D43 & "",Surcharge!A:B,2,FALSE)*F43), "") -> 
B44: Base Configuration | F44: =SUM(F45,F48,F53) -> 0 | H44: =IFERROR(IFERROR(VLOOKUP(D44,Surcharge!A:B,2,FALSE)*F44, VLOOKUP(D44 & "",Surcharge!A:B,2,FALSE)*F44), "") -> 
C45: Cleaning Type | F45: =SUM(F46) -> 0 | H45: =IFERROR(IFERROR(VLOOKUP(D45,Surcharge!A:B,2,FALSE)*F45, VLOOKUP(D45 & "",Surcharge!A:B,2,FALSE)*F45), "") ->  | L45: =SUM(F45) -> 0 | M45: Surcharge Qty
C46: 1610 Walk-Behind Dual Technolgy Carpet Maintainer 560mm/22" | D46: 1610-560 | E46: 26221 | G46: =F46*E46 -> 0 | H46: =IFERROR(IFERROR(VLOOKUP(D46,Surcharge!A:B,2,FALSE)*F46, VLOOKUP(D46 & "",Surcharge!A:B,2,FALSE)*F46), "") -> 0 | Q46: =VLOOKUP(R46,'MPF SAP Download Canada'!$A:$D,4,FALSE) -> 26221 | R46: M-1610VK_BASE_1610
H47: =IFERROR(IFERROR(VLOOKUP(D47,Surcharge!A:B,2,FALSE)*F47, VLOOKUP(D47 & "",Surcharge!A:B,2,FALSE)*F47), "") -> 
C48: Battery Type | F48: =SUM(F49:F51) -> 0 | H48: =IFERROR(IFERROR(VLOOKUP(D48,Surcharge!A:B,2,FALSE)*F48, VLOOKUP(D48 & "",Surcharge!A:B,2,FALSE)*F48), "") -> 
C49: Wet 240AH C/20 (Kit of 4 batteries) | D49: 9012452 | E49: N/C | G49: =IF(F49=0," ","N/C") ->  | H49: =IFERROR(IFERROR(VLOOKUP(D49,Surcharge!A:B,2,FALSE)*F49, VLOOKUP(D49 & "",Surcharge!A:B,2,FALSE)*F49), "") ->  | Q49: =VLOOKUP(R49,'MPF SAP Download Canada'!$A:$D,4,FALSE) -> N/C | R49: M-1610VK_BTY_W240C20
C50: Sealed/MF AGM 200AH C/20 (Kit of 4 batteries) | D50: 9012454 | E50: 745 | G50: =F50*E50 -> 0 | H50: =IFERROR(IFERROR(VLOOKUP(D50,Surcharge!A:B,2,FALSE)*F50, VLOOKUP(D50 & "",Surcharge!A:B,2,FALSE)*F50), "") ->  | Q50: =VLOOKUP(R50,'MPF SAP Download Canada'!$A:$D,4,FALSE) -> 745 | R50: M-1610VK_BTY_A200C20
C51: Without Battery | E51: -1333 | G51: =F51*E51 -> 0 | H51: =IFERROR(IFERROR(VLOOKUP(D51,Surcharge!A:B,2,FALSE)*F51, VLOOKUP(D51 & "",Surcharge!A:B,2,FALSE)*F51), "") ->  | Q51: =VLOOKUP(R51,'MPF SAP Download Canada'!$A:$D,4,FALSE) -> -1333 | R51: M-1610VK_BTY_WO
H52: =IFERROR(IFERROR(VLOOKUP(D52,Surcharge!A:B,2,FALSE)*F52, VLOOKUP(D52 & "",Surcharge!A:B,2,FALSE)*F52), "") -> 
C53: Charger | F53: =SUM(F54:F56) -> 0 | H53: =IFERROR(IFERROR(VLOOKUP(D53,Surcharge!A:B,2,FALSE)*F53, VLOOKUP(D53 & "",Surcharge!A:B,2,FALSE)*F53), "") -> 
C54: 19A 120V-240V AC 50/60Hz 1Ph | D54: 1029256 | E54: N/C | G54: =IF(F54=0," ","N/C") ->  | H54: =IFERROR(IFERROR(VLOOKUP(D54,Surcharge!A:B,2,FALSE)*F54, VLOOKUP(D54 & "",Surcharge!A:B,2,FALSE)*F54), "") ->  | Q54: =VLOOKUP(R54,'MPF SAP Download Canada'!$A:$D,4,FALSE) -> N/C | R54: M-1610VK_CHG_19A120V5060H1
C55: 19A 120V-240V AC 50/60Hz 1Ph (for sealed batteries) | D55: 1058164 | E55: N/C | G55: =IF(F55=0," ","N/C") ->  | H55: =IFERROR(IFERROR(VLOOKUP(D55,Surcharge!A:B,2,FALSE)*F55, VLOOKUP(D55 & "",Surcharge!A:B,2,FALSE)*F55), "") ->  | Q55: =VLOOKUP(R55,'MPF SAP Download Canada'!$A:$D,4,FALSE) -> N/C | R55: M-1610VK_CHG_19A120V5060H1
C56: Without Charger | E56: -1006 | G56: =F56*E56 -> 0 | H56: =IFERROR(IFERROR(VLOOKUP(D56,Surcharge!A:B,2,FALSE)*F56, VLOOKUP(D56 & "",Surcharge!A:B,2,FALSE)*F56), "") ->  | Q56: =VLOOKUP(R56,'MPF SAP Download Canada'!$A:$D,4,FALSE) -> -1006 | R56: M-1610VK_CHG_WO
H57: =IFERROR(IFERROR(VLOOKUP(D57,Surcharge!A:B,2,FALSE)*F57, VLOOKUP(D57 & "",Surcharge!A:B,2,FALSE)*F57), "") -> 
B58: Support | D58: Reference Number | F58: =SUM(F59:F63) -> 0 | H58: =IFERROR(IFERROR(VLOOKUP(D58,Surcharge!A:B,2,FALSE)*F58, VLOOKUP(D58 & "",Surcharge!A:B,2,FALSE)*F58), "") -> 
C59: 1610 Operator Manual (English/Spanish/French) | D59: 9003458 | E59: N/C | G59: =IF(F59=0," ","N/C") ->  | H59: =IFERROR(IFERROR(VLOOKUP(D59,Surcharge!A:B,2,FALSE)*F59, VLOOKUP(D59 & "",Surcharge!A:B,2,FALSE)*F59), "") ->  | Q59: =VLOOKUP(R59,'MPF SAP Download Canada'!$A:$D,4,FALSE) ->  | R59: M-1610
C60: Additional Operator Manual | D60: see above | E60: 65 | G60: =F60*E60 -> 0 | H60: =IFERROR(IFERROR(VLOOKUP(D60,Surcharge!A:B,2,FALSE)*F60, VLOOKUP(D60 & "",Surcharge!A:B,2,FALSE)*F60), "") ->  | Q60: =VLOOKUP(R60,'MPF SAP Download Canada'!$A:$D,4,FALSE) -> 65 | R60: M-1610VK_ADLOPRMNL
C61: Parts Manual (English) | D61: 9003456 | E61: 27 | G61: =F61*E61 -> 0 | H61: =IFERROR(IFERROR(VLOOKUP(D61,Surcharge!A:B,2,FALSE)*F61, VLOOKUP(D61 & "",Surcharge!A:B,2,FALSE)*F61), "") ->  | Q61: =VLOOKUP(R61,'MPF SAP Download Canada'!$A:$D,4,FALSE) -> 27 | R61: M-1610VK_PARMNL
H62: =IFERROR(IFERROR(VLOOKUP(D62,Surcharge!A:B,2,FALSE)*F62, VLOOKUP(D62 & "",Surcharge!A:B,2,FALSE)*F62), "") -> 
C63: Packaging | F63: =SUM(F64:F64) -> 0 | H63: =IFERROR(IFERROR(VLOOKUP(D63,Surcharge!A:B,2,FALSE)*F63, VLOOKUP(D63 & "",Surcharge!A:B,2,FALSE)*F63), "") -> 
C64: Skid w/Carton, Stackable | D64: 9012455 | E64: N/C | G64: =IF(F64=0," ","N/C") ->  | H64: =IFERROR(IFERROR(VLOOKUP(D64,Surcharge!A:B,2,FALSE)*F64, VLOOKUP(D64 & "",Surcharge!A:B,2,FALSE)*F64), "") ->  | Q64: =VLOOKUP(R64,'MPF SAP Download Canada'!$A:$D,4,FALSE) -> N/C | R64: M-1610VK_PKG_SSKD
B67: Custom Solution--write in description, qty, price, and PN if applicable | F67: =SUM(F68) -> 0
E68: Insert Prices Here | F68: =SUM(F69:F72) -> 0
D69: Custom | F69: =IF(E69 <> "", 1, 0) -> 0 | G69: =F69*E69 -> 0
D70: Custom | F70: =IF(E70 <> "", 1, 0) -> 0 | G70: =F70*E70 -> 0
D71: Custom | F71: =IF(E71 <> "", 1, 0) -> 0 | G71: =F71*E71 -> 0
D72: Custom | F72: =IF(E72 <> "", 1, 0) -> 0 | G72: =F72*E72 -> 0
E73: =ROUND(SUM(G40:G72), 0) -> 0 | F73: =SUM(E74) -> 0
D74: Machine Subtotal | E74: =ROUND(SUM(G40:G72), 0) -> 0 | F74: =F73 -> 0
B75: Discounts | F75: =SUM(F76) -> 0
F76: =SUM(F78:F79) -> 0
D77: Applicable Currency Adj % | F77: =IF(E77 <> "", 1, 0) -> 0 | G77: =IF(F77*(E77*0.01)*E73 < 0, F77*(E77*0.01)*E73, -(F77*(E77*0.01)*E73)) -> 0
D78: Discount % | F78: =IF(E78 <> "", 1, 0) -> 0 | G78: =IF(F78*(E78*0.01)*(E73+G77) < 0, F78*(E78*0.01)*(E73+G77), -(F78*(E78*0.01)*(E73+G77))) -> 0
D79: Discount $ | F79: =IF(E79 <> "", 1, 0) -> 0 | G79: =IF(F79*E79 < 0, F79*E79, -(F79*E79)) -> 0
D80: Discount Total | E80: =SUM(G77:G79) -> 0 | F80: =SUM(E80) -> 0
F81: =#REF! -> 
F82: =F81 -> 
C83: Prepaid and Add | D83: Freight | F83: =IF(E83 <> "", 1, 0) -> 0 | G83: =F83*E83 -> 0
C84: Subject to all applicable taxes | D84: Tax | F84: =IF(E84 <> "", 1, 0) -> 0 | G84: =F84*E84 -> 0
F85: =SUM(F86) -> 0
D86: MACHINE TOTAL* | F86: =SUM(G86) -> 0 | G86: =SUM(G40:G84) -> 0 | N86: This goes to "My Documents"
G87: =SUM(G86) -> 0
C92: First Western Equipment Finance - Leasing Calculation Option: | D92: Option 1 | F92: Option 2 | J92: =Financing!A38 -> Rates 2023 - Rev 10/10/2023
D93: Monthly Payment | E93: Cost Per Day | F93: Monthly Payment | G93: Cost Per Day | J93: =Financing!A39 -> “Blank Payment Amounts Indicate The Financing Option Or Purchase Options Selected Are Not
C94: Purchase Option: | D94: FWEF: $1 Buyout Lease | F94: FWEF: Municipal Lease | J94: =Financing!A40 -> Applicable Or The Machine Total Is Below The Minimum Amount For The Selected Vendor”
C95: 24 Months | D95: FALSE | E95: 0 | F95: FALSE | G95: 0 | J95: =Financing!A41 -> "Quoted monthly payments are estimates only and are based on a certain level of credit rating.
C96: 30 Months | D96: FALSE | E96: 0 | F96: FALSE | G96: 0 | J96: =Financing!A42 -> Actual monthly payments may be higher depending on your credit rating."
C97: 36 Months | D97: FALSE | E97: 0 | F97: FALSE | G97: 0 | J97: =Financing!A43 -> “Financing rates do not include Pre-Paid Service”
C98: 48 Months | D98: 0 | E98: 0 | F98: 0 | G98: 0 | J98: =Financing!A44 -> 0
D100: Benefits of Equipment Financing:
D101: • Spreads out investment over time. | F101: • Keep current with latest technology.
D102: • Preserve capital. | F102: • Service and parts bundling available.
D103: • Low monthly payment. | F103: • Pay for labor savings as you go.
B106: TennantTrue | D106: 0 | E106: 0
C108: Is customer interested in service program? | D108: Yes | E108: *State/County selection required for TennantTrue service options
C110: If not, why?
C112: Term: | D112: 36 | G112: AB Brushes | H112: No
C113: Monthly machine usage (hrs): | D113: < 30/mo. (Avg. 1hr./day)
C115: TennantTrue: | D115: Gold Contract | F115: Silver Contract
C116: Per Visit | F116: 381
C117: Monthly | D117: 117 | F117: 65
C118: Annually | F118: 762
C119: Pre-Pay Full Term | D119: 4041 | F119: 2238
C120: Hourly Labor Rate
C121: Site Visit
C123: * Verify customer current pricing prior to quote.
C124: **All rates and fees above reflect service for one (1) unit with the exception of Block of Time service.
C125: *Block of Time is available in 1 Year Term only and is priced as such no matter the term selection on this template.
B129: Quote Special Instructions:
B132: =Start_Here!E36 -> Terms and Conditions
B133: =Start_Here!E37 -> Ask your local sales rep for estimated lead times. Verify when placing order
B134: =Start_Here!E38 -> All orders subject to acceptance by Tennant Sales and Service Company, Minneapolis, Minnesota
B135: =Start_Here!E39 -> Prices subject to change without notice. Subject to any applicable taxes.
B136: =Start_Here!E40 -> Terms: Net 30 days. Payable in Canadian Funds
B137: =Start_Here!E41 -> Freight: Accessories, parts, supplies, detergents, and floor coatings orders delivered DDP
B138: =Start_Here!E42 -> shipping point Frt PPD. Machine orders delivered DDP shipping point Frt PPD and add.
B139: =Start_Here!E43 -> Returned Merchandise is subject to a restocking fee.
B140: =Start_Here!E44 -> All orders are subject to Tennant’s General Terms and Conditions available at http://www.tennantco.com/terms.
B141: =Start_Here!E45 -> Printed General Terms and Conditions are also available upon request.
B142: =Start_Here!E46 -> 0
E144: Quote Date : | G144: =Letter!$A$25 -> 2020-09-22
B145: Order Placement Information: To place your order, fill in PO# and customer signatures,
B146: call or fax to the numbers listed below. Customer Purchase Order is required.
B147: If information is missing, orders will be entered and held until all information is received.
C148: Customer Number | E148: Cust Grp 3
C149: =Start_Here!$C$25 -> 0 | E149: =Start_Here!$C$29 -> 0
C150: =Start_Here!$B$18 -> Who Owns the Machine? (Sold-To Info) (Please Verify)
A151: Company | C151: =Start_Here!$C$19 -> Company Name
A152: Address | C152: =Start_Here!$C$20 -> Address
C153: =Start_Here!$C$21 -> City, State Zip
A154: Name | C154: =Start_Here!$C$22 -> Contact Name
A155: Phone | C155: =Start_Here!$C$23 -> Contact Phone
C156: =Start_Here!$B$11 -> Where is the Machine Being Shipped? (Ship-To Info) (Please Verify)
A157: Company | C157: =Start_Here!$C$12 -> Company Name
A158: Address | C158: =Start_Here!$C$13 -> Address
C159: =Start_Here!$C$14 -> City, State Zip
A160: Name | C160: =Start_Here!$C$15 -> Contact Name
A161: Phone | C161: =Start_Here!$C$16 -> Contact Phone
C162: =Start_Here!$B$31 -> Shipping / Carrier Instructions: | E162: Order Special Instructions:
C163: =Start_Here!$C$32 -> 0
C165: Customer Purchase Order No.
C166: (please attach copy)
C169: Tax Exempt | E169: Yes
E170: No
C171: If Yes, attach a copy of your exemption certificate.
C173: Requested Delivery Date
C174: =Start_Here!$C$28 -> 0
C176: =Start_Here!$C$26 -> 0 | E176: =Start_Here!$C$27 -> 0
C177: Authorized Buyer (please print) | E177: Phone Number
C180: Authorized Buyer Signature
C182: =Start_Here!$C$41 -> Rep Name
C183: Tennant Representative
A185: Specialized Maintenance Equipment
A186: =Start_Here!$C$48 -> TENNANT · 10400 Clean Street · Eden Prairie, MN 55344 ·
A187: =Start_Here!$C$49 -> PHONE:800-553-8033 · FAX:763-513-2116
B189: Notes
B190: 1 | C190: Pre-Configured Machines cannot have options changed or added. All units are packaged on a Skid w/Carton and will ship
C191: via LTL Carrier. When ordering, provide the reference number listed above. Price does not include freight or tax.
C192: Availability of units and lead time may vary.
B194: 2 | C194: Shipping Weights and dimensions | D194: Skid w/ Carton
C196: Weight (w/240AH Battery) | D196: 670 lbs / 304 Kg
C197: Length | D197: 67" / 1,702mm
C198: Width | D198: 33" / 838mm
C199: Height | D199: 48" / 1,219mm

Sheet MR3_E5
A1: MR3_E5 | C1: =Start_Here!$C19 -> Company Name
A2: =SUM(G48) -> 0 | C2: =Start_Here!$C20 -> Address
C3: =Start_Here!$C21 -> City, State Zip
C4: =Start_Here!$C22 -> Contact Name
C5: =Start_Here!$C$41 -> Rep Name
C6: =Start_Here!$C$37 -> Tennant Sales and Service Company
C7: =Start_Here!$C$38 -> 10400 Clean Street
C8: =Start_Here!$C$39 -> Eden Prairie, MN 55344
C9: =Start_Here!$C$43 -> 800-553-8033 | E9: Quote Date : | G9: =Letter!$A$25 -> 2020-09-22
C11: =Help!C2 -> CAN Date Rev - 9/30/2024
C13: New Machine Warranty | G13: Fax (quote only)
C14: 36 MONTHS OR 2500 HOURS ON PARTS | G14: Mail (quote,lit, specs)
C15: 36 MONTHS – LABOR | G15: Fax + Mail
C16: 90 DAYS – TRAVEL ON BATTERY UNITS ONLY
C17: 10 YEARS ON ROTOMOLDED PARTS | E17: Primary Use
C18: BATTERIES ARE PRORATED OVER 12 MONTHS | G18: Inside
G19: Outside
C21: Description | D21: Reference # | E21: Price Each | F21: Qty | G21: Extended Price
F22: *
C23: R3 - Cord Electric 5-gal. ReadySpace® Interim Carpet Cleaner | D23: 9004192 | E23: 8181 | G23: =F23*E23 -> 0 | H23: =IFERROR(IFERROR(VLOOKUP(D23,Surcharge!A:B,2,FALSE)*F23, VLOOKUP(D23 & "",Surcharge!A:B,2,FALSE)*F23), "") ->  | L23: =SUM(F23) -> 0 | M23: Surcharge Qty | Q23: =VLOOKUP(D23,'MPF SAP Canada Pre-Configured'!$C:$E,3,FALSE) -> 8181
C24: 15" cleaning path. Complete package includes removable, Hygenic® fully cleanable 5 gallon (19 liter) solution/recovery tanks, Insta-Adjust™ handle, two ReadySpace® rollers, 50-ft (15-m) "safety yellow" power cord and multi-language operator manual. CRI certified, Bronze Cleaning Performance. | F24: =SUM(F23) -> 0 | H24: =IFERROR(IFERROR(VLOOKUP(D24,Surcharge!A:B,2,FALSE)*F24, VLOOKUP(D24 & "",Surcharge!A:B,2,FALSE)*F24), "") -> 
C25: Boxed Dimensions: 34" L x 22" W x 37" H (860 mm x 560 mm x 940 mm). * | F25: =SUM(F24) -> 0 | H25: =IFERROR(IFERROR(VLOOKUP(D25,Surcharge!A:B,2,FALSE)*F25, VLOOKUP(D25 & "",Surcharge!A:B,2,FALSE)*F25), "") -> 
C26: Shipping Weight: 154 lbs. (70 kg) | F26: =SUM(F25) -> 0 | H26: =IFERROR(IFERROR(VLOOKUP(D26,Surcharge!A:B,2,FALSE)*F26, VLOOKUP(D26 & "",Surcharge!A:B,2,FALSE)*F26), "") -> 
H27: =IFERROR(IFERROR(VLOOKUP(D27,Surcharge!A:B,2,FALSE)*F27, VLOOKUP(D27 & "",Surcharge!A:B,2,FALSE)*F27), "") -> 
H28: =IFERROR(IFERROR(VLOOKUP(D28,Surcharge!A:B,2,FALSE)*F28, VLOOKUP(D28 & "",Surcharge!A:B,2,FALSE)*F28), "") -> 
C29: E5 - Cord Electric 5-gal. Extractor | D29: 9004194 | E29: 6484 | G29: =F29*E29 -> 0 | H29: =IFERROR(IFERROR(VLOOKUP(D29,Surcharge!A:B,2,FALSE)*F29, VLOOKUP(D29 & "",Surcharge!A:B,2,FALSE)*F29), "") ->  | Q29: =VLOOKUP(D29,'MPF SAP Canada Pre-Configured'!$C:$E,3,FALSE) -> 6484
C30: 15" cleaning path. Complete package includes removable, Hygenic® fully cleanable 5 gallon (19 liter) solution/recovery tanks, Insta-Adjust™ handle, one double-tuft reverse pattern chevron brush, 50-ft (15-m) "safety yellow" power cord and multi-language operator manual. CRI certified, Silver Cleaning Performance. | F30: =SUM(F29) -> 0 | H30: =IFERROR(IFERROR(VLOOKUP(D30,Surcharge!A:B,2,FALSE)*F30, VLOOKUP(D30 & "",Surcharge!A:B,2,FALSE)*F30), "") -> 
C31: Boxed Dimensions: 34" L x 22" W x 37" H (860 mm x 560 mm x 940 mm). * | F31: =SUM(F30) -> 0 | H31: =IFERROR(IFERROR(VLOOKUP(D31,Surcharge!A:B,2,FALSE)*F31, VLOOKUP(D31 & "",Surcharge!A:B,2,FALSE)*F31), "") -> 
C32: Shipping Weight: 138 lbs. (63 kg) | F32: =SUM(F31) -> 0 | H32: =IFERROR(IFERROR(VLOOKUP(D32,Surcharge!A:B,2,FALSE)*F32, VLOOKUP(D32 & "",Surcharge!A:B,2,FALSE)*F32), "") -> 
H33: =IFERROR(IFERROR(VLOOKUP(D33,Surcharge!A:B,2,FALSE)*F33, VLOOKUP(D33 & "",Surcharge!A:B,2,FALSE)*F33), "") -> 
E35: =ROUND(SUM(G23:G34), 0) -> 0 | F35: =SUM(E36) -> 0
D36: Machine Subtotal | E36: =ROUND(SUM(G23:G34), 0) -> 0 | F36: =F35 -> 0
B37: Discounts | F37: =SUM(F38) -> 0
F38: =SUM(F40:F41) -> 0
D39: Applicable Currency Adj % | F39: =IF(E39 <> "", 1, 0) -> 0 | G39: =IF(F39*(E39*0.01)*E35 < 0, F39*(E39*0.01)*E35, -(F39*(E39*0.01)*E35)) -> 0
D40: Discount % | F40: =IF(E40 <> "", 1, 0) -> 0 | G40: =IF(F40*(E40*0.01)*(E35+G39) < 0, F40*(E40*0.01)*(E35+G39), -(F40*(E40*0.01)*(E35+G39))) -> 0
D41: Discount $ | F41: =IF(E41 <> "", 1, 0) -> 0 | G41: =IF(F41*E41 < 0, F41*E41, -(F41*E41)) -> 0
D42: Discount Total | E42: =SUM(G39:G41) -> 0 | F42: =SUM(E42) -> 0
F43: =#REF! -> 
F44: =F43 -> 
C45: Prepaid and Add | D45: Freight | F45: =IF(E45 <> "", 1, 0) -> 0 | G45: =F45*E45 -> 0
C46: Subject to all applicable taxes | D46: Tax | F46: =IF(E46 <> "", 1, 0) -> 0 | G46: =F46*E46 -> 0
F47: =SUM(F48) -> 0
D48: MACHINE TOTAL* | F48: =SUM(G48) -> 0 | G48: =SUM(G23:G46) -> 0 | N48: This goes to "My Documents"
G49: =SUM(G48) -> 0
C54: First Western Equipment Finance - Leasing Calculation Option: | D54: Option 1 | F54: Option 2 | J54: =Financing!A38 -> Rates 2023 - Rev 10/10/2023
D55: Monthly Payment | E55: Cost Per Day | F55: Monthly Payment | G55: Cost Per Day | J55: =Financing!A39 -> “Blank Payment Amounts Indicate The Financing Option Or Purchase Options Selected Are Not
C56: Purchase Option: | D56: FWEF: $1 Buyout Lease | F56: FWEF: Municipal Lease | J56: =Financing!A40 -> Applicable Or The Machine Total Is Below The Minimum Amount For The Selected Vendor”
C57: 24 Months | D57: FALSE | E57: 0 | F57: FALSE | G57: 0 | J57: =Financing!A41 -> "Quoted monthly payments are estimates only and are based on a certain level of credit rating.
C58: 30 Months | D58: FALSE | E58: 0 | F58: FALSE | G58: 0 | J58: =Financing!A42 -> Actual monthly payments may be higher depending on your credit rating."
C59: 36 Months | D59: FALSE | E59: 0 | F59: FALSE | G59: 0 | J59: =Financing!A43 -> “Financing rates do not include Pre-Paid Service”
C60: 48 Months | D60: 0 | E60: 0 | F60: 0 | G60: 0 | J60: =Financing!A44 -> 0
D62: Benefits of Equipment Financing:
D63: • Spreads out investment over time. | F63: • Keep current with latest technology.
D64: • Preserve capital. | F64: • Service and parts bundling available.
D65: • Low monthly payment. | F65: • Pay for labor savings as you go.
B68: TennantTrue | D68: 0 | E68: 0
C70: Is customer interested in service program? | D70: Yes | E70: *State/County selection required for TennantTrue service options
C72: If not, why?
C74: Term: | D74: 36 | G74: AB Brushes | H74: No
C75: Monthly machine usage (hrs): | D75: < 30/mo. (Avg. 1hr./day)
C77: TennantTrue: | D77: Gold Contract | F77: Silver Contract
C78: Per Visit
C79: Monthly
C80: Annually
C81: Pre-Pay Full Term
C82: Hourly Labor Rate
C83: Site Visit
C85: * Verify customer current pricing prior to quote.
C86: **All rates and fees above reflect service for one (1) unit with the exception of Block of Time service.
C87: *Block of Time is available in 1 Year Term only and is priced as such no matter the term selection on this template.
B91: Quote Special Instructions:
B94: =Start_Here!E36 -> Terms and Conditions
B95: =Start_Here!E37 -> Ask your local sales rep for estimated lead times. Verify when placing order
B96: =Start_Here!E38 -> All orders subject to acceptance by Tennant Sales and Service Company, Minneapolis, Minnesota
B97: =Start_Here!E39 -> Prices subject to change without notice. Subject to any applicable taxes.
B98: =Start_Here!E40 -> Terms: Net 30 days. Payable in Canadian Funds
B99: =Start_Here!E41 -> Freight: Accessories, parts, supplies, detergents, and floor coatings orders delivered DDP
B100: =Start_Here!E42 -> shipping point Frt PPD. Machine orders delivered DDP shipping point Frt PPD and add.
B101: =Start_Here!E43 -> Returned Merchandise is subject to a restocking fee.
B102: =Start_Here!E44 -> All orders are subject to Tennant’s General Terms and Conditions available at http://www.tennantco.com/terms.
B103: =Start_Here!E45 -> Printed General Terms and Conditions are also available upon request.
B104: =Start_Here!E46 -> 0
E106: Quote Date : | G106: =Letter!$A$25 -> 2020-09-22
B107: Order Placement Information: To place your order, fill in PO# and customer signatures,
B108: call or fax to the numbers listed below. Customer Purchase Order is required.
B109: If information is missing, orders will be entered and held until all information is received.
C110: Customer Number | E110: Cust Grp 3
C111: =Start_Here!$C$25 -> 0 | E111: =Start_Here!$C$29 -> 0
C112: =Start_Here!$B$18 -> Who Owns the Machine? (Sold-To Info) (Please Verify)
A113: Company | C113: =Start_Here!$C$19 -> Company Name
A114: Address | C114: =Start_Here!$C$20 -> Address
C115: =Start_Here!$C$21 -> City, State Zip
A116: Name | C116: =Start_Here!$C$22 -> Contact Name
A117: Phone | C117: =Start_Here!$C$23 -> Contact Phone
C118: =Start_Here!$B$11 -> Where is the Machine Being Shipped? (Ship-To Info) (Please Verify)
A119: Company | C119: =Start_Here!$C$12 -> Company Name
A120: Address | C120: =Start_Here!$C$13 -> Address
C121: =Start_Here!$C$14 -> City, State Zip
A122: Name | C122: =Start_Here!$C$15 -> Contact Name
A123: Phone | C123: =Start_Here!$C$16 -> Contact Phone
C124: =Start_Here!$B$31 -> Shipping / Carrier Instructions: | E124: Order Special Instructions:
C125: =Start_Here!$C$32 -> 0
C127: Customer Purchase Order No.
C128: (please attach copy)
C131: Tax Exempt | E131: Yes
E132: No
C133: If Yes, attach a copy of your exemption certificate.
C135: Requested Delivery Date
C136: =Start_Here!$C$28 -> 0
C138: =Start_Here!$C$26 -> 0 | E138: =Start_Here!$C$27 -> 0
C139: Authorized Buyer (please print) | E139: Phone Number
C142: Authorized Buyer Signature
C144: =Start_Here!$C$41 -> Rep Name
C145: Tennant Representative
A147: Specialized Maintenance Equipment
A148: =Start_Here!$C$48 -> TENNANT · 10400 Clean Street · Eden Prairie, MN 55344 ·
A149: =Start_Here!$C$49 -> PHONE:800-553-8033 · FAX:763-513-2116
B151: Notes
B153: 1 | C153: When pad/brush assist unit is chosen, only mechanical Set and Forget™ downpressure is available.
C154: Automatic Down Pressure can only be deducted from the self-propelled unit.
B156: 2 | C156: 225AH Battery is standard on units with the Self Propel Drive Type.
C157: When Self Propel is selected, this battery will be added at No Charge.
B159: 3 | C159: Factory installed pricing. Only available on wet batteries, not sealed.
B161: 4 | C161: Not available with Active Dust Control. Only Available with Passive Dust Control.
B163: 5 | C163: A French and English manual will be supplied for all units shipping into Quebec, Canada at no charge. An additional manual
C164: can be ordered (for a total of 3 manuals) for an additional charge as stated under 'Additional Operator Manual'.
B166: 6 | C166: Skid w/Carton, Stackable is the default packaging method and will be added to the configuration unless otherwise specified.
B168: 7 | C168: Shipping Weights and Dimensions | E168: Skid w/Carton
C170: Weight - Pad Drive w/185AH Battery | E170: 587 lbs / 267 Kg
C171: Weight - Self Propel w/225AH Battery | E171: 652 lbs / 296 Kg
C172: Length | E172: 60" / 1524 mm
C173: Width | E173: 31" / 788 mm
C174: Height | E174: 50" / 1270 mm

Sheet Carpet_Extractors
A1: Carpet_Extractors | C1: =Start_Here!$C19 -> Company Name
A2: =SUM(G79) -> 0 | C2: =Start_Here!$C20 -> Address
C3: =Start_Here!$C21 -> City, State Zip
C4: =Start_Here!$C22 -> Contact Name
C5: =Start_Here!$C$41 -> Rep Name
C6: =Start_Here!$C$37 -> Tennant Sales and Service Company
C7: =Start_Here!$C$38 -> 10400 Clean Street
C8: =Start_Here!$C$39 -> Eden Prairie, MN 55344
C9: =Start_Here!$C$43 -> 800-553-8033 | E9: Quote Date : | G9: =Letter!$A$25 -> 2020-09-22
C11: =Help!C2 -> CAN Date Rev - 9/30/2024
C16: New Machine Warranty
G17: Fax (quote only)
C18: 36 MONTHS OR 2500 HOURS ON PARTS | G18: Mail (quote,lit, specs)
C19: 36 MONTHS – LABOR | G19: Fax + Mail
C20: 90 DAYS – TRAVEL ON BATTERY UNITS ONLY
C21: 10 YEARS ON ROTOMOLDED PARTS | E21: Primary Use
C22: BATTERIES ARE PRORATED OVER 12 MONTHS | G22: Inside
G23: Outside
C25: Description | D25: Reference # | E25: Price Each | F25: Qty | G25: Extended Price
F26: *
C27: 1510 Battery Operated Automatic Extractor | D27: 614002 | E27: 23196 | G27: =F27*E27 -> 0 | H27: =IFERROR(IFERROR(VLOOKUP(D27,Surcharge!A:B,2,FALSE)*F27, VLOOKUP(D27 & "",Surcharge!A:B,2,FALSE)*F27), "") -> 0 | L27: =SUM(F27) -> 0 | M27: Surcharge Qty | Q27: =VLOOKUP(D27,'MPF SAP Canada Pre-Configured'!$C:$E,3,FALSE) -> 23196
C28: 21-gal (80 liter) solution tank, 22" (5580mm) cleaning path, 100 psi, mode controls for deep and surface cleaning, dual vac motors. Complete package includes four 240 AH 6-volt batteries and 20 amp charger. | D28: With Batteries | F28: =F27 -> 0 | H28: =IFERROR(IFERROR(VLOOKUP(D28,Surcharge!A:B,2,FALSE)*F28, VLOOKUP(D28 & "",Surcharge!A:B,2,FALSE)*F28), "") -> 
C29: Boxed dimensions: 71L x 34W x 52H (1803mm x 864mm x 1321mm) | F29: =F28 -> 0 | H29: =IFERROR(IFERROR(VLOOKUP(D29,Surcharge!A:B,2,FALSE)*F29, VLOOKUP(D29 & "",Surcharge!A:B,2,FALSE)*F29), "") -> 
C30: Shipping Weight: 600 lbs. / Cu. Ft.: 36 | F30: =F29 -> 0 | H30: =IFERROR(IFERROR(VLOOKUP(D30,Surcharge!A:B,2,FALSE)*F30, VLOOKUP(D30 & "",Surcharge!A:B,2,FALSE)*F30), "") -> 
H31: =IFERROR(IFERROR(VLOOKUP(D31,Surcharge!A:B,2,FALSE)*F31, VLOOKUP(D31 & "",Surcharge!A:B,2,FALSE)*F31), "") -> 
C32: Model 1510 Battery Operated Automatic Extractor. Same as above without batteries and charger. Order batteries and charger separately. | D32: 614001 | E32: 20700 | G32: =F32*E32 -> 0 | H32: =IFERROR(IFERROR(VLOOKUP(D32,Surcharge!A:B,2,FALSE)*F32, VLOOKUP(D32 & "",Surcharge!A:B,2,FALSE)*F32), "") ->  | Q32: =VLOOKUP(D32,'MPF SAP Canada Pre-Configured'!$C:$E,3,FALSE) -> 20700
H33: =IFERROR(IFERROR(VLOOKUP(D33,Surcharge!A:B,2,FALSE)*F33, VLOOKUP(D33 & "",Surcharge!A:B,2,FALSE)*F33), "") -> 
H34: =IFERROR(IFERROR(VLOOKUP(D34,Surcharge!A:B,2,FALSE)*F34, VLOOKUP(D34 & "",Surcharge!A:B,2,FALSE)*F34), "") -> 
H35: =IFERROR(IFERROR(VLOOKUP(D35,Surcharge!A:B,2,FALSE)*F35, VLOOKUP(D35 & "",Surcharge!A:B,2,FALSE)*F35), "") -> 
C36: 1530 Cord Electric Automatic Extractor | D36: 614000 | E36: 18241 | G36: =F36*E36 -> 0 | H36: =IFERROR(IFERROR(VLOOKUP(D36,Surcharge!A:B,2,FALSE)*F36, VLOOKUP(D36 & "",Surcharge!A:B,2,FALSE)*F36), "") ->  | Q36: =VLOOKUP(D36,'MPF SAP Canada Pre-Configured'!$C:$E,3,FALSE) -> 18241
C37: 30-gal (114 liter) solution tank, 22" (5580mm) cleaning path, 100 psi, mode controls for deep and surface cleaning. ETL US/C* | F37: =F36 -> 0 | H37: =IFERROR(IFERROR(VLOOKUP(D37,Surcharge!A:B,2,FALSE)*F37, VLOOKUP(D37 & "",Surcharge!A:B,2,FALSE)*F37), "") -> 
C38: Boxed dimensions: 71L x 34W x 52H (1803mm x 864mm x 1321mm) | F38: =F37 -> 0 | H38: =IFERROR(IFERROR(VLOOKUP(D38,Surcharge!A:B,2,FALSE)*F38, VLOOKUP(D38 & "",Surcharge!A:B,2,FALSE)*F38), "") -> 
C39: Shipping Weight: 344 lbs. / Cu. Ft.: 36 | F39: =F38 -> 0 | H39: =IFERROR(IFERROR(VLOOKUP(D39,Surcharge!A:B,2,FALSE)*F39, VLOOKUP(D39 & "",Surcharge!A:B,2,FALSE)*F39), "") -> 
H40: =IFERROR(IFERROR(VLOOKUP(D40,Surcharge!A:B,2,FALSE)*F40, VLOOKUP(D40 & "",Surcharge!A:B,2,FALSE)*F40), "") -> 
H41: =IFERROR(IFERROR(VLOOKUP(D41,Surcharge!A:B,2,FALSE)*F41, VLOOKUP(D41 & "",Surcharge!A:B,2,FALSE)*F41), "") -> 
C42: EX-SC-1020 - Self-Contained Extractor | D42: 9007486 | E42: 6659 | G42: =F42*E42 -> 0 | H42: =IFERROR(IFERROR(VLOOKUP(D42,Surcharge!A:B,2,FALSE)*F42, VLOOKUP(D42 & "",Surcharge!A:B,2,FALSE)*F42), "") ->  | Q42: =VLOOKUP(D42,'MPF SAP Canada Pre-Configured'!$C:$E,3,FALSE) -> 6659
C43: Patented, 10-gal. Expansion cavity, 20" (508mm) cleaning path, 100 psi, 137" (3480mm) waterlift. ETL US/C* CRI certified, Bronze Cleaning Performance. | F43: =F42 -> 0 | H43: =IFERROR(IFERROR(VLOOKUP(D43,Surcharge!A:B,2,FALSE)*F43, VLOOKUP(D43 & "",Surcharge!A:B,2,FALSE)*F43), "") -> 
C44: Boxed dimensions: 41L x 22W x 45H (1041mm x 559mm x 1143mm) | F44: =F43 -> 0 | H44: =IFERROR(IFERROR(VLOOKUP(D44,Surcharge!A:B,2,FALSE)*F44, VLOOKUP(D44 & "",Surcharge!A:B,2,FALSE)*F44), "") -> 
C45: Shipping Weight: 142 lbs. / Cu. Ft.: 23.5 | F45: =F44 -> 0 | H45: =IFERROR(IFERROR(VLOOKUP(D45,Surcharge!A:B,2,FALSE)*F45, VLOOKUP(D45 & "",Surcharge!A:B,2,FALSE)*F45), "") -> 
H46: =IFERROR(IFERROR(VLOOKUP(D46,Surcharge!A:B,2,FALSE)*F46, VLOOKUP(D46 & "",Surcharge!A:B,2,FALSE)*F46), "") -> 
H47: =IFERROR(IFERROR(VLOOKUP(D47,Surcharge!A:B,2,FALSE)*F47, VLOOKUP(D47 & "",Surcharge!A:B,2,FALSE)*F47), "") -> 
C48: EH5 Heated Canister Extractor | D48: 9011454 | E48: 11983 | G48: =F48*E48 -> 0 | H48: =IFERROR(IFERROR(VLOOKUP(D48,Surcharge!A:B,2,FALSE)*F48, VLOOKUP(D48 & "",Surcharge!A:B,2,FALSE)*F48), "") ->  | Q48: =VLOOKUP(D48,'MPF SAP Canada Pre-Configured'!$C:$E,3,FALSE) -> 11983
C49: 15 gal. capacity, 50-500 psi, Heated, 13" (330mm) High Airflow Titanium Carpet wand with 2 Unijets, 15-ft. (4.5m) vacuum and solution hoses.2-40 ft(12.2m) Hospital Grade safety yellow electrical cords. Hand tool sold separately. CRI certified - Gold Cleaning Performance with High Airflow Titanium wand. | F49: =SUM(F48) -> 0 | H49: =IFERROR(IFERROR(VLOOKUP(D49,Surcharge!A:B,2,FALSE)*F49, VLOOKUP(D49 & "",Surcharge!A:B,2,FALSE)*F49), "") -> 
C50: ETL-certified to UL & CSA Standards. | F50: =SUM(F49) -> 0 | H50: =IFERROR(IFERROR(VLOOKUP(D50,Surcharge!A:B,2,FALSE)*F50, VLOOKUP(D50 & "",Surcharge!A:B,2,FALSE)*F50), "") -> 
C51: Boxed Dimensions: 28.5in x 38in x 55in 724mm x 965mm x 1397mm | F51: =SUM(F50) -> 0 | H51: =IFERROR(IFERROR(VLOOKUP(D51,Surcharge!A:B,2,FALSE)*F51, VLOOKUP(D51 & "",Surcharge!A:B,2,FALSE)*F51), "") -> 
C52: Shipping Weight: 185lb/84kg | F52: =SUM(F51) -> 0 | H52: =IFERROR(IFERROR(VLOOKUP(D52,Surcharge!A:B,2,FALSE)*F52, VLOOKUP(D52 & "",Surcharge!A:B,2,FALSE)*F52), "") -> 
H53: =IFERROR(IFERROR(VLOOKUP(D53,Surcharge!A:B,2,FALSE)*F53, VLOOKUP(D53 & "",Surcharge!A:B,2,FALSE)*F53), "") -> 
H54: =IFERROR(IFERROR(VLOOKUP(D54,Surcharge!A:B,2,FALSE)*F54, VLOOKUP(D54 & "",Surcharge!A:B,2,FALSE)*F54), "") -> 
C55: EC2 Canister Extractor | F55: =SUM(F61:F62) -> 0 | H55: =IFERROR(IFERROR(VLOOKUP(D55,Surcharge!A:B,2,FALSE)*F55, VLOOKUP(D55 & "",Surcharge!A:B,2,FALSE)*F55), "") -> 
C56: 15 gal. capacity, 200 psi, 13" (330mm) Stainless Steel or Titanium Carpet wand with 2 Unijets, 15-ft. (4.5m) vacuum and solution hoses, 40 ft(12.2m) Hospital Grade safety yellow electrical cords. Hand tool sold separately. CRI certified, Gold Cleaning Performance when used with titanium wand. Hand tool sold separately. CRI certified, Gold Cleaning Performance | F56: =SUM(F55) -> 0 | H56: =IFERROR(IFERROR(VLOOKUP(D56,Surcharge!A:B,2,FALSE)*F56, VLOOKUP(D56 & "",Surcharge!A:B,2,FALSE)*F56), "") -> 
C57: ETL-certified to UL & CSA Standards. | F57: =SUM(F56) -> 0 | H57: =IFERROR(IFERROR(VLOOKUP(D57,Surcharge!A:B,2,FALSE)*F57, VLOOKUP(D57 & "",Surcharge!A:B,2,FALSE)*F57), "") -> 
C58: Boxed Dimensions: 28.5in x 38in x 55in 724mm x 965mm x 1397mm | F58: =SUM(F57) -> 0 | H58: =IFERROR(IFERROR(VLOOKUP(D58,Surcharge!A:B,2,FALSE)*F58, VLOOKUP(D58 & "",Surcharge!A:B,2,FALSE)*F58), "") -> 
C59: Shipping Weight: 152lb/69kg | F59: =SUM(F58) -> 0 | H59: =IFERROR(IFERROR(VLOOKUP(D59,Surcharge!A:B,2,FALSE)*F59, VLOOKUP(D59 & "",Surcharge!A:B,2,FALSE)*F59), "") -> 
H60: =IFERROR(IFERROR(VLOOKUP(D60,Surcharge!A:B,2,FALSE)*F60, VLOOKUP(D60 & "",Surcharge!A:B,2,FALSE)*F60), "") -> 
C61: EC2, 200 psi (15.2 bar) Canister Extractor w/ Stainless Steel carpet wand and vacuum and solution hoses | D61: 9011638 | E61: 7216 | G61: =F61*E61 -> 0 | H61: =IFERROR(IFERROR(VLOOKUP(D61,Surcharge!A:B,2,FALSE)*F61, VLOOKUP(D61 & "",Surcharge!A:B,2,FALSE)*F61), "") ->  | Q61: =VLOOKUP(D61,'MPF SAP Canada Pre-Configured'!$C:$E,3,FALSE) -> 7216
C62: EC2, 200 psi (15.2 bar) Canister Extractor w/ High Airflow Titanium carpet wand and vacuum and solution hoses | D62: 9012278 | E62: 7767 | G62: =F62*E62 -> 0 | H62: =IFERROR(IFERROR(VLOOKUP(D62,Surcharge!A:B,2,FALSE)*F62, VLOOKUP(D62 & "",Surcharge!A:B,2,FALSE)*F62), "") ->  | Q62: =VLOOKUP(D62,'MPF SAP Canada Pre-Configured'!$C:$E,3,FALSE) -> 7767
H63: =IFERROR(IFERROR(VLOOKUP(D63,Surcharge!A:B,2,FALSE)*F63, VLOOKUP(D63 & "",Surcharge!A:B,2,FALSE)*F63), "") -> 
H64: =IFERROR(IFERROR(VLOOKUP(D64,Surcharge!A:B,2,FALSE)*F64, VLOOKUP(D64 & "",Surcharge!A:B,2,FALSE)*F64), "") -> 
E66: =ROUND(SUM(G27:G65), 0) -> 0 | F66: =SUM(E67) -> 0
D67: Machine Subtotal | E67: =ROUND(SUM(G27:G65), 0) -> 0 | F67: =F66 -> 0
B68: Discounts | F68: =SUM(F69) -> 0
F69: =SUM(F71:F72) -> 0
D70: Applicable Currency Adj % | F70: =IF(E70 <> "", 1, 0) -> 0 | G70: =IF(F70*(E70*0.01)*E66 < 0, F70*(E70*0.01)*E66, -(F70*(E70*0.01)*E66)) -> 0
D71: Discount % | F71: =IF(E71 <> "", 1, 0) -> 0 | G71: =IF(F71*(E71*0.01)*(E66+G70) < 0, F71*(E71*0.01)*(E66+G70), -(F71*(E71*0.01)*(E66+G70))) -> 0
D72: Discount $ | F72: =IF(E72 <> "", 1, 0) -> 0 | G72: =IF(F72*E72 < 0, F72*E72, -(F72*E72)) -> 0
D73: Discount Total | E73: =SUM(G70:G72) -> 0 | F73: =SUM(E73) -> 0
F74: =#REF! -> 
F75: =F74 -> 
C76: Prepaid and Add | D76: Freight | F76: =IF(E76 <> "", 1, 0) -> 0 | G76: =F76*E76 -> 0
C77: Subject to all applicable taxes | D77: Tax | F77: =IF(E77 <> "", 1, 0) -> 0 | G77: =F77*E77 -> 0
F78: =SUM(F79) -> 0
D79: MACHINE TOTAL* | F79: =SUM(G79) -> 0 | G79: =SUM(G27:G77) -> 0 | N79: This goes to "My Documents"
G80: =SUM(G79) -> 0
C85: First Western Equipment Finance - Leasing Calculation Option: | D85: Option 1 | F85: Option 2 | J85: =Financing!A38 -> Rates 2023 - Rev 10/10/2023
D86: Monthly Payment | E86: Cost Per Day | F86: Monthly Payment | G86: Cost Per Day | J86: =Financing!A39 -> “Blank Payment Amounts Indicate The Financing Option Or Purchase Options Selected Are Not
C87: Purchase Option: | D87: FWEF: $1 Buyout Lease | F87: FWEF: Municipal Lease | J87: =Financing!A40 -> Applicable Or The Machine Total Is Below The Minimum Amount For The Selected Vendor”
C88: 24 Months | D88: FALSE | E88: 0 | F88: FALSE | G88: 0 | J88: =Financing!A41 -> "Quoted monthly payments are estimates only and are based on a certain level of credit rating.
C89: 30 Months | D89: FALSE | E89: 0 | F89: FALSE | G89: 0 | J89: =Financing!A42 -> Actual monthly payments may be higher depending on your credit rating."
C90: 36 Months | D90: FALSE | E90: 0 | F90: FALSE | G90: 0 | J90: =Financing!A43 -> “Financing rates do not include Pre-Paid Service”
C91: 48 Months | D91: 0 | E91: 0 | F91: 0 | G91: 0 | J91: =Financing!A44 -> 0
D93: Benefits of Equipment Financing:
D94: • Spreads out investment over time. | F94: • Keep current with latest technology.
D95: • Preserve capital. | F95: • Service and parts bundling available.
D96: • Low monthly payment. | F96: • Pay for labor savings as you go.
B99: TennantTrue | D99: 0 | E99: 0
C101: Is customer interested in service program? | D101: Yes | E101: *State/County selection required for TennantTrue service options
C103: If not, why?
C105: Term: | D105: 36 | G105: AB Brushes | H105: No
C106: Monthly machine usage (hrs): | D106: < 30/mo. (Avg. 1hr./day)
C108: TennantTrue: | D108: Gold Contract | F108: Silver Contract
C109: Per Visit | F109: 326
C110: Monthly | D110: 109 | F110: 54
C111: Annually | F111: 640
C112: Pre-Pay Full Term | D112: 3769 | F112: 1879
C113: Hourly Labor Rate
C114: Site Visit
C116: * Verify customer current pricing prior to quote.
C117: **All rates and fees above reflect service for one (1) unit with the exception of Block of Time service.
C118: *Block of Time is available in 1 Year Term only and is priced as such no matter the term selection on this template.
B122: Quote Special Instructions:
B125: =Start_Here!E36 -> Terms and Conditions
B126: =Start_Here!E37 -> Ask your local sales rep for estimated lead times. Verify when placing order
B127: =Start_Here!E38 -> All orders subject to acceptance by Tennant Sales and Service Company, Minneapolis, Minnesota
B128: =Start_Here!E39 -> Prices subject to change without notice. Subject to any applicable taxes.
B129: =Start_Here!E40 -> Terms: Net 30 days. Payable in Canadian Funds
B130: =Start_Here!E41 -> Freight: Accessories, parts, supplies, detergents, and floor coatings orders delivered DDP
B131: =Start_Here!E42 -> shipping point Frt PPD. Machine orders delivered DDP shipping point Frt PPD and add.
B132: =Start_Here!E43 -> Returned Merchandise is subject to a restocking fee.
B133: =Start_Here!E44 -> All orders are subject to Tennant’s General Terms and Conditions available at http://www.tennantco.com/terms.
B134: =Start_Here!E45 -> Printed General Terms and Conditions are also available upon request.
B135: =Start_Here!E46 -> 0
E137: Quote Date : | G137: =Letter!$A$25 -> 2020-09-22
B138: Order Placement Information: To place your order, fill in PO# and customer signatures,
B139: call or fax to the numbers listed below. Customer Purchase Order is required.
B140: If information is missing, orders will be entered and held until all information is received.
C141: Customer Number | E141: Cust Grp 3
C142: =Start_Here!$C$25 -> 0 | E142: =Start_Here!$C$29 -> 0
C143: =Start_Here!$B$18 -> Who Owns the Machine? (Sold-To Info) (Please Verify)
A144: Company | C144: =Start_Here!$C$19 -> Company Name
A145: Address | C145: =Start_Here!$C$20 -> Address
C146: =Start_Here!$C$21 -> City, State Zip
A147: Name | C147: =Start_Here!$C$22 -> Contact Name
A148: Phone | C148: =Start_Here!$C$23 -> Contact Phone
C149: =Start_Here!$B$11 -> Where is the Machine Being Shipped? (Ship-To Info) (Please Verify)
A150: Company | C150: =Start_Here!$C$12 -> Company Name
A151: Address | C151: =Start_Here!$C$13 -> Address
C152: =Start_Here!$C$14 -> City, State Zip
A153: Name | C153: =Start_Here!$C$15 -> Contact Name
A154: Phone | C154: =Start_Here!$C$16 -> Contact Phone
C155: =Start_Here!$B$31 -> Shipping / Carrier Instructions: | E155: Order Special Instructions:
C156: =Start_Here!$C$32 -> 0
C158: Customer Purchase Order No.
C159: (please attach copy)
C162: Tax Exempt | E162: Yes
E163: No
C164: If Yes, attach a copy of your exemption certificate.
C166: Requested Delivery Date
C167: =Start_Here!$C$28 -> 0
C169: =Start_Here!$C$26 -> 0 | E169: =Start_Here!$C$27 -> 0
C170: Authorized Buyer (please print) | E170: Phone Number
C173: Authorized Buyer Signature
C175: =Start_Here!$C$41 -> Rep Name
C176: Tennant Representative
A178: Specialized Maintenance Equipment
A179: =Start_Here!$C$48 -> TENNANT · 10400 Clean Street · Eden Prairie, MN 55344 ·
A180: =Start_Here!$C$49 -> PHONE:800-553-8033 · FAX:763-513-2116
B182: Notes
B184: 1 | C184: When pad/brush assist unit is chosen, only mechanical Set and Forget™ downpressure is available.
C185: Automatic Down Pressure can only be deducted from the self-propelled unit.
B187: 2 | C187: 225AH Battery is standard on units with the Self Propel Drive Type.
C188: When Self Propel is selected, this battery will be added at No Charge.
B190: 3 | C190: Factory installed pricing. Only available on wet batteries, not sealed.
B192: 4 | C192: Not available with Active Dust Control. Only Available with Passive Dust Control.
B194: 5 | C194: A French and English manual will be supplied for all units shipping into Quebec, Canada at no charge. An additional manual
C195: can be ordered (for a total of 3 manuals) for an additional charge as stated under 'Additional Operator Manual'.
B197: 6 | C197: Skid w/Carton, Stackable is the default packaging method and will be added to the configuration unless otherwise specified.
B199: 7 | C199: Shipping Weights and Dimensions | E199: Skid w/Carton
C201: Weight - Pad Drive w/185AH Battery | E201: 587 lbs / 267 Kg
C202: Weight - Self Propel w/225AH Battery | E202: 652 lbs / 296 Kg
C203: Length | E203: 60" / 1524 mm
C204: Width | E204: 31" / 788 mm
C205: Height | E205: 50" / 1270 mm

Sheet Vacuums
A1: Vacuums | C1: =Start_Here!$C19 -> Company Name
A2: =SUM(G180) -> 0 | C2: =Start_Here!$C20 -> Address
C3: =Start_Here!$C21 -> City, State Zip
C4: =Start_Here!$C22 -> Contact Name
C5: =Start_Here!$C$41 -> Rep Name
C6: =Start_Here!$C$37 -> Tennant Sales and Service Company
C7: =Start_Here!$C$38 -> 10400 Clean Street
C8: =Start_Here!$C$39 -> Eden Prairie, MN 55344
C9: =Start_Here!$C$43 -> 800-553-8033 | E9: Quote Date : | G9: =Letter!$A$25 -> 2020-09-22
C11: =Help!C2 -> CAN Date Rev - 9/30/2024
C13: New Machine Warranty
C14: TIDY VAC 3, TIDY VAC 6, V-BP-6 Backpack
C15: 24 MONTHS ON PARTS
C16: 12 MONTHS - LABOR
C17: 3 MONTHS - TRAVEL
C18: WET/DRY VACUUMS | G18: Fax (quote only)
C19: 3 YEARS PARTS & LABOR, NO TRAVEL | G19: Mail (quote,lit, specs)
C20: All others | G20: Fax + Mail
C21: 12 MONTHS ON PARTS
C22: 12 MONTHS - LABOR | E22: Primary Use
C23: NO TRAVEL | G23: Inside
G24: Outside
C26: Description | D26: Reference # | E26: Canada Price Each | F26: Qty | G26: Extended Price
F27: *
C28: V-WA-30 30" (762mm) Wide Area Vacuum | D28: 1068029 | E28: 5646 | G28: =F28*E28 -> 0 | H28: =IFERROR(IFERROR(VLOOKUP(D28,Surcharge!A:B,2,FALSE)*F28, VLOOKUP(D28 & "",Surcharge!A:B,2,FALSE)*F28), "") ->  | L28: =SUM(F28) -> 0 | M28: Surcharge Qty | P28: =VLOOKUP(D28,'MPF SAP Canada Pre-Configured'!$C:$E,3,FALSE) -> 5646
C29: Certified CRI Bronze Cleaning Performance. Comes standard with HEPA filtration, and spare bag and 75 ft. (23m) safety-yellow power cord. ETL US/C | F29: =SUM(F28) -> 0 | H29: =IFERROR(IFERROR(VLOOKUP(D29,Surcharge!A:B,2,FALSE)*F29, VLOOKUP(D29 & "",Surcharge!A:B,2,FALSE)*F29), "") -> 
C30: Boxed Dimensions: 18"L x 32.25 "W x 43.25 "H (457mm x 819mm x 196mm) * | F30: =SUM(F29) -> 0 | H30: =IFERROR(IFERROR(VLOOKUP(D30,Surcharge!A:B,2,FALSE)*F30, VLOOKUP(D30 & "",Surcharge!A:B,2,FALSE)*F30), "") -> 
C31: Shipping Weight: 100 lbs. (45.36kg) | F31: =SUM(F30) -> 0 | H31: =IFERROR(IFERROR(VLOOKUP(D31,Surcharge!A:B,2,FALSE)*F31, VLOOKUP(D31 & "",Surcharge!A:B,2,FALSE)*F31), "") -> 
C32: Made in the USA with Globally sourced components | F32: =SUM(F31) -> 0 | H32: =IFERROR(IFERROR(VLOOKUP(D32,Surcharge!A:B,2,FALSE)*F32, VLOOKUP(D32 & "",Surcharge!A:B,2,FALSE)*F32), "") -> 
H33: =IFERROR(IFERROR(VLOOKUP(D33,Surcharge!A:B,2,FALSE)*F33, VLOOKUP(D33 & "",Surcharge!A:B,2,FALSE)*F33), "") -> 
H34: =IFERROR(IFERROR(VLOOKUP(D34,Surcharge!A:B,2,FALSE)*F34, VLOOKUP(D34 & "",Surcharge!A:B,2,FALSE)*F34), "") -> 
C35: V-LWU-13B Battery Light Weight Upright Commercial Vacuum | D35: 1236914 | E35: 1328 | G35: =F35*E35 -> 0 | H35: =IFERROR(IFERROR(VLOOKUP(D35,Surcharge!A:B,2,FALSE)*F35, VLOOKUP(D35 & "",Surcharge!A:B,2,FALSE)*F35), "") ->  | P35: =VLOOKUP(D35,'MPF SAP Canada Pre-Configured'!$C:$E,3,FALSE) -> 1328
C36: Certified CRI Bronze Cleaning Performance. 44 VDC / 2.9 Ah lithium ion powered vacuum. Runtime 50 minutes. Weighs only 11 lbs (4.99 kg). Comes standard with HEPA filtration, spare belt and bag. Comes with battery and charger, UL certified. | F36: =SUM(F35) -> 0 | H36: =IFERROR(IFERROR(VLOOKUP(D36,Surcharge!A:B,2,FALSE)*F36, VLOOKUP(D36 & "",Surcharge!A:B,2,FALSE)*F36), "") -> 
F37: =SUM(F36) -> 0 | H37: =IFERROR(IFERROR(VLOOKUP(D37,Surcharge!A:B,2,FALSE)*F37, VLOOKUP(D37 & "",Surcharge!A:B,2,FALSE)*F37), "") -> 
C38: Boxed Dimensions: 35"L x 15"W x 7 "H (889mm x 381mm x 178mm) | F38: =SUM(F37) -> 0 | H38: =IFERROR(IFERROR(VLOOKUP(D38,Surcharge!A:B,2,FALSE)*F38, VLOOKUP(D38 & "",Surcharge!A:B,2,FALSE)*F38), "") -> 
C39: Shipping Weight: 17 lbs. (7.7kg) | F39: =SUM(F38) -> 0 | H39: =IFERROR(IFERROR(VLOOKUP(D39,Surcharge!A:B,2,FALSE)*F39, VLOOKUP(D39 & "",Surcharge!A:B,2,FALSE)*F39), "") -> 
C40: Made in the USA with Globally sourced components | F40: =SUM(F39) -> 0 | H40: =IFERROR(IFERROR(VLOOKUP(D40,Surcharge!A:B,2,FALSE)*F40, VLOOKUP(D40 & "",Surcharge!A:B,2,FALSE)*F40), "") -> 
H41: =IFERROR(IFERROR(VLOOKUP(D41,Surcharge!A:B,2,FALSE)*F41, VLOOKUP(D41 & "",Surcharge!A:B,2,FALSE)*F41), "") -> 
H42: =IFERROR(IFERROR(VLOOKUP(D42,Surcharge!A:B,2,FALSE)*F42, VLOOKUP(D42 & "",Surcharge!A:B,2,FALSE)*F42), "") -> 
C43: V-SMU-14 - 14" (356mm) Single Motor Vacuum | D43: 1060829 | E43: 866 | G43: =F43*E43 -> 0 | H43: =IFERROR(IFERROR(VLOOKUP(D43,Surcharge!A:B,2,FALSE)*F43, VLOOKUP(D43 & "",Surcharge!A:B,2,FALSE)*F43), "") ->  | P43: =VLOOKUP(D43,'MPF SAP Canada Pre-Configured'!$C:$E,3,FALSE) -> 866
C44: Certified CRI Silver Cleaning Performance. 1.5-gallon (5.5-liter) bag capacity. Comes standard with 3-stage HEPA filtration, easy access crevice tool and dusting brush , 4:1 stretch hose, telescopic aluminum wand, spare belt and bag and 50 ft. (15m) safety-yellow power cord. ETL US/C | F44: =SUM(F43) -> 0 | H44: =IFERROR(IFERROR(VLOOKUP(D44,Surcharge!A:B,2,FALSE)*F44, VLOOKUP(D44 & "",Surcharge!A:B,2,FALSE)*F44), "") -> 
C45: Boxed Dimensions: 42.75"L x 17.25"W x 9.75"H (1090mm x 440mm x 250mm) * | F45: =SUM(F44) -> 0 | H45: =IFERROR(IFERROR(VLOOKUP(D45,Surcharge!A:B,2,FALSE)*F45, VLOOKUP(D45 & "",Surcharge!A:B,2,FALSE)*F45), "") -> 
C46: Shipping Weight: 21.75 lbs. (9.9 kg) | F46: =SUM(F45) -> 0 | H46: =IFERROR(IFERROR(VLOOKUP(D46,Surcharge!A:B,2,FALSE)*F46, VLOOKUP(D46 & "",Surcharge!A:B,2,FALSE)*F46), "") -> 
H47: =IFERROR(IFERROR(VLOOKUP(D47,Surcharge!A:B,2,FALSE)*F47, VLOOKUP(D47 & "",Surcharge!A:B,2,FALSE)*F47), "") -> 
H48: =IFERROR(IFERROR(VLOOKUP(D48,Surcharge!A:B,2,FALSE)*F48, VLOOKUP(D48 & "",Surcharge!A:B,2,FALSE)*F48), "") -> 
C49: V-DMU-14 - 14" (356mm) Dual Motor Vacuum | D49: 1068027 | E49: 1131 | G49: =F49*E49 -> 0 | H49: =IFERROR(IFERROR(VLOOKUP(D49,Surcharge!A:B,2,FALSE)*F49, VLOOKUP(D49 & "",Surcharge!A:B,2,FALSE)*F49), "") ->  | P49: =VLOOKUP(D49,'MPF SAP Canada Pre-Configured'!$C:$E,3,FALSE) -> 1131
C50: Certified CRI Silver Cleaning Performance. 1.5-gallon (5.5-liter) bag capacity. Comes standard with 3-stage HEPA filtration, easy access crevice tool and dusting brush , 4:1 stretch hose, telescopic aluminum wand, spare bag and 50 ft. (15m) safety-yellow power cord. ETL US/C | F50: =SUM(F49) -> 0 | H50: =IFERROR(IFERROR(VLOOKUP(D50,Surcharge!A:B,2,FALSE)*F50, VLOOKUP(D50 & "",Surcharge!A:B,2,FALSE)*F50), "") -> 
C51: Boxed Dimensions: 42.75"L x 17.25"W x 9.75"H (1090mm x 440mm x 250mm) * | F51: =SUM(F50) -> 0 | H51: =IFERROR(IFERROR(VLOOKUP(D51,Surcharge!A:B,2,FALSE)*F51, VLOOKUP(D51 & "",Surcharge!A:B,2,FALSE)*F51), "") -> 
C52: Shipping Weight: 22.75 lbs. (9.9 kg) | F52: =SUM(F51) -> 0 | H52: =IFERROR(IFERROR(VLOOKUP(D52,Surcharge!A:B,2,FALSE)*F52, VLOOKUP(D52 & "",Surcharge!A:B,2,FALSE)*F52), "") -> 
H53: =IFERROR(IFERROR(VLOOKUP(D53,Surcharge!A:B,2,FALSE)*F53, VLOOKUP(D53 & "",Surcharge!A:B,2,FALSE)*F53), "") -> 
C55: V-CAN-16 Premium Dry Canister Vacuum Cleaner | D55: 1252618 | E55: 764 | G55: =F55*E55 -> 0 | P55: =VLOOKUP(D55,'MPF SAP Canada Pre-Configured'!$C:$E,3,FALSE) -> 764
C56: CRI certified Bronze with optional high performance tool. 4.2 gallon (16 liter) capacity with multi-stage filtration including cloth filter, fleece bag and downstream HEPA cartridge. Comes standard with speed regulator, full bag indicator, chrome telescopic tube, wand with air flow regulator, floor tool, flat lance, round brush and small tool, 6.5 ft (2 m) hose, 40 ft (12m) detachable safety-yellow power cord. UL / CSA | F56: =SUM(F55) -> 0
F57: =SUM(F56) -> 0
C58: Boxed Dimensions: 16 x 17 x 20 in (400 x 435 x 515 mm) | F58: =SUM(F57) -> 0
C59: Shipping Weight: 20 lb / 9 kg | F59: =SUM(F58) -> 0
C62: V-CAN-12 Standard Dry Canister Vacuum Cleaner | D62: 1252616 | E62: 621 | G62: =F62*E62 -> 0 | P62: =VLOOKUP(D62,'MPF SAP Canada Pre-Configured'!$C:$E,3,FALSE) -> 621
C63: CRI certified Bronze with optional high performance tool. 3.2 gallon (12 liter) capacity with multi-stage filtration including cloth filter, fleece bag and downstream foam filter. Comes standard with chrome tube, wand with air flow regulator, floor tool, flat lance, round brush and small tool, 6.2 ft (1.9 m) hose, 40 ft (12m) detachable safety-yellow power cord. UL / CSA | F63: =SUM(F62) -> 0
F64: =SUM(F63) -> 0
C65: Boxed Dimensions: 15.5 x 15.5 x 20 in (395 x 395 x 510 mm) | F65: =SUM(F64) -> 0
C66: Shipping Weight: 19.4 lb / 8.8 kg | F66: =SUM(F65) -> 0
C69: V-CAN-10 Compact Dry Canister Vacuum Cleaner | D69: 1244292 | E69: 449 | G69: =F69*E69 -> 0 | P69: =VLOOKUP(D69,'MPF SAP Canada Pre-Configured'!$C:$E,3,FALSE) -> 449
C70: 2.6 gallon (10 liter) capacity, comes standard with paper bag, floor tool/crevice tool/dusting brush, 2-piece wand, 5 ft (1.5 m) hose and 26 ft (8 m) yellow power cord. Intertek ETL (US-Can) | F70: =SUM(F69) -> 0
F71: =SUM(F70) -> 0
C72: Boxed Dimensions: 13.2 x 13 x 13 in (335 x 330 x 330 mm). | F72: =SUM(F71) -> 0
C73: Shipping Weight: 15 lb / 6.7kg | F73: =SUM(F72) -> 0
H74: =IFERROR(IFERROR(VLOOKUP(D74,Surcharge!A:B,2,FALSE)*F74, VLOOKUP(D74 & "",Surcharge!A:B,2,FALSE)*F74), "") -> 
H75: =IFERROR(IFERROR(VLOOKUP(D75,Surcharge!A:B,2,FALSE)*F75, VLOOKUP(D75 & "",Surcharge!A:B,2,FALSE)*F75), "") -> 
C76: V-BP-6 Backpack Vacuum - Base Kit | D76: 9013473 | E76: 1058 | G76: =F76*E76 -> 0 | H76: =IFERROR(IFERROR(VLOOKUP(D76,Surcharge!A:B,2,FALSE)*F76, VLOOKUP(D76 & "",Surcharge!A:B,2,FALSE)*F76), "") ->  | P76: =VLOOKUP(D76,'MPF SAP Canada Pre-Configured'!$C:$E,3,FALSE) -> 1058
C77: Ergonomic Commercial Backpack Vacuum - 10 amp vac motor, 6 qt. (5.7 litre) capacity, comes standard with 4-stage HEPA filtration, Deuter branded hiking harness, 14" (356 mm) hard floor tool, 14" (356mm) carpet floor tool, 15-ft (5m) crush proof 4:1 stretch hose and lightweight, two-piece aluminum wand, dust brush, crevice and upholstery tool. 50 ft. (15m) safety-yellow power cord. UL-CSA. CRI certified Gold with optional Hi-performance tool. | F77: =SUM(F76) -> 0 | H77: =IFERROR(IFERROR(VLOOKUP(D77,Surcharge!A:B,2,FALSE)*F77, VLOOKUP(D77 & "",Surcharge!A:B,2,FALSE)*F77), "") -> 
H78: =IFERROR(IFERROR(VLOOKUP(D78,Surcharge!A:B,2,FALSE)*F78, VLOOKUP(D78 & "",Surcharge!A:B,2,FALSE)*F78), "") -> 
H79: =IFERROR(IFERROR(VLOOKUP(D79,Surcharge!A:B,2,FALSE)*F79, VLOOKUP(D79 & "",Surcharge!A:B,2,FALSE)*F79), "") -> 
C80: Vacuum Boxed Dimensions: 26.8"L x 15.2"W x 14.2"H (680mm x 385mm x 360mm) | H80: =IFERROR(IFERROR(VLOOKUP(D80,Surcharge!A:B,2,FALSE)*F80, VLOOKUP(D80 & "",Surcharge!A:B,2,FALSE)*F80), "") -> 
C81: Tools Boxed Dimensions: 32"L x 11" W x 4.5"H (813mm x 279mm x 114mm) | F81: =SUM(F79) -> 0 | H81: =IFERROR(IFERROR(VLOOKUP(D81,Surcharge!A:B,2,FALSE)*F81, VLOOKUP(D81 & "",Surcharge!A:B,2,FALSE)*F81), "") -> 
C82: Shipping Weight: vacuum 21.2 lbs. (9.6 kg) + tools 3.6 lbs (1.6 kg) = total 24.8 lbs (11.2 kg) | F82: =SUM(F80) -> 0 | H82: =IFERROR(IFERROR(VLOOKUP(D82,Surcharge!A:B,2,FALSE)*F82, VLOOKUP(D82 & "",Surcharge!A:B,2,FALSE)*F82), "") -> 
C83: *3 Total boxes will come with the order (in addition to the two above there will be a small accessory box. | H83: =IFERROR(IFERROR(VLOOKUP(D83,Surcharge!A:B,2,FALSE)*F83, VLOOKUP(D83 & "",Surcharge!A:B,2,FALSE)*F83), "") -> 
H84: =IFERROR(IFERROR(VLOOKUP(D84,Surcharge!A:B,2,FALSE)*F84, VLOOKUP(D84 & "",Surcharge!A:B,2,FALSE)*F84), "") -> 
C85: V-BP-6 Backpack Vacuum - Standard Kit | D85: 9013474 | E85: 1092 | G85: =F85*E85 -> 0 | H85: =IFERROR(IFERROR(VLOOKUP(D85,Surcharge!A:B,2,FALSE)*F85, VLOOKUP(D85 & "",Surcharge!A:B,2,FALSE)*F85), "") ->  | P85: =VLOOKUP(D85,'MPF SAP Canada Pre-Configured'!$C:$E,3,FALSE) -> 1092
C86: Ergonomic Commercial Backpack Vacuum - 10 amp vac motor, 6 qt. (5.7 litre) capacity, comes standard with 4-stage HEPA filtration, Deuter branded hiking harness, 14" (356 mm) hard floor tool, 14" (356mm) carpet floor tool, 15-ft (5m) crush proof 4:1 stretch hose and robust one-piece chrome telescoping wand, dust brush, crevice and upholstery tool. 50 ft. (15m) safety-yellow power cord. UL-CSA. CRI certified Gold with optional Hi-performance tool. | F86: =SUM(F85) -> 0 | H86: =IFERROR(IFERROR(VLOOKUP(D86,Surcharge!A:B,2,FALSE)*F86, VLOOKUP(D86 & "",Surcharge!A:B,2,FALSE)*F86), "") -> 
H87: =IFERROR(IFERROR(VLOOKUP(D87,Surcharge!A:B,2,FALSE)*F87, VLOOKUP(D87 & "",Surcharge!A:B,2,FALSE)*F87), "") -> 
H88: =IFERROR(IFERROR(VLOOKUP(D88,Surcharge!A:B,2,FALSE)*F88, VLOOKUP(D88 & "",Surcharge!A:B,2,FALSE)*F88), "") -> 
C89: Vacuum Boxed Dimensions: 26.8"L x 15.2"W x 14.2"H (680mm x 385mm x 360mm) | H89: =IFERROR(IFERROR(VLOOKUP(D89,Surcharge!A:B,2,FALSE)*F89, VLOOKUP(D89 & "",Surcharge!A:B,2,FALSE)*F89), "") -> 
C90: Tools Boxed Dimensions: 44.5"L x 7.5" W x 3.5"H (1130mm x 191mm x 89mm) | F90: =SUM(F88) -> 0 | H90: =IFERROR(IFERROR(VLOOKUP(D90,Surcharge!A:B,2,FALSE)*F90, VLOOKUP(D90 & "",Surcharge!A:B,2,FALSE)*F90), "") -> 
C91: Shipping Weight: vacuum 21.2 lbs. (9.6 kg) + tools 4.8 lbs (2.2 kg) = total 26 lbs (11.8 kg) | F91: =SUM(F89) -> 0 | H91: =IFERROR(IFERROR(VLOOKUP(D91,Surcharge!A:B,2,FALSE)*F91, VLOOKUP(D91 & "",Surcharge!A:B,2,FALSE)*F91), "") -> 
C92: *3 Total boxes will come with the order (in addition to the two above there will be a small accessory box. | H92: =IFERROR(IFERROR(VLOOKUP(D92,Surcharge!A:B,2,FALSE)*F92, VLOOKUP(D92 & "",Surcharge!A:B,2,FALSE)*F92), "") -> 
H93: =IFERROR(IFERROR(VLOOKUP(D93,Surcharge!A:B,2,FALSE)*F93, VLOOKUP(D93 & "",Surcharge!A:B,2,FALSE)*F93), "") -> 
C94: V-BP-6 Backpack Vacuum - Premium Kit (Sidewinder Tools) | D94: 9013475 | E94: 1248 | G94: =F94*E94 -> 0 | H94: =IFERROR(IFERROR(VLOOKUP(D94,Surcharge!A:B,2,FALSE)*F94, VLOOKUP(D94 & "",Surcharge!A:B,2,FALSE)*F94), "") ->  | P94: =VLOOKUP(D94,'MPF SAP Canada Pre-Configured'!$C:$E,3,FALSE) -> 1248
C95: Ergonomic Commercial Backpack Vacuum - 10 amp vac motor, 6 qt. (5.7 litre) capacity, comes standard with 4-stage HEPA filtration, Deuter branded hiking harness, 18" (457 mm) Sidewinder branded hard floor tool, 18" (457 mm) Sidewinder branded carpet floor tool, 15-ft (5m) crush proof 4:1 stretch hose and two-piece anodized aluminum wand, dust brush, crevice and upholstery tool. 50 ft. (15m) safety-yellow power cord. UL-CSA. CRI certified Gold with optional Hi-performance tool. | F95: =SUM(F94) -> 0 | H95: =IFERROR(IFERROR(VLOOKUP(D95,Surcharge!A:B,2,FALSE)*F95, VLOOKUP(D95 & "",Surcharge!A:B,2,FALSE)*F95), "") -> 
H96: =IFERROR(IFERROR(VLOOKUP(D96,Surcharge!A:B,2,FALSE)*F96, VLOOKUP(D96 & "",Surcharge!A:B,2,FALSE)*F96), "") -> 
C97: Vacuum Boxed Dimensions: 26.8"L x 15.2"W x 14.2"H (680mm x 385mm x 360mm) | H97: =IFERROR(IFERROR(VLOOKUP(D97,Surcharge!A:B,2,FALSE)*F97, VLOOKUP(D97 & "",Surcharge!A:B,2,FALSE)*F97), "") -> 
C98: Tools Boxed Dimensions: 32"L x 11" W x 4.5"H (813mm x 279mm x 114mm) | F98: =SUM(F96:F96) -> 0 | H98: =IFERROR(IFERROR(VLOOKUP(D98,Surcharge!A:B,2,FALSE)*F98, VLOOKUP(D98 & "",Surcharge!A:B,2,FALSE)*F98), "") -> 
C99: Shipping Weight: vacuum 21.2 lbs. (9.6 kg) + tools 3.4 lbs (1.5 kg) = total 24.6 lbs (11.2 kg) | F99: =SUM(F96:F97) -> 0 | H99: =IFERROR(IFERROR(VLOOKUP(D99,Surcharge!A:B,2,FALSE)*F99, VLOOKUP(D99 & "",Surcharge!A:B,2,FALSE)*F99), "") -> 
C100: *3 Total boxes will come with the order (in addition to the two above there will be a small accessory box. | H100: =IFERROR(IFERROR(VLOOKUP(D100,Surcharge!A:B,2,FALSE)*F100, VLOOKUP(D100 & "",Surcharge!A:B,2,FALSE)*F100), "") -> 
C102: V-BP-6B Battery Backpack Vacuum - Base Kit | D102: 9017567 | E102: 2722 | G102: =F102*E102 -> 0 | P102: =VLOOKUP(D102,'MPF SAP Canada Pre-Configured'!$C:$E,3,FALSE) -> 2722
C103: Ergonomic Commercial Backpack Vacuum - 36 VDC / 10.4 Ah lithium ion powered battery vacuum. Runtime 55 minutes. 6 qt. (5.7 liter) capacity, comes standard with 4-stage HEPA filtration, Deuter branded hiking harness, 14" (356 mm) hard floor tool, 14" (356mm) carpet floor tool, 15-ft (5m) crush proof 4:1 stretch hose and lightweight, two-piece aluminum wand, dust brush, crevice and upholstery tool. ETL certified. CRI certified Silver with optional Hi-performance tool. Battery and charger included in price, battery ships separately. | F103: =SUM(F102) -> 0
F104: =SUM(F103) -> 0
C105: Vacuum Boxed Dimensions: 33.25"L x 16"W x 15"H (844.6mm x 406mm x 381mm) | F105: 0
C106: Tools Boxed Dimensions: 32"L x 11" W x 4.5"H (813mm x 279mm x 114mm) | F106: 0
C107: Battery Box Dimensions: 13.5"L x 4.5"W x 6.25"H (343mm x 114mm x 159mm) | F107: 0
C108: Shipping Weight: vacuum 23 lbs. (10.4 kg) + tools 3.6 lbs (1.6 kg) + battery box 6.2 lbs (2.8 kg) = total 32.8 lbs (14.8 kg) | F108: 0
C109: *4 Total boxes will come with the order (in addition to the three above there will be a small accessory box). | F109: 0
C111: V-BP-6B Battery Backpack Vacuum - Standard Kit | D111: 9017570 | E111: 2815 | G111: =F111*E111 -> 0 | P111: =VLOOKUP(D111,'MPF SAP Canada Pre-Configured'!$C:$E,3,FALSE) -> 2815
C112: Ergonomic Commercial Backpack Vacuum - 36 VDC / 10.4 Ah lithium ion battery powered vacuum. Runtime 55 minutes. 6 qt. (5.7 liter) capacity, comes standard with 4-stage HEPA filtration, Deuter branded hiking harness, 14" (356 mm) hard floor tool, 14" (356mm) carpet floor tool, 15-ft (5m) crush proof 4:1 stretch hose and chrome telescoping wand, dust brush, crevice and upholstery tool. ETL certified. CRI certified Silver with optional Hi-performance tool. Battery and charger included in price, battery ships separately. | F112: =SUM(F111) -> 0
F113: =SUM(F112) -> 0
C114: Vacuum Boxed Dimensions: 33.25"L x 16"W x 15"H (844.6mm x 406mm x 381mm) | F114: 0
C115: Tools Boxed Dimensions: 44.5"L x 7.5" W x 3.5"H (1130mm x 191mm x 89mm) | F115: 0
C116: Battery Box Dimensions: 13.5"L x 4.5"W x 6.25"H (343mm x 114mm x 159mm) | F116: 0
C117: Shipping Weight: vacuum 23 lbs. (10.4 kg) + tools 3.6 lbs (1.6 kg) + battery box 6.2 lbs (2.8 kg) = total 32.8 lbs (14.8 kg) | F117: 0
C118: *4 Total boxes will come with the order (in addition to the three above there will be a small accessory box). | F118: 0
C120: V-BP-6B Battery Backpack Vacuum - Premium Kit (Sidewinder Tools) | D120: 9017571 | E120: 3001 | G120: =F120*E120 -> 0 | P120: =VLOOKUP(D120,'MPF SAP Canada Pre-Configured'!$C:$E,3,FALSE) -> 3001
C121: Ergonomic Commercial Backpack Vacuum - 36 VDC / 10.4 Ah lithium ion powered vacuum. Runtime 55 minutes. 6 qt. (5.7 litre) capacity, comes standard with 4-stage HEPA filtration, Deuter branded hiking harness, 18" (457 mm) Sidewinder branded hard floor tool, 18" (457 mm) Sidewinder branded carpet floor tool, 15-ft (5m) crush proof 4:1 stretch hose and two-piece anodized aluminum wand, dust brush, crevice and upholstery tool. ETL certified. CRI certified Silver with optional Hi-performance tool. Battery and charger included in price, battery ships separately. | F121: =SUM(F120) -> 0
F122: =SUM(F121) -> 0
C123: Vacuum Boxed Dimensions: 33.25"L x 16"W x 15"H (844.6mm x 406mm x 381mm) | F123: 0
C124: Tools Boxed Dimensions: 32"L x 11" W x 4.5"H (813mm x 279mm x 114mm) | F124: 0
C125: Battery Box Dimensions: 13.5"L x 4.5"W x 6.25"H (343mm x 114mm x 159mm) | F125: 0
C126: Shipping Weight: vacuum 23 lbs. (10.4 kg) + tools 3.4 lbs (1.5 kg) + battery box 6.2 lbs (2.8 kg) = total 32.6 lbs (14.7 kg) | F126: 0
C127: *4 Total boxes will come with the order (in addition to the three above there will be a small accessory box). | F127: 0
H128: =IFERROR(IFERROR(VLOOKUP(D128,Surcharge!A:B,2,FALSE)*F128, VLOOKUP(D128 & "",Surcharge!A:B,2,FALSE)*F128), "") -> 
H129: =IFERROR(IFERROR(VLOOKUP(D129,Surcharge!A:B,2,FALSE)*F129, VLOOKUP(D129 & "",Surcharge!A:B,2,FALSE)*F129), "") -> 
B130: Wet/Dry Vacuums | F130: =SUM(F132,F139,F146,F153) -> 0 | H130: =IFERROR(IFERROR(VLOOKUP(D130,Surcharge!A:B,2,FALSE)*F130, VLOOKUP(D130 & "",Surcharge!A:B,2,FALSE)*F130), "") -> 
C132: V-WD-24P 24-gal. Wet/Dry Vacuum with Pump & Front Mount Squeegee | D132: 9019349 | E132: 3128 | G132: =F132*E132 -> 0 | P132: =VLOOKUP(D132,'MPF SAP Canada Pre-Configured'!$C:$E,3,FALSE) -> 3128
C133: 22.7 gallon gross volume tank capacity/14.5 gallon water volume tank capacity. 100" (2530 mm) waterlift with powerful submersible pump and front mount squeegee. Includes 16-ft. (5 m) vacuum hose, a 40-ft. (12 m) power cord, 2-pc. Aluminum/plastic wand, wand with air flor regulator and wet floor tool. Options include: dual filtration system, dust floor tool, flat lance, round brush and adaptor. | F133: =SUM(F132) -> 0
D134: Dual Filtration System sold as option | F134: =SUM(F133) -> 0
C135: Boxed dimensions: 24L x 19W x 37H (620mm x 495mm x 950mm) | F135: =SUM(F134) -> 0
C136: Shipping Weight: 87 lbs. (39.5 kg) | F136: =SUM(F135) -> 0
H137: =IFERROR(IFERROR(VLOOKUP(D137,Surcharge!A:B,2,FALSE)*F137, VLOOKUP(D137 & "",Surcharge!A:B,2,FALSE)*F137), "") -> 
H138: =IFERROR(IFERROR(VLOOKUP(D138,Surcharge!A:B,2,FALSE)*F138, VLOOKUP(D138 & "",Surcharge!A:B,2,FALSE)*F138), "") -> 
C139: V-WD-24P 24-gal. Wet/Dry Vacuum with Pump | D139: 1244346 | E139: 2519 | G139: =F139*E139 -> 0 | H139: =IFERROR(IFERROR(VLOOKUP(D139,Surcharge!A:B,2,FALSE)*F139, VLOOKUP(D139 & "",Surcharge!A:B,2,FALSE)*F139), "") ->  | P139: =VLOOKUP(D139,'MPF SAP Canada Pre-Configured'!$C:$E,3,FALSE) -> 2519
C140: 22.7 gallon gross volume tank capacity/14.5 gallon water volume tank capacity. 100" (2530 mm) waterlift with powerful submersible pump. Includes 16-ft. (5 m) vacuum hose, a 40-ft. (12 m) power cord, 2-pc. Aluminum/plastic wand, wand with air flor regulator and wet floor tool. Options include: front mount squeegee kit, dual filtration system, dust floor tool, flat lance, round brush and adaptor. | D140: Squeegee sold as option | F140: =SUM(F139) -> 0 | H140: =IFERROR(IFERROR(VLOOKUP(D140,Surcharge!A:B,2,FALSE)*F140, VLOOKUP(D140 & "",Surcharge!A:B,2,FALSE)*F140), "") -> 
D141: Dual Filtration System sold as option | F141: =SUM(F140) -> 0 | H141: =IFERROR(IFERROR(VLOOKUP(D141,Surcharge!A:B,2,FALSE)*F141, VLOOKUP(D141 & "",Surcharge!A:B,2,FALSE)*F141), "") -> 
C142: Boxed dimensions: 24L x 19W x 37H (620mm x 495mm x 950mm) | F142: =SUM(F141) -> 0 | H142: =IFERROR(IFERROR(VLOOKUP(D142,Surcharge!A:B,2,FALSE)*F142, VLOOKUP(D142 & "",Surcharge!A:B,2,FALSE)*F142), "") -> 
C143: Shipping Weight: 65 lbs. (29.6 kg) | F143: =SUM(F142) -> 0 | H143: =IFERROR(IFERROR(VLOOKUP(D143,Surcharge!A:B,2,FALSE)*F143, VLOOKUP(D143 & "",Surcharge!A:B,2,FALSE)*F143), "") -> 
C146: V-WD-24 24-gal. Wet/Dry Vacuum with front mount squeegee | D146: 9019348 | E146: 1882 | G146: =F146*E146 -> 0 | P146: =VLOOKUP(D146,'MPF SAP Canada Pre-Configured'!$C:$E,3,FALSE) -> 1882
C147: 24 gallon gross volume tank capacity/15.59 gallon water volume tank capacity. 100" (2530 mm) waterlift with front mount squeegee. Includes 16-ft. (5 m) vacuum hose, a 40-ft. (12 m) power cord, 2-pc. Aluminum/plastic wand, wand with air flor regulator, cloth filter, paper bag, dust floor tool, wet floor tool, flat lance, round brush and adaptor. Options include: carpet brush tool and upstream HEPA filter. | F147: =SUM(F146) -> 0
F148: =SUM(F147) -> 0
C149: Boxed dimensions: 24L x 19W x 37H (620mm x 495mm x 950mm) | F149: =SUM(F148) -> 0
C150: Shipping Weight: 79 lbs. (35.8 kg) | F150: =SUM(F149) -> 0
H152: =IFERROR(IFERROR(VLOOKUP(D152,Surcharge!A:B,2,FALSE)*F152, VLOOKUP(D152 & "",Surcharge!A:B,2,FALSE)*F152), "") -> 
C153: V-WD-24 24-gal. Wet/Dry Vacuum | D153: 1245656 | E153: 1273 | G153: =F153*E153 -> 0 | H153: =IFERROR(IFERROR(VLOOKUP(D153,Surcharge!A:B,2,FALSE)*F153, VLOOKUP(D153 & "",Surcharge!A:B,2,FALSE)*F153), "") ->  | P153: =VLOOKUP(D153,'MPF SAP Canada Pre-Configured'!$C:$E,3,FALSE) -> 1273
C154: 24 gallon gross volume tank capacity/15.59 gallon water volume tank capacity. 100" (2530 mm) waterlift. Includes 16-ft. (5 m) vacuum hose, a 40-ft. (12 m) power cord, 2-pc. Aluminum/plastic wand, wand with air flor regulator, cloth filter, paper bag, dust floor tool, wet floor tool, flat lance, round brush and adaptor. Options include: front mount squeegee kit, carpet brush tool and upstream HEPA filter. | D154: Squeegee sold as option | F154: =SUM(F153) -> 0 | H154: =IFERROR(IFERROR(VLOOKUP(D154,Surcharge!A:B,2,FALSE)*F154, VLOOKUP(D154 & "",Surcharge!A:B,2,FALSE)*F154), "") -> 
F155: =SUM(F154) -> 0 | H155: =IFERROR(IFERROR(VLOOKUP(D155,Surcharge!A:B,2,FALSE)*F155, VLOOKUP(D155 & "",Surcharge!A:B,2,FALSE)*F155), "") -> 
C156: Boxed dimensions: 24L x 19W x 37H (620mm x 495mm x 950mm) | F156: =SUM(F155) -> 0 | H156: =IFERROR(IFERROR(VLOOKUP(D156,Surcharge!A:B,2,FALSE)*F156, VLOOKUP(D156 & "",Surcharge!A:B,2,FALSE)*F156), "") -> 
C157: Shipping Weight: 59 lbs. (26.8 kg) | F157: =SUM(F156) -> 0 | H157: =IFERROR(IFERROR(VLOOKUP(D157,Surcharge!A:B,2,FALSE)*F157, VLOOKUP(D157 & "",Surcharge!A:B,2,FALSE)*F157), "") -> 
H158: =IFERROR(IFERROR(VLOOKUP(D158,Surcharge!A:B,2,FALSE)*F158, VLOOKUP(D158 & "",Surcharge!A:B,2,FALSE)*F158), "") -> 
C160: V-WD-9 9-gal. Wet/Dry Vacuum | D160: 1244345 | E160: 804 | G160: =F160*E160 -> 0 | H160: =IFERROR(IFERROR(VLOOKUP(D160,Surcharge!A:B,2,FALSE)*F160, VLOOKUP(D160 & "",Surcharge!A:B,2,FALSE)*F160), "") ->  | P160: =VLOOKUP(D160,'MPF SAP Canada Pre-Configured'!$C:$E,3,FALSE) -> 804
C161: 9 gallon gross volume tank capacity/6.6 gallon water volume tank capacity. 100" (2530 mm) waterlift. Includes 8-ft. (2.5 m) vacuum hose, a 28-ft. (8.5 m) power cord, 2-pc. Aluminum/plastic wand, wand with air flor regulator, cloth filter, paper bag, dust floor tool, wet floor tool, flat lance, round brush and adaptor. Options include: carpet brush tool and upstream HEPA filter. | F161: =SUM(F160) -> 0 | H161: =IFERROR(IFERROR(VLOOKUP(D161,Surcharge!A:B,2,FALSE)*F161, VLOOKUP(D161 & "",Surcharge!A:B,2,FALSE)*F161), "") -> 
F162: =SUM(F161) -> 0 | H162: =IFERROR(IFERROR(VLOOKUP(D162,Surcharge!A:B,2,FALSE)*F162, VLOOKUP(D162 & "",Surcharge!A:B,2,FALSE)*F162), "") -> 
C163: Boxed dimensions: 17L x 17W x 32H (420mm x 420mm x 820mm) | F163: =SUM(F162) -> 0 | H163: =IFERROR(IFERROR(VLOOKUP(D163,Surcharge!A:B,2,FALSE)*F163, VLOOKUP(D163 & "",Surcharge!A:B,2,FALSE)*F163), "") -> 
C164: Shipping Weight: 31 lbs. (13.9 kg) | F164: =SUM(F163) -> 0 | H164: =IFERROR(IFERROR(VLOOKUP(D164,Surcharge!A:B,2,FALSE)*F164, VLOOKUP(D164 & "",Surcharge!A:B,2,FALSE)*F164), "") -> 
E167: =ROUND(SUM(G28:G166), 0) -> 0 | F167: =SUM(E168) -> 0
D168: Machine Subtotal | E168: =ROUND(SUM(G28:G166), 0) -> 0 | F168: =F167 -> 0
B169: Discounts | F169: =SUM(F170) -> 0
F170: =SUM(F172:F173) -> 0
D171: Applicable Currency Adj % | F171: =IF(E171 <> "", 1, 0) -> 0 | G171: =IF(F171*(E171*0.01)*E167 < 0, F171*(E171*0.01)*E167, -(F171*(E171*0.01)*E167)) -> 0
D172: Discount % | F172: =IF(E172 <> "", 1, 0) -> 0 | G172: =IF(F172*(E172*0.01)*(E167+G171) < 0, F172*(E172*0.01)*(E167+G171), -(F172*(E172*0.01)*(E167+G171))) -> 0
D173: Discount $ | F173: =IF(E173 <> "", 1, 0) -> 0 | G173: =IF(F173*E173 < 0, F173*E173, -(F173*E173)) -> 0
D174: Discount Total | E174: =SUM(G171:G173) -> 0 | F174: =SUM(E174) -> 0
F175: =#REF! -> 
F176: =F175 -> 
C177: Prepaid and Add | D177: Freight | F177: =IF(E177 <> "", 1, 0) -> 0 | G177: =F177*E177 -> 0
C178: Subject to all applicable taxes | D178: Tax | F178: =IF(E178 <> "", 1, 0) -> 0 | G178: =F178*E178 -> 0
F179: =SUM(F180) -> 0
D180: MACHINE TOTAL* | F180: =SUM(G180) -> 0 | G180: =SUM(G28:G178) -> 0 | N180: This goes to "My Documents"
G181: =SUM(G180) -> 0
C186: First Western Equipment Finance - Leasing Calculation Option: | D186: Option 1 | F186: Option 2 | J186: =Financing!A38 -> Rates 2023 - Rev 10/10/2023
D187: Monthly Payment | E187: Cost Per Day | F187: Monthly Payment | G187: Cost Per Day | J187: =Financing!A39 -> “Blank Payment Amounts Indicate The Financing Option Or Purchase Options Selected Are Not
C188: Purchase Option: | D188: FWEF: $1 Buyout Lease | F188: FWEF: Municipal Lease | J188: =Financing!A40 -> Applicable Or The Machine Total Is Below The Minimum Amount For The Selected Vendor”
C189: 24 Months | D189: FALSE | E189: 0 | F189: FALSE | G189: 0 | J189: =Financing!A41 -> "Quoted monthly payments are estimates only and are based on a certain level of credit rating.
C190: 30 Months | D190: FALSE | E190: 0 | F190: FALSE | G190: 0 | J190: =Financing!A42 -> Actual monthly payments may be higher depending on your credit rating."
C191: 36 Months | D191: FALSE | E191: 0 | F191: FALSE | G191: 0 | J191: =Financing!A43 -> “Financing rates do not include Pre-Paid Service”
C192: 48 Months | D192: 0 | E192: 0 | F192: 0 | G192: 0 | J192: =Financing!A44 -> 0
D194: Benefits of Equipment Financing:
D195: • Spreads out investment over time. | F195: • Keep current with latest technology.
D196: • Preserve capital. | F196: • Service and parts bundling available.
D197: • Low monthly payment. | F197: • Pay for labor savings as you go.
B200: TennantTrue | D200: 0 | E200: 0
C202: Is customer interested in service program? | D202: Yes | E202: *State/County selection required for TennantTrue service options
C204: If not, why?
C206: Term: | D206: 36 | G206: AB Brushes | H206: No
C207: Monthly machine usage (hrs): | D207: < 30/mo. (Avg. 1hr./day)
C209: TennantTrue: | D209: Gold Contract | F209: Silver Contract
C210: Per Visit
C211: Monthly
C212: Annually
C213: Pre-Pay Full Term
C214: Hourly Labor Rate
C215: Site Visit
C217: * Verify customer current pricing prior to quote.
C218: **All rates and fees above reflect service for one (1) unit with the exception of Block of Time service.
C219: *Block of Time is available in 1 Year Term only and is priced as such no matter the term selection on this template.
B223: Quote Special Instructions:
B226: =Start_Here!E36 -> Terms and Conditions
B227: =Start_Here!E37 -> Ask your local sales rep for estimated lead times. Verify when placing order
B228: =Start_Here!E38 -> All orders subject to acceptance by Tennant Sales and Service Company, Minneapolis, Minnesota
B229: =Start_Here!E39 -> Prices subject to change without notice. Subject to any applicable taxes.
B230: =Start_Here!E40 -> Terms: Net 30 days. Payable in Canadian Funds
B231: =Start_Here!E41 -> Freight: Accessories, parts, supplies, detergents, and floor coatings orders delivered DDP
B232: =Start_Here!E42 -> shipping point Frt PPD. Machine orders delivered DDP shipping point Frt PPD and add.
B233: =Start_Here!E43 -> Returned Merchandise is subject to a restocking fee.
B234: =Start_Here!E44 -> All orders are subject to Tennant’s General Terms and Conditions available at http://www.tennantco.com/terms.
B235: =Start_Here!E45 -> Printed General Terms and Conditions are also available upon request.
... 52 more rows

Sheet F_Series_Floor_Machine
A1: F_Series_Floor_Machine | C1: =Start_Here!$C19 -> Company Name
A2: =SUM(G51) -> 0 | C2: =Start_Here!$C20 -> Address
C3: =Start_Here!$C21 -> City, State Zip
C4: =Start_Here!$C22 -> Contact Name
C5: =Start_Here!$C$41 -> Rep Name
C6: =Start_Here!$C$37 -> Tennant Sales and Service Company
C7: =Start_Here!$C$38 -> 10400 Clean Street
C8: =Start_Here!$C$39 -> Eden Prairie, MN 55344
C9: =Start_Here!$C$43 -> 800-553-8033 | E9: Quote Date : | G9: =Letter!$A$25 -> 2020-09-22
C11: =Help!C2 -> CAN Date Rev - 9/30/2024
C13: New Machine Warranty
C14: Model FM-17SS, FM-20SS, FM20DS
C15: 36 MONTHS PARTS
C16: 36 MONTHS – LABOR | G16: Fax (quote only)
C17: NO TRAVEL | G17: Mail (quote,lit, specs)
C18: 10 YEARS ON ROTOMOLDED PLASTIC PARTS | G18: Fax + Mail
E20: Primary Use
G21: Inside
G22: Outside
C24: Description | D24: Reference # | E24: Canada Price Each | F24: Qty | G24: Extended Price
H25: =IFERROR(IFERROR(VLOOKUP(D25,Surcharge!A:B,2,FALSE)*F25, VLOOKUP(D25 & "",Surcharge!A:B,2,FALSE)*F25), "") -> 
C26: FM-20-SS - 20" Heavy Duty 20" (508mm) Floor Machine | D26: 9007336 | E26: 2388 | G26: =F26*E26 -> 0 | H26: =IFERROR(IFERROR(VLOOKUP(D26,Surcharge!A:B,2,FALSE)*F26, VLOOKUP(D26 & "",Surcharge!A:B,2,FALSE)*F26), "") ->  | P26: =VLOOKUP(D26,'MPF SAP Canada Pre-Configured'!$C:$E,3,FALSE) -> 2388
C27: 175 rpm (1.50 hp). Includes pad driver. CSA US/C* | F27: =SUM(F26) -> 0 | H27: =IFERROR(IFERROR(VLOOKUP(D27,Surcharge!A:B,2,FALSE)*F27, VLOOKUP(D27 & "",Surcharge!A:B,2,FALSE)*F27), "") -> 
C28: Boxed dimensions: 25L x 22W x 51H (635mm x 559mm x 1295mm) | F28: =SUM(F27) -> 0 | H28: =IFERROR(IFERROR(VLOOKUP(D28,Surcharge!A:B,2,FALSE)*F28, VLOOKUP(D28 & "",Surcharge!A:B,2,FALSE)*F28), "") -> 
C29: Shipping Weight: Unit 110 lbs. (50 kg) / Cu. Ft.: 16.25 (Cu. M .46) | F29: =SUM(F28) -> 0 | H29: =IFERROR(IFERROR(VLOOKUP(D29,Surcharge!A:B,2,FALSE)*F29, VLOOKUP(D29 & "",Surcharge!A:B,2,FALSE)*F29), "") -> 
H30: =IFERROR(IFERROR(VLOOKUP(D30,Surcharge!A:B,2,FALSE)*F30, VLOOKUP(D30 & "",Surcharge!A:B,2,FALSE)*F30), "") -> 
H31: =IFERROR(IFERROR(VLOOKUP(D31,Surcharge!A:B,2,FALSE)*F31, VLOOKUP(D31 & "",Surcharge!A:B,2,FALSE)*F31), "") -> 
C32: FM-20-DS - 20" Heavy Duty Dual Speed 20" (508mm) Floor Machine | D32: 9007334 | E32: 3712 | G32: =F32*E32 -> 0 | H32: =IFERROR(IFERROR(VLOOKUP(D32,Surcharge!A:B,2,FALSE)*F32, VLOOKUP(D32 & "",Surcharge!A:B,2,FALSE)*F32), "") ->  | P32: =VLOOKUP(D32,'MPF SAP Canada Pre-Configured'!$C:$E,3,FALSE) -> 3712
C33: 185/330 rpm (1.5 hp). Includes pad driver. CSA US/C* | F33: =SUM(F32) -> 0 | H33: =IFERROR(IFERROR(VLOOKUP(D33,Surcharge!A:B,2,FALSE)*F33, VLOOKUP(D33 & "",Surcharge!A:B,2,FALSE)*F33), "") -> 
C34: Boxed dimensions: 25L x 22W x 51H (635mm x 559mm x 1295mm) | F34: =SUM(F33) -> 0 | H34: =IFERROR(IFERROR(VLOOKUP(D34,Surcharge!A:B,2,FALSE)*F34, VLOOKUP(D34 & "",Surcharge!A:B,2,FALSE)*F34), "") -> 
C35: Shipping Weight: Unit 96 lbs. (44 kg) / Cu. Ft.: 16.25 (Cu. M .46) | F35: =SUM(F34) -> 0 | H35: =IFERROR(IFERROR(VLOOKUP(D35,Surcharge!A:B,2,FALSE)*F35, VLOOKUP(D35 & "",Surcharge!A:B,2,FALSE)*F35), "") -> 
H36: =IFERROR(IFERROR(VLOOKUP(D36,Surcharge!A:B,2,FALSE)*F36, VLOOKUP(D36 & "",Surcharge!A:B,2,FALSE)*F36), "") -> 
E38: =ROUND(SUM(G25:G37), 0) -> 0 | F38: =SUM(E39) -> 0
D39: Machine Subtotal | E39: =ROUND(SUM(G25:G37), 0) -> 0 | F39: =F38 -> 0
B40: Discounts | F40: =SUM(F41) -> 0
F41: =SUM(F43:F44) -> 0
D42: Applicable Currency Adj % | F42: =IF(E42 <> "", 1, 0) -> 0 | G42: =IF(F42*(E42*0.01)*E38 < 0, F42*(E42*0.01)*E38, -(F42*(E42*0.01)*E38)) -> 0
D43: Discount % | F43: =IF(E43 <> "", 1, 0) -> 0 | G43: =IF(F43*(E43*0.01)*(E38+G42) < 0, F43*(E43*0.01)*(E38+G42), -(F43*(E43*0.01)*(E38+G42))) -> 0
D44: Discount $ | F44: =IF(E44 <> "", 1, 0) -> 0 | G44: =IF(F44*E44 < 0, F44*E44, -(F44*E44)) -> 0
D45: Discount Total | E45: =SUM(G42:G44) -> 0 | F45: =SUM(E45) -> 0
F46: =#REF! -> 
F47: =F46 -> 
C48: Prepaid and Add | D48: Freight | F48: =IF(E48 <> "", 1, 0) -> 0 | G48: =F48*E48 -> 0
C49: Subject to all applicable taxes | D49: Tax | F49: =IF(E49 <> "", 1, 0) -> 0 | G49: =F49*E49 -> 0
F50: =SUM(F51) -> 0
D51: MACHINE TOTAL* | F51: =SUM(G51) -> 0 | G51: =SUM(G25:G49) -> 0 | N51: This goes to "My Documents"
C57: First Western Equipment Finance - Leasing Calculation Option: | D57: Option 1 | F57: Option 2 | J57: =Financing!A38 -> Rates 2023 - Rev 10/10/2023
D58: Monthly Payment | E58: Cost Per Day | F58: Monthly Payment | G58: Cost Per Day | J58: =Financing!A39 -> “Blank Payment Amounts Indicate The Financing Option Or Purchase Options Selected Are Not
C59: Purchase Option: | D59: FWEF: $1 Buyout Lease | F59: FWEF: Municipal Lease | J59: =Financing!A40 -> Applicable Or The Machine Total Is Below The Minimum Amount For The Selected Vendor”
C60: 24 Months | D60: FALSE | E60: 0 | F60: FALSE | G60: 0 | J60: =Financing!A41 -> "Quoted monthly payments are estimates only and are based on a certain level of credit rating.
C61: 30 Months | D61: FALSE | E61: 0 | F61: FALSE | G61: 0 | J61: =Financing!A42 -> Actual monthly payments may be higher depending on your credit rating."
C62: 36 Months | D62: FALSE | E62: 0 | F62: FALSE | G62: 0 | J62: =Financing!A43 -> “Financing rates do not include Pre-Paid Service”
C63: 48 Months | D63: 0 | E63: 0 | F63: 0 | G63: 0 | J63: =Financing!A44 -> 0
D65: Benefits of Equipment Financing:
D66: • Spreads out investment over time. | F66: • Keep current with latest technology.
D67: • Preserve capital. | F67: • Service and parts bundling available.
D68: • Low monthly payment. | F68: • Pay for labor savings as you go.
B71: TennantTrue | D71: 0 | E71: 0
C73: Is customer interested in service program? | D73: Yes | E73: *State/County selection required for TennantTrue service options
C75: If not, why?
C77: Term: | D77: 36 | G77: AB Brushes | H77: No
C78: Monthly machine usage (hrs): | D78: < 30/mo. (Avg. 1hr./day)
C80: TennantTrue: | D80: Gold Contract | F80: Silver Contract
C81: Per Visit
C82: Monthly
C83: Annually
C84: Pre-Pay Full Term
C85: Hourly Labor Rate
C86: Site Visit
C88: * Verify customer current pricing prior to quote.
C89: **All rates and fees above reflect service for one (1) unit with the exception of Block of Time service.
C90: *Block of Time is available in 1 Year Term only and is priced as such no matter the term selection on this template.
B94: Quote Special Instructions:
B97: =Start_Here!E36 -> Terms and Conditions
B98: =Start_Here!E37 -> Ask your local sales rep for estimated lead times. Verify when placing order
B99: =Start_Here!E38 -> All orders subject to acceptance by Tennant Sales and Service Company, Minneapolis, Minnesota
B100: =Start_Here!E39 -> Prices subject to change without notice. Subject to any applicable taxes.
B101: =Start_Here!E40 -> Terms: Net 30 days. Payable in Canadian Funds
B102: =Start_Here!E41 -> Freight: Accessories, parts, supplies, detergents, and floor coatings orders delivered DDP
B103: =Start_Here!E42 -> shipping point Frt PPD. Machine orders delivered DDP shipping point Frt PPD and add.
B104: =Start_Here!E43 -> Returned Merchandise is subject to a restocking fee.
B105: =Start_Here!E44 -> All orders are subject to Tennant’s General Terms and Conditions available at http://www.tennantco.com/terms.
B106: =Start_Here!E45 -> Printed General Terms and Conditions are also available upon request.
B107: =Start_Here!E46 -> 0
E109: Quote Date : | G109: =Letter!$A$25 -> 2020-09-22
B110: Order Placement Information: To place your order, fill in PO# and customer signatures,
B111: call or fax to the numbers listed below. Customer Purchase Order is required.
B112: If information is missing, orders will be entered and held until all information is received.
C113: Customer Number | E113: Cust Grp 3
C114: =Start_Here!$C$25 -> 0 | E114: =Start_Here!$C$29 -> 0
C115: =Start_Here!$B$18 -> Who Owns the Machine? (Sold-To Info) (Please Verify)
A116: Company | C116: =Start_Here!$C$19 -> Company Name
A117: Address | C117: =Start_Here!$C$20 -> Address
C118: =Start_Here!$C$21 -> City, State Zip
A119: Name | C119: =Start_Here!$C$22 -> Contact Name
A120: Phone | C120: =Start_Here!$C$23 -> Contact Phone
C121: =Start_Here!$B$11 -> Where is the Machine Being Shipped? (Ship-To Info) (Please Verify)
A122: Company | C122: =Start_Here!$C$12 -> Company Name
A123: Address | C123: =Start_Here!$C$13 -> Address
C124: =Start_Here!$C$14 -> City, State Zip
A125: Name | C125: =Start_Here!$C$15 -> Contact Name
A126: Phone | C126: =Start_Here!$C$16 -> Contact Phone
C127: =Start_Here!$B$31 -> Shipping / Carrier Instructions: | E127: Order Special Instructions:
C128: =Start_Here!$C$32 -> 0
C130: Customer Purchase Order No.
C131: (please attach copy)
C134: Tax Exempt | E134: Yes
E135: No
C136: If Yes, attach a copy of your exemption certificate.
C138: Requested Delivery Date
C139: =Start_Here!$C$28 -> 0
C141: =Start_Here!$C$26 -> 0 | E141: =Start_Here!$C$27 -> 0
C142: Authorized Buyer (please print) | E142: Phone Number
C145: Authorized Buyer Signature
C147: =Start_Here!$C$41 -> Rep Name
C148: Tennant Representative
A150: Specialized Maintenance Equipment
A151: =Start_Here!$C$48 -> TENNANT · 10400 Clean Street · Eden Prairie, MN 55344 ·
A152: =Start_Here!$C$49 -> PHONE:800-553-8033 · FAX:763-513-2116
B154: Notes
B156: 1 | C156: When pad/brush assist unit is chosen, only mechanical Set and Forget™ downpressure is available.
C157: Automatic Down Pressure can only be deducted from the self-propelled unit.
B159: 2 | C159: 225AH Battery is standard on units with the Self Propel Drive Type.
C160: When Self Propel is selected, this battery will be added at No Charge.
B162: 3 | C162: Factory installed pricing. Only available on wet batteries, not sealed.
B164: 4 | C164: Not available with Active Dust Control. Only Available with Passive Dust Control.
B166: 5 | C166: A French and English manual will be supplied for all units shipping into Quebec, Canada at no charge. An additional manual
C167: can be ordered (for a total of 3 manuals) for an additional charge as stated under 'Additional Operator Manual'.
B169: 6 | C169: Skid w/Carton, Stackable is the default packaging method and will be added to the configuration unless otherwise specified.
B171: 7 | C171: Shipping Weights and Dimensions | E171: Skid w/Carton
C173: Weight - Pad Drive w/185AH Battery | E173: 587 lbs / 267 Kg
C174: Weight - Self Propel w/225AH Battery | E174: 652 lbs / 296 Kg
C175: Length | E175: 60" / 1524 mm
C176: Width | E176: 31" / 788 mm
C177: Height | E177: 50" / 1270 mm

Sheet Burnishers
A1: Burnishers | C1: =Start_Here!$C19 -> Company Name
A2: =SUM(G42) -> 0 | C2: =Start_Here!$C20 -> Address
C3: =Start_Here!$C21 -> City, State Zip
C4: =Start_Here!$C22 -> Contact Name
C5: =Start_Here!$C$41 -> Rep Name
C6: =Start_Here!$C$37 -> Tennant Sales and Service Company
C7: =Start_Here!$C$38 -> 10400 Clean Street
C8: =Start_Here!$C$39 -> Eden Prairie, MN 55344
C9: =Start_Here!$C$43 -> 800-553-8033 | E9: Quote Date : | G9: =Letter!$A$25 -> 2020-09-22
C11: =Help!C2 -> CAN Date Rev - 9/30/2024
C13: New Machine Warranty | G13: Fax (quote only)
C14: 36 MONTHS or 2500 HOURS ON PARTS | G14: Mail (quote,lit, specs)
C15: 36 MONTHS – LABOR | G15: Fax + Mail
C16: 90 DAYS - TRAVEL ON BATTERY UNITS ONLY
C17: 10 YEARS ON ROTOMOLDED PLASTIC PARTS | E17: Primary Use
G18: Inside
G19: Outside
C21: Description | D21: Reference # | E21: Canada Price Each | F21: Qty | G21: Extended Price
F22: *
C23: BR-2000-DC Dust Control Burnisher* - 2000 rpm 20" (508mm) | D23: 9007349 | E23: 5166 | G23: =F23*E23 -> 0 | H23: =IFERROR(IFERROR(VLOOKUP(D23,Surcharge!A:B,2,FALSE)*F23, VLOOKUP(D23 & "",Surcharge!A:B,2,FALSE)*F23), "") ->  | L23: =SUM(F23) -> 0 | M23: Surcharge Qty | P23: =VLOOKUP(D23,'MPF SAP Canada Pre-Configured'!$C:$E,3,FALSE) -> 5166
C24: Complete package includes flexible pad driver, 75-ft. (23m) power cord, cloth filter bag and 1-pad. CSA US/C* | F24: =SUM(F23) -> 0 | H24: =IFERROR(IFERROR(VLOOKUP(D24,Surcharge!A:B,2,FALSE)*F24, VLOOKUP(D24 & "",Surcharge!A:B,2,FALSE)*F24), "") -> 
C25: Boxed dimensions: 34L x 27W x 51H (864mm x 686mm x 1295mm) | F25: =SUM(F24) -> 0 | H25: =IFERROR(IFERROR(VLOOKUP(D25,Surcharge!A:B,2,FALSE)*F25, VLOOKUP(D25 & "",Surcharge!A:B,2,FALSE)*F25), "") -> 
C26: Shipping Weight: 93 lbs. (42 kg) / Cu. Ft.: 27.09 (Cu. M. .76) | F26: =SUM(F25) -> 0 | H26: =IFERROR(IFERROR(VLOOKUP(D26,Surcharge!A:B,2,FALSE)*F26, VLOOKUP(D26 & "",Surcharge!A:B,2,FALSE)*F26), "") -> 
H27: =IFERROR(IFERROR(VLOOKUP(D27,Surcharge!A:B,2,FALSE)*F27, VLOOKUP(D27 & "",Surcharge!A:B,2,FALSE)*F27), "") -> 
E29: =ROUND(SUM(G23:G28), 0) -> 0 | F29: =SUM(E30) -> 0
D30: Machine Subtotal | E30: =ROUND(SUM(G23:G28), 0) -> 0 | F30: =F29 -> 0
B31: Discounts | F31: =SUM(F32) -> 0
F32: =SUM(F34:F35) -> 0
D33: Applicable Currency Adj % | F33: =IF(E33 <> "", 1, 0) -> 0 | G33: =IF(F33*(E33*0.01)*E29 < 0, F33*(E33*0.01)*E29, -(F33*(E33*0.01)*E29)) -> 0
D34: Discount % | F34: =IF(E34 <> "", 1, 0) -> 0 | G34: =IF(F34*(E34*0.01)*(E29+G33) < 0, F34*(E34*0.01)*(E29+G33), -(F34*(E34*0.01)*(E29+G33))) -> 0
D35: Discount $ | F35: =IF(E35 <> "", 1, 0) -> 0 | G35: =IF(F35*E35 < 0, F35*E35, -(F35*E35)) -> 0
D36: Discount Total | E36: =SUM(G33:G35) -> 0 | F36: =SUM(E36) -> 0
F37: =#REF! -> 
F38: =F37 -> 
C39: Prepaid and Add | D39: Freight | F39: =IF(E39 <> "", 1, 0) -> 0 | G39: =F39*E39 -> 0
C40: Subject to all applicable taxes | D40: Tax | F40: =IF(E40 <> "", 1, 0) -> 0 | G40: =F40*E40 -> 0
F41: =SUM(F42) -> 0
D42: MACHINE TOTAL* | F42: =SUM(G42) -> 0 | G42: =SUM(G23:G40) -> 0 | N42: This goes to "My Documents"
G43: =SUM(G42) -> 0
C48: First Western Equipment Finance - Leasing Calculation Option: | D48: Option 1 | F48: Option 2 | J48: =Financing!A38 -> Rates 2023 - Rev 10/10/2023
D49: Monthly Payment | E49: Cost Per Day | F49: Monthly Payment | G49: Cost Per Day | J49: =Financing!A39 -> “Blank Payment Amounts Indicate The Financing Option Or Purchase Options Selected Are Not
C50: Purchase Option: | D50: FWEF: $1 Buyout Lease | F50: FWEF: Municipal Lease | J50: =Financing!A40 -> Applicable Or The Machine Total Is Below The Minimum Amount For The Selected Vendor”
C51: 24 Months | D51: FALSE | E51: 0 | F51: FALSE | G51: 0 | J51: =Financing!A41 -> "Quoted monthly payments are estimates only and are based on a certain level of credit rating.
C52: 30 Months | D52: FALSE | E52: 0 | F52: FALSE | G52: 0 | J52: =Financing!A42 -> Actual monthly payments may be higher depending on your credit rating."
C53: 36 Months | D53: FALSE | E53: 0 | F53: FALSE | G53: 0 | J53: =Financing!A43 -> “Financing rates do not include Pre-Paid Service”
C54: 48 Months | D54: 0 | E54: 0 | F54: 0 | G54: 0 | J54: =Financing!A44 -> 0
D56: Benefits of Equipment Financing:
D57: • Spreads out investment over time. | F57: • Keep current with latest technology.
D58: • Preserve capital. | F58: • Service and parts bundling available.
D59: • Low monthly payment. | F59: • Pay for labor savings as you go.
B62: TennantTrue | D62: 0 | E62: 0
C64: Is customer interested in service program? | D64: Yes | E64: *State/County selection required for TennantTrue service options
C66: If not, why?
C68: Term: | D68: 36 | G68: AB Brushes | H68: No
C69: Monthly machine usage (hrs): | D69: < 30/mo. (Avg. 1hr./day)
C71: TennantTrue: | D71: Gold Contract | F71: Silver Contract
C72: Per Visit
C73: Monthly
C74: Annually
C75: Pre-Pay Full Term
C76: Hourly Labor Rate
C77: Site Visit
C79: * Verify customer current pricing prior to quote.
C80: **All rates and fees above reflect service for one (1) unit with the exception of Block of Time service.
C81: *Block of Time is available in 1 Year Term only and is priced as such no matter the term selection on this template.
B85: Quote Special Instructions:
B88: =Start_Here!E36 -> Terms and Conditions
B89: =Start_Here!E37 -> Ask your local sales rep for estimated lead times. Verify when placing order
B90: =Start_Here!E38 -> All orders subject to acceptance by Tennant Sales and Service Company, Minneapolis, Minnesota
B91: =Start_Here!E39 -> Prices subject to change without notice. Subject to any applicable taxes.
B92: =Start_Here!E40 -> Terms: Net 30 days. Payable in Canadian Funds
B93: =Start_Here!E41 -> Freight: Accessories, parts, supplies, detergents, and floor coatings orders delivered DDP
B94: =Start_Here!E42 -> shipping point Frt PPD. Machine orders delivered DDP shipping point Frt PPD and add.
B95: =Start_Here!E43 -> Returned Merchandise is subject to a restocking fee.
B96: =Start_Here!E44 -> All orders are subject to Tennant’s General Terms and Conditions available at http://www.tennantco.com/terms.
B97: =Start_Here!E45 -> Printed General Terms and Conditions are also available upon request.
B98: =Start_Here!E46 -> 0
E100: Quote Date : | G100: =Letter!$A$25 -> 2020-09-22
B101: Order Placement Information: To place your order, fill in PO# and customer signatures,
B102: call or fax to the numbers listed below. Customer Purchase Order is required.
B103: If information is missing, orders will be entered and held until all information is received.
C104: Customer Number | E104: Cust Grp 3
C105: =Start_Here!$C$25 -> 0 | E105: =Start_Here!$C$29 -> 0
C106: =Start_Here!$B$18 -> Who Owns the Machine? (Sold-To Info) (Please Verify)
A107: Company | C107: =Start_Here!$C$19 -> Company Name
A108: Address | C108: =Start_Here!$C$20 -> Address
C109: =Start_Here!$C$21 -> City, State Zip
A110: Name | C110: =Start_Here!$C$22 -> Contact Name
A111: Phone | C111: =Start_Here!$C$23 -> Contact Phone
C112: =Start_Here!$B$11 -> Where is the Machine Being Shipped? (Ship-To Info) (Please Verify)
A113: Company | C113: =Start_Here!$C$12 -> Company Name
A114: Address | C114: =Start_Here!$C$13 -> Address
C115: =Start_Here!$C$14 -> City, State Zip
A116: Name | C116: =Start_Here!$C$15 -> Contact Name
A117: Phone | C117: =Start_Here!$C$16 -> Contact Phone
C118: =Start_Here!$B$31 -> Shipping / Carrier Instructions: | E118: Order Special Instructions:
C119: =Start_Here!$C$32 -> 0
C121: Customer Purchase Order No.
C122: (please attach copy)
C125: Tax Exempt | E125: Yes
E126: No
C127: If Yes, attach a copy of your exemption certificate.
C129: Requested Delivery Date
C130: =Start_Here!$C$28 -> 0
C132: =Start_Here!$C$26 -> 0 | E132: =Start_Here!$C$27 -> 0
C133: Authorized Buyer (please print) | E133: Phone Number
C136: Authorized Buyer Signature
C138: =Start_Here!$C$41 -> Rep Name
C139: Tennant Representative
A141: Specialized Maintenance Equipment
A142: =Start_Here!$C$48 -> TENNANT · 10400 Clean Street · Eden Prairie, MN 55344 ·
A143: =Start_Here!$C$49 -> PHONE:800-553-8033 · FAX:763-513-2116
B145: Notes
B147: 1 | C147: When pad/brush assist unit is chosen, only mechanical Set and Forget™ downpressure is available.
C148: Automatic Down Pressure can only be deducted from the self-propelled unit.
B150: 2 | C150: 225AH Battery is standard on units with the Self Propel Drive Type.
C151: When Self Propel is selected, this battery will be added at No Charge.
B153: 3 | C153: Factory installed pricing. Only available on wet batteries, not sealed.
B155: 4 | C155: Not available with Active Dust Control. Only Available with Passive Dust Control.
B157: 5 | C157: A French and English manual will be supplied for all units shipping into Quebec, Canada at no charge. An additional manual
C158: can be ordered (for a total of 3 manuals) for an additional charge as stated under 'Additional Operator Manual'.
B160: 6 | C160: Skid w/Carton, Stackable is the default packaging method and will be added to the configuration unless otherwise specified.
B162: 7 | C162: Shipping Weights and Dimensions | E162: Skid w/Carton
C164: Weight - Pad Drive w/185AH Battery | E164: 587 lbs / 267 Kg
C165: Weight - Self Propel w/225AH Battery | E165: 652 lbs / 296 Kg
C166: Length | E166: 60" / 1524 mm
C167: Width | E167: 31" / 788 mm
C168: Height | E168: 50" / 1270 mm

Sheet B5
A1: B5 | C1: =Start_Here!$C19 -> Company Name
A2: =SUM(G101) -> 0 | C2: =Start_Here!$C20 -> Address
C3: =Start_Here!$C21 -> City, State Zip
C4: =Start_Here!$C22 -> Contact Name
C5: =Start_Here!$C$41 -> Rep Name
C6: =Start_Here!$C$37 -> Tennant Sales and Service Company
C7: =Start_Here!$C$38 -> 10400 Clean Street
C8: =Start_Here!$C$39 -> Eden Prairie, MN 55344
C9: =Start_Here!$C$43 -> 800-553-8033 | E9: Quote Date : | G9: =Letter!$A$25 -> 2020-09-22
C11: =Help!C2 -> CAN Date Rev - 9/30/2024
C13: BUILT-IN “TENNANT VALUE” INCLUDES:
B15: 510mm/20" Burnishing Path | D15: On Board Charger
B16: Push or Self-Propelled Available | D16: 3m/15 ft power cord
B17: Active Dust Control | D17: Standard (3) 12V 185 AH Battery Pack for Pad/Brush Assist
B18: HEPA Filtration - 99.97 @ .3 microns | D18: Standard (3) 12V 225 AH Battery Pack for Self-Propelled Unit
B19: Tooless Felt Dust skirt | D19: Battery Tray
B20: Pad RPM - 2100 | D20: Variable Bail
B21: Automated Down Pressure - Variable (Self-Propelled unit only) | D21: On-Board Trouble Shooting Guide
B22: True Free Floating Head | D22: ETL Listed for the US and Canada
B23: Rugged DuramerTM Tank Construction | D23: 64 dBa
B24: Two-Way Gas Assist Shock for Tank Open/Close | D24: Emergency Stop
B25: Anti-Static Straps | D25: Key Switch
B26: Clamshell Tank Design | D26: Hour Meter
B27: Unit shipped with 1 burnishing pad, paper bag and HEPA filter | D27: Operators manual
D28: Jacking Points/Shipping Tie Downs
C30: TENNANT COMPANY WARRANTY
C31: 3 YEARS OR 2000 HOURS PARTS
C32: 1 YEAR - BATTERY CHARGERS
C33: 2 YEARS - LABOR
C34: 6 MONTHS - TRAVEL
C35: 10 YEARS ON DURAMERTM TANKS
G36: Fax (quote only)
G37: Mail (quote,lit, specs)
G38: Fax + Mail
E40: Primary Use
G41: Inside
G42: Outside
C44: Description | D44: Reference # | E44: Price Each | F44: Qty | G44: Extended Price
B45: Base Configuration | E45: CANADA | F45: =SUM(F46,F49,F53,F60,F63) -> 0
C46: Cleaning Type | F46: =SUM(F47) -> 0 | L46: =SUM(F46) -> 0 | M46: Surcharge Qty
C47: B5 Walk-Behind Battery Burnisher 510 mm/20" | D47: B5-510 | E47: 15366 | G47: =F47*E47 -> 0 | H47: =IFERROR(IFERROR(VLOOKUP(D47,Surcharge!A:B,2,FALSE)*F47, VLOOKUP(D47 & "",Surcharge!A:B,2,FALSE)*F47), "") ->  | P47: =VLOOKUP(Q47,'MPF SAP Download Canada'!$A:$D,4,FALSE) -> 15366 | Q47: M-B5VK_BASE_B5-510
H48: =IFERROR(IFERROR(VLOOKUP(D48,Surcharge!A:B,2,FALSE)*F48, VLOOKUP(D48 & "",Surcharge!A:B,2,FALSE)*F48), "") -> 
C49: Drive Type (Note 1) | F49: =SUM(F50:F51) -> 0 | H49: =IFERROR(IFERROR(VLOOKUP(D49,Surcharge!A:B,2,FALSE)*F49, VLOOKUP(D49 & "",Surcharge!A:B,2,FALSE)*F49), "") -> 
C50: Pad Assist | D50: Pad-B5 | E50: N/C | G50: =IF(F50=0," ","N/C") ->  | H50: =IFERROR(IFERROR(VLOOKUP(D50,Surcharge!A:B,2,FALSE)*F50, VLOOKUP(D50 & "",Surcharge!A:B,2,FALSE)*F50), "") ->  | P50: =VLOOKUP(Q50,'MPF SAP Download Canada'!$A:$D,4,FALSE) -> N/C | Q50: M-B5VK_CLNDRT_PBA
C51: Self Propel | D51: Self-B5 | E51: 4240 | G51: =F51*E51 -> 0 | H51: =IFERROR(IFERROR(VLOOKUP(D51,Surcharge!A:B,2,FALSE)*F51, VLOOKUP(D51 & "",Surcharge!A:B,2,FALSE)*F51), "") ->  | P51: =VLOOKUP(Q51,'MPF SAP Download Canada'!$A:$D,4,FALSE) -> 4240 | Q51: M-B5VK_CLNDRT_SP
H52: =IFERROR(IFERROR(VLOOKUP(D52,Surcharge!A:B,2,FALSE)*F52, VLOOKUP(D52 & "",Surcharge!A:B,2,FALSE)*F52), "") -> 
C53: Battery Type | F53: =SUM(F54:F58) -> 0 | H53: =IFERROR(IFERROR(VLOOKUP(D53,Surcharge!A:B,2,FALSE)*F53, VLOOKUP(D53 & "",Surcharge!A:B,2,FALSE)*F53), "") -> 
C54: Wet 185AH C/20 (Kit of 3 batteries) | D54: 9012670 | E54: N/C | G54: =IF(F54=0," ","N/C") ->  | H54: =IFERROR(IFERROR(VLOOKUP(D54,Surcharge!A:B,2,FALSE)*F54, VLOOKUP(D54 & "",Surcharge!A:B,2,FALSE)*F54), "") ->  | P54: =VLOOKUP(Q54,'MPF SAP Download Canada'!$A:$D,4,FALSE) -> N/C | Q54: M-B5VK_BTY_W185C20
C55: Wet 225AH C/20 (Kit of 3 batteries) (Note 2) | D55: 9012671 | E55: 578 | G55: =F55*E55 -> 0 | H55: =IFERROR(IFERROR(VLOOKUP(D55,Surcharge!A:B,2,FALSE)*F55, VLOOKUP(D55 & "",Surcharge!A:B,2,FALSE)*F55), "") ->  | P55: =VLOOKUP(Q55,'MPF SAP Download Canada'!$A:$D,4,FALSE) -> 578 | Q55: M-B5VK_BTY_W225C20
C56: Sealed/MF AGM 234AH C/20 (Kit of 3 batteries) | D56: 9012672 | E56: 3703 | G56: =F56*E56 -> 0 | H56: =IFERROR(IFERROR(VLOOKUP(D56,Surcharge!A:B,2,FALSE)*F56, VLOOKUP(D56 & "",Surcharge!A:B,2,FALSE)*F56), "") ->  | P56: =VLOOKUP(Q56,'MPF SAP Download Canada'!$A:$D,4,FALSE) -> 3703 | Q56: M-B5VK_BTY_A234C20
H57: =IFERROR(IFERROR(VLOOKUP(D57,Surcharge!A:B,2,FALSE)*F57, VLOOKUP(D57 & "",Surcharge!A:B,2,FALSE)*F57), "") -> 
C58: Manual Battery Watering Kit (Note 3) | D58: 9009620 | E58: 1115 | G58: =F58*E58 -> 0 | H58: =IFERROR(IFERROR(VLOOKUP(D58,Surcharge!A:B,2,FALSE)*F58, VLOOKUP(D58 & "",Surcharge!A:B,2,FALSE)*F58), "") ->  | P58: =VLOOKUP(Q58,'MPF SAP Download Canada'!$A:$D,4,FALSE) -> 1115 | Q58: M-B5VK_BTYWTRSYS
H59: =IFERROR(IFERROR(VLOOKUP(D59,Surcharge!A:B,2,FALSE)*F59, VLOOKUP(D59 & "",Surcharge!A:B,2,FALSE)*F59), "") -> 
C60: Charger | D60: Reference Number | F60: =F63 -> 0 | H60: =IFERROR(IFERROR(VLOOKUP(D60,Surcharge!A:B,2,FALSE)*F60, VLOOKUP(D60 & "",Surcharge!A:B,2,FALSE)*F60), "") -> 
C61: 25A 85-265V AC 50/60Hz 1Ph On-Board for 185AH and 225AH | D61: 9012668 | E61: N/C | G61: =IF(F61=0," ","N/C") ->  | H61: =IFERROR(IFERROR(VLOOKUP(D61,Surcharge!A:B,2,FALSE)*F61, VLOOKUP(D61 & "",Surcharge!A:B,2,FALSE)*F61), "") ->  | P61: =VLOOKUP(Q61,'MPF SAP Download Canada'!$A:$D,4,FALSE) -> N/C | Q61: M-B5VK_CHG_25A85V5060H1P_ON
H62: =IFERROR(IFERROR(VLOOKUP(D62,Surcharge!A:B,2,FALSE)*F62, VLOOKUP(D62 & "",Surcharge!A:B,2,FALSE)*F62), "") -> 
C63: Down Pressure | F63: =SUM(F64:F65) -> 0 | H63: =IFERROR(IFERROR(VLOOKUP(D63,Surcharge!A:B,2,FALSE)*F63, VLOOKUP(D63 & "",Surcharge!A:B,2,FALSE)*F63), "") -> 
C64: Automated Down Pressure | D64: 9012641 | E64: N/C | G64: =IF(F64=0," ","N/C") ->  | H64: =IFERROR(IFERROR(VLOOKUP(D64,Surcharge!A:B,2,FALSE)*F64, VLOOKUP(D64 & "",Surcharge!A:B,2,FALSE)*F64), "") ->  | P64: =VLOOKUP(Q64,'MPF SAP Download Canada'!$A:$D,4,FALSE) -> N/C | Q64: M-B5VK_DWNPRS_MEC_NC
C65: Mechanical Set and Forget TM Down Pressure (Note 1) | D65: 9012640 | E65: -658 | G65: =F65*E65 -> 0 | H65: =IFERROR(IFERROR(VLOOKUP(D65,Surcharge!A:B,2,FALSE)*F65, VLOOKUP(D65 & "",Surcharge!A:B,2,FALSE)*F65), "") ->  | P65: =VLOOKUP(Q65,'MPF SAP Download Canada'!$A:$D,4,FALSE) -> -658 | Q65: M-B5VK_DWNPRS_MEC
H66: =IFERROR(IFERROR(VLOOKUP(D66,Surcharge!A:B,2,FALSE)*F66, VLOOKUP(D66 & "",Surcharge!A:B,2,FALSE)*F66), "") -> 
B67: Cleaning Performance | D67: Reference Number | F67: =SUM(F68:F70) -> 0 | H67: =IFERROR(IFERROR(VLOOKUP(D67,Surcharge!A:B,2,FALSE)*F67, VLOOKUP(D67 & "",Surcharge!A:B,2,FALSE)*F67), "") -> 
C68: Dust Control System, Active - HEPA Filtration to 99.97% @ .3 microns | D68: 9012651 | E68: N/C | G68: =IF(F68=0," ","N/C") ->  | H68: =IFERROR(IFERROR(VLOOKUP(D68,Surcharge!A:B,2,FALSE)*F68, VLOOKUP(D68 & "",Surcharge!A:B,2,FALSE)*F68), "") ->  | P68: =VLOOKUP(Q68,'MPF SAP Download Canada'!$A:$D,4,FALSE) -> N/C | Q68: M-B5VK_DSTCTLSYS_ACT
C69: Dust Control System, Passive - 95% @ .3 microns | D69: PASSIVE | E69: -580 | G69: =F69*E69 -> 0 | H69: =IFERROR(IFERROR(VLOOKUP(D69,Surcharge!A:B,2,FALSE)*F69, VLOOKUP(D69 & "",Surcharge!A:B,2,FALSE)*F69), "") ->  | P69: =VLOOKUP(Q69,'MPF SAP Download Canada'!$A:$D,4,FALSE) -> -580 | Q69: M-B5VK_DSTCTLSYS_PAS
C70: Dust Control Filter, Paper Filter Bag | D70: 1210869 | E70: N/C | G70: =IF(F70=0," ","N/C") ->  | H70: =IFERROR(IFERROR(VLOOKUP(D70,Surcharge!A:B,2,FALSE)*F70, VLOOKUP(D70 & "",Surcharge!A:B,2,FALSE)*F70), "") ->  | P70: =VLOOKUP(Q70,'MPF SAP Download Canada'!$A:$D,4,FALSE) -> 
H71: =IFERROR(IFERROR(VLOOKUP(D71,Surcharge!A:B,2,FALSE)*F71, VLOOKUP(D71 & "",Surcharge!A:B,2,FALSE)*F71), "") -> 
B72: Support (Note 4) | D72: Reference Number | F72: =SUM(F73:F76) -> 0 | H72: =IFERROR(IFERROR(VLOOKUP(D72,Surcharge!A:B,2,FALSE)*F72, VLOOKUP(D72 & "",Surcharge!A:B,2,FALSE)*F72), "") -> 
C73: B5 Operator Manual - English | D73: 9011480 | E73: N/C | G73: =IF(F73=0," ","N/C") ->  | H73: =IFERROR(IFERROR(VLOOKUP(D73,Surcharge!A:B,2,FALSE)*F73, VLOOKUP(D73 & "",Surcharge!A:B,2,FALSE)*F73), "") ->  | P73: =VLOOKUP(Q73,'MPF SAP Download Canada'!$A:$D,4,FALSE) ->  | Q73: M-B5
C74: B5 Operator Manual - French | D74: 9011486 | E74: N/C | G74: =IF(F74=0," ","N/C") ->  | H74: =IFERROR(IFERROR(VLOOKUP(D74,Surcharge!A:B,2,FALSE)*F74, VLOOKUP(D74 & "",Surcharge!A:B,2,FALSE)*F74), "") ->  | P74: =VLOOKUP(Q74,'MPF SAP Download Canada'!$A:$D,4,FALSE) ->  | Q74: M-B5
H75: =IFERROR(IFERROR(VLOOKUP(D75,Surcharge!A:B,2,FALSE)*F75, VLOOKUP(D75 & "",Surcharge!A:B,2,FALSE)*F75), "") -> 
C76: Packaging | F76: =SUM(F77:F77) -> 0 | H76: =IFERROR(IFERROR(VLOOKUP(D76,Surcharge!A:B,2,FALSE)*F76, VLOOKUP(D76 & "",Surcharge!A:B,2,FALSE)*F76), "") -> 
C77: Skid w/Carton, Stackable | D77: 9012678 | E77: N/C | G77: =IF(F77=0," ","N/C") ->  | H77: =IFERROR(IFERROR(VLOOKUP(D77,Surcharge!A:B,2,FALSE)*F77, VLOOKUP(D77 & "",Surcharge!A:B,2,FALSE)*F77), "") ->  | P77: =VLOOKUP(Q77,'MPF SAP Download Canada'!$A:$D,4,FALSE) -> N/C | Q77: M-B5VK_PKG_SSKD
H78: =IFERROR(IFERROR(VLOOKUP(D78,Surcharge!A:B,2,FALSE)*F78, VLOOKUP(D78 & "",Surcharge!A:B,2,FALSE)*F78), "") -> 
B82: Custom Solution--write in description, qty, price, and PN if applicable | F82: =SUM(F83) -> 0
E83: Insert Prices Here | F83: =SUM(F84:F87) -> 0
D84: Custom | F84: =IF(E84 <> "", 1, 0) -> 0 | G84: =F84*E84 -> 0
D85: Custom | F85: =IF(E85 <> "", 1, 0) -> 0 | G85: =F85*E85 -> 0
D86: Custom | F86: =IF(E86 <> "", 1, 0) -> 0 | G86: =F86*E86 -> 0
D87: Custom | F87: =IF(E87 <> "", 1, 0) -> 0 | G87: =F87*E87 -> 0
E88: =ROUND(SUM(G47:G87), 0) -> 0 | F88: =SUM(E89) -> 0
D89: Machine Subtotal | E89: =ROUND(SUM(G47:G87), 0) -> 0 | F89: =F88 -> 0
B90: Discounts | F90: =SUM(F91) -> 0
F91: =SUM(F93:F94) -> 0
D92: Applicable Currency Adj % | F92: =IF(E92 <> "", 1, 0) -> 0 | G92: =IF(F92*(E92*0.01)*E88 < 0, F92*(E92*0.01)*E88, -(F92*(E92*0.01)*E88)) -> 0
D93: Discount % | F93: =IF(E93 <> "", 1, 0) -> 0 | G93: =IF(F93*(E93*0.01)*(E88+G92) < 0, F93*(E93*0.01)*(E88+G92), -(F93*(E93*0.01)*(E88+G92))) -> 0
D94: Discount $ | F94: =IF(E94 <> "", 1, 0) -> 0 | G94: =IF(F94*E94 < 0, F94*E94, -(F94*E94)) -> 0
D95: Discount Total | E95: =SUM(G92:G94) -> 0 | F95: =SUM(E95) -> 0
F96: =#REF! -> 
F97: =F96 -> 
C98: Prepaid and Add | D98: Freight | F98: =IF(E98 <> "", 1, 0) -> 0 | G98: =F98*E98 -> 0
C99: Subject to all applicable taxes | D99: Tax | F99: =IF(E99 <> "", 1, 0) -> 0 | G99: =F99*E99 -> 0
F100: =SUM(F101) -> 0
D101: MACHINE TOTAL* | F101: =SUM(G101) -> 0 | G101: =SUM(G47:G99) -> 0 | N101: This goes to "My Documents"
G102: =SUM(G101) -> 0
C107: First Western Equipment Finance - Leasing Calculation Option: | D107: Option 1 | F107: Option 2 | J107: =Financing!A38 -> Rates 2023 - Rev 10/10/2023
D108: Monthly Payment | E108: Cost Per Day | F108: Monthly Payment | G108: Cost Per Day | J108: =Financing!A39 -> “Blank Payment Amounts Indicate The Financing Option Or Purchase Options Selected Are Not
C109: Purchase Option: | D109: FWEF: $1 Buyout Lease | F109: FWEF: Municipal Lease | J109: =Financing!A40 -> Applicable Or The Machine Total Is Below The Minimum Amount For The Selected Vendor”
C110: 24 Months | D110: FALSE | E110: 0 | F110: FALSE | G110: 0 | J110: =Financing!A41 -> "Quoted monthly payments are estimates only and are based on a certain level of credit rating.
C111: 30 Months | D111: FALSE | E111: 0 | F111: FALSE | G111: 0 | J111: =Financing!A42 -> Actual monthly payments may be higher depending on your credit rating."
C112: 36 Months | D112: FALSE | E112: 0 | F112: FALSE | G112: 0 | J112: =Financing!A43 -> “Financing rates do not include Pre-Paid Service”
C113: 48 Months | D113: 0 | E113: 0 | F113: 0 | G113: 0 | J113: =Financing!A44 -> 0
D115: Benefits of Equipment Financing:
D116: • Spreads out investment over time. | F116: • Keep current with latest technology.
D117: • Preserve capital. | F117: • Service and parts bundling available.
D118: • Low monthly payment. | F118: • Pay for labor savings as you go.
B121: TennantTrue | D121: 0 | E121: 0
C123: Is customer interested in service program? | D123: Yes | E123: *State/County selection required for TennantTrue service options
C125: If not, why?
C127: Term: | D127: 36 | G127: AB Brushes | H127: No
C128: Monthly machine usage (hrs): | D128: < 30/mo. (Avg. 1hr./day)
C130: TennantTrue: | D130: Gold Contract | F130: Silver Contract
C131: Per Visit | F131: 326
C132: Monthly | D132: 109 | F132: 54
C133: Annually | F133: 640
C134: Pre-Pay Full Term | D134: 3769 | F134: 1879
C135: Hourly Labor Rate
C136: Site Visit
C138: * Verify customer current pricing prior to quote.
C139: **All rates and fees above reflect service for one (1) unit with the exception of Block of Time service.
C140: *Block of Time is available in 1 Year Term only and is priced as such no matter the term selection on this template.
B144: Quote Special Instructions:
B147: =Start_Here!E36 -> Terms and Conditions
B148: =Start_Here!E37 -> Ask your local sales rep for estimated lead times. Verify when placing order
B149: =Start_Here!E38 -> All orders subject to acceptance by Tennant Sales and Service Company, Minneapolis, Minnesota
B150: =Start_Here!E39 -> Prices subject to change without notice. Subject to any applicable taxes.
B151: =Start_Here!E40 -> Terms: Net 30 days. Payable in Canadian Funds
B152: =Start_Here!E41 -> Freight: Accessories, parts, supplies, detergents, and floor coatings orders delivered DDP
B153: =Start_Here!E42 -> shipping point Frt PPD. Machine orders delivered DDP shipping point Frt PPD and add.
B154: =Start_Here!E43 -> Returned Merchandise is subject to a restocking fee.
B155: =Start_Here!E44 -> All orders are subject to Tennant’s General Terms and Conditions available at http://www.tennantco.com/terms.
B156: =Start_Here!E45 -> Printed General Terms and Conditions are also available upon request.
B157: =Start_Here!E46 -> 0
E159: Quote Date : | G159: =Letter!$A$25 -> 2020-09-22
B160: Order Placement Information: To place your order, fill in PO# and customer signatures,
B161: call or fax to the numbers listed below. Customer Purchase Order is required.
B162: If information is missing, orders will be entered and held until all information is received.
C163: Customer Number | E163: Cust Grp 3
C164: =Start_Here!$C$25 -> 0 | E164: =Start_Here!$C$29 -> 0
C165: =Start_Here!$B$18 -> Who Owns the Machine? (Sold-To Info) (Please Verify)
A166: Company | C166: =Start_Here!$C$19 -> Company Name
A167: Address | C167: =Start_Here!$C$20 -> Address
C168: =Start_Here!$C$21 -> City, State Zip
A169: Name | C169: =Start_Here!$C$22 -> Contact Name
A170: Phone | C170: =Start_Here!$C$23 -> Contact Phone
C171: =Start_Here!$B$11 -> Where is the Machine Being Shipped? (Ship-To Info) (Please Verify)
A172: Company | C172: =Start_Here!$C$12 -> Company Name
A173: Address | C173: =Start_Here!$C$13 -> Address
C174: =Start_Here!$C$14 -> City, State Zip
A175: Name | C175: =Start_Here!$C$15 -> Contact Name
A176: Phone | C176: =Start_Here!$C$16 -> Contact Phone
C177: =Start_Here!$B$31 -> Shipping / Carrier Instructions: | E177: Order Special Instructions:
C178: =Start_Here!$C$32 -> 0
C180: Customer Purchase Order No.
C181: (please attach copy)
C184: Tax Exempt | E184: Yes
E185: No
C186: If Yes, attach a copy of your exemption certificate.
C188: Requested Delivery Date
C189: =Start_Here!$C$28 -> 0
C191: =Start_Here!$C$26 -> 0 | E191: =Start_Here!$C$27 -> 0
C192: Authorized Buyer (please print) | E192: Phone Number
C195: Authorized Buyer Signature
C197: =Start_Here!$C$41 -> Rep Name
C198: Tennant Representative
A200: Specialized Maintenance Equipment
A201: =Start_Here!$C$48 -> TENNANT · 10400 Clean Street · Eden Prairie, MN 55344 ·
A202: =Start_Here!$C$49 -> PHONE:800-553-8033 · FAX:763-513-2116
B204: Notes
B206: 1 | C206: When pad/brush assist unit is chosen, only mechanical Set and Forget™ downpressure is available.
C207: Automatic Down Pressure can only be deducted from the self-propelled unit.
B209: 2 | C209: 225AH Battery is standard on units with the Self Propel Drive Type.
C210: When Self Propel is selected, this battery will be added at No Charge.
B212: 3 | C212: Factory installed pricing. Only available on wet batteries, not sealed.
B214: 4 | C214: A French and English manual will be supplied for all units shipping into Quebec, Canada at no charge. Additional manuals
C215: can be ordered at Tennantco.com at no charge and Service Manuals can be ordered on My Account at no charge.
B217: 5 | C217: Shipping Weights and Dimensions | E217: Skid w/Carton
C219: Weight - Pad Drive w/185AH Battery | E219: 587 lbs / 267 Kg
C220: Weight - Self Propel w/225AH Battery | E220: 652 lbs / 296 Kg
C221: Length | E221: 60" / 1524 mm
C222: Width | E222: 31" / 788 mm
C223: Height | E223: 50" / 1270 mm

Sheet B7
A1: B7 | C1: =Start_Here!$C19 -> Company Name
A2: =SUM(G97) -> 0 | C2: =Start_Here!$C20 -> Address
C3: =Start_Here!$C21 -> City, State Zip
C4: =Start_Here!$C22 -> Contact Name
C5: =Start_Here!$C$41 -> Rep Name
C6: =Start_Here!$C$37 -> Tennant Sales and Service Company
C7: =Start_Here!$C$38 -> 10400 Clean Street
C8: =Start_Here!$C$39 -> Eden Prairie, MN 55344
C9: =Start_Here!$C$43 -> 800-553-8033 | E9: Quote Date : | G9: =Letter!$A$25 -> 2020-09-22
C11: =Help!C2 -> CAN Date Rev - 9/30/2024
C13: BUILT-IN “TENNANT VALUE” INCLUDES:
B15: 610mm/690mm or 24"/27" Burnishing Path | D15: On Board Charger
B16: Transaxel drive | D16: 3m/15 ft power cord
B17: Active Dust Control | D17: Standard (6) 6V 240 AH battery pack for 610mm/24"
B18: HEPA Filtration - 99.97 @ .3 microns | D18: Standard (6) 6V 330 AH battery pack for 690mm/27"
B19: Tooless Felt Dust skirt | D19: Battery Tray
B20: Pad RPM - 1850 | D20: Variable Bail
B21: Automated Down Pressure - Variable | D21: On-Board Trouble Shooting Guide
B22: True Free Floating Head | D22: ETL Listed for the US and Canada
B23: Rugged DuramerTM Tank Construction | D23: 64 dBa
B24: Two-Way Gas Assist Shock for Tank Open/Close | D24: Emergency Stop
B25: Anti-Static Straps | D25: Key Switch
B26: Clamshell Tank Design | D26: Hour Meter
B27: Unit shipped with 1 burnishing pad, paper bag and HEPA filter | D27: Operators manual
D28: Jacking Points/Shipping Tie Downs
C30: TENNANT COMPANY WARRANTY
C31: 3 YEARS OR 2000 HOURS - PARTS
C32: 1 YEAR - BATTERY CHARGERS
C33: 2 YEARS - LABOR
C34: 6 MONTHS - TRAVEL
C35: 10 YEARS ON DURAMERTM TANKS
E36: Quote Request Information
G37: Fax (quote only)
G38: Mail (quote,lit, specs)
G39: Fax + Mail
E41: Primary Use
G42: Inside
G43: Outside
C45: Description | D45: Reference # | E45: Price Each | F45: Qty | G45: Extended Price
B46: Base Configuration | E46: CANADA | F46: =SUM(F47,F51,F55,F58,F61) -> 0
C47: Cleaning Type | F47: =SUM(F48:F49) -> 0
C48: B7 Battery Walk-Behind Burnisher 610mm/24" | D48: B7-610 | E48: 20238 | G48: =F48*E48 -> 0 | H48: =IFERROR(IFERROR(VLOOKUP(D48,Surcharge!A:B,2,FALSE)*F48, VLOOKUP(D48 & "",Surcharge!A:B,2,FALSE)*F48), "") ->  | P48: =VLOOKUP(Q48,'MPF SAP Download Canada'!$A:$D,4,FALSE) -> 20238 | Q48: M-B7VK_BASE_B7-610
C49: B7 Battery Walk-Behind Burnisher 690mm/27" | D49: B7-690 | E49: 22228 | G49: =F49*E49 -> 0 | H49: =IFERROR(IFERROR(VLOOKUP(D49,Surcharge!A:B,2,FALSE)*F49, VLOOKUP(D49 & "",Surcharge!A:B,2,FALSE)*F49), "") ->  | P49: =VLOOKUP(Q49,'MPF SAP Download Canada'!$A:$D,4,FALSE) -> 22228 | Q49: M-B7VK_BASE_B7-690
H50: =IFERROR(IFERROR(VLOOKUP(D50,Surcharge!A:B,2,FALSE)*F50, VLOOKUP(D50 & "",Surcharge!A:B,2,FALSE)*F50), "") -> 
C51: Battery Type | F51: =SUM(F52:F53) -> 0 | H51: =IFERROR(IFERROR(VLOOKUP(D51,Surcharge!A:B,2,FALSE)*F51, VLOOKUP(D51 & "",Surcharge!A:B,2,FALSE)*F51), "") -> 
C52: Wet 330AH C/20 (Kit of 6 batteries) | D52: 9012674 | E52: 1189 | G52: =F52*E52 -> 0 | H52: =IFERROR(IFERROR(VLOOKUP(D52,Surcharge!A:B,2,FALSE)*F52, VLOOKUP(D52 & "",Surcharge!A:B,2,FALSE)*F52), "") ->  | P52: =VLOOKUP(Q52,'MPF SAP Download Canada'!$A:$D,4,FALSE) -> 1189 | Q52: M-B7VK_BTY_W330C20
C53: Sealed/MF AGM 312AH C/20 (Kit of 6 batteries) | D53: 9012676 | E53: 4763 | G53: =F53*E53 -> 0 | H53: =IFERROR(IFERROR(VLOOKUP(D53,Surcharge!A:B,2,FALSE)*F53, VLOOKUP(D53 & "",Surcharge!A:B,2,FALSE)*F53), "") ->  | P53: =VLOOKUP(Q53,'MPF SAP Download Canada'!$A:$D,4,FALSE) -> 4763 | Q53: M-B7VK_BTY_A312C20
H54: =IFERROR(IFERROR(VLOOKUP(D54,Surcharge!A:B,2,FALSE)*F54, VLOOKUP(D54 & "",Surcharge!A:B,2,FALSE)*F54), "") -> 
C55: Battery Watering System | F55: =SUM(F56) -> 0 | H55: =IFERROR(IFERROR(VLOOKUP(D55,Surcharge!A:B,2,FALSE)*F55, VLOOKUP(D55 & "",Surcharge!A:B,2,FALSE)*F55), "") -> 
C56: Manual Battery Watering Kit (Note 1) | D56: 9009620 | E56: 1115 | G56: =F56*E56 -> 0 | H56: =IFERROR(IFERROR(VLOOKUP(D56,Surcharge!A:B,2,FALSE)*F56, VLOOKUP(D56 & "",Surcharge!A:B,2,FALSE)*F56), "") ->  | P56: =VLOOKUP(Q56,'MPF SAP Download Canada'!$A:$D,4,FALSE) -> 1115 | Q56: M-B7VK_BTYWTRSYS
H57: =IFERROR(IFERROR(VLOOKUP(D57,Surcharge!A:B,2,FALSE)*F57, VLOOKUP(D57 & "",Surcharge!A:B,2,FALSE)*F57), "") -> 
C58: Charger | F58: =SUM(F59:F59) -> 0 | H58: =IFERROR(IFERROR(VLOOKUP(D58,Surcharge!A:B,2,FALSE)*F58, VLOOKUP(D58 & "",Surcharge!A:B,2,FALSE)*F58), "") -> 
C59: 25A 85-265V AC 50/60Hz 1Ph (on board) | D59: 9012668 | E59: N/C | G59: =IF(F59=0," ","N/C") ->  | H59: =IFERROR(IFERROR(VLOOKUP(D59,Surcharge!A:B,2,FALSE)*F59, VLOOKUP(D59 & "",Surcharge!A:B,2,FALSE)*F59), "") ->  | P59: =VLOOKUP(Q59,'MPF SAP Download Canada'!$A:$D,4,FALSE) -> N/C | Q59: M-B7VK_CHG_25A85V5060H1P_ON
H60: =IFERROR(IFERROR(VLOOKUP(D60,Surcharge!A:B,2,FALSE)*F60, VLOOKUP(D60 & "",Surcharge!A:B,2,FALSE)*F60), "") -> 
C61: Down Pressure | F61: =SUM(F62:F63) -> 0 | H61: =IFERROR(IFERROR(VLOOKUP(D61,Surcharge!A:B,2,FALSE)*F61, VLOOKUP(D61 & "",Surcharge!A:B,2,FALSE)*F61), "") -> 
C62: Automated Down Pressure | D62: 9102641 | E62: N/C | G62: =IF(F62=0," ","N/C") ->  | H62: =IFERROR(IFERROR(VLOOKUP(D62,Surcharge!A:B,2,FALSE)*F62, VLOOKUP(D62 & "",Surcharge!A:B,2,FALSE)*F62), "") ->  | P62: =VLOOKUP(Q62,'MPF SAP Download Canada'!$A:$D,4,FALSE) -> N/C | Q62: M-B7VK_DWNPRS_AUT
C63: Mechanical Set and Forget TM Down Pressure | D63: 9012640 | E63: -658 | G63: =F63*E63 -> 0 | H63: =IFERROR(IFERROR(VLOOKUP(D63,Surcharge!A:B,2,FALSE)*F63, VLOOKUP(D63 & "",Surcharge!A:B,2,FALSE)*F63), "") ->  | P63: =VLOOKUP(Q63,'MPF SAP Download Canada'!$A:$D,4,FALSE) -> -658 | Q63: M-B7VK_DWNPRS_MEC
H64: =IFERROR(IFERROR(VLOOKUP(D64,Surcharge!A:B,2,FALSE)*F64, VLOOKUP(D64 & "",Surcharge!A:B,2,FALSE)*F64), "") -> 
B65: Cleaning Performance | D65: Reference Number | F65: =SUM(F66:F68) -> 0 | H65: =IFERROR(IFERROR(VLOOKUP(D65,Surcharge!A:B,2,FALSE)*F65, VLOOKUP(D65 & "",Surcharge!A:B,2,FALSE)*F65), "") -> 
C66: Dust Control, Active - HEPA Filtration to 99.97% @ .3 microns | D66: 9012651 | E66: N/C | G66: =IF(F66=0," ","N/C") ->  | H66: =IFERROR(IFERROR(VLOOKUP(D66,Surcharge!A:B,2,FALSE)*F66, VLOOKUP(D66 & "",Surcharge!A:B,2,FALSE)*F66), "") ->  | P66: =VLOOKUP(Q66,'MPF SAP Download Canada'!$A:$D,4,FALSE) -> N/C | Q66: M-B7VK_DSTCTLSYS_ACT
C67: Dust Control, Passive - 95% @ .3 microns | E67: -580 | G67: =F67*E67 -> 0 | H67: =IFERROR(IFERROR(VLOOKUP(D67,Surcharge!A:B,2,FALSE)*F67, VLOOKUP(D67 & "",Surcharge!A:B,2,FALSE)*F67), "") ->  | P67: =VLOOKUP(Q67,'MPF SAP Download Canada'!$A:$D,4,FALSE) -> -580 | Q67: M-B7VK_DSTCTLSYS_PAS
C68: Dust Control Filter, Paper Filter Bag | D68: 1210869 | E68: N/C | G68: =IF(F68=0," ","N/C") ->  | H68: =IFERROR(IFERROR(VLOOKUP(D68,Surcharge!A:B,2,FALSE)*F68, VLOOKUP(D68 & "",Surcharge!A:B,2,FALSE)*F68), "") ->  | P68: =VLOOKUP(Q68,'MPF SAP Download Canada'!$A:$D,4,FALSE) ->  | Q68: M-B7-VK_DSTCTLFLR_PFB
H69: =IFERROR(IFERROR(VLOOKUP(D69,Surcharge!A:B,2,FALSE)*F69, VLOOKUP(D69 & "",Surcharge!A:B,2,FALSE)*F69), "") -> 
B70: Support (Note 2) | D70: Reference Number | F70: =SUM(F71:F74) -> 0 | H70: =IFERROR(IFERROR(VLOOKUP(D70,Surcharge!A:B,2,FALSE)*F70, VLOOKUP(D70 & "",Surcharge!A:B,2,FALSE)*F70), "") -> 
C71: B7 Operator Manual - English | D71: 9011840 | E71: N/C | G71: =IF(F71=0," ","N/C") ->  | H71: =IFERROR(IFERROR(VLOOKUP(D71,Surcharge!A:B,2,FALSE)*F71, VLOOKUP(D71 & "",Surcharge!A:B,2,FALSE)*F71), "") ->  | P71: =VLOOKUP(Q71,'MPF SAP Download Canada'!$A:$D,4,FALSE) ->  | Q71: M-B7
C72: B7 Operator Manual - French | D72: 9011486 | E72: N/C | G72: =IF(F72=0," ","N/C") ->  | H72: =IFERROR(IFERROR(VLOOKUP(D72,Surcharge!A:B,2,FALSE)*F72, VLOOKUP(D72 & "",Surcharge!A:B,2,FALSE)*F72), "") ->  | P72: =VLOOKUP(Q72,'MPF SAP Download Canada'!$A:$D,4,FALSE) ->  | Q72: M-B7
H73: =IFERROR(IFERROR(VLOOKUP(D73,Surcharge!A:B,2,FALSE)*F73, VLOOKUP(D73 & "",Surcharge!A:B,2,FALSE)*F73), "") -> 
C74: Packaging | F74: =SUM(F75:F75) -> 0 | H74: =IFERROR(IFERROR(VLOOKUP(D74,Surcharge!A:B,2,FALSE)*F74, VLOOKUP(D74 & "",Surcharge!A:B,2,FALSE)*F74), "") -> 
C75: Skid w/Carton, Stackable | D75: 9012682 | E75: N/C | G75: =IF(F75=0," ","N/C") ->  | H75: =IFERROR(IFERROR(VLOOKUP(D75,Surcharge!A:B,2,FALSE)*F75, VLOOKUP(D75 & "",Surcharge!A:B,2,FALSE)*F75), "") ->  | P75: =VLOOKUP(Q75,'MPF SAP Download Canada'!$A:$D,4,FALSE) -> N/C | Q75: M-B7VK_PKG_SSKD
H76: =IFERROR(IFERROR(VLOOKUP(D76,Surcharge!A:B,2,FALSE)*F76, VLOOKUP(D76 & "",Surcharge!A:B,2,FALSE)*F76), "") -> 
B78: Custom Solution--write in description, qty, price, and PN if applicable | F78: =SUM(F79) -> 0
E79: Insert Prices Here | F79: =SUM(F80:F83) -> 0
D80: Custom | F80: =IF(E80 <> "", 1, 0) -> 0 | G80: =F80*E80 -> 0
D81: Custom | F81: =IF(E81 <> "", 1, 0) -> 0 | G81: =F81*E81 -> 0
D82: Custom | F82: =IF(E82 <> "", 1, 0) -> 0 | G82: =F82*E82 -> 0
D83: Custom | F83: =IF(E83 <> "", 1, 0) -> 0 | G83: =F83*E83 -> 0
E84: =ROUND(SUM(G48:G83), 0) -> 0 | F84: =SUM(E85) -> 0
D85: Machine Subtotal | E85: =ROUND(SUM(G48:G83), 0) -> 0 | F85: =F84 -> 0
B86: Discounts | F86: =SUM(F87) -> 0
F87: =SUM(F89:F90) -> 0
D88: Applicable Currency Adj % | F88: =IF(E88 <> "", 1, 0) -> 0 | G88: =IF(F88*(E88*0.01)*E84 < 0, F88*(E88*0.01)*E84, -(F88*(E88*0.01)*E84)) -> 0
D89: Discount % | F89: =IF(E89 <> "", 1, 0) -> 0 | G89: =IF(F89*(E89*0.01)*(E84+G88) < 0, F89*(E89*0.01)*(E84+G88), -(F89*(E89*0.01)*(E84+G88))) -> 0
D90: Discount $ | F90: =IF(E90 <> "", 1, 0) -> 0 | G90: =IF(F90*E90 < 0, F90*E90, -(F90*E90)) -> 0
D91: Discount Total | E91: =SUM(G88:G90) -> 0 | F91: =SUM(E91) -> 0
F92: =#REF! -> 
F93: =F92 -> 
C94: Prepaid and Add | D94: Freight | F94: =IF(E94 <> "", 1, 0) -> 0 | G94: =F94*E94 -> 0
C95: Subject to all applicable taxes | D95: Tax | F95: =IF(E95 <> "", 1, 0) -> 0 | G95: =F95*E95 -> 0
F96: =SUM(F97) -> 0
D97: MACHINE TOTAL* | F97: =SUM(G97) -> 0 | G97: =SUM(G48:G95) -> 0 | N97: This goes to "My Documents"
G98: =SUM(G97) -> 0
C103: First Western Equipment Finance - Leasing Calculation Option: | D103: Option 1 | F103: Option 2 | J103: =Financing!A38 -> Rates 2023 - Rev 10/10/2023
D104: Monthly Payment | E104: Cost Per Day | F104: Monthly Payment | G104: Cost Per Day | J104: =Financing!A39 -> “Blank Payment Amounts Indicate The Financing Option Or Purchase Options Selected Are Not
C105: Purchase Option: | D105: FWEF: $1 Buyout Lease | F105: FWEF: Municipal Lease | J105: =Financing!A40 -> Applicable Or The Machine Total Is Below The Minimum Amount For The Selected Vendor”
C106: 24 Months | D106: FALSE | E106: 0 | F106: FALSE | G106: 0 | J106: =Financing!A41 -> "Quoted monthly payments are estimates only and are based on a certain level of credit rating.
C107: 30 Months | D107: FALSE | E107: 0 | F107: FALSE | G107: 0 | J107: =Financing!A42 -> Actual monthly payments may be higher depending on your credit rating."
C108: 36 Months | D108: FALSE | E108: 0 | F108: FALSE | G108: 0 | J108: =Financing!A43 -> “Financing rates do not include Pre-Paid Service”
C109: 48 Months | D109: 0 | E109: 0 | F109: 0 | G109: 0 | J109: =Financing!A44 -> 0
D111: Benefits of Equipment Financing:
D112: • Spreads out investment over time. | F112: • Keep current with latest technology.
D113: • Preserve capital. | F113: • Service and parts bundling available.
D114: • Low monthly payment. | F114: • Pay for labor savings as you go.
B117: TennantTrue | D117: 0 | E117: 0
C119: Is customer interested in service program? | D119: Yes | E119: *State/County selection required for TennantTrue service options
C121: If not, why?
C123: Term: | D123: 36 | G123: AB Brushes | H123: No
C124: Monthly machine usage (hrs): | D124: < 30/mo. (Avg. 1hr./day)
C126: TennantTrue: | D126: Gold Contract | F126: Silver Contract
C127: Per Visit | F127: 326
C128: Monthly | D128: 109 | F128: 54
C129: Annually | F129: 640
C130: Pre-Pay Full Term | D130: 3769 | F130: 1879
C131: Hourly Labor Rate
C132: Site Visit
C134: * Verify customer current pricing prior to quote.
C135: **All rates and fees above reflect service for one (1) unit with the exception of Block of Time service.
C136: *Block of Time is available in 1 Year Term only and is priced as such no matter the term selection on this template.
B140: Quote Special Instructions:
B143: =Start_Here!E36 -> Terms and Conditions
B144: =Start_Here!E37 -> Ask your local sales rep for estimated lead times. Verify when placing order
B145: =Start_Here!E38 -> All orders subject to acceptance by Tennant Sales and Service Company, Minneapolis, Minnesota
B146: =Start_Here!E39 -> Prices subject to change without notice. Subject to any applicable taxes.
B147: =Start_Here!E40 -> Terms: Net 30 days. Payable in Canadian Funds
B148: =Start_Here!E41 -> Freight: Accessories, parts, supplies, detergents, and floor coatings orders delivered DDP
B149: =Start_Here!E42 -> shipping point Frt PPD. Machine orders delivered DDP shipping point Frt PPD and add.
B150: =Start_Here!E43 -> Returned Merchandise is subject to a restocking fee.
B151: =Start_Here!E44 -> All orders are subject to Tennant’s General Terms and Conditions available at http://www.tennantco.com/terms.
B152: =Start_Here!E45 -> Printed General Terms and Conditions are also available upon request.
B153: =Start_Here!E46 -> 0
E155: Quote Date : | G155: =Letter!$A$25 -> 2020-09-22
B156: Order Placement Information: To place your order, fill in PO# and customer signatures,
B157: call or fax to the numbers listed below. Customer Purchase Order is required.
B158: If information is missing, orders will be entered and held until all information is received.
C159: Customer Number | E159: Cust Grp 3
C160: =Start_Here!$C$25 -> 0 | E160: =Start_Here!$C$29 -> 0
C161: =Start_Here!$B$18 -> Who Owns the Machine? (Sold-To Info) (Please Verify)
A162: Company | C162: =Start_Here!$C$19 -> Company Name
A163: Address | C163: =Start_Here!$C$20 -> Address
C164: =Start_Here!$C$21 -> City, State Zip
A165: Name | C165: =Start_Here!$C$22 -> Contact Name
A166: Phone | C166: =Start_Here!$C$23 -> Contact Phone
C167: =Start_Here!$B$11 -> Where is the Machine Being Shipped? (Ship-To Info) (Please Verify)
A168: Company | C168: =Start_Here!$C$12 -> Company Name
A169: Address | C169: =Start_Here!$C$13 -> Address
C170: =Start_Here!$C$14 -> City, State Zip
A171: Name | C171: =Start_Here!$C$15 -> Contact Name
A172: Phone | C172: =Start_Here!$C$16 -> Contact Phone
C173: =Start_Here!$B$31 -> Shipping / Carrier Instructions: | E173: Order Special Instructions:
C174: =Start_Here!$C$32 -> 0
C176: Customer Purchase Order No.
C177: (please attach copy)
C180: Tax Exempt | E180: Yes
E181: No
C182: If Yes, attach a copy of your exemption certificate.
C184: Requested Delivery Date
C185: =Start_Here!$C$28 -> 0
C187: =Start_Here!$C$26 -> 0 | E187: =Start_Here!$C$27 -> 0
C188: Authorized Buyer (please print) | E188: Phone Number
C191: Authorized Buyer Signature
C193: =Start_Here!$C$41 -> Rep Name
C194: Tennant Representative
A196: Specialized Maintenance Equipment
A197: =Start_Here!$C$48 -> TENNANT · 10400 Clean Street · Eden Prairie, MN 55344 ·
A198: =Start_Here!$C$49 -> PHONE:800-553-8033 · FAX:763-513-2116
B200: Notes
B201: 1 | C201: Factory installed pricing. Only available on wet batteries, not sealed.
B203: 2 | C203: Additional hard copy Operator and Parts Manuals can be ordered or digital copies can be downloaded from www.Tennantco.com.
C204: A French and English manual will be supplied for all units shipping into Quebec, Canada at no charge. Service manuals can be
C205: ordered at no charge on My Account.
B207: 3 | C207: Machine Weights and Dimensions | E207: Skid w/Carton
C209: B7-610
C210: Weight | E210: 712 lbs / 323 Kg
C211: Length | E211: 73" / 1855 mm
C212: Width | E212: 43" / 1092 mm
C213: Height | E213: 51" / 1296 mm
C215: B7-690
C216: Weight | E216: 892 lbs / 405 Kg
C217: Length | E217: 73" / 1855 mm
C218: Width | E218: 43" / 1092 mm
C219: Height | E219: 51" / 1296 mm

Sheet B10
A1: B10 | C1: =Start_Here!$C19 -> Company Name
A2: =SUM(G85) -> 0 | C2: =Start_Here!$C20 -> Address
C3: =Start_Here!$C21 -> City, State Zip
C4: =Start_Here!$C22 -> Contact Name
C5: =Start_Here!$C$41 -> Rep Name
C6: =Start_Here!$C$37 -> Tennant Sales and Service Company
C7: =Start_Here!$C$38 -> 10400 Clean Street
C8: =Start_Here!$C$39 -> Eden Prairie, MN 55344
C9: =Start_Here!$C$43 -> 800-553-8033 | E9: Quote Date : | G9: =Letter!$A$25 -> 2020-09-22
C11: =Help!C2 -> CAN Date Rev - 9/30/2024
B13: BUILT-IN “TENNANT VALUE” INCLUDES:
B15: 610mm/690mm or 24"/27" burnishing path | D15: Standard (6) 6V 435AH battery pack
B16: Active Dust Control | D16: Battery Tray
B17: HEPA filtration - 99.97 @ .3 microns | D17: On Board Charger
B18: Automated Head Lift | D18: Rugged DuramerTM Tank Construction
B19: True free floating Head | D19: 69 dBa
B20: Supervisor lock-out | D20: Emergency Stop
B21: Back up Alarm | D21: Anti-Static Straps
B22: Adjustable Seat | D22: Hour Meter
B23: Operators manual | D23: QA Controls
B26: TENNANT COMPANY WARRANTY
B27: 3 YEARS OR 2000 HOURS ON ALL COMPONENTS, 2 YEARS LABOR
B28: 6 MONTHS TRAVEL, 10 YEARS ON DURAMERTM TANKS
E31: Quote Request Information
G32: Fax (quote only)
G33: Mail (quote,lit, specs)
G34: Fax + Mail
E36: Primary Use
G37: Inside
G38: Outside
C40: Description | D40: Reference# | E40: Price Each | F40: Qty | G40: Extended Price
B41: Base Configuration | E41: CANADA | F41: =SUM(F42,F46,F52) -> 0
C42: Cleaning Type | F42: =SUM(F43:F44) -> 0 | L42: =SUM(F42) -> 0 | M42: Surcharge Qty
C43: B10 Battery Rider Burnisher 610mm/24" | D43: B10-610 | E43: 41824 | G43: =F43*E43 -> 0 | H43: =IFERROR(IFERROR(VLOOKUP(D43,Surcharge!A:B,2,FALSE)*F43, VLOOKUP(D43 & "",Surcharge!A:B,2,FALSE)*F43), "") -> 0 | P43: =VLOOKUP(Q43,'MPF SAP Download Canada'!$A:$D,4,FALSE) -> 41824 | Q43: M-B10VK_BASE_B10-610
C44: B10 Battery Rider Burnisher 690mm/27" | D44: B10-690 | E44: 42995 | G44: =F44*E44 -> 0 | H44: =IFERROR(IFERROR(VLOOKUP(D44,Surcharge!A:B,2,FALSE)*F44, VLOOKUP(D44 & "",Surcharge!A:B,2,FALSE)*F44), "") -> 0 | P44: =VLOOKUP(Q44,'MPF SAP Download Canada'!$A:$D,4,FALSE) -> 42995 | Q44: M-B10VK_BASE_B10-690
H45: =IFERROR(IFERROR(VLOOKUP(D45,Surcharge!A:B,2,FALSE)*F45, VLOOKUP(D45 & "",Surcharge!A:B,2,FALSE)*F45), "") -> 
C46: Battery Type | F46: =SUM(F47:F50) -> 0 | H46: =IFERROR(IFERROR(VLOOKUP(D46,Surcharge!A:B,2,FALSE)*F46, VLOOKUP(D46 & "",Surcharge!A:B,2,FALSE)*F46), "") -> 
C47: Wet 435AH C/20 (Kit of 6 batteries) | D47: 9010885 | E47: N/C | G47: =IF(F47=0," ","N/C") ->  | H47: =IFERROR(IFERROR(VLOOKUP(D47,Surcharge!A:B,2,FALSE)*F47, VLOOKUP(D47 & "",Surcharge!A:B,2,FALSE)*F47), "") ->  | P47: =VLOOKUP(Q47,'MPF SAP Download Canada'!$A:$D,4,FALSE) -> N/C | Q47: M-B10VK_BTY_W435C20
C48: Sealed/MF AGM 390AH C/20 (Kit of 6 batteries) | D48: 9010886 | E48: 1690 | G48: =F48*E48 -> 0 | H48: =IFERROR(IFERROR(VLOOKUP(D48,Surcharge!A:B,2,FALSE)*F48, VLOOKUP(D48 & "",Surcharge!A:B,2,FALSE)*F48), "") ->  | P48: =VLOOKUP(Q48,'MPF SAP Download Canada'!$A:$D,4,FALSE) -> 1690 | Q48: M-B10VK_BTY_A390C20
H49: =IFERROR(IFERROR(VLOOKUP(D49,Surcharge!A:B,2,FALSE)*F49, VLOOKUP(D49 & "",Surcharge!A:B,2,FALSE)*F49), "") -> 
C50: Manual Battery Watering Kit (Note 1) | D50: 9009620 | E50: 1115 | G50: =F50*E50 -> 0 | H50: =IFERROR(IFERROR(VLOOKUP(D50,Surcharge!A:B,2,FALSE)*F50, VLOOKUP(D50 & "",Surcharge!A:B,2,FALSE)*F50), "") ->  | P50: =VLOOKUP(Q50,'MPF SAP Download Canada'!$A:$D,4,FALSE) -> 1115 | Q50: M-B10VK_BTYWTRSYS
H51: =IFERROR(IFERROR(VLOOKUP(D51,Surcharge!A:B,2,FALSE)*F51, VLOOKUP(D51 & "",Surcharge!A:B,2,FALSE)*F51), "") -> 
C52: Charger | F52: =SUM(F53:F53) -> 0 | H52: =IFERROR(IFERROR(VLOOKUP(D52,Surcharge!A:B,2,FALSE)*F52, VLOOKUP(D52 & "",Surcharge!A:B,2,FALSE)*F52), "") -> 
C53: 25A 120V AC 50/60Hz 1Ph (on board) | D53: 9010881 | E53: N/C | G53: =IF(F53=0," ","N/C") ->  | H53: =IFERROR(IFERROR(VLOOKUP(D53,Surcharge!A:B,2,FALSE)*F53, VLOOKUP(D53 & "",Surcharge!A:B,2,FALSE)*F53), "") ->  | P53: =VLOOKUP(Q53,'MPF SAP Download Canada'!$A:$D,4,FALSE) -> N/C | Q53: M-B10VK_CHG_25A120A5060H1_ON
H54: =IFERROR(IFERROR(VLOOKUP(D54,Surcharge!A:B,2,FALSE)*F54, VLOOKUP(D54 & "",Surcharge!A:B,2,FALSE)*F54), "") -> 
B55: Machine Protection & Safety | D55: Reference Number | F55: =SUM(F56:F56) -> 0 | H55: =IFERROR(IFERROR(VLOOKUP(D55,Surcharge!A:B,2,FALSE)*F55, VLOOKUP(D55 & "",Surcharge!A:B,2,FALSE)*F55), "") -> 
C56: Strobe Light on Tank | D56: 9010878 | E56: 1042 | G56: =F56*E56 -> 0 | H56: =IFERROR(IFERROR(VLOOKUP(D56,Surcharge!A:B,2,FALSE)*F56, VLOOKUP(D56 & "",Surcharge!A:B,2,FALSE)*F56), "") ->  | P56: =VLOOKUP(Q56,'MPF SAP Download Canada'!$A:$D,4,FALSE) -> 1042 | Q56: M-B10VK_WRNLGTANDALM_ST
H57: =IFERROR(IFERROR(VLOOKUP(D57,Surcharge!A:B,2,FALSE)*F57, VLOOKUP(D57 & "",Surcharge!A:B,2,FALSE)*F57), "") -> 
B58: Support (Note 2) | D58: Reference Number | F58: =SUM(F59:F62) -> 0 | H58: =IFERROR(IFERROR(VLOOKUP(D58,Surcharge!A:B,2,FALSE)*F58, VLOOKUP(D58 & "",Surcharge!A:B,2,FALSE)*F58), "") -> 
C59: B10 Operator Manual (English) | D59: 9010734 | E59: N/C | G59: =IF(F59=0," ","N/C") ->  | H59: =IFERROR(IFERROR(VLOOKUP(D59,Surcharge!A:B,2,FALSE)*F59, VLOOKUP(D59 & "",Surcharge!A:B,2,FALSE)*F59), "") ->  | Q59: M-B10
C60: B10 Operator Manual (French) | D60: 9010732 | E60: N/C | G60: =IF(F60=0," ","N/C") ->  | H60: =IFERROR(IFERROR(VLOOKUP(D60,Surcharge!A:B,2,FALSE)*F60, VLOOKUP(D60 & "",Surcharge!A:B,2,FALSE)*F60), "") ->  | Q60: M-B10
H61: =IFERROR(IFERROR(VLOOKUP(D61,Surcharge!A:B,2,FALSE)*F61, VLOOKUP(D61 & "",Surcharge!A:B,2,FALSE)*F61), "") -> 
C62: Packaging | F62: =SUM(F63:F63) -> 0 | H62: =IFERROR(IFERROR(VLOOKUP(D62,Surcharge!A:B,2,FALSE)*F62, VLOOKUP(D62 & "",Surcharge!A:B,2,FALSE)*F62), "") -> 
C63: Skid w/Carton, Non-Stackable | D63: 9010888 | E63: N/C | G63: =IF(F63=0," ","N/C") ->  | H63: =IFERROR(IFERROR(VLOOKUP(D63,Surcharge!A:B,2,FALSE)*F63, VLOOKUP(D63 & "",Surcharge!A:B,2,FALSE)*F63), "") ->  | P63: =VLOOKUP(Q63,'MPF SAP Download Canada'!$A:$D,4,FALSE) -> N/C | Q63: M-B10VK_PKG_SCNS_NC
H64: =IFERROR(IFERROR(VLOOKUP(D64,Surcharge!A:B,2,FALSE)*F64, VLOOKUP(D64 & "",Surcharge!A:B,2,FALSE)*F64), "") -> 
B66: Custom Solution--write in description, qty, price, and PN if applicable | F66: =SUM(F67) -> 0
E67: Insert Prices Here | F67: =SUM(F68:F71) -> 0
D68: Custom | F68: =IF(E68 <> "", 1, 0) -> 0 | G68: =F68*E68 -> 0
D69: Custom | F69: =IF(E69 <> "", 1, 0) -> 0 | G69: =F69*E69 -> 0
D70: Custom | F70: =IF(E70 <> "", 1, 0) -> 0 | G70: =F70*E70 -> 0
D71: Custom | F71: =IF(E71 <> "", 1, 0) -> 0 | G71: =F71*E71 -> 0
E72: =ROUND(SUM(G43:G71), 0) -> 0 | F72: =SUM(E73) -> 0
D73: Machine Subtotal | E73: =ROUND(SUM(G43:G71), 0) -> 0 | F73: =F72 -> 0
B74: Discounts | F74: =SUM(F75) -> 0
F75: =SUM(F77:F78) -> 0
D76: Applicable Currency Adj % | F76: =IF(E76 <> "", 1, 0) -> 0 | G76: =IF(F76*(E76*0.01)*E72 < 0, F76*(E76*0.01)*E72, -(F76*(E76*0.01)*E72)) -> 0
D77: Discount % | F77: =IF(E77 <> "", 1, 0) -> 0 | G77: =IF(F77*(E77*0.01)*(E72+G76) < 0, F77*(E77*0.01)*(E72+G76), -(F77*(E77*0.01)*(E72+G76))) -> 0
D78: Discount $ | F78: =IF(E78 <> "", 1, 0) -> 0 | G78: =IF(F78*E78 < 0, F78*E78, -(F78*E78)) -> 0
D79: Discount Total | E79: =SUM(G76:G78) -> 0 | F79: =SUM(E79) -> 0
F80: =#REF! -> 
F81: =F80 -> 
C82: Prepaid and Add | D82: Freight | F82: =IF(E82 <> "", 1, 0) -> 0 | G82: =F82*E82 -> 0
C83: Subject to all applicable taxes | D83: Tax | F83: =IF(E83 <> "", 1, 0) -> 0 | G83: =F83*E83 -> 0
F84: =SUM(F85) -> 0
D85: MACHINE TOTAL* | F85: =SUM(G85) -> 0 | G85: =SUM(G43:G83) -> 0 | N85: This goes to "My Documents"
G86: =SUM(G85) -> 0
C91: First Western Equipment Finance - Leasing Calculation Option: | D91: Option 1 | F91: Option 2 | J91: =Financing!A38 -> Rates 2023 - Rev 10/10/2023
D92: Monthly Payment | E92: Cost Per Day | F92: Monthly Payment | G92: Cost Per Day | J92: =Financing!A39 -> “Blank Payment Amounts Indicate The Financing Option Or Purchase Options Selected Are Not
C93: Purchase Option: | D93: FWEF: $1 Buyout Lease | F93: FWEF: Municipal Lease | J93: =Financing!A40 -> Applicable Or The Machine Total Is Below The Minimum Amount For The Selected Vendor”
C94: 24 Months | D94: FALSE | E94: 0 | F94: FALSE | G94: 0 | J94: =Financing!A41 -> "Quoted monthly payments are estimates only and are based on a certain level of credit rating.
C95: 30 Months | D95: FALSE | E95: 0 | F95: FALSE | G95: 0 | J95: =Financing!A42 -> Actual monthly payments may be higher depending on your credit rating."
C96: 36 Months | D96: FALSE | E96: 0 | F96: FALSE | G96: 0 | J96: =Financing!A43 -> “Financing rates do not include Pre-Paid Service”
C97: 48 Months | D97: 0 | E97: 0 | F97: 0 | G97: 0 | J97: =Financing!A44 -> 0
D99: Benefits of Equipment Financing:
D100: • Spreads out investment over time. | F100: • Keep current with latest technology.
D101: • Preserve capital. | F101: • Service and parts bundling available.
D102: • Low monthly payment. | F102: • Pay for labor savings as you go.
B105: TennantTrue | D105: 0 | E105: 0
C107: Is customer interested in service program? | D107: Yes | E107: *State/County selection required for TennantTrue service options
C109: If not, why?
C111: Term: | D111: 36 | G111: AB Brushes | H111: No
C112: Monthly machine usage (hrs): | D112: < 30/mo. (Avg. 1hr./day)
C114: TennantTrue: | D114: Gold Contract | F114: Silver Contract
C115: Per Visit | F115: 487
C116: Monthly | D116: 144 | F116: 85
C117: Annually | F117: 1004
C118: Pre-Pay Full Term | D118: 4970 | F118: 2953
C119: Hourly Labor Rate
C120: Site Visit
C122: * Verify customer current pricing prior to quote.
C123: **All rates and fees above reflect service for one (1) unit with the exception of Block of Time service.
C124: *Block of Time is available in 1 Year Term only and is priced as such no matter the term selection on this template.
B128: Quote Special Instructions:
B131: =Start_Here!E36 -> Terms and Conditions
B132: =Start_Here!E37 -> Ask your local sales rep for estimated lead times. Verify when placing order
B133: =Start_Here!E38 -> All orders subject to acceptance by Tennant Sales and Service Company, Minneapolis, Minnesota
B134: =Start_Here!E39 -> Prices subject to change without notice. Subject to any applicable taxes.
B135: =Start_Here!E40 -> Terms: Net 30 days. Payable in Canadian Funds
B136: =Start_Here!E41 -> Freight: Accessories, parts, supplies, detergents, and floor coatings orders delivered DDP
B137: =Start_Here!E42 -> shipping point Frt PPD. Machine orders delivered DDP shipping point Frt PPD and add.
B138: =Start_Here!E43 -> Returned Merchandise is subject to a restocking fee.
B139: =Start_Here!E44 -> All orders are subject to Tennant’s General Terms and Conditions available at http://www.tennantco.com/terms.
B140: =Start_Here!E45 -> Printed General Terms and Conditions are also available upon request.
B141: =Start_Here!E46 -> 0
E143: Quote Date : | G143: =Letter!$A$25 -> 2020-09-22
B144: Order Placement Information: To place your order, fill in PO# and customer signatures,
B145: call or fax to the numbers listed below. Customer Purchase Order is required.
B146: If information is missing, orders will be entered and held until all information is received.
C147: Customer Number | E147: Cust Grp 3
C148: =Start_Here!$C$25 -> 0 | E148: =Start_Here!$C$29 -> 0
C149: =Start_Here!$B$18 -> Who Owns the Machine? (Sold-To Info) (Please Verify)
A150: Company | C150: =Start_Here!$C$19 -> Company Name
A151: Address | C151: =Start_Here!$C$20 -> Address
C152: =Start_Here!$C$21 -> City, State Zip
A153: Name | C153: =Start_Here!$C$22 -> Contact Name
A154: Phone | C154: =Start_Here!$C$23 -> Contact Phone
C155: =Start_Here!$B$11 -> Where is the Machine Being Shipped? (Ship-To Info) (Please Verify)
A156: Company | C156: =Start_Here!$C$12 -> Company Name
A157: Address | C157: =Start_Here!$C$13 -> Address
C158: =Start_Here!$C$14 -> City, State Zip
A159: Name | C159: =Start_Here!$C$15 -> Contact Name
A160: Phone | C160: =Start_Here!$C$16 -> Contact Phone
C161: =Start_Here!$B$31 -> Shipping / Carrier Instructions: | E161: Order Special Instructions:
C162: =Start_Here!$C$32 -> 0
C164: Customer Purchase Order No.
C165: (please attach copy)
C168: Tax Exempt | E168: Yes
E169: No
C170: If Yes, attach a copy of your exemption certificate.
C172: Requested Delivery Date
C173: =Start_Here!$C$28 -> 0
C175: =Start_Here!$C$26 -> 0 | E175: =Start_Here!$C$27 -> 0
C176: Authorized Buyer (please print) | E176: Phone Number
C179: Authorized Buyer Signature
C181: =Start_Here!$C$41 -> Rep Name
C182: Tennant Representative
A184: Specialized Maintenance Equipment
A185: =Start_Here!$C$48 -> TENNANT · 10400 Clean Street · Eden Prairie, MN 55344 ·
A186: =Start_Here!$C$49 -> PHONE:800-553-8033 · FAX:763-513-2116
B188: Notes
B190: 1 | C190: Factory installed pricing. Only available on wet batteries, not sealed.
B192: 2 | C192: A French and English manual will be supplied for all units shipping into Quebec, Canada at no charge. Additional manuals
C193: can be ordered at no charge on Tennantco.com and service manuals on My Account.
B195: 4 | C195: Shipping Weights and Dimensions | D195: Skid w/ Carton
C197: 24" / 610mm Cleaning Path
C198: Weight (w/ 435AH Battery) | D198: 1,346 lbs / 610 Kg
C199: Length | D199: 85" / 2,159mm
C200: Width | D200: 46" / 1,169mm
C201: Height | D201: 63" / 1,600mm
C203: 27" / 690mm Cleaning Path
C204: Weight (w/ 435AH Battery) | D204: 1,350 lbs / 612 Kg
C205: Length | D205: 85" / 2,159mm
C206: Width | D206: 46" / 1,169mm
C207: Height | D207: 63" / 1,600mm

Sheet S7_S6
A1: S7_S6 | C1: =Start_Here!$C19 -> Company Name
A2: =SUM(G50) -> 0 | C2: =Start_Here!$C20 -> Address
C3: =Start_Here!$C21 -> City, State Zip
C4: =Start_Here!$C22 -> Contact Name
C5: =Start_Here!$C$41 -> Rep Name
C6: =Start_Here!$C$37 -> Tennant Sales and Service Company
C7: =Start_Here!$C$38 -> 10400 Clean Street
C8: =Start_Here!$C$39 -> Eden Prairie, MN 55344
C9: =Start_Here!$C$43 -> 800-553-8033 | E9: Quote Date : | G9: =Letter!$A$25 -> 2020-09-22
C11: =Help!C2 -> CAN Date Rev - 9/30/2024
C13: EXCLUSIVE FACTORY-DIRECT WARRANTY | E13: Quote Request Information
C14: BATTERIES ARE PRORATED OVER 1 YEAR | G14: Fax (quote only)
C15: Model S5, S6, S7 | G15: Mail (quote,lit, specs)
C16: 24 MONTHS ON PARTS | G16: Fax + Mail
C17: 12 MONTHS - LABOR
C18: 90 DAYS - TRAVEL | E18: Primary Use
G19: Inside
G20: Outside
C22: Description | D22: Reference# | E22: Price Each | F22: Qty | G22: Extended Price
C24: S7 - 28 in (700 mm) Battery Walk-Behind Sweeper | D24: 1251272 | E24: 9206 | G24: =F24*E24 -> 0 | H24: =IFERROR(IFERROR(VLOOKUP(D24,Surcharge!A:B,2,FALSE)*F24, VLOOKUP(D24 & "",Surcharge!A:B,2,FALSE)*F24), "") ->  | L24: =SUM(F24) -> 0 | M24: Surcharge Qty | P24: =VLOOKUP(D24,'MPF SAP Canada Pre-Configured'!$C:$E,3,FALSE) -> 9206
C25: 28" (700mm) cleaning path, 1.6 cu. Ft (45 L) hopper capacity, 140AH sealed battery on-board charger. | F25: =SUM(F24) -> 0 | H25: =IFERROR(IFERROR(VLOOKUP(D25,Surcharge!A:B,2,FALSE)*F25, VLOOKUP(D25 & "",Surcharge!A:B,2,FALSE)*F25), "") -> 
C26: Boxed dimensions: 47.25 in x 31.5 in x 41.5 in (L 1200 x W 800 x H 1050) | F26: =SUM(F25) -> 0 | H26: =IFERROR(IFERROR(VLOOKUP(D26,Surcharge!A:B,2,FALSE)*F26, VLOOKUP(D26 & "",Surcharge!A:B,2,FALSE)*F26), "") -> 
C27: Shipping Weight : 319 lb/144.5kg / Cu. Ft.: 35.8 | F27: =SUM(F26) -> 0 | H27: =IFERROR(IFERROR(VLOOKUP(D27,Surcharge!A:B,2,FALSE)*F27, VLOOKUP(D27 & "",Surcharge!A:B,2,FALSE)*F27), "") -> 
C30: S6 - 25 in (635 mm) Battery Walk-Behind Sweeper | D30: 1251268 | E30: 4606 | G30: =F30*E30 -> 0 | H30: =IFERROR(IFERROR(VLOOKUP(D30,Surcharge!A:B,2,FALSE)*F30, VLOOKUP(D30 & "",Surcharge!A:B,2,FALSE)*F30), "") ->  | P30: =VLOOKUP(D30,'MPF SAP Canada Pre-Configured'!$C:$E,3,FALSE) -> 4606
C31: 25" (635mm) cleaning path, 1.25 cu. Ft (35 L) hopper capacity, 42 AH sealed battery and on-board charger. | F31: =SUM(F30) -> 0
C32: Boxed dimensions on pallet: 34.25 in x 21.75 in x 25 in (L 870 x W 550 x H 630) | F32: =SUM(F31) -> 0
C33: Shipping Weight : 123lb/56kg / Cu. Ft.: 10.8 | F33: 0
H35: =IFERROR(IFERROR(VLOOKUP(D35,Surcharge!A:B,2,FALSE)*F35, VLOOKUP(D35 & "",Surcharge!A:B,2,FALSE)*F35), "") -> 
E37: =ROUND(SUM(G23:G36), 0) -> 0 | F37: =SUM(E38) -> 0
D38: Machine Subtotal | E38: =ROUND(SUM(G23:G36), 0) -> 0 | F38: =F37 -> 0
B39: Discounts | F39: =SUM(F40) -> 0
F40: =SUM(F42:F43) -> 0
D41: Applicable Currency Adj % | F41: =IF(E41 <> "", 1, 0) -> 0 | G41: =IF(F41*(E41*0.01)*E37 < 0, F41*(E41*0.01)*E37, -(F41*(E41*0.01)*E37)) -> 0
D42: Discount % | F42: =IF(E42 <> "", 1, 0) -> 0 | G42: =IF(F42*(E42*0.01)*(E37+G41) < 0, F42*(E42*0.01)*(E37+G41), -(F42*(E42*0.01)*(E37+G41))) -> 0
D43: Discount $ | F43: =IF(E43 <> "", 1, 0) -> 0 | G43: =IF(F43*E43 < 0, F43*E43, -(F43*E43)) -> 0
D44: Discount Total | E44: =SUM(G41:G43) -> 0 | F44: =SUM(E44) -> 0
F45: =#REF! -> 
F46: =F45 -> 
C47: Prepaid and Add | D47: Freight | F47: =IF(E47 <> "", 1, 0) -> 0 | G47: =F47*E47 -> 0
C48: Subject to all applicable taxes | D48: Tax | F48: =IF(E48 <> "", 1, 0) -> 0 | G48: =F48*E48 -> 0
F49: =SUM(F50) -> 0
D50: MACHINE TOTAL* | F50: =SUM(G50) -> 0 | G50: =SUM(G23:G48) -> 0 | N50: This goes to "My Documents"
G51: =SUM(G50) -> 0
C56: First Western Equipment Finance - Leasing Calculation Option: | D56: Option 1 | F56: Option 2 | J56: =Financing!A38 -> Rates 2023 - Rev 10/10/2023
D57: Monthly Payment | E57: Cost Per Day | F57: Monthly Payment | G57: Cost Per Day | J57: =Financing!A39 -> “Blank Payment Amounts Indicate The Financing Option Or Purchase Options Selected Are Not
C58: Purchase Option: | D58: FWEF: $1 Buyout Lease | F58: FWEF: Municipal Lease | J58: =Financing!A40 -> Applicable Or The Machine Total Is Below The Minimum Amount For The Selected Vendor”
C59: 24 Months | D59: FALSE | E59: 0 | F59: FALSE | G59: 0 | J59: =Financing!A41 -> "Quoted monthly payments are estimates only and are based on a certain level of credit rating.
C60: 30 Months | D60: FALSE | E60: 0 | F60: FALSE | G60: 0 | J60: =Financing!A42 -> Actual monthly payments may be higher depending on your credit rating."
C61: 36 Months | D61: FALSE | E61: 0 | F61: FALSE | G61: 0 | J61: =Financing!A43 -> “Financing rates do not include Pre-Paid Service”
C62: 48 Months | D62: 0 | E62: 0 | F62: 0 | G62: 0 | J62: =Financing!A44 -> 0
D64: Benefits of Equipment Financing:
D65: • Spreads out investment over time. | F65: • Keep current with latest technology.
D66: • Preserve capital. | F66: • Service and parts bundling available.
D67: • Low monthly payment. | F67: • Pay for labor savings as you go.
B70: TennantTrue | D70: 0 | E70: 0
C72: Is customer interested in service program? | D72: Yes | E72: *State/County selection required for TennantTrue service options
C74: If not, why?
C76: Term: | D76: 36 | G76: AB Brushes | H76: No
C77: Monthly machine usage (hrs): | D77: < 30/mo. (Avg. 1hr./day)
C79: TennantTrue: | D79: Gold Contract | F79: Silver Contract
C80: Per Visit | F80: 421
C81: Monthly | D81: 109 | F81: 67
C82: Annually | F82: 792
C83: Pre-Pay Full Term | D83: 3769 | F83: 2327
C84: Hourly Labor Rate
C85: Site Visit
C87: * Verify customer current pricing prior to quote.
C88: **All rates and fees above reflect service for one (1) unit with the exception of Block of Time service.
C89: *Block of Time is available in 1 Year Term only and is priced as such no matter the term selection on this template.
B93: Quote Special Instructions:
B96: =Start_Here!E36 -> Terms and Conditions
B97: =Start_Here!E37 -> Ask your local sales rep for estimated lead times. Verify when placing order
B98: =Start_Here!E38 -> All orders subject to acceptance by Tennant Sales and Service Company, Minneapolis, Minnesota
B99: =Start_Here!E39 -> Prices subject to change without notice. Subject to any applicable taxes.
B100: =Start_Here!E40 -> Terms: Net 30 days. Payable in Canadian Funds
B101: =Start_Here!E41 -> Freight: Accessories, parts, supplies, detergents, and floor coatings orders delivered DDP
B102: =Start_Here!E42 -> shipping point Frt PPD. Machine orders delivered DDP shipping point Frt PPD and add.
B103: =Start_Here!E43 -> Returned Merchandise is subject to a restocking fee.
B104: =Start_Here!E44 -> All orders are subject to Tennant’s General Terms and Conditions available at http://www.tennantco.com/terms.
B105: =Start_Here!E45 -> Printed General Terms and Conditions are also available upon request.
B106: =Start_Here!E46 -> 0
E108: Quote Date : | G108: =Letter!$A$25 -> 2020-09-22
B109: Order Placement Information: To place your order, fill in PO# and customer signatures,
B110: call or fax to the numbers listed below. Customer Purchase Order is required.
B111: If information is missing, orders will be entered and held until all information is received.
C112: Customer Number | E112: Cust Grp 3
C113: =Start_Here!$C$25 -> 0 | E113: =Start_Here!$C$29 -> 0
C114: =Start_Here!$B$18 -> Who Owns the Machine? (Sold-To Info) (Please Verify)
A115: Company | C115: =Start_Here!$C$19 -> Company Name
A116: Address | C116: =Start_Here!$C$20 -> Address
C117: =Start_Here!$C$21 -> City, State Zip
A118: Name | C118: =Start_Here!$C$22 -> Contact Name
A119: Phone | C119: =Start_Here!$C$23 -> Contact Phone
C120: =Start_Here!$B$11 -> Where is the Machine Being Shipped? (Ship-To Info) (Please Verify)
A121: Company | C121: =Start_Here!$C$12 -> Company Name
A122: Address | C122: =Start_Here!$C$13 -> Address
C123: =Start_Here!$C$14 -> City, State Zip
A124: Name | C124: =Start_Here!$C$15 -> Contact Name
A125: Phone | C125: =Start_Here!$C$16 -> Contact Phone
C126: =Start_Here!$B$31 -> Shipping / Carrier Instructions: | E126: Order Special Instructions:
C127: =Start_Here!$C$32 -> 0
C129: Customer Purchase Order No.
C130: (please attach copy)
C133: Tax Exempt | E133: Yes
E134: No
C135: If Yes, attach a copy of your exemption certificate.
C137: Requested Delivery Date
C138: =Start_Here!$C$28 -> 0
C140: =Start_Here!$C$26 -> 0 | E140: =Start_Here!$C$27 -> 0
C141: Authorized Buyer (please print) | E141: Phone Number
C144: Authorized Buyer Signature
C146: =Start_Here!$C$41 -> Rep Name
C147: Tennant Representative
A149: Specialized Maintenance Equipment
A150: =Start_Here!$C$48 -> TENNANT · 10400 Clean Street · Eden Prairie, MN 55344 ·
A151: =Start_Here!$C$49 -> PHONE:800-553-8033 · FAX:763-513-2116
B153: Notes
B155: 1 | C155: Factory installed pricing. Only available on wet batteries, not sealed.
B157: 2 | C157: Only available on 690mm/27" unit only.
B159: 3 | C159: A French and English manual will be supplied for all units shipping into Quebec, Canada at no charge. An additional manual
C160: can be ordered (for a total of 3 manuals) for an additional charge as stated under 'Additional Operator Manual'.
B162: 4 | C162: Skid w/Carton, Non-Stackable is the default packaging method and will be added to the configuration unless otherwise specified.
B164: 5 | C164: Shipping Weights and Dimensions | D164: Skid w/ Carton
C166: 24" / 610mm Cleaning Path
C167: Weight (w/ 435AH Battery) | D167: 1,346 lbs / 610 Kg
C168: Length | D168: 85" / 2,159mm
C169: Width | D169: 46" / 1,169mm
C170: Height | D170: 63" / 1,600mm
C172: 27" / 690mm Cleaning Path
C173: Weight (w/ 435AH Battery) | D173: 1,350 lbs / 612 Kg
C174: Length | D174: 85" / 2,159mm
C175: Width | D175: 46" / 1,169mm
C176: Height | D176: 63" / 1,600mm

Sheet 3640
A1: 3640 | C1: =Start_Here!$C19 -> Company Name
A2: =SUM(G129) -> 0 | C2: =Start_Here!$C20 -> Address
C3: =Start_Here!$C21 -> City, State Zip
C4: =Start_Here!$C22 -> Contact Name
C5: =Start_Here!$C$41 -> Rep Name
C6: =Start_Here!$C$37 -> Tennant Sales and Service Company
C7: =Start_Here!$C$38 -> 10400 Clean Street
C8: =Start_Here!$C$39 -> Eden Prairie, MN 55344
C9: =Start_Here!$C$43 -> 800-553-8033 | E9: Quote Date : | G9: =Letter!$A$25 -> 2020-09-22
C11: =Help!C2 -> CAN Date Rev - 9/30/2024
B12: BUILT-IN “TENNANT VALUE” INCLUDES:
D14: Variable Controls Height
B15: Standard 80cm/32" path width | D15: Fully Variable Forward/Reverse Speed Control
B16: Panel Filter with Timed Shaker | D16: Free-Floating Hopper
B17: High Air Flow Kit | D17: Hopper Capacity 85 l/3 cubic feet
B18: 130 AH Batteries with 11 Amp Off Board Charger | D18: Standard Side Brush (Select One)
B19: Battery Discharge Indicator w. Hour Meter | D19: Standard Main Brush (Select One)
B20: Self-adjusting Main and Side Brush | D20: Operator Training Video
B21: Direct Throw Sweeping | D21: Built in Spray Bottle/Glove Holder on Cover
B22: Quick Release Main Broom | D22: Hour Meter
B23: Parking Brake | D23: Key Switch
B26: TENNANT COMPANY WARRANTY
B27: 3 YEARS OR 2500 HOURS ON ALL COMPONENTS, 3 YEARS LABOR
B28: 90 DAYS TRAVEL, 10 YEARS ON DURAMERTM TANKS
E30: Quote Request Information
G31: Fax (quote only)
G32: Mail (quote,lit, specs)
G33: Fax + Mail
E35: Primary Use
G36: Inside
G37: Outside
A40: ` | C40: Description | D40: Reference # | E40: Price Each | F40: Qty | G40: Extended Price
B41: Base Configuration | F41: =SUM(F42,F45,F52) -> 0
C42: Cleaning Type | F42: =SUM(F43) -> 0 | L42: =SUM(F42) -> 0 | M42: Surcharge Qty
C43: 3640 E Battery Powered Walk-Behind Sweeper | D43: 3640-E | E43: 22803 | G43: =F43*E43 -> 0 | H43: =IFERROR(IFERROR(VLOOKUP(D43,Surcharge!A:B,2,FALSE)*F43, VLOOKUP(D43 & "",Surcharge!A:B,2,FALSE)*F43), "") -> 0 | L43: =SUM(F43) -> 0 | M43: Surcharge Qty | P43: =VLOOKUP(Q43,'MPF SAP Download Canada'!$A:$D,4,FALSE) -> 22803 | Q43: M-3640VK_BASE_3640-BTY
H44: =IFERROR(IFERROR(VLOOKUP(D44,Surcharge!A:B,2,FALSE)*F44, VLOOKUP(D44 & "",Surcharge!A:B,2,FALSE)*F44), "") -> 
C45: Battery Type | F45: =SUM(F46:F50) -> 0 | H45: =IFERROR(IFERROR(VLOOKUP(D45,Surcharge!A:B,2,FALSE)*F45, VLOOKUP(D45 & "",Surcharge!A:B,2,FALSE)*F45), "") -> 
C46: Wet 130AH C/5 (Kit of 2 batteries) | D46: 80128 | E46: N/C | G46: =IF(F46=0," ","N/C") ->  | H46: =IFERROR(IFERROR(VLOOKUP(D46,Surcharge!A:B,2,FALSE)*F46, VLOOKUP(D46 & "",Surcharge!A:B,2,FALSE)*F46), "") ->  | P46: =VLOOKUP(Q46,'MPF SAP Download Canada'!$A:$D,4,FALSE) -> N/C | Q46: M-3640VK_BTY_W130C20
C47: Wet 225AH C/6 (Kit of 2 batteries) (Extended Run Time Batteries) Requires 19A 100-240V AC 50/60Hz 1PH Charger | E47: 665 | G47: =F47*E47 -> 0 | H47: =IFERROR(IFERROR(VLOOKUP(D47,Surcharge!A:B,2,FALSE)*F47, VLOOKUP(D47 & "",Surcharge!A:B,2,FALSE)*F47), "") ->  | P47: =VLOOKUP(Q47,'MPF SAP Download Canada'!$A:$D,4,FALSE) -> 665 | Q47: M-3640VK_BTY_W225C20
C48: Less Battery | E48: -367 | G48: =F48*E48 -> 0 | H48: =IFERROR(IFERROR(VLOOKUP(D48,Surcharge!A:B,2,FALSE)*F48, VLOOKUP(D48 & "",Surcharge!A:B,2,FALSE)*F48), "") ->  | P48: =VLOOKUP(Q48,'MPF SAP Download Canada'!$A:$D,4,FALSE) -> -367 | Q48: M-3640VK_BTY_WO
H49: =IFERROR(IFERROR(VLOOKUP(D49,Surcharge!A:B,2,FALSE)*F49, VLOOKUP(D49 & "",Surcharge!A:B,2,FALSE)*F49), "") -> 
C50: Manual Battery Watering Kit (Note 1) | D50: 9009619 | E50: 825 | G50: =F50*E50 -> 0 | H50: =IFERROR(IFERROR(VLOOKUP(D50,Surcharge!A:B,2,FALSE)*F50, VLOOKUP(D50 & "",Surcharge!A:B,2,FALSE)*F50), "") ->  | P50: =VLOOKUP(Q50,'MPF SAP Download Canada'!$A:$D,4,FALSE) -> 825 | Q50: M-3640VK_BTYWTRSYS
H51: =IFERROR(IFERROR(VLOOKUP(D51,Surcharge!A:B,2,FALSE)*F51, VLOOKUP(D51 & "",Surcharge!A:B,2,FALSE)*F51), "") -> 
C52: Charger | D52: Reference Number | F52: =SUM(F53:F55) -> 0 | H52: =IFERROR(IFERROR(VLOOKUP(D52,Surcharge!A:B,2,FALSE)*F52, VLOOKUP(D52 & "",Surcharge!A:B,2,FALSE)*F52), "") -> 
C53: 11A 100-240V AC 50/60Hz 1PH - off board | D53: 1056034 | E53: N/C | G53: =IF(F53=0," ","N/C") ->  | H53: =IFERROR(IFERROR(VLOOKUP(D53,Surcharge!A:B,2,FALSE)*F53, VLOOKUP(D53 & "",Surcharge!A:B,2,FALSE)*F53), "") ->  | P53: =VLOOKUP(Q53,'MPF SAP Download Canada'!$A:$D,4,FALSE) -> N/C | Q53: M-3640VK_CHG_11A100V5060H1
C54: 19A 100-240V AC 50/60Hz 1PH - off board | D54: 1029256 | E54: 240 | G54: =F54*E54 -> 0 | H54: =IFERROR(IFERROR(VLOOKUP(D54,Surcharge!A:B,2,FALSE)*F54, VLOOKUP(D54 & "",Surcharge!A:B,2,FALSE)*F54), "") ->  | P54: =VLOOKUP(Q54,'MPF SAP Download Canada'!$A:$D,4,FALSE) -> 240 | Q54: M-3640VK_CHG_19A100V5060H1
C55: Less Charger | E55: -194 | G55: =F55*E55 -> 0 | H55: =IFERROR(IFERROR(VLOOKUP(D55,Surcharge!A:B,2,FALSE)*F55, VLOOKUP(D55 & "",Surcharge!A:B,2,FALSE)*F55), "") ->  | P55: =VLOOKUP(Q55,'MPF SAP Download Canada'!$A:$D,4,FALSE) -> -194 | Q55: M-3640VK_CHG_WO
H56: =IFERROR(IFERROR(VLOOKUP(D56,Surcharge!A:B,2,FALSE)*F56, VLOOKUP(D56 & "",Surcharge!A:B,2,FALSE)*F56), "") -> 
H57: =IFERROR(IFERROR(VLOOKUP(D57,Surcharge!A:B,2,FALSE)*F57, VLOOKUP(D57 & "",Surcharge!A:B,2,FALSE)*F57), "") -> 
B58: Packages (Note 2) | D58: Reference Number | F58: =SUM(F59) -> 0 | H58: =IFERROR(IFERROR(VLOOKUP(D58,Surcharge!A:B,2,FALSE)*F58, VLOOKUP(D58 & "",Surcharge!A:B,2,FALSE)*F58), "") -> 
C59: Carpet Cleaning Equipment Pkg (Note 3) | F59: =SUM(F60:F61) -> 0 | H59: =IFERROR(IFERROR(VLOOKUP(D59,Surcharge!A:B,2,FALSE)*F59, VLOOKUP(D59 & "",Surcharge!A:B,2,FALSE)*F59), "") -> 
C60: Standard Run Time - w/ standard 130 AH batteries | D60: 80123 | E60: 847 | G60: =F60*E60 -> 0 | H60: =IFERROR(IFERROR(VLOOKUP(D60,Surcharge!A:B,2,FALSE)*F60, VLOOKUP(D60 & "",Surcharge!A:B,2,FALSE)*F60), "") ->  | P60: 21311 | Q60: M-3640VK_CARCLNEQUPKG_SRT
C61: Extended Run Time - w/225 AH batteries | D61: 80040 | E61: 847 | G61: =F61*E61 -> 0 | H61: =IFERROR(IFERROR(VLOOKUP(D61,Surcharge!A:B,2,FALSE)*F61, VLOOKUP(D61 & "",Surcharge!A:B,2,FALSE)*F61), "") ->  | P61: 21311 | Q61: M-3640VK_CARCLNEQUPKG_ERT
C63: UL Rating/UL | F63: =SUM(F64:F65) -> 0
C64: UL Type E | D64: 80452 | E64: N/C | G64: =IF(F64=0," ","N/C") -> 
C65: UL Type EE | D65: 80454 | E65: 3708 | G65: =F65*E65 -> 0
H66: =IFERROR(IFERROR(VLOOKUP(D66,Surcharge!A:B,2,FALSE)*F66, VLOOKUP(D66 & "",Surcharge!A:B,2,FALSE)*F66), "") -> 
B67: Cleaning Performance | D67: Reference Number | F67: =SUM(F68:F79) -> 0 | H67: =IFERROR(IFERROR(VLOOKUP(D67,Surcharge!A:B,2,FALSE)*F67, VLOOKUP(D67 & "",Surcharge!A:B,2,FALSE)*F67), "") -> 
C68: Side Brush, Right Hand | E68: N/C | G68: =IF(F68=0," ","N/C") ->  | H68: =IFERROR(IFERROR(VLOOKUP(D68,Surcharge!A:B,2,FALSE)*F68, VLOOKUP(D68 & "",Surcharge!A:B,2,FALSE)*F68), "") ->  | P68: =VLOOKUP(Q68,'MPF SAP Download Canada'!$A:$D,4,FALSE) -> N/C | Q68: M-3640VK_SDEBRSLOC_RH
C69: Side Brush, Dual (Note 4) | D69: 80150 | E69: 1230 | G69: =F69*E69 -> 0 | H69: =IFERROR(IFERROR(VLOOKUP(D69,Surcharge!A:B,2,FALSE)*F69, VLOOKUP(D69 & "",Surcharge!A:B,2,FALSE)*F69), "") ->  | P69: =VLOOKUP(Q69,'MPF SAP Download Canada'!$A:$D,4,FALSE) -> 1230 | Q69: M-3640VK_SDEBRSLOC_D
H70: =IFERROR(IFERROR(VLOOKUP(D70,Surcharge!A:B,2,FALSE)*F70, VLOOKUP(D70 & "",Surcharge!A:B,2,FALSE)*F70), "") -> 
C71: Live Wand (Note 5) | D71: 373143 | E71: N/C | G71: =IF(F71=0," ","N/C") ->  | H71: =IFERROR(IFERROR(VLOOKUP(D71,Surcharge!A:B,2,FALSE)*F71, VLOOKUP(D71 & "",Surcharge!A:B,2,FALSE)*F71), "") ->  | P71: =VLOOKUP(Q71,'MPF SAP Download Canada'!$A:$D,4,FALSE) -> N/C | Q71: M-3640VK_PWRVACWND_LW
C72: Accessory Wand Kit (Note 6) | D72: 373138 | E72: 432 | G72: =F72*E72 -> 0 | H72: =IFERROR(IFERROR(VLOOKUP(D72,Surcharge!A:B,2,FALSE)*F72, VLOOKUP(D72 & "",Surcharge!A:B,2,FALSE)*F72), "") ->  | P72: =VLOOKUP(Q72,'MPF SAP Download Canada'!$A:$D,4,FALSE) -> 432 | Q72: M-3640VK_PWRVACWND_AWK
C73: Without Vacuum Wand | E73: N/C | G73: =IF(F73=0," ","N/C") ->  | H73: =IFERROR(IFERROR(VLOOKUP(D73,Surcharge!A:B,2,FALSE)*F73, VLOOKUP(D73 & "",Surcharge!A:B,2,FALSE)*F73), "") ->  | P73: =VLOOKUP(Q73,'MPF SAP Download Canada'!$A:$D,4,FALSE) ->  | Q73: M-3640
H74: =IFERROR(IFERROR(VLOOKUP(D74,Surcharge!A:B,2,FALSE)*F74, VLOOKUP(D74 & "",Surcharge!A:B,2,FALSE)*F74), "") -> 
C75: Dust Control Filter, Panel Filter | E75: N/C | G75: =IF(F75=0," ","N/C") ->  | H75: =IFERROR(IFERROR(VLOOKUP(D75,Surcharge!A:B,2,FALSE)*F75, VLOOKUP(D75 & "",Surcharge!A:B,2,FALSE)*F75), "") ->  | P75: =VLOOKUP(Q75,'MPF SAP Download Canada'!$A:$D,4,FALSE) -> N/C | Q75: M-3640VK_DSTCTLFLR_PFLR
C76: Dust Control Filter, Bag Filter (Note 7) | D76: 373146 | E76: -784 | G76: =F76*E76 -> 0 | H76: =IFERROR(IFERROR(VLOOKUP(D76,Surcharge!A:B,2,FALSE)*F76, VLOOKUP(D76 & "",Surcharge!A:B,2,FALSE)*F76), "") ->  | P76: =VLOOKUP(Q76,'MPF SAP Download Canada'!$A:$D,4,FALSE) -> -784 | Q76: M-3640VK_DSTCTLFLR_PFB
C77: HEPA Filter (Note 8) | D77: 324010 | E77: 9439 | G77: =F77*E77 -> 0 | H77: =IFERROR(IFERROR(VLOOKUP(D77,Surcharge!A:B,2,FALSE)*F77, VLOOKUP(D77 & "",Surcharge!A:B,2,FALSE)*F77), "") ->  | P77: =VLOOKUP(Q77,'MPF SAP Download Canada'!$A:$D,4,FALSE) -> 9439 | Q77: M-3640VK_HEPFLR
H78: =IFERROR(IFERROR(VLOOKUP(D78,Surcharge!A:B,2,FALSE)*F78, VLOOKUP(D78 & "",Surcharge!A:B,2,FALSE)*F78), "") -> 
C79: Hopper Dump Assist | D79: 80285 | E79: 272 | G79: =F79*E79 -> 0 | H79: =IFERROR(IFERROR(VLOOKUP(D79,Surcharge!A:B,2,FALSE)*F79, VLOOKUP(D79 & "",Surcharge!A:B,2,FALSE)*F79), "") ->  | P79: =VLOOKUP(Q79,'MPF SAP Download Canada'!$A:$D,4,FALSE) -> 272 | Q79: M-3640VK_HPRDMPAST
H80: =IFERROR(IFERROR(VLOOKUP(D80,Surcharge!A:B,2,FALSE)*F80, VLOOKUP(D80 & "",Surcharge!A:B,2,FALSE)*F80), "") -> 
B81: Machine Protection & Safety | D81: Reference Number | F81: =SUM(F82:F85) -> 0 | H81: =IFERROR(IFERROR(VLOOKUP(D81,Surcharge!A:B,2,FALSE)*F81, VLOOKUP(D81 & "",Surcharge!A:B,2,FALSE)*F81), "") -> 
C82: Emergency Stop | D82: 80179 | E82: 451 | G82: =F82*E82 -> 0 | H82: =IFERROR(IFERROR(VLOOKUP(D82,Surcharge!A:B,2,FALSE)*F82, VLOOKUP(D82 & "",Surcharge!A:B,2,FALSE)*F82), "") ->  | P82: =VLOOKUP(Q82,'MPF SAP Download Canada'!$A:$D,4,FALSE) -> 451 | Q82: M-3640VK_EMYSTP
H83: =IFERROR(IFERROR(VLOOKUP(D83,Surcharge!A:B,2,FALSE)*F83, VLOOKUP(D83 & "",Surcharge!A:B,2,FALSE)*F83), "") -> 
C84: Tires, Solid Rubber | E84: N/C | G84: =IF(F84=0," ","N/C") ->  | H84: =IFERROR(IFERROR(VLOOKUP(D84,Surcharge!A:B,2,FALSE)*F84, VLOOKUP(D84 & "",Surcharge!A:B,2,FALSE)*F84), "") ->  | P84: =VLOOKUP(Q84,'MPF SAP Download Canada'!$A:$D,4,FALSE) -> N/C | Q84: M-3640VK_NONMKTTRE_BSR
C85: Tires, Wide Trac Pneumatic (Note 9) | D85: 80226 | E85: 883 | G85: =F85*E85 -> 0 | H85: =IFERROR(IFERROR(VLOOKUP(D85,Surcharge!A:B,2,FALSE)*F85, VLOOKUP(D85 & "",Surcharge!A:B,2,FALSE)*F85), "") ->  | P85: =VLOOKUP(Q85,'MPF SAP Download Canada'!$A:$D,4,FALSE) -> 883 | Q85: M-3640VK_NONMKTTRE_WTP
H86: =IFERROR(IFERROR(VLOOKUP(D86,Surcharge!A:B,2,FALSE)*F86, VLOOKUP(D86 & "",Surcharge!A:B,2,FALSE)*F86), "") -> 
B87: Brushes | D87: Reference Number | F87: =SUM(F88,F94) -> 0 | H87: =IFERROR(IFERROR(VLOOKUP(D87,Surcharge!A:B,2,FALSE)*F87, VLOOKUP(D87 & "",Surcharge!A:B,2,FALSE)*F87), "") -> 
C88: Cleaning Tool (Note 10) | F88: =SUM(F89:F92) -> 0 | H88: =IFERROR(IFERROR(VLOOKUP(D88,Surcharge!A:B,2,FALSE)*F88, VLOOKUP(D88 & "",Surcharge!A:B,2,FALSE)*F88), "") -> 
C89: Polyprolyene Brush | D89: 80058 | E89: N/C | G89: =IF(F89=0," ","N/C") ->  | H89: =IFERROR(IFERROR(VLOOKUP(D89,Surcharge!A:B,2,FALSE)*F89, VLOOKUP(D89 & "",Surcharge!A:B,2,FALSE)*F89), "") ->  | P89: =VLOOKUP(Q89,'MPF SAP Download Canada'!$A:$D,4,FALSE) -> N/C | Q89: M-3640VK_CLNTOL_PYP
C90: Polyprolyene & Wire Brush | D90: 378802 | E90: N/C | G90: =IF(F90=0," ","N/C") ->  | H90: =IFERROR(IFERROR(VLOOKUP(D90,Surcharge!A:B,2,FALSE)*F90, VLOOKUP(D90 & "",Surcharge!A:B,2,FALSE)*F90), "") ->  | P90: =VLOOKUP(Q90,'MPF SAP Download Canada'!$A:$D,4,FALSE) -> N/C | Q90: M-3640VK_CLNTOL_PYPW
C91: Union Mix Brush (Carpet) | D91: 80355 | E91: N/C | G91: =IF(F91=0," ","N/C") ->  | H91: =IFERROR(IFERROR(VLOOKUP(D91,Surcharge!A:B,2,FALSE)*F91, VLOOKUP(D91 & "",Surcharge!A:B,2,FALSE)*F91), "") ->  | P91: =VLOOKUP(Q91,'MPF SAP Download Canada'!$A:$D,4,FALSE) -> N/C | Q91: M-3640VK_CLNTOL_UMB
C92: Sand Wedge Brush | D92: 80351 | E92: N/C | G92: =IF(F92=0," ","N/C") ->  | H92: =IFERROR(IFERROR(VLOOKUP(D92,Surcharge!A:B,2,FALSE)*F92, VLOOKUP(D92 & "",Surcharge!A:B,2,FALSE)*F92), "") ->  | P92: =VLOOKUP(Q92,'MPF SAP Download Canada'!$A:$D,4,FALSE) -> N/C | Q92: M-3640VK_CLNTOL_SWB
H93: =IFERROR(IFERROR(VLOOKUP(D93,Surcharge!A:B,2,FALSE)*F93, VLOOKUP(D93 & "",Surcharge!A:B,2,FALSE)*F93), "") -> 
C94: Side Cleaning Tool | F94: =SUM(F95) -> 0 | H94: =IFERROR(IFERROR(VLOOKUP(D94,Surcharge!A:B,2,FALSE)*F94, VLOOKUP(D94 & "",Surcharge!A:B,2,FALSE)*F94), "") -> 
C95: Polyprolyene Brush | D95: 80042 | E95: N/C | G95: =IF(F95=0," ","N/C") ->  | H95: =IFERROR(IFERROR(VLOOKUP(D95,Surcharge!A:B,2,FALSE)*F95, VLOOKUP(D95 & "",Surcharge!A:B,2,FALSE)*F95), "") ->  | P95: =VLOOKUP(Q95,'MPF SAP Download Canada'!$A:$D,4,FALSE) -> N/C | Q95: M-3640VK_SDECLNTOL_PYP
H96: =IFERROR(IFERROR(VLOOKUP(D96,Surcharge!A:B,2,FALSE)*F96, VLOOKUP(D96 & "",Surcharge!A:B,2,FALSE)*F96), "") -> 
B97: Support | D97: Reference Number | F97: =SUM(F98:F106) -> 0 | H97: =IFERROR(IFERROR(VLOOKUP(D97,Surcharge!A:B,2,FALSE)*F97, VLOOKUP(D97 & "",Surcharge!A:B,2,FALSE)*F97), "") -> 
C98: Operator Manual English | D98: 330560 | E98: N/C | G98: =IF(F98=0," ","N/C") ->  | H98: =IFERROR(IFERROR(VLOOKUP(D98,Surcharge!A:B,2,FALSE)*F98, VLOOKUP(D98 & "",Surcharge!A:B,2,FALSE)*F98), "") ->  | P98: =VLOOKUP(Q98,'MPF SAP Download Canada'!$A:$D,4,FALSE) ->  | Q98: M-3640
C99: Operator Manual Spanish | D99: 330562 | E99: N/C | G99: =IF(F99=0," ","N/C") ->  | H99: =IFERROR(IFERROR(VLOOKUP(D99,Surcharge!A:B,2,FALSE)*F99, VLOOKUP(D99 & "",Surcharge!A:B,2,FALSE)*F99), "") ->  | P99: =VLOOKUP(Q99,'MPF SAP Download Canada'!$A:$D,4,FALSE) ->  | Q99: M-3640
C100: Operator Manual French (Note 11) | D100: 330563 | E100: N/C | G100: =IF(F100=0," ","N/C") ->  | H100: =IFERROR(IFERROR(VLOOKUP(D100,Surcharge!A:B,2,FALSE)*F100, VLOOKUP(D100 & "",Surcharge!A:B,2,FALSE)*F100), "") ->  | P100: =VLOOKUP(Q100,'MPF SAP Download Canada'!$A:$D,4,FALSE) ->  | Q100: M-3640
C101: Operator Manual Japanese | D101: 330564 | E101: N/C | G101: =IF(F101=0," ","N/C") ->  | H101: =IFERROR(IFERROR(VLOOKUP(D101,Surcharge!A:B,2,FALSE)*F101, VLOOKUP(D101 & "",Surcharge!A:B,2,FALSE)*F101), "") ->  | P101: =VLOOKUP(Q101,'MPF SAP Download Canada'!$A:$D,4,FALSE) ->  | Q101: M-3640
C102: Additional Operator Manual | D102: see above | E102: 130 | G102: =F102*E102 -> 0 | H102: =IFERROR(IFERROR(VLOOKUP(D102,Surcharge!A:B,2,FALSE)*F102, VLOOKUP(D102 & "",Surcharge!A:B,2,FALSE)*F102), "") ->  | P102: =VLOOKUP(Q102,'MPF SAP Download Canada'!$A:$D,4,FALSE) -> 130 | Q102: M-3640VK_ADLOPRMNL
C103: Parts Manual | E103: 29 | G103: =F103*E103 -> 0 | H103: =IFERROR(IFERROR(VLOOKUP(D103,Surcharge!A:B,2,FALSE)*F103, VLOOKUP(D103 & "",Surcharge!A:B,2,FALSE)*F103), "") ->  | P103: =VLOOKUP(Q103,'MPF SAP Download Canada'!$A:$D,4,FALSE) -> 29 | Q103: M-3640VK_PARMNL
C104: 3640 Service Manual | D104: 330565 | E104: 298 | G104: =F104*E104 -> 0 | H104: =IFERROR(IFERROR(VLOOKUP(D104,Surcharge!A:B,2,FALSE)*F104, VLOOKUP(D104 & "",Surcharge!A:B,2,FALSE)*F104), "") ->  | P104: =VLOOKUP(Q104,'MPF SAP Download Canada'!$A:$D,4,FALSE) -> 298 | Q104: M-3640VK_SRVMNL
H105: =IFERROR(IFERROR(VLOOKUP(D105,Surcharge!A:B,2,FALSE)*F105, VLOOKUP(D105 & "",Surcharge!A:B,2,FALSE)*F105), "") -> 
C106: Packaging | F106: =SUM(F107:F107) -> 0 | H106: =IFERROR(IFERROR(VLOOKUP(D106,Surcharge!A:B,2,FALSE)*F106, VLOOKUP(D106 & "",Surcharge!A:B,2,FALSE)*F106), "") -> 
C107: Skid w/Carton, Stackable | D107: 9005746 | E107: N/C | G107: =IF(F107=0," ","N/C") ->  | H107: =IFERROR(IFERROR(VLOOKUP(D107,Surcharge!A:B,2,FALSE)*F107, VLOOKUP(D107 & "",Surcharge!A:B,2,FALSE)*F107), "") ->  | P107: =VLOOKUP(Q107,'MPF SAP Download Canada'!$A:$D,4,FALSE) -> N/C | Q107: M-3640VK_PKG_SSKD_USCAMX
H108: =IFERROR(IFERROR(VLOOKUP(D108,Surcharge!A:B,2,FALSE)*F108, VLOOKUP(D108 & "",Surcharge!A:B,2,FALSE)*F108), "") -> 
B110: Custom Solution--write in description, qty, price, and PN if applicable | F110: =SUM(F111) -> 0
E111: Insert Prices Here | F111: =SUM(F112:F115) -> 0
D112: Custom | F112: =IF(E112 <> "", 1, 0) -> 0 | G112: =F112*E112 -> 0
D113: Custom | F113: =IF(E113 <> "", 1, 0) -> 0 | G113: =F113*E113 -> 0
D114: Custom | F114: =IF(E114 <> "", 1, 0) -> 0 | G114: =F114*E114 -> 0
D115: Custom | F115: =IF(E115 <> "", 1, 0) -> 0 | G115: =F115*E115 -> 0
E116: =ROUND(SUM(G43:G115), 0) -> 0 | F116: =SUM(E117) -> 0
D117: Machine Subtotal | E117: =ROUND(SUM(G43:G115), 0) -> 0 | F117: =F116 -> 0
B118: Discounts | F118: =SUM(F119) -> 0
F119: =SUM(F121:F122) -> 0
D120: Applicable Currency Adj % | F120: =IF(E120 <> "", 1, 0) -> 0 | G120: =IF(F120*(E120*0.01)*E116 < 0, F120*(E120*0.01)*E116, -(F120*(E120*0.01)*E116)) -> 0
D121: Discount % | F121: =IF(E121 <> "", 1, 0) -> 0 | G121: =IF(F121*(E121*0.01)*(E116+G120) < 0, F121*(E121*0.01)*(E116+G120), -(F121*(E121*0.01)*(E116+G120))) -> 0
D122: Discount $ | F122: =IF(E122 <> "", 1, 0) -> 0 | G122: =IF(F122*E122 < 0, F122*E122, -(F122*E122)) -> 0
D123: Discount Total | E123: =SUM(G120:G122) -> 0 | F123: =SUM(E123) -> 0
F124: =#REF! -> 
F125: =F124 -> 
C126: Prepaid and Add | D126: Freight | F126: =IF(E126 <> "", 1, 0) -> 0 | G126: =F126*E126 -> 0
C127: Subject to all applicable taxes | D127: Tax | F127: =IF(E127 <> "", 1, 0) -> 0 | G127: =F127*E127 -> 0
F128: =SUM(F129) -> 0
D129: MACHINE TOTAL* | F129: =SUM(G129) -> 0 | G129: =SUM(G43:G127) -> 0 | N129: This goes to "My Documents"
G130: =SUM(G129) -> 0
C135: First Western Equipment Finance - Leasing Calculation Option: | D135: Option 1 | F135: Option 2 | J135: =Financing!A38 -> Rates 2023 - Rev 10/10/2023
D136: Monthly Payment | E136: Cost Per Day | F136: Monthly Payment | G136: Cost Per Day | J136: =Financing!A39 -> “Blank Payment Amounts Indicate The Financing Option Or Purchase Options Selected Are Not
C137: Purchase Option: | D137: FWEF: $1 Buyout Lease | F137: FWEF: Municipal Lease | J137: =Financing!A40 -> Applicable Or The Machine Total Is Below The Minimum Amount For The Selected Vendor”
C138: 24 Months | D138: FALSE | E138: 0 | F138: FALSE | G138: 0 | J138: =Financing!A41 -> "Quoted monthly payments are estimates only and are based on a certain level of credit rating.
C139: 30 Months | D139: FALSE | E139: 0 | F139: FALSE | G139: 0 | J139: =Financing!A42 -> Actual monthly payments may be higher depending on your credit rating."
C140: 36 Months | D140: FALSE | E140: 0 | F140: FALSE | G140: 0 | J140: =Financing!A43 -> “Financing rates do not include Pre-Paid Service”
C141: 48 Months | D141: 0 | E141: 0 | F141: 0 | G141: 0
D143: Benefits of Equipment Financing:
D144: • Spreads out investment over time. | F144: • Keep current with latest technology.
D145: • Preserve capital. | F145: • Service and parts bundling available.
D146: • Low monthly payment. | F146: • Pay for labor savings as you go.
B149: TennantTrue | D149: 0 | E149: 0
C151: Is customer interested in service program? | D151: Yes | E151: *State/County selection required for TennantTrue service options
C153: If not, why?
C155: Term: | D155: 36 | G155: AB Brushes | H155: No
C156: Monthly machine usage (hrs): | D156: < 30/mo. (Avg. 1hr./day)
C158: TennantTrue: | D158: Gold Contract | F158: Silver Contract
C159: Per Visit | F159: 421
C160: Monthly | D160: 133 | F160: 67
C161: Annually | F161: 792
C162: Pre-Pay Full Term | D162: 4588 | F162: 2327
C163: Hourly Labor Rate
C164: Site Visit
C166: * Verify customer current pricing prior to quote.
C167: **All rates and fees above reflect service for one (1) unit with the exception of Block of Time service.
C168: *Block of Time is available in 1 Year Term only and is priced as such no matter the term selection on this template.
B172: Quote Special Instructions:
B175: =Start_Here!E36 -> Terms and Conditions
B176: =Start_Here!E37 -> Ask your local sales rep for estimated lead times. Verify when placing order
B177: =Start_Here!E38 -> All orders subject to acceptance by Tennant Sales and Service Company, Minneapolis, Minnesota
B178: =Start_Here!E39 -> Prices subject to change without notice. Subject to any applicable taxes.
B179: =Start_Here!E40 -> Terms: Net 30 days. Payable in Canadian Funds
B180: =Start_Here!E41 -> Freight: Accessories, parts, supplies, detergents, and floor coatings orders delivered DDP
B181: =Start_Here!E42 -> shipping point Frt PPD. Machine orders delivered DDP shipping point Frt PPD and add.
B182: =Start_Here!E43 -> Returned Merchandise is subject to a restocking fee.
B183: =Start_Here!E44 -> All orders are subject to Tennant’s General Terms and Conditions available at http://www.tennantco.com/terms.
B184: =Start_Here!E45 -> Printed General Terms and Conditions are also available upon request.
B185: =Start_Here!E46 -> 0
E187: Quote Date : | G187: =Letter!$A$25 -> 2020-09-22
B188: Order Placement Information: To place your order, fill in PO# and customer signatures,
B189: call or fax to the numbers listed below. Customer Purchase Order is required.
B190: If information is missing, orders will be entered and held until all information is received.
C191: Customer Number | E191: Cust Grp 3
C192: =Start_Here!$C$25 -> 0 | E192: =Start_Here!$C$29 -> 0
C193: =Start_Here!$B$18 -> Who Owns the Machine? (Sold-To Info) (Please Verify)
A194: Company | C194: =Start_Here!$C$19 -> Company Name
A195: Address | C195: =Start_Here!$C$20 -> Address
C196: =Start_Here!$C$21 -> City, State Zip
A197: Name | C197: =Start_Here!$C$22 -> Contact Name
A198: Phone | C198: =Start_Here!$C$23 -> Contact Phone
C199: =Start_Here!$B$11 -> Where is the Machine Being Shipped? (Ship-To Info) (Please Verify)
A200: Company | C200: =Start_Here!$C$12 -> Company Name
A201: Address | C201: =Start_Here!$C$13 -> Address
C202: =Start_Here!$C$14 -> City, State Zip
A203: Name | C203: =Start_Here!$C$15 -> Contact Name
A204: Phone | C204: =Start_Here!$C$16 -> Contact Phone
C205: =Start_Here!$B$31 -> Shipping / Carrier Instructions: | E205: Order Special Instructions:
C206: =Start_Here!$C$32 -> 0
C208: Customer Purchase Order No.
C209: (please attach copy)
C212: Tax Exempt | E212: Yes
E213: No
C214: If Yes, attach a copy of your exemption certificate.
C216: Requested Delivery Date
C217: =Start_Here!$C$28 -> 0
C219: =Start_Here!$C$26 -> 0 | E219: =Start_Here!$C$27 -> 0
C220: Authorized Buyer (please print) | E220: Phone Number
C223: Authorized Buyer Signature
C225: =Start_Here!$C$41 -> Rep Name
C226: Tennant Representative
A228: Specialized Maintenance Equipment
A229: =Start_Here!$C$48 -> TENNANT · 10400 Clean Street · Eden Prairie, MN 55344 ·
A230: =Start_Here!$C$49 -> PHONE:800-553-8033 · FAX:763-513-2116
B233: SPECIAL INFORMATION
B235: 1 | C235: Only available on 225 AH wet batteries.
B237: 2 | C237: Configuration Reccomendation Criteria:
C238: Standard Configuration - | D238: Panel Filter/Live Wand | F238: Bag Filter/Live Wand
C239: Panel Filter/High Air Flow System | D239: (Less High Air Flow System) | F239: (Less High Air Flow System)
C240: Most Applications, Particularly: | D240: Light Applications: | F240: Light Applications:
C241: Continual Dust Accumulation | D241: Light Dust | F241: Primarily for Carpet
... 27 more rows

Sheet S16L_Standard_Config
A1: S16L_Standard_Config | C1: =Start_Here!$C19 -> Company Name
A2: =SUM(G102) -> 0 | C2: =Start_Here!$C20 -> Address
C3: =Start_Here!$C21 -> City, State Zip
C4: =Start_Here!$C22 -> Contact Name
C5: =Start_Here!$C$41 -> Rep Name
C6: =Start_Here!$C$37 -> Tennant Sales and Service Company
C7: =Start_Here!$C$38 -> 10400 Clean Street
C8: =Start_Here!$C$39 -> Eden Prairie, MN 55344
C9: =Start_Here!$C$43 -> 800-553-8033 | E9: Quote Date : | G9: =Letter!$A$25 -> 2020-09-22
C11: =Help!C2 -> CAN Date Rev - 9/30/2024
C12: BUILT-IN "TENNANT VALUE" INCLUDES:
B14: MaxPro™ Sweeping Technology | D14: Wet Sweeping By-Pass
B15: 1-Step™ Control Module | D15: UL-Label (Type E)
B16: 46" (1170mm) Sweep Path | D16: Tool-less Side Panel Removal
B17: No-Tool Brush Change | D17: Soft corner rollers all-around
B18: Multi-stage Air Filtration & Dust Control | D18: Hour Meter
C19: Stage 1: Perma-filter™ | D19: Battery Discharge Indicator
C20: Stage 2: Panel filter | D20: Horn
C21: 97.0 ft² (9.0 m2) Pleated Media | D21: Cup Holders
B22: Flap and Trap Debris Pedal | D22: Automatic Parking Brake
B23: Retractable Right Hand Side Brush | D23: Yellow Maintenance Touch Points
B24: Thermo-Sentry™ Hopper Fire Sensor | D24: Seat occupancy interlock safety switch
B25: Worn main brush indicator light | D25: Main and right side brush (Standard)
B26: 5.3 ft3 (150 L) Hopper Volume Capacity | D26: Onboard Diagnostics
B27: 200 lbs (90 kg) Hopper Weight Capacity | D27: Operator and parts manual
B28: Duramer™ Hopper Construction
B30: TENNANT COMPANY WARRANTY
B31: 3 YEARS OR 2000 HOURS - PARTS
B32: 6 MONTHS - LABOR
B33: 6 MONTHS - TRAVEL
B34: 10 YEARS ON DURAMERTM HOPPER
B35: CUSTOM Options May Add 1 Week Or More to Standard Lead Times
E37: Quote Request Information
G38: Fax (quote only)
G39: Mail (quote,lit, specs)
G40: Fax + Mail
E42: Primary Use
G43: Inside
G44: Outside
C47: Description | D47: Reference # | E47: Price Each | F47: Qty | G47: Extended Price
B48: Standard Configurations (Note 1) | F48: =SUM(F50:F59) -> 0
F49: =SUM(F50:F50) -> 0 | L49: =SUM(F49) -> 0 | M49: Surcharge Qty
C50: S16L Rider - Sweeper, Wet 360AH C/20 Batteries, Off-Board 25A 100-240V AC 50/60Hz 1Ph, UL Type E, Right Hand Side Brush, Standard Seat | D50: S16L-1000 | E50: 44147 | G50: =F50*E50 -> 0 | H50: =IFERROR(IFERROR(VLOOKUP(D50,Surcharge!A:B,2,FALSE)*F50, VLOOKUP(D50 & "",Surcharge!A:B,2,FALSE)*F50), "") -> 
C51: Choice of Fire Extinguisher, Overhead Guard, Brushes, Operator Manual, Parts Manual, and Shipment Packaging available. | F51: =SUM(F50) -> 0
F52: =SUM(F53) -> 0
C53: S16L Rider - Sweeper, Wet 360AH C/20 Batteries, Smart-Fill Battery Watering System, On-Board 25A 100-240V AC 50/60Hz 1Ph Charger, UL Type E, Right Side Brush, Vacuum Wand, Removable Hopper Bins, AV Bu Alarm w/Strobe on Lintel | D53: S16L-2000 | E53: 51301 | G53: =F53*E53 -> 0 | H53: =IFERROR(IFERROR(VLOOKUP(D53,Surcharge!A:B,2,FALSE)*F53, VLOOKUP(D53 & "",Surcharge!A:B,2,FALSE)*F53), "") -> 
C54: Choice of Fire Extinguisher, Overhead Guard, Brushes, Operator Manual, Parts Manual, and Shipment Packaging available. | F54: =SUM(F53) -> 0
F55: =SUM(F56) -> 0
C56: S16L Rider - Sweeper, Wet 360AH C/20 Batteries, Smart-Fill Battery Watering System, On-Board 25A 100-240V AC 50/60Hz 1Ph Charger, UL Type E, Carpet Care Package, Right Hand Side Brush, Vacuum Wand, Removable Hopper Bins, Standard Seat, AU BU Alarm w/Strobe on Lintel (Carpet Care Package includes Natural Fiber Brush) | D56: S16L-2002 | E56: 52202 | G56: =F56*E56 -> 0
C57: Choice of Fire Extinguisher, Overhead Guard, Brushes, Operator Manual, Parts Manual, and Shipment Packaging available. | F57: =SUM(F56) -> 0
C59: S16L Rider - Sweeper, Wet 360AH C/20 Batteries, Smart-Fill Battery Watering System, On-Board 33A 100-240V AC 50/60Hz 1Ph Charger, UL Type E, Productivity Package, Safety Light Package, Removable Hopper Bins, Deluxe Seat w/Armrest | D59: S16L-3000 | E59: 55846 | G59: =F59*E59 -> 0 | H59: =IFERROR(IFERROR(VLOOKUP(D59,Surcharge!A:B,2,FALSE)*F59, VLOOKUP(D59 & "",Surcharge!A:B,2,FALSE)*F59), "") -> 
C60: Choice of Fire Extinguisher, Overhead Guard, Brushes, Operator Manual, Parts Manual, and Shipment Packaging available. | F60: =SUM(F59) -> 0
H61: =IFERROR(IFERROR(VLOOKUP(D61,Surcharge!A:B,2,FALSE)*F61, VLOOKUP(D61 & "",Surcharge!A:B,2,FALSE)*F61), "") -> 
B62: Machine Protection & Safety | F62: =SUM(F63:F64) -> 0
C63: Overhead Guard | D63: 9045052 | E63: 2288 | G63: =F63*E63 -> 0
C64: Fire Extinguisher | D64: 9045069 | E64: 475 | G64: =F64*E64 -> 0
B66: Brushes | D66: Reference Number | F66: =SUM(F67,F74) -> 0 | H66: =IFERROR(IFERROR(VLOOKUP(D66,Surcharge!A:B,2,FALSE)*F66, VLOOKUP(D66 & "",Surcharge!A:B,2,FALSE)*F66), "") -> 
C67: Main Sweeping Brushes | F67: =SUM(F68:F72) -> 0 | H67: =IFERROR(IFERROR(VLOOKUP(D67,Surcharge!A:B,2,FALSE)*F67, VLOOKUP(D67 & "",Surcharge!A:B,2,FALSE)*F67), "") -> 
C68: Polypropylene Brush | D68: 1240255 | E68: N/C | G68: =IF(F68=0," ","N/C") ->  | H68: =IFERROR(IFERROR(VLOOKUP(D68,Surcharge!A:B,2,FALSE)*F68, VLOOKUP(D68 & "",Surcharge!A:B,2,FALSE)*F68), "") -> 
C69: Polypropylene and Wire Brush | D69: 1254155 | E69: N/C | G69: =IF(F69=0," ","N/C") ->  | H69: =IFERROR(IFERROR(VLOOKUP(D69,Surcharge!A:B,2,FALSE)*F69, VLOOKUP(D69 & "",Surcharge!A:B,2,FALSE)*F69), "") -> 
C70: Polypropylene, Window Brush | D70: 1239052 | E70: 318 | G70: =F70*E70 -> 0 | H70: =IFERROR(IFERROR(VLOOKUP(D70,Surcharge!A:B,2,FALSE)*F70, VLOOKUP(D70 & "",Surcharge!A:B,2,FALSE)*F70), "") -> 
C71: Sand Wedge Brush | D71: 1239051 | E71: 318 | G71: =F71*E71 -> 0 | H71: =IFERROR(IFERROR(VLOOKUP(D71,Surcharge!A:B,2,FALSE)*F71, VLOOKUP(D71 & "",Surcharge!A:B,2,FALSE)*F71), "") -> 
C72: Natural Fiber Brush | D72: 1239050 | E72: 318 | G72: =F72*E72 -> 0 | H72: =IFERROR(IFERROR(VLOOKUP(D72,Surcharge!A:B,2,FALSE)*F72, VLOOKUP(D72 & "",Surcharge!A:B,2,FALSE)*F72), "") -> 
H73: =IFERROR(IFERROR(VLOOKUP(D73,Surcharge!A:B,2,FALSE)*F73, VLOOKUP(D73 & "",Surcharge!A:B,2,FALSE)*F73), "") -> 
C74: Side Sweeping Brushes | F74: =SUM(F75) -> 0 | H74: =IFERROR(IFERROR(VLOOKUP(D74,Surcharge!A:B,2,FALSE)*F74, VLOOKUP(D74 & "",Surcharge!A:B,2,FALSE)*F74), "") -> 
C75: Polypropylene Brush | D75: 1225549 | E75: N/C | G75: =IF(F75=0," ","N/C") ->  | H75: =IFERROR(IFERROR(VLOOKUP(D75,Surcharge!A:B,2,FALSE)*F75, VLOOKUP(D75 & "",Surcharge!A:B,2,FALSE)*F75), "") -> 
H76: =IFERROR(IFERROR(VLOOKUP(D76,Surcharge!A:B,2,FALSE)*F76, VLOOKUP(D76 & "",Surcharge!A:B,2,FALSE)*F76), "") -> 
B77: Support (Note 2) | D77: Reference Number | E77: Price | F77: =SUM(F78:F83) -> 0 | H77: =IFERROR(IFERROR(VLOOKUP(D77,Surcharge!A:B,2,FALSE)*F77, VLOOKUP(D77 & "",Surcharge!A:B,2,FALSE)*F77), "") -> 
C78: Standard Warranty | E78: N/C | G78: =IF(F78=0," ","N/C") ->  | H78: =IFERROR(IFERROR(VLOOKUP(D78,Surcharge!A:B,2,FALSE)*F78, VLOOKUP(D78 & "",Surcharge!A:B,2,FALSE)*F78), "") -> 
C79: Ultimate Performance Guarantee | E79: N/C | H79: =IFERROR(IFERROR(VLOOKUP(D79,Surcharge!A:B,2,FALSE)*F79, VLOOKUP(D79 & "",Surcharge!A:B,2,FALSE)*F79), "") -> 
C80: Operator Manual (English) | D80: 9045321 | E80: N/C | H80: =IFERROR(IFERROR(VLOOKUP(D80,Surcharge!A:B,2,FALSE)*F80, VLOOKUP(D80 & "",Surcharge!A:B,2,FALSE)*F80), "") -> 
C81: Operator Manual (Spanish) | D81: 9045322 | E81: N/C | H81: =IFERROR(IFERROR(VLOOKUP(D81,Surcharge!A:B,2,FALSE)*F81, VLOOKUP(D81 & "",Surcharge!A:B,2,FALSE)*F81), "") -> 
C82: Operator Manual (French) (Note 3) | D82: 9045323 | E82: N/C | H82: =IFERROR(IFERROR(VLOOKUP(D82,Surcharge!A:B,2,FALSE)*F82, VLOOKUP(D82 & "",Surcharge!A:B,2,FALSE)*F82), "") -> 
C83: Parts Manual | D83: 9045325 | E83: N/C | H83: =IFERROR(IFERROR(VLOOKUP(D83,Surcharge!A:B,2,FALSE)*F83, VLOOKUP(D83 & "",Surcharge!A:B,2,FALSE)*F83), "") -> 
C85: Packaging | F85: =SUM(F86:F87) -> 0
C86: Skid w/Carton, Non-Stackable | D86: 9045304 | E86: N/C | G86: =IF(F86=0," ","N/C") -> 
C87: Skid | D87: 9045305 | E87: 645 | G87: =F87*E87 -> 0
E89: =ROUND(SUM(G50:G88), 0) -> 0 | F89: =SUM(E90) -> 0
D90: Machine Subtotal | E90: =ROUND(SUM(G50:G88), 0) -> 0 | F90: =F89 -> 0
B91: Discounts | F91: =SUM(F92) -> 0
F92: =SUM(F94:F95) -> 0
D93: Applicable Currency Adj % | F93: =IF(E93 <> "", 1, 0) -> 0 | G93: =IF(F93*(E93*0.01)*E89 < 0, F93*(E93*0.01)*E89, -(F93*(E93*0.01)*E89)) -> 0
D94: Discount % | F94: =IF(E94 <> "", 1, 0) -> 0 | G94: =IF(F94*(E94*0.01)*(E89+G93) < 0, F94*(E94*0.01)*(E89+G93), -(F94*(E94*0.01)*(E89+G93))) -> 0
D95: Discount $ | F95: =IF(E95 <> "", 1, 0) -> 0 | G95: =IF(F95*E95 < 0, F95*E95, -(F95*E95)) -> 0
D96: Discount Total | E96: =SUM(G93:G95) -> 0 | F96: =SUM(E96) -> 0
F97: =#REF! -> 
F98: =F97 -> 
C99: Prepaid and Add | D99: Freight | F99: =IF(E99 <> "", 1, 0) -> 0 | G99: =F99*E99 -> 0
C100: Subject to all applicable taxes | D100: Tax | F100: =IF(E100 <> "", 1, 0) -> 0 | G100: =F100*E100 -> 0
F101: =SUM(F102) -> 0
D102: MACHINE TOTAL* | F102: =SUM(G102) -> 0 | G102: =SUM(G50:G100) -> 0 | N102: This goes to "My Documents"
G103: =SUM(G102) -> 0
C108: First Western Equipment Finance - Leasing Calculation Option: | D108: Option 1 | F108: Option 2 | J108: =Financing!A38 -> Rates 2023 - Rev 10/10/2023
D109: Monthly Payment | E109: Cost Per Day | F109: Monthly Payment | G109: Cost Per Day | J109: =Financing!A39 -> “Blank Payment Amounts Indicate The Financing Option Or Purchase Options Selected Are Not
C110: Purchase Option: | D110: FWEF: $1 Buyout Lease | F110: FWEF: Municipal Lease | J110: =Financing!A40 -> Applicable Or The Machine Total Is Below The Minimum Amount For The Selected Vendor”
C111: 24 Months | D111: FALSE | E111: 0 | F111: FALSE | G111: 0 | J111: =Financing!A41 -> "Quoted monthly payments are estimates only and are based on a certain level of credit rating.
C112: 30 Months | D112: FALSE | E112: 0 | F112: FALSE | G112: 0 | J112: =Financing!A42 -> Actual monthly payments may be higher depending on your credit rating."
C113: 36 Months | D113: FALSE | E113: 0 | F113: FALSE | G113: 0 | J113: =Financing!A43 -> “Financing rates do not include Pre-Paid Service”
C114: 48 Months | D114: 0 | E114: 0 | F114: 0 | G114: 0 | I114: =Financing!A44 -> 0
D116: Benefits of Equipment Financing:
D117: • Spreads out investment over time. | F117: • Keep current with latest technology.
D118: • Preserve capital. | F118: • Service and parts bundling available.
D119: • Low monthly payment. | F119: • Pay for labor savings as you go.
B122: TennantTrue | D122: 0 | E122: 0
C124: Is customer interested in service program? | D124: Yes | E124: *State/County selection required for TennantTrue service options
C126: If not, why?
C128: Term: | D128: 36 | G128: AB Brushes | H128: No
C129: Monthly machine usage (hrs): | D129: < 30/mo. (Avg. 1hr./day)
C131: TennantTrue: | D131: Gold Contract | F131: Silver Contract
C132: Per Visit | F132: 460
C133: Monthly | D133: 202 | F133: 96
C134: Annually | F134: 1126
C135: Pre-Pay Full Term | D135: 6990 | F135: 3311
C136: Hourly Labor Rate
C137: Site Visit
C139: * Verify customer current pricing prior to quote.
C140: **All rates and fees above reflect service for one (1) unit with the exception of Block of Time service.
C141: *Block of Time is available in 1 Year Term only and is priced as such no matter the term selection on this template.
B145: Quote Special Instructions:
B148: =Start_Here!E36 -> Terms and Conditions
B149: =Start_Here!E37 -> Ask your local sales rep for estimated lead times. Verify when placing order
B150: =Start_Here!E38 -> All orders subject to acceptance by Tennant Sales and Service Company, Minneapolis, Minnesota
B151: =Start_Here!E39 -> Prices subject to change without notice. Subject to any applicable taxes.
B152: =Start_Here!E40 -> Terms: Net 30 days. Payable in Canadian Funds
B153: =Start_Here!E41 -> Freight: Accessories, parts, supplies, detergents, and floor coatings orders delivered DDP
B154: =Start_Here!E42 -> shipping point Frt PPD. Machine orders delivered DDP shipping point Frt PPD and add.
B155: =Start_Here!E43 -> Returned Merchandise is subject to a restocking fee.
B156: =Start_Here!E44 -> All orders are subject to Tennant’s General Terms and Conditions available at http://www.tennantco.com/terms.
B157: =Start_Here!E45 -> Printed General Terms and Conditions are also available upon request.
B158: =Start_Here!E46 -> 0
E160: Quote Date : | G160: =Letter!$A$25 -> 2020-09-22
B161: Order Placement Information: To place your order, fill in PO# and customer signatures,
B162: call or fax to the numbers listed below. Customer Purchase Order is required.
B163: If information is missing, orders will be entered and held until all information is received.
C165: Customer Number | E165: Cust Grp 3
C166: =Start_Here!$C$25 -> 0 | E166: =Start_Here!$C$29 -> 0
C167: =Start_Here!$B$18 -> Who Owns the Machine? (Sold-To Info) (Please Verify)
A168: Company | C168: =Start_Here!$C$19 -> Company Name
A169: Address | C169: =Start_Here!$C$20 -> Address
C170: =Start_Here!$C$21 -> City, State Zip
A171: Name | C171: =Start_Here!$C$22 -> Contact Name
A172: Phone | C172: =Start_Here!$C$23 -> Contact Phone
C173: =Start_Here!$B$11 -> Where is the Machine Being Shipped? (Ship-To Info) (Please Verify)
A174: Company | C174: =Start_Here!$C$12 -> Company Name
A175: Address | C175: =Start_Here!$C$13 -> Address
C176: =Start_Here!$C$14 -> City, State Zip
A177: Name | C177: =Start_Here!$C$15 -> Contact Name
A178: Phone | C178: =Start_Here!$C$16 -> Contact Phone
C179: =Start_Here!$B$31 -> Shipping / Carrier Instructions: | E179: Order Special Instructions:
C180: =Start_Here!$C$32 -> 0
C182: Customer Purchase Order No.
C183: (please attach copy)
C186: Tax Exempt | E186: Yes
E187: No
C188: If Yes, attach a copy of your exemption certificate.
C190: Requested Delivery Date
C191: =Start_Here!$C$28 -> 0
C193: =Start_Here!$C$26 -> 0 | E193: =Start_Here!$C$27 -> 0
C194: Authorized Buyer (please print) | E194: Phone Number
C197: Authorized Buyer Signature
C199: =Start_Here!$C$41 -> Rep Name
C200: Tennant Representative
D202: Specialized Maintenance Equipment
C203: =Start_Here!$C$48 -> TENNANT · 10400 Clean Street · Eden Prairie, MN 55344 ·
D204: =Start_Here!$C$49 -> PHONE:800-553-8033 · FAX:763-513-2116
B207: SPECIAL INFORMATION
B209: Notes
B211: 1 | C211: Standard Configurations are set configurations as listed and cannot be altered.
C212: However, these are partial configurations which require the selection of Fire Extinguisher, Overhead Guard,
C213: Brushes, Operator Manuals, Service Manual, and Shipment Packaging. Except where otherwise noted.
B215: 2 | C215: Additional hard copy Operator and Parts Manuals can be ordered or digital copies can be downloaded from www.Tennantco.com.
B217: 3 | C217: A French and English manual will be supplied for all units shipping into Quebec, Canada at no charge.

Sheet 6100
A1: 6100 | C1: =Start_Here!$C19 -> Company Name
A2: =SUM(G145) -> 0 | C2: =Start_Here!$C20 -> Address
C3: =Start_Here!$C21 -> City, State Zip
C4: =Start_Here!$C22 -> Contact Name
C5: =Start_Here!$C$41 -> Rep Name
C6: =Start_Here!$C$37 -> Tennant Sales and Service Company
C7: =Start_Here!$C$38 -> 10400 Clean Street
C8: =Start_Here!$C$39 -> Eden Prairie, MN 55344
C9: =Start_Here!$C$43 -> 800-553-8033 | E9: Quote Date : | G9: =Letter!$A$25 -> 2020-09-22
C11: =Help!C2 -> CAN Date Rev - 9/30/2024
C12: BUILT-IN "TENNANT VALUE" INCLUDES:
B14: Glide-In/Out Wheeled Hopper | D14: Panel Filter with VCS® System
B15: Color-Coded Wiring | D15: Low Effort Steering
B16: Corrosion-Proof Hopper & Shrouds | D16: Cup Holder
B17: Corner Rollers All-Around | D17: 360o Visibility
B18: Removable Side Panels | D18: Self Adjusting Recirculation Skirt
B19: High Visibility Operation Decals | D19: High Flow Radial Discharge Fan
B20: Auto-On Side Brush | D20: 36" Doorway Pass-Through Clearance
B21: WipeCleanTM Polyethylene Shrouds | D21: Wet 225AH C/20
B22: Retractable Sidebrush Assembly | D22: 21A 85-265V AC 50/60Hz 1Ph Charger
B23: Hour Meter | D23: Large Built-In Utility Tray
B24: Standard Main Sweeping Brush (Select One) | D24: Battery Discharge Indicator
B25: Standard Side Sweeping Brush (Select One) | D25: Power Shutdown Switch
B26: InstantAccessTM Filter | D26: Heavy-Duty Motor Controller (p/n 83187)
B27: No-Tool Brush & Filter Change
B30: TENNANT COMPANY WARRANTY
B31: 2 YEARS OR 1000 HOURS - PARTS
B32: 6 MONTHS - LABOR
B33: 6 MONTHS - TRAVEL
B34: 10 YEARS ON DURAMERTM HOPPER
B35: CUSTOM Options May Add 1 Week Or More to Standard Lead Times
E37: Quote Request Information
G38: Fax (quote only)
G39: Mail (quote,lit, specs)
G40: Fax + Mail
E42: Primary Use
G43: Inside
G44: Outside
C47: Description | D47: Reference # | E47: Price Each | F47: Qty | G47: Extended Price
B48: Base Configuration | F48: =SUM(F49,F52,F59,F66) -> 0
C49: Cleaning Type | F49: =SUM(F50:F50) -> 0 | L49: =SUM(F49) -> 0 | M49: Surcharge Qty
C50: 6100 Battery Rider Sweeper | D50: 6100-B | E50: 30732 | G50: =F50*E50 -> 0 | H50: =IFERROR(IFERROR(VLOOKUP(D50,Surcharge!A:B,2,FALSE)*F50, VLOOKUP(D50 & "",Surcharge!A:B,2,FALSE)*F50), "") -> 0 | P50: =VLOOKUP(Q50,'MPF SAP Download Canada'!$A:$D,4,FALSE) -> 30732 | Q50: M-6100VK_BASE_6100-BTY
H51: =IFERROR(IFERROR(VLOOKUP(D51,Surcharge!A:B,2,FALSE)*F51, VLOOKUP(D51 & "",Surcharge!A:B,2,FALSE)*F51), "") -> 
C52: Battery Type (Note 1 and 2) | F52: =SUM(F53:F57) -> 0 | H52: =IFERROR(IFERROR(VLOOKUP(D52,Surcharge!A:B,2,FALSE)*F52, VLOOKUP(D52 & "",Surcharge!A:B,2,FALSE)*F52), "") -> 
C53: Wet 225 AH C/20 (Kit of 6 batteries) | D53: 81698 | E53: N/C | G53: =IF(F53=0," ","N/C") ->  | H53: =IFERROR(IFERROR(VLOOKUP(D53,Surcharge!A:B,2,FALSE)*F53, VLOOKUP(D53 & "",Surcharge!A:B,2,FALSE)*F53), "") ->  | P53: =VLOOKUP(Q53,'MPF SAP Download Canada'!$A:$D,4,FALSE) -> N/C | Q53: M-6100VK_BTY_W225C20
C54: Sealed/MF Gel 180AH C/20 (Kit of 6 batteries) | D54: 324448 | E54: 3601 | G54: =F54*E54 -> 0 | H54: =IFERROR(IFERROR(VLOOKUP(D54,Surcharge!A:B,2,FALSE)*F54, VLOOKUP(D54 & "",Surcharge!A:B,2,FALSE)*F54), "") ->  | P54: =VLOOKUP(Q54,'MPF SAP Download Canada'!$A:$D,4,FALSE) -> 3601 | Q54: M-6100VK_BTY_G180C20
C55: Less Battery, DEDUCT | D55: LESS BATTERY | E55: -695 | G55: =F55*E55 -> 0 | H55: =IFERROR(IFERROR(VLOOKUP(D55,Surcharge!A:B,2,FALSE)*F55, VLOOKUP(D55 & "",Surcharge!A:B,2,FALSE)*F55), "") ->  | P55: =VLOOKUP(Q55,'MPF SAP Download Canada'!$A:$D,4,FALSE) -> -695 | Q55: M-6100VK_BTY_WO
H56: =IFERROR(IFERROR(VLOOKUP(D56,Surcharge!A:B,2,FALSE)*F56, VLOOKUP(D56 & "",Surcharge!A:B,2,FALSE)*F56), "") -> 
C57: Manual Battery Watering Kit | D57: 9009620 | E57: 1074 | G57: =F57*E57 -> 0 | H57: =IFERROR(IFERROR(VLOOKUP(D57,Surcharge!A:B,2,FALSE)*F57, VLOOKUP(D57 & "",Surcharge!A:B,2,FALSE)*F57), "") ->  | P57: =VLOOKUP(Q57,'MPF SAP Download Canada'!$A:$D,4,FALSE) -> 1074 | Q57: M-6100VK_BTYWTRSYS
H58: =IFERROR(IFERROR(VLOOKUP(D58,Surcharge!A:B,2,FALSE)*F58, VLOOKUP(D58 & "",Surcharge!A:B,2,FALSE)*F58), "") -> 
C59: Charger | D59: Reference Number | F59: =SUM(F60:F64) -> 0 | H59: =IFERROR(IFERROR(VLOOKUP(D59,Surcharge!A:B,2,FALSE)*F59, VLOOKUP(D59 & "",Surcharge!A:B,2,FALSE)*F59), "") -> 
C60: 21A 85-265V AC 50/60Hz 1Ph - Off Board for Wet 225AH Battery | D60: 9003372 | E60: N/C | G60: =IF(F60=0," ","N/C") ->  | H60: =IFERROR(IFERROR(VLOOKUP(D60,Surcharge!A:B,2,FALSE)*F60, VLOOKUP(D60 & "",Surcharge!A:B,2,FALSE)*F60), "") ->  | Q60: M-6100
C61: 21A 85-265V AC 50/60Hz 1Ph - Off Board for Gel 180AH Battery | D61: 314567 | E61: 610 | G61: =F61*E61 -> 0 | H61: =IFERROR(IFERROR(VLOOKUP(D61,Surcharge!A:B,2,FALSE)*F61, VLOOKUP(D61 & "",Surcharge!A:B,2,FALSE)*F61), "") ->  | P61: =VLOOKUP(Q61,'MPF SAP Download Canada'!$A:$D,4,FALSE) -> 610 | Q61: M-6100VK_21A85V5060H1P_G180
C62: 21A 85-265V AC 50/60Hz 1Ph - On Board for Wet 225AH Battery | D62: 326246 | E62: 2803 | G62: =F62*E62 -> 0 | H62: =IFERROR(IFERROR(VLOOKUP(D62,Surcharge!A:B,2,FALSE)*F62, VLOOKUP(D62 & "",Surcharge!A:B,2,FALSE)*F62), "") ->  | P62: =VLOOKUP(Q62,'MPF SAP Download Canada'!$A:$D,4,FALSE) -> 2803 | Q62: M-6100VK_21A85V5060H1P_W225_ON
C63: 21A 85-265V AC 50/60Hz 1Ph - On Board for Gel 180AH Battery | D63: 325736 | E63: 2482 | G63: =F63*E63 -> 0 | P63: =VLOOKUP(Q63,'MPF SAP Download Canada'!$A:$D,4,FALSE) -> 2482 | Q63: M-6100VK_21A85V5060H1P_G180_ON
C64: Less Charger, DEDUCT | D64: LESS CHARGER | E64: -450 | G64: =F64*E64 -> 0 | H64: =IFERROR(IFERROR(VLOOKUP(D64,Surcharge!A:B,2,FALSE)*F64, VLOOKUP(D64 & "",Surcharge!A:B,2,FALSE)*F64), "") ->  | P64: =VLOOKUP(Q64,'MPF SAP Download Canada'!$A:$D,4,FALSE) -> -450 | Q64: M-6100VK_CHG_WO
H65: =IFERROR(IFERROR(VLOOKUP(D65,Surcharge!A:B,2,FALSE)*F65, VLOOKUP(D65 & "",Surcharge!A:B,2,FALSE)*F65), "") -> 
C66: UL Rating | F66: =SUM(F67:F67) -> 0 | H66: =IFERROR(IFERROR(VLOOKUP(D66,Surcharge!A:B,2,FALSE)*F66, VLOOKUP(D66 & "",Surcharge!A:B,2,FALSE)*F66), "") -> 
C67: UL® Type E | E67: N/C | G67: =IF(F67=0," ","N/C") ->  | H67: =IFERROR(IFERROR(VLOOKUP(D67,Surcharge!A:B,2,FALSE)*F67, VLOOKUP(D67 & "",Surcharge!A:B,2,FALSE)*F67), "") ->  | Q67: M-6100
H68: =IFERROR(IFERROR(VLOOKUP(D68,Surcharge!A:B,2,FALSE)*F68, VLOOKUP(D68 & "",Surcharge!A:B,2,FALSE)*F68), "") -> 
B69: Packages | F69: =SUM(F70:F72) -> 0 | H69: =IFERROR(IFERROR(VLOOKUP(D69,Surcharge!A:B,2,FALSE)*F69, VLOOKUP(D69 & "",Surcharge!A:B,2,FALSE)*F69), "") -> 
C70: HEPA Dust Filter Package - Right Hand Side Brush (Note 3) | D70: HDR-6100 | E70: 9896 | G70: =F70*E70 -> 0 | H70: =IFERROR(IFERROR(VLOOKUP(D70,Surcharge!A:B,2,FALSE)*F70, VLOOKUP(D70 & "",Surcharge!A:B,2,FALSE)*F70), "") ->  | P70: =VLOOKUP(Q70,'MPF SAP Download Canada'!$A:$D,4,FALSE) -> 9896 | Q70: M-6100VK_SLADSTFLTPKG_RH
C71: Dry Dust Control (RH), HEPA Filter System | F71: =SUM(F70) -> 0 | H71: =IFERROR(IFERROR(VLOOKUP(D71,Surcharge!A:B,2,FALSE)*F71, VLOOKUP(D71 & "",Surcharge!A:B,2,FALSE)*F71), "") -> 
C72: HEPA Dust Filter Package - Dual Side Brush (Note 3) | D72: HDD-6100 | E72: 10736 | G72: =F72*E72 -> 0 | H72: =IFERROR(IFERROR(VLOOKUP(D72,Surcharge!A:B,2,FALSE)*F72, VLOOKUP(D72 & "",Surcharge!A:B,2,FALSE)*F72), "") ->  | P72: =VLOOKUP(Q72,'MPF SAP Download Canada'!$A:$D,4,FALSE) -> 10736 | Q72: M-6100VK_SLADSTFLTPKG_D
C73: Dry Dust Control (Dual), HEPA Filter System | F73: =SUM(F72) -> 0 | H73: =IFERROR(IFERROR(VLOOKUP(D73,Surcharge!A:B,2,FALSE)*F73, VLOOKUP(D73 & "",Surcharge!A:B,2,FALSE)*F73), "") -> 
H74: =IFERROR(IFERROR(VLOOKUP(D74,Surcharge!A:B,2,FALSE)*F74, VLOOKUP(D74 & "",Surcharge!A:B,2,FALSE)*F74), "") -> 
B75: Cleaning Performance | D75: Reference Number | F75: =SUM(F76:F83) -> 0 | H75: =IFERROR(IFERROR(VLOOKUP(D75,Surcharge!A:B,2,FALSE)*F75, VLOOKUP(D75 & "",Surcharge!A:B,2,FALSE)*F75), "") -> 
C76: Dual Sweeping Side Brush (Note 4) | D76: 83228 | E76: 1519 | G76: =F76*E76 -> 0 | H76: =IFERROR(IFERROR(VLOOKUP(D76,Surcharge!A:B,2,FALSE)*F76, VLOOKUP(D76 & "",Surcharge!A:B,2,FALSE)*F76), "") ->  | P76: =VLOOKUP(Q76,'MPF SAP Download Canada'!$A:$D,4,FALSE) -> 1519 | Q76: M-6100VK_SDEBRSLOC_D
C77: Side Brush Dust Control, Dry, Right Hand | D77: 326579 | E77: 1585 | G77: 0 | H77: =IFERROR(IFERROR(VLOOKUP(D77,Surcharge!A:B,2,FALSE)*F77, VLOOKUP(D77 & "",Surcharge!A:B,2,FALSE)*F77), "") ->  | P77: =VLOOKUP(Q77,'MPF SAP Download Canada'!$A:$D,4,FALSE) -> 1585 | Q77: M-6100VK_SDEBRSDSTCTL_D_RH
C78: Side Brush Dust Control, Dry, Dual | D78: 326593 | E78: 2424 | G78: 0 | H78: =IFERROR(IFERROR(VLOOKUP(D78,Surcharge!A:B,2,FALSE)*F78, VLOOKUP(D78 & "",Surcharge!A:B,2,FALSE)*F78), "") ->  | P78: =VLOOKUP(Q78,'MPF SAP Download Canada'!$A:$D,4,FALSE) -> 2424 | Q78: M-6100VK_SDEBRSDSTCTL_D_D
C79: High Performance Vacuum Wand (dual vacuum motors) (Note 5) | D79: 83230 | E79: 2967 | G79: 0 | H79: =IFERROR(IFERROR(VLOOKUP(D79,Surcharge!A:B,2,FALSE)*F79, VLOOKUP(D79 & "",Surcharge!A:B,2,FALSE)*F79), "") ->  | P79: =VLOOKUP(Q79,'MPF SAP Download Canada'!$A:$D,4,FALSE) -> 2967 | Q79: M-6100VK_PWRVACWND_VACWNDHP
C80: High Performance Vacuum Wand w/On-Board Charger (dual vacuum motors) (Note 5) | D80: 83436 & 326589 | E80: 6777 | G80: 0 | H80: =IFERROR(IFERROR(VLOOKUP(D80,Surcharge!A:B,2,FALSE)*F80, VLOOKUP(D80 & "",Surcharge!A:B,2,FALSE)*F80), "") ->  | P80: =VLOOKUP(Q80,'MPF SAP Download Canada'!$A:$D,4,FALSE) -> 6777 | Q80: M-6100VK_PWRVACWND_VACWNDHP_ON
C81: Vacuum Wand (Note 5) | D81: 83436 | E81: 2564 | G81: 0 | H81: =IFERROR(IFERROR(VLOOKUP(D81,Surcharge!A:B,2,FALSE)*F81, VLOOKUP(D81 & "",Surcharge!A:B,2,FALSE)*F81), "") ->  | P81: =VLOOKUP(Q81,'MPF SAP Download Canada'!$A:$D,4,FALSE) -> 2564 | Q81: M-6100VK_PWRVACWND_VACWND
C82: Vacuum Wand w/On-Board Charger (Note 5) | D82: 83230 & 326589 | E82: 6377 | G82: 0 | H82: =IFERROR(IFERROR(VLOOKUP(D82,Surcharge!A:B,2,FALSE)*F82, VLOOKUP(D82 & "",Surcharge!A:B,2,FALSE)*F82), "") ->  | P82: =VLOOKUP(Q82,'MPF SAP Download Canada'!$A:$D,4,FALSE) -> 6377 | Q82: M-6100VK_PWRVACWND_VACWND_ON
C83: HEPA Filter System (Note 6) | D83: 324539 | E83: 8318 | G83: 0 | H83: =IFERROR(IFERROR(VLOOKUP(D83,Surcharge!A:B,2,FALSE)*F83, VLOOKUP(D83 & "",Surcharge!A:B,2,FALSE)*F83), "") ->  | P83: =VLOOKUP(Q83,'MPF SAP Download Canada'!$A:$D,4,FALSE) -> 8318 | Q83: M-6100VK_FLRSYS_HEPA
H84: =IFERROR(IFERROR(VLOOKUP(D84,Surcharge!A:B,2,FALSE)*F84, VLOOKUP(D84 & "",Surcharge!A:B,2,FALSE)*F84), "") -> 
B85: Machine Protection & Safety | D85: Reference Number | F85: =SUM(F86:F94) -> 0 | H85: =IFERROR(IFERROR(VLOOKUP(D85,Surcharge!A:B,2,FALSE)*F85, VLOOKUP(D85 & "",Surcharge!A:B,2,FALSE)*F85), "") -> 
C86: Side Bumper GlideByTM Protective Side Molding [Not w/rollout 83357] | D86: 83434 | E86: 284 | G86: =F86*E86 -> 0 | H86: =IFERROR(IFERROR(VLOOKUP(D86,Surcharge!A:B,2,FALSE)*F86, VLOOKUP(D86 & "",Surcharge!A:B,2,FALSE)*F86), "") ->  | P86: =VLOOKUP(Q86,'MPF SAP Download Canada'!$A:$D,4,FALSE) -> 284 | Q86: M-6100VK_SDEBMP
C87: Adjustable Seat (front/back) | D87: 83193 | E87: 216 | G87: 0 | H87: =IFERROR(IFERROR(VLOOKUP(D87,Surcharge!A:B,2,FALSE)*F87, VLOOKUP(D87 & "",Surcharge!A:B,2,FALSE)*F87), "") ->  | P87: =VLOOKUP(Q87,'MPF SAP Download Canada'!$A:$D,4,FALSE) -> 216 | Q87: M-6100VK_SET_ADJFB
C88: Seat Belt | D88: 83266 | E88: 220 | G88: 0 | H88: =IFERROR(IFERROR(VLOOKUP(D88,Surcharge!A:B,2,FALSE)*F88, VLOOKUP(D88 & "",Surcharge!A:B,2,FALSE)*F88), "") ->  | P88: =VLOOKUP(Q88,'MPF SAP Download Canada'!$A:$D,4,FALSE) -> 220 | Q88: M-6100VK_SETBLT
C89: Rear Tires, Solid, Non-Marking (in lieu of standard) | D89: 374178 | E89: 470 | G89: 0 | H89: =IFERROR(IFERROR(VLOOKUP(D89,Surcharge!A:B,2,FALSE)*F89, VLOOKUP(D89 & "",Surcharge!A:B,2,FALSE)*F89), "") ->  | P89: =VLOOKUP(Q89,'MPF SAP Download Canada'!$A:$D,4,FALSE) -> 470 | Q89: M-6100VK_RERTRE_SNM
C90: Audio BU Alarm | D90: w/o vac wand 384497 with vac wand 384498 | E90: 730 | G90: 0 | H90: =IFERROR(IFERROR(VLOOKUP(D90,Surcharge!A:B,2,FALSE)*F90, VLOOKUP(D90 & "",Surcharge!A:B,2,FALSE)*F90), "") ->  | P90: =VLOOKUP(Q90,'MPF SAP Download Canada'!$A:$D,4,FALSE) -> 730 | Q90: M-6100VK_WRNLGTANDALM_AU
C91: AV BU Alarm w/ Strobe Light on Lintel | D91: w/o vac wand 374350 with vac wand 374349 | E91: 1004 | G91: 0 | H91: =IFERROR(IFERROR(VLOOKUP(D91,Surcharge!A:B,2,FALSE)*F91, VLOOKUP(D91 & "",Surcharge!A:B,2,FALSE)*F91), "") ->  | P91: =VLOOKUP(Q91,'MPF SAP Download Canada'!$A:$D,4,FALSE) -> 1004 | Q91: M-6100VK_WRNLGTANDALM_AUSL
C92: Blue Light (Note 8) | D92: 9021424 | E92: 1434 | G92: =F92*E92 -> 0 | P92: =VLOOKUP(Q92,'MPF SAP Download Canada'!$A:$D,4,FALSE) -> 1434 | Q92: M-6100VK_BLULGT
C93: Work Light, Single | D93: 83202 | E93: 550 | G93: =F93*E93 -> 0 | H93: =IFERROR(IFERROR(VLOOKUP(D93,Surcharge!A:B,2,FALSE)*F93, VLOOKUP(D93 & "",Surcharge!A:B,2,FALSE)*F93), "") ->  | P93: =VLOOKUP(Q93,'MPF SAP Download Canada'!$A:$D,4,FALSE) -> 550 | Q93: M-6100VK_WRKLGT
C94: Fire Extinguisher | D94: 83220 | E94: 298 | G94: =F94*E94 -> 0 | H94: =IFERROR(IFERROR(VLOOKUP(D94,Surcharge!A:B,2,FALSE)*F94, VLOOKUP(D94 & "",Surcharge!A:B,2,FALSE)*F94), "") ->  | P94: =VLOOKUP(Q94,'MPF SAP Download Canada'!$A:$D,4,FALSE) -> 298 | Q94: M-6100VK_FREEXT
H95: =IFERROR(IFERROR(VLOOKUP(D95,Surcharge!A:B,2,FALSE)*F95, VLOOKUP(D95 & "",Surcharge!A:B,2,FALSE)*F95), "") -> 
B96: Brushes and Pads | D96: Reference Number | F96: =SUM(F97,F103) -> 0 | H96: =IFERROR(IFERROR(VLOOKUP(D96,Surcharge!A:B,2,FALSE)*F96, VLOOKUP(D96 & "",Surcharge!A:B,2,FALSE)*F96), "") -> 
C97: Main Sweeping Brushes | F97: =SUM(F98:F101) -> 0 | H97: =IFERROR(IFERROR(VLOOKUP(D97,Surcharge!A:B,2,FALSE)*F97, VLOOKUP(D97 & "",Surcharge!A:B,2,FALSE)*F97), "") -> 
C98: Polypropylene Brush | D98: 81888 | E98: N/C | G98: =IF(F98=0," ","N/C") ->  | H98: =IFERROR(IFERROR(VLOOKUP(D98,Surcharge!A:B,2,FALSE)*F98, VLOOKUP(D98 & "",Surcharge!A:B,2,FALSE)*F98), "") ->  | P98: =VLOOKUP(Q98,'MPF SAP Download Canada'!$A:$D,4,FALSE) -> N/C | Q98: M-6100VK_CLNTOL_PYP
C99: Polypropylene, Window Brush | D99: 370048 | E99: N/C | G99: =IF(F99=0," ","N/C") ->  | H99: =IFERROR(IFERROR(VLOOKUP(D99,Surcharge!A:B,2,FALSE)*F99, VLOOKUP(D99 & "",Surcharge!A:B,2,FALSE)*F99), "") ->  | P99: =VLOOKUP(Q99,'MPF SAP Download Canada'!$A:$D,4,FALSE) -> N/C | Q99: M-6100VK_CLNTOL_PYPWIN
C100: Union Mix Brush (Note 9) | D100: 83031 | E100: 374 | G100: =F100*E100 -> 0 | H100: =IFERROR(IFERROR(VLOOKUP(D100,Surcharge!A:B,2,FALSE)*F100, VLOOKUP(D100 & "",Surcharge!A:B,2,FALSE)*F100), "") ->  | P100: =VLOOKUP(Q100,'MPF SAP Download Canada'!$A:$D,4,FALSE) -> 374 | Q100: M-6100VK_CLNTOL_UMB
C101: Polypropylene, Sand Wedge Brush | D101: 83030 | E101: 374 | G101: =F101*E101 -> 0 | H101: =IFERROR(IFERROR(VLOOKUP(D101,Surcharge!A:B,2,FALSE)*F101, VLOOKUP(D101 & "",Surcharge!A:B,2,FALSE)*F101), "") ->  | P101: =VLOOKUP(Q101,'MPF SAP Download Canada'!$A:$D,4,FALSE) -> 374 | Q101: M-6100VK_CLNTOL_SWB
H102: =IFERROR(IFERROR(VLOOKUP(D102,Surcharge!A:B,2,FALSE)*F102, VLOOKUP(D102 & "",Surcharge!A:B,2,FALSE)*F102), "") -> 
C103: Side Sweeping Brushes | F103: =SUM(F104:F105) -> 0 | H103: =IFERROR(IFERROR(VLOOKUP(D103,Surcharge!A:B,2,FALSE)*F103, VLOOKUP(D103 & "",Surcharge!A:B,2,FALSE)*F103), "") -> 
C104: Polypropylene Brush | D104: 80042 | E104: N/C | G104: =IF(F104=0," ","N/C") ->  | H104: =IFERROR(IFERROR(VLOOKUP(D104,Surcharge!A:B,2,FALSE)*F104, VLOOKUP(D104 & "",Surcharge!A:B,2,FALSE)*F104), "") ->  | P104: =VLOOKUP(Q104,'MPF SAP Download Canada'!$A:$D,4,FALSE) -> N/C | Q104: M-6100VK_SDECLNTOL_PYP
C105: Heavy Duty Polypropylene Brush | D105: 378804 | E105: N/C | G105: =IF(F105=0," ","N/C") ->  | H105: =IFERROR(IFERROR(VLOOKUP(D105,Surcharge!A:B,2,FALSE)*F105, VLOOKUP(D105 & "",Surcharge!A:B,2,FALSE)*F105), "") ->  | P105: =VLOOKUP(Q105,'MPF SAP Download Canada'!$A:$D,4,FALSE) -> N/C | Q105: M-6100VK_SDECLNTOL_HDPYP
H106: =IFERROR(IFERROR(VLOOKUP(D106,Surcharge!A:B,2,FALSE)*F106, VLOOKUP(D106 & "",Surcharge!A:B,2,FALSE)*F106), "") -> 
B107: Support | D107: Reference Number | F107: =SUM(F108:F118) -> 0 | H107: =IFERROR(IFERROR(VLOOKUP(D107,Surcharge!A:B,2,FALSE)*F107, VLOOKUP(D107 & "",Surcharge!A:B,2,FALSE)*F107), "") -> 
C108: Standard Warranty | E108: N/C | G108: =IF(F108=0," ","N/C") ->  | H108: =IFERROR(IFERROR(VLOOKUP(D108,Surcharge!A:B,2,FALSE)*F108, VLOOKUP(D108 & "",Surcharge!A:B,2,FALSE)*F108), "") ->  | P108: =VLOOKUP(Q108,'MPF SAP Download Canada'!$A:$D,4,FALSE) -> N/C | Q108: M-6100VK_WTY_STD
C109: Extended Warranty (Note 10) | D109: 42405 | E109: 3064 | G109: =F109*E109 -> 0 | H109: =IFERROR(IFERROR(VLOOKUP(D109,Surcharge!A:B,2,FALSE)*F109, VLOOKUP(D109 & "",Surcharge!A:B,2,FALSE)*F109), "") ->  | P109: =VLOOKUP(Q109,'MPF SAP Download Canada'!$A:$D,4,FALSE) -> 3064 | Q109: M-6100VK_WTY_XTD
C110: Ultimate Performance Guarantee | D110: 50619 | E110: N/C | G110: =IF(F110=0," ","N/C") ->  | H110: =IFERROR(IFERROR(VLOOKUP(D110,Surcharge!A:B,2,FALSE)*F110, VLOOKUP(D110 & "",Surcharge!A:B,2,FALSE)*F110), "") ->  | P110: =VLOOKUP(Q110,'MPF SAP Download Canada'!$A:$D,4,FALSE) -> N/C | Q110: M-6100VK_UPG
C111: Operator Manual (English) | D111: 330250 | E111: N/C | G111: =IF(F111=0," ","N/C") ->  | H111: =IFERROR(IFERROR(VLOOKUP(D111,Surcharge!A:B,2,FALSE)*F111, VLOOKUP(D111 & "",Surcharge!A:B,2,FALSE)*F111), "") ->  | P111: =VLOOKUP(Q111,'MPF SAP Download Canada'!$A:$D,4,FALSE) ->  | Q111: M-6100
C112: Operator Manual (Spanish) | D112: 330252 | E112: N/C | G112: =IF(F112=0," ","N/C") ->  | H112: =IFERROR(IFERROR(VLOOKUP(D112,Surcharge!A:B,2,FALSE)*F112, VLOOKUP(D112 & "",Surcharge!A:B,2,FALSE)*F112), "") ->  | P112: =VLOOKUP(Q112,'MPF SAP Download Canada'!$A:$D,4,FALSE) ->  | Q112: M-6100
C113: Operator Manual (French) (Note 11) | D113: 330253 | E113: N/C | G113: =IF(F113=0," ","N/C") ->  | H113: =IFERROR(IFERROR(VLOOKUP(D113,Surcharge!A:B,2,FALSE)*F113, VLOOKUP(D113 & "",Surcharge!A:B,2,FALSE)*F113), "") ->  | P113: =VLOOKUP(Q113,'MPF SAP Download Canada'!$A:$D,4,FALSE) ->  | Q113: M-6100
C114: Additional Operator Manual | D114: SEE ABOVE | E114: 264 | G114: =F114*E114 -> 0 | H114: =IFERROR(IFERROR(VLOOKUP(D114,Surcharge!A:B,2,FALSE)*F114, VLOOKUP(D114 & "",Surcharge!A:B,2,FALSE)*F114), "") ->  | P114: =VLOOKUP(Q114,'MPF SAP Download Canada'!$A:$D,4,FALSE) -> 264 | Q114: M-6100VK_ADLOPRMNL
C115: Parts Manual | D115: 9014885 | E115: 32 | G115: =F115*E115 -> 0 | H115: =IFERROR(IFERROR(VLOOKUP(D115,Surcharge!A:B,2,FALSE)*F115, VLOOKUP(D115 & "",Surcharge!A:B,2,FALSE)*F115), "") ->  | P115: =VLOOKUP(Q115,'MPF SAP Download Canada'!$A:$D,4,FALSE) -> 32 | Q115: M-6100VK_PARMNL
C116: Service Manual | D116: 330255 | E116: 343 | G116: =F116*E116 -> 0 | H116: =IFERROR(IFERROR(VLOOKUP(D116,Surcharge!A:B,2,FALSE)*F116, VLOOKUP(D116 & "",Surcharge!A:B,2,FALSE)*F116), "") ->  | P116: =VLOOKUP(Q116,'MPF SAP Download Canada'!$A:$D,4,FALSE) -> 343 | Q116: M-6100VK_SRVMNL
H117: =IFERROR(IFERROR(VLOOKUP(D117,Surcharge!A:B,2,FALSE)*F117, VLOOKUP(D117 & "",Surcharge!A:B,2,FALSE)*F117), "") -> 
C118: Packaging (Note 12) | F118: =SUM(F119:F120) -> 0 | H118: =IFERROR(IFERROR(VLOOKUP(D118,Surcharge!A:B,2,FALSE)*F118, VLOOKUP(D118 & "",Surcharge!A:B,2,FALSE)*F118), "") -> 
C119: Crate | D119: 83353 | E119: N/C | G119: =IF(F119=0," ","N/C") ->  | H119: =IFERROR(IFERROR(VLOOKUP(D119,Surcharge!A:B,2,FALSE)*F119, VLOOKUP(D119 & "",Surcharge!A:B,2,FALSE)*F119), "") ->  | P119: =VLOOKUP(Q119,'MPF SAP Download Canada'!$A:$D,4,FALSE) -> N/C | Q119: M-6100VK_PKG_CRT
C120: Non-Stackable Skid | D120: 375230 | E120: N/C | G120: =IF(F120=0," ","N/C") ->  | H120: =IFERROR(IFERROR(VLOOKUP(D120,Surcharge!A:B,2,FALSE)*F120, VLOOKUP(D120 & "",Surcharge!A:B,2,FALSE)*F120), "") ->  | P120: =VLOOKUP(Q120,'MPF SAP Download Canada'!$A:$D,4,FALSE) -> N/C | Q120: M-6100VK_PKG_SKD
H121: =IFERROR(IFERROR(VLOOKUP(D121,Surcharge!A:B,2,FALSE)*F121, VLOOKUP(D121 & "",Surcharge!A:B,2,FALSE)*F121), "") -> 
B122: Custom Solutions | F122: =SUM(F123:F123) -> 0 | H122: =IFERROR(IFERROR(VLOOKUP(D122,Surcharge!A:B,2,FALSE)*F122, VLOOKUP(D122 & "",Surcharge!A:B,2,FALSE)*F122), "") -> 
C123: Custom Color (Note 13) | D123: 324138 | E123: 5600 | G123: =F123*E123 -> 0 | H123: =IFERROR(IFERROR(VLOOKUP(D123,Surcharge!A:B,2,FALSE)*F123, VLOOKUP(D123 & "",Surcharge!A:B,2,FALSE)*F123), "") ->  | P123: =VLOOKUP(Q123,'MPF SAP Download Canada'!$A:$D,4,FALSE) -> 5600 | Q123: M-6100VK_CSMSLN_CC
B126: Custom Solution--write in description, qty, price, and PN if applicable | F126: =SUM(F127) -> 0
E127: Insert Prices Here | F127: =SUM(F128:F131) -> 0
D128: Custom | F128: =IF(E128 <> "", 1, 0) -> 0 | G128: =F128*E128 -> 0
D129: Custom | F129: =IF(E129 <> "", 1, 0) -> 0 | G129: =F129*E129 -> 0
D130: Custom | F130: =IF(E130 <> "", 1, 0) -> 0 | G130: =F130*E130 -> 0
D131: Custom | F131: =IF(E131 <> "", 1, 0) -> 0 | G131: =F131*E131 -> 0
E132: =ROUND(SUM(G50:G131), 0) -> 0 | F132: =SUM(E133) -> 0
D133: Machine Subtotal | E133: =ROUND(SUM(G50:G131), 0) -> 0 | F133: =F132 -> 0
B134: Discounts | F134: =SUM(F135) -> 0
F135: =SUM(F137:F138) -> 0
D136: Applicable Currency Adj % | F136: =IF(E136 <> "", 1, 0) -> 0 | G136: =IF(F136*(E136*0.01)*E132 < 0, F136*(E136*0.01)*E132, -(F136*(E136*0.01)*E132)) -> 0
D137: Discount % | F137: =IF(E137 <> "", 1, 0) -> 0 | G137: =IF(F137*(E137*0.01)*(E132+G136) < 0, F137*(E137*0.01)*(E132+G136), -(F137*(E137*0.01)*(E132+G136))) -> 0
D138: Discount $ | F138: =IF(E138 <> "", 1, 0) -> 0 | G138: =IF(F138*E138 < 0, F138*E138, -(F138*E138)) -> 0
D139: Discount Total | E139: =SUM(G136:G138) -> 0 | F139: =SUM(E139) -> 0
F140: =#REF! -> 
F141: =F140 -> 
C142: Prepaid and Add | D142: Freight | F142: =IF(E142 <> "", 1, 0) -> 0 | G142: =F142*E142 -> 0
C143: Subject to all applicable taxes | D143: Tax | F143: =IF(E143 <> "", 1, 0) -> 0 | G143: =F143*E143 -> 0
F144: =SUM(F145) -> 0
D145: MACHINE TOTAL* | F145: =SUM(G145) -> 0 | G145: =SUM(G50:G143) -> 0 | N145: This goes to "My Documents"
G146: =SUM(G145) -> 0
C151: First Western Equipment Finance - Leasing Calculation Option: | D151: Option 1 | F151: Option 2
D152: Monthly Payment | E152: Cost Per Day | F152: Monthly Payment | G152: Cost Per Day
C153: Purchase Option: | D153: FWEF: $1 Buyout Lease | F153: FWEF: Municipal Lease
C154: 24 Months | D154: FALSE | E154: 0 | F154: FALSE | G154: 0
C155: 30 Months | D155: FALSE | E155: 0 | F155: FALSE | G155: 0
C156: 36 Months | D156: FALSE | E156: 0 | F156: FALSE | G156: 0
C157: 48 Months | D157: 0 | E157: 0 | F157: 0 | G157: 0
D159: Benefits of Equipment Financing:
D160: • Spreads out investment over time. | F160: • Keep current with latest technology.
D161: • Preserve capital. | F161: • Service and parts bundling available.
D162: • Low monthly payment. | F162: • Pay for labor savings as you go.
B165: TennantTrue | D165: 0 | E165: 0
C167: Is customer interested in service program? | D167: Yes | E167: *State/County selection required for TennantTrue service options
C169: If not, why?
C171: Term: | D171: 36 | G171: AB Brushes | H171: No
C172: Monthly machine usage (hrs): | D172: < 30/mo. (Avg. 1hr./day)
C174: TennantTrue: | D174: Gold Contract | F174: Silver Contract
C175: Per Visit | F175: 460
C176: Monthly | D176: 202 | F176: 96
C177: Annually | F177: 1126
C178: Pre-Pay Full Term | D178: 6990 | F178: 3311
C179: Hourly Labor Rate
C180: Site Visit
C182: * Verify customer current pricing prior to quote.
C183: **All rates and fees above reflect service for one (1) unit with the exception of Block of Time service.
C184: *Block of Time is available in 1 Year Term only and is priced as such no matter the term selection on this template.
B188: Quote Special Instructions:
B191: =Start_Here!E36 -> Terms and Conditions
B192: =Start_Here!E37 -> Ask your local sales rep for estimated lead times. Verify when placing order
B193: =Start_Here!E38 -> All orders subject to acceptance by Tennant Sales and Service Company, Minneapolis, Minnesota
B194: =Start_Here!E39 -> Prices subject to change without notice. Subject to any applicable taxes.
B195: =Start_Here!E40 -> Terms: Net 30 days. Payable in Canadian Funds
B196: =Start_Here!E41 -> Freight: Accessories, parts, supplies, detergents, and floor coatings orders delivered DDP
B197: =Start_Here!E42 -> shipping point Frt PPD. Machine orders delivered DDP shipping point Frt PPD and add.
B198: =Start_Here!E43 -> Returned Merchandise is subject to a restocking fee.
B199: =Start_Here!E44 -> All orders are subject to Tennant’s General Terms and Conditions available at http://www.tennantco.com/terms.
B200: =Start_Here!E45 -> Printed General Terms and Conditions are also available upon request.
B201: =Start_Here!E46 -> 0
E203: Quote Date : | G203: =Letter!$A$25 -> 2020-09-22
B204: Order Placement Information: To place your order, fill in PO# and customer signatures,
B205: call or fax to the numbers listed below. Customer Purchase Order is required.
B206: If information is missing, orders will be entered and held until all information is received.
C208: Customer Number | E208: Cust Grp 3
C209: =Start_Here!$C$25 -> 0 | E209: =Start_Here!$C$29 -> 0
C210: =Start_Here!$B$18 -> Who Owns the Machine? (Sold-To Info) (Please Verify)
A211: Company | C211: =Start_Here!$C$19 -> Company Name
A212: Address | C212: =Start_Here!$C$20 -> Address
C213: =Start_Here!$C$21 -> City, State Zip
A214: Name | C214: =Start_Here!$C$22 -> Contact Name
A215: Phone | C215: =Start_Here!$C$23 -> Contact Phone
C216: =Start_Here!$B$11 -> Where is the Machine Being Shipped? (Ship-To Info) (Please Verify)
A217: Company | C217: =Start_Here!$C$12 -> Company Name
A218: Address | C218: =Start_Here!$C$13 -> Address
C219: =Start_Here!$C$14 -> City, State Zip
A220: Name | C220: =Start_Here!$C$15 -> Contact Name
A221: Phone | C221: =Start_Here!$C$16 -> Contact Phone
C222: =Start_Here!$B$31 -> Shipping / Carrier Instructions: | E222: Order Special Instructions:
C223: =Start_Here!$C$32 -> 0
C225: Customer Purchase Order No.
C226: (please attach copy)
C229: Tax Exempt | E229: Yes
E230: No
C231: If Yes, attach a copy of your exemption certificate.
C233: Requested Delivery Date
... 58 more rows

Sheet S680
A1: S680 | C1: =Start_Here!$C19 -> Company Name
A2: =SUM(G98) -> 0 | C2: =Start_Here!$C20 -> Address
C3: =Start_Here!$C21 -> City, State Zip
C4: =Start_Here!$C22 -> Contact Name
C5: =Start_Here!$C$41 -> Rep Name
C6: =Start_Here!$C$37 -> Tennant Sales and Service Company
C7: =Start_Here!$C$38 -> 10400 Clean Street
C8: =Start_Here!$C$39 -> Eden Prairie, MN 55344
C9: =Start_Here!$C$43 -> 800-553-8033 | E9: Quote Date : | G9: =Letter!$A$25 -> 2020-09-22
C11: =Help!C2 -> CAN Date Rev - 9/30/2024
C12: BUILT-IN "TENNANT VALUE" INCLUDES:
B14: 42" (1050 mm) Sweep Path | D14: Horn
B15: 2.5 ft3 / 70L Low-Dump Hopper Volume Capacity | D15: Low Effort Steering
B16: Corrosion-Proof Hopper & Shrouds | D16: Adjustable Side Brush RPM
B17: Front Corner Rollers | D17: 360o Visibility
B18: Flap and Trap Debris Pedal | D18: Self-Leveling Main Brush
B19: High Visibility Operation Decals | D19: Amber Strobe Light
B20: Glide-In/Out Wheeled Hopper | D20: Thermo-Sentry™ Hopper Fire Sensor
B21: Retractable Side Brush Assemblies | D21: Wet 225AH C/20 Batteries
B22: Hour Meter | D22: 27A 85-270V AC 50/60Hz 1Ph Charger
B23: Standard Main Sweeping Brush (Select One) | D23: Battery Discharge Indicator
B24: Standard Dual Side Sweeping Brushes | D24: Power Shutdown Switch
B25: No-Tool Main Brush & Filter Change | D25: Operator Manual
B26: Seat occupancy interlock safety switch
B29: TENNANT COMPANY WARRANTY
B30: 2 YEARS OR 1000 HOURS - PARTS
B31: 6 MONTHS - LABOR
B32: 6 MONTHS - TRAVEL
B33: 10 YEARS ON DURAMERTM HOPPER
E36: Quote Request Information
G37: Fax (quote only)
G38: Mail (quote,lit, specs)
G39: Fax + Mail
E41: Primary Use
G42: Inside
G43: Outside
C46: Description | D46: Reference # | E46: Price Each | F46: Qty | G46: Extended Price
B47: Base Configuration | F47: =SUM(F48,F51,F56) -> 0
C48: Cleaning Type | F48: =SUM(F49:F49) -> 0 | L48: =SUM(F48) -> 0 | M48: Surcharge Qty
C49: S680 Ride-On Sweeper 1050 mm/42" w/ Dual Side Brushes | D49: S680_1050 | E49: 22261 | G49: =F49*E49 -> 0 | H49: =IFERROR(IFERROR(VLOOKUP(D49,Surcharge!A:B,2,FALSE)*F49, VLOOKUP(D49 & "",Surcharge!A:B,2,FALSE)*F49), "") ->  | P49: =VLOOKUP(Q49,'MPF SAP Download Canada'!$A:$D,4,FALSE) -> 30732 | Q49: M-6100VK_BASE_6100-BTY
H50: =IFERROR(IFERROR(VLOOKUP(D50,Surcharge!A:B,2,FALSE)*F50, VLOOKUP(D50 & "",Surcharge!A:B,2,FALSE)*F50), "") -> 
C51: Battery Type | F51: =SUM(F52:F54) -> 0 | H51: =IFERROR(IFERROR(VLOOKUP(D51,Surcharge!A:B,2,FALSE)*F51, VLOOKUP(D51 & "",Surcharge!A:B,2,FALSE)*F51), "") -> 
C52: Wet 225AH C/20 | D52: 9022613 | E52: N/C | G52: =IF(F52=0," ","N/C") ->  | H52: =IFERROR(IFERROR(VLOOKUP(D52,Surcharge!A:B,2,FALSE)*F52, VLOOKUP(D52 & "",Surcharge!A:B,2,FALSE)*F52), "") ->  | P52: =VLOOKUP(Q52,'MPF SAP Download Canada'!$A:$D,4,FALSE) -> N/C | Q52: M-6100VK_BTY_W225C20
C53: Sealed/MF AGM 245AH C/20 | D53: 9022614 | E53: 1512 | G53: =F53*E53 -> 0 | H53: =IFERROR(IFERROR(VLOOKUP(D53,Surcharge!A:B,2,FALSE)*F53, VLOOKUP(D53 & "",Surcharge!A:B,2,FALSE)*F53), "") ->  | P53: =VLOOKUP(Q53,'MPF SAP Download Canada'!$A:$D,4,FALSE) -> 3601 | Q53: M-6100VK_BTY_G180C20
C54: Without Battery | D54: LESS BATTERY | E54: -630 | G54: =F54*E54 -> 0 | H54: =IFERROR(IFERROR(VLOOKUP(D54,Surcharge!A:B,2,FALSE)*F54, VLOOKUP(D54 & "",Surcharge!A:B,2,FALSE)*F54), "") ->  | P54: =VLOOKUP(Q54,'MPF SAP Download Canada'!$A:$D,4,FALSE) -> -695 | Q54: M-6100VK_BTY_WO
H55: =IFERROR(IFERROR(VLOOKUP(D55,Surcharge!A:B,2,FALSE)*F55, VLOOKUP(D55 & "",Surcharge!A:B,2,FALSE)*F55), "") -> 
C56: Charger | F56: =SUM(F57:F58) -> 0 | H56: =IFERROR(IFERROR(VLOOKUP(D56,Surcharge!A:B,2,FALSE)*F56, VLOOKUP(D56 & "",Surcharge!A:B,2,FALSE)*F56), "") ->  | P56: =VLOOKUP(Q56,'MPF SAP Download Canada'!$A:$D,4,FALSE) -> 1074 | Q56: M-6100VK_BTYWTRSYS
C57: 27A 85-270V AC 50/60Hz 1Ph - Off Board | D57: 9015391 | E57: N/C | G57: =IF(F57=0," ","N/C") ->  | H57: =IFERROR(IFERROR(VLOOKUP(D57,Surcharge!A:B,2,FALSE)*F57, VLOOKUP(D57 & "",Surcharge!A:B,2,FALSE)*F57), "") -> 
C58: Without Charger | D58: LESS CHARGER | E58: -378 | G58: =F58*E58 -> 0 | H58: =IFERROR(IFERROR(VLOOKUP(D58,Surcharge!A:B,2,FALSE)*F58, VLOOKUP(D58 & "",Surcharge!A:B,2,FALSE)*F58), "") -> 
H59: =IFERROR(IFERROR(VLOOKUP(D59,Surcharge!A:B,2,FALSE)*F59, VLOOKUP(D59 & "",Surcharge!A:B,2,FALSE)*F59), "") ->  | Q59: M-6100
B60: Packages | F60: =SUM(F61) -> 0 | H60: =IFERROR(IFERROR(VLOOKUP(D60,Surcharge!A:B,2,FALSE)*F60, VLOOKUP(D60 & "",Surcharge!A:B,2,FALSE)*F60), "") ->  | P60: =VLOOKUP(Q60,'MPF SAP Download Canada'!$A:$D,4,FALSE) -> 610 | Q60: M-6100VK_21A85V5060H1P_G180
C61: Carpet Care Package (Note 1) | D61: 9022636 | E61: 67 | G61: =F61*E61 -> 0 | H61: =IFERROR(IFERROR(VLOOKUP(D61,Surcharge!A:B,2,FALSE)*F61, VLOOKUP(D61 & "",Surcharge!A:B,2,FALSE)*F61), "") ->  | P61: =VLOOKUP(Q61,'MPF SAP Download Canada'!$A:$D,4,FALSE) -> 2803 | Q61: M-6100VK_21A85V5060H1P_W225_ON
F62: =SUM(F61) -> 0 | P62: =VLOOKUP(Q62,'MPF SAP Download Canada'!$A:$D,4,FALSE) -> 2482 | Q62: M-6100VK_21A85V5060H1P_G180_ON
B63: Brushes and Pads | F63: =SUM(F64,F69) -> 0 | H63: =IFERROR(IFERROR(VLOOKUP(D63,Surcharge!A:B,2,FALSE)*F63, VLOOKUP(D63 & "",Surcharge!A:B,2,FALSE)*F63), "") ->  | P63: =VLOOKUP(Q63,'MPF SAP Download Canada'!$A:$D,4,FALSE) -> -450 | Q63: M-6100VK_CHG_WO
C64: Main Sweeping Brushes | F64: =SUM(F65:F67) -> 0 | H64: =IFERROR(IFERROR(VLOOKUP(D64,Surcharge!A:B,2,FALSE)*F64, VLOOKUP(D64 & "",Surcharge!A:B,2,FALSE)*F64), "") -> 
C65: Polypropylene Brush | D65: 9022617 | E65: N/C | G65: =IF(F65=0," ","N/C") ->  | H65: =IFERROR(IFERROR(VLOOKUP(D65,Surcharge!A:B,2,FALSE)*F65, VLOOKUP(D65 & "",Surcharge!A:B,2,FALSE)*F65), "") -> 
C66: Polypropylene and Wire Brush | D66: 9022619 | E66: N/C | H66: =IFERROR(IFERROR(VLOOKUP(D66,Surcharge!A:B,2,FALSE)*F66, VLOOKUP(D66 & "",Surcharge!A:B,2,FALSE)*F66), "") ->  | Q66: M-6100
C67: Natural Fiber Brush (Note 1) | D67: 9022618 | E67: 224 | G67: =F67*E67 -> 0 | H67: =IFERROR(IFERROR(VLOOKUP(D67,Surcharge!A:B,2,FALSE)*F67, VLOOKUP(D67 & "",Surcharge!A:B,2,FALSE)*F67), "") -> 
H68: =IFERROR(IFERROR(VLOOKUP(D68,Surcharge!A:B,2,FALSE)*F68, VLOOKUP(D68 & "",Surcharge!A:B,2,FALSE)*F68), "") -> 
C69: Side Sweeping Brushes | F69: =SUM(F70) -> 0 | H69: =IFERROR(IFERROR(VLOOKUP(D69,Surcharge!A:B,2,FALSE)*F69, VLOOKUP(D69 & "",Surcharge!A:B,2,FALSE)*F69), "") ->  | P69: =VLOOKUP(Q69,'MPF SAP Download Canada'!$A:$D,4,FALSE) -> 9896 | Q69: M-6100VK_SLADSTFLTPKG_RH
C70: Polypropylene Brush | E70: N/C | G70: =IF(F70=0," ","N/C") ->  | H70: =IFERROR(IFERROR(VLOOKUP(D70,Surcharge!A:B,2,FALSE)*F70, VLOOKUP(D70 & "",Surcharge!A:B,2,FALSE)*F70), "") -> 
H71: =IFERROR(IFERROR(VLOOKUP(D71,Surcharge!A:B,2,FALSE)*F71, VLOOKUP(D71 & "",Surcharge!A:B,2,FALSE)*F71), "") ->  | P71: =VLOOKUP(Q71,'MPF SAP Download Canada'!$A:$D,4,FALSE) -> 10736 | Q71: M-6100VK_SLADSTFLTPKG_D
B72: Support | F72: =SUM(F73) -> 0 | H72: =IFERROR(IFERROR(VLOOKUP(D72,Surcharge!A:B,2,FALSE)*F72, VLOOKUP(D72 & "",Surcharge!A:B,2,FALSE)*F72), "") -> 
C73: Standard Warranty | E73: N/C | G73: =IF(F73=0," ","N/C") ->  | H73: =IFERROR(IFERROR(VLOOKUP(D73,Surcharge!A:B,2,FALSE)*F73, VLOOKUP(D73 & "",Surcharge!A:B,2,FALSE)*F73), "") -> 
H74: =IFERROR(IFERROR(VLOOKUP(D74,Surcharge!A:B,2,FALSE)*F74, VLOOKUP(D74 & "",Surcharge!A:B,2,FALSE)*F74), "") -> 
C75: Packaging | F75: =SUM(F76:F76) -> 0 | H75: =IFERROR(IFERROR(VLOOKUP(D75,Surcharge!A:B,2,FALSE)*F75, VLOOKUP(D75 & "",Surcharge!A:B,2,FALSE)*F75), "") ->  | P75: =VLOOKUP(Q75,'MPF SAP Download Canada'!$A:$D,4,FALSE) -> 1519 | Q75: M-6100VK_SDEBRSLOC_D
C76: Skid w/Carton, Non-Stackable | D76: 9022625 | E76: 756 | G76: =F76*E76 -> 0 | H76: =IFERROR(IFERROR(VLOOKUP(D76,Surcharge!A:B,2,FALSE)*F76, VLOOKUP(D76 & "",Surcharge!A:B,2,FALSE)*F76), "") ->  | P76: =VLOOKUP(Q76,'MPF SAP Download Canada'!$A:$D,4,FALSE) -> 1585 | Q76: M-6100VK_SDEBRSDSTCTL_D_RH
B79: Custom Solution--write in description, qty, price, and PN if applicable | F79: =SUM(F80) -> 0
E80: Insert Prices Here | F80: =SUM(F81:F84) -> 0
D81: Custom | F81: =IF(E81 <> "", 1, 0) -> 0 | G81: =F81*E81 -> 0
D82: Custom | F82: =IF(E82 <> "", 1, 0) -> 0 | G82: =F82*E82 -> 0
D83: Custom | F83: =IF(E83 <> "", 1, 0) -> 0 | G83: =F83*E83 -> 0
D84: Custom | F84: =IF(E84 <> "", 1, 0) -> 0 | G84: =F84*E84 -> 0
E85: =ROUND(SUM(G49:G84), 0) -> 0 | F85: =SUM(E86) -> 0
D86: Machine Subtotal | E86: =ROUND(SUM(G49:G84), 0) -> 0 | F86: =F85 -> 0
B87: Discounts | F87: =SUM(F88) -> 0
F88: =SUM(F90:F91) -> 0
D89: Applicable Currency Adj % | F89: =IF(E89 <> "", 1, 0) -> 0 | G89: =IF(F89*(E89*0.01)*E85 < 0, F89*(E89*0.01)*E85, -(F89*(E89*0.01)*E85)) -> 0
D90: Discount % | F90: =IF(E90 <> "", 1, 0) -> 0 | G90: =IF(F90*(E90*0.01)*(E85+G89) < 0, F90*(E90*0.01)*(E85+G89), -(F90*(E90*0.01)*(E85+G89))) -> 0
D91: Discount $ | F91: =IF(E91 <> "", 1, 0) -> 0 | G91: =IF(F91*E91 < 0, F91*E91, -(F91*E91)) -> 0
D92: Discount Total | E92: =SUM(G89:G91) -> 0 | F92: =SUM(E92) -> 0
F93: =#REF! -> 
F94: =F93 -> 
C95: Prepaid and Add | D95: Freight | F95: =IF(E95 <> "", 1, 0) -> 0 | G95: =F95*E95 -> 0
C96: Subject to all applicable taxes | D96: Tax | F96: =IF(E96 <> "", 1, 0) -> 0 | G96: =F96*E96 -> 0
F97: =SUM(F98) -> 0
D98: MACHINE TOTAL* | F98: =SUM(G98) -> 0 | G98: =SUM(G49:G96) -> 0 | N98: This goes to "My Documents"
G99: =SUM(G98) -> 0
C104: First Western Equipment Finance - Leasing Calculation Option: | D104: Option 1 | F104: Option 2
D105: Monthly Payment | E105: Cost Per Day | F105: Monthly Payment | G105: Cost Per Day
C106: Purchase Option: | D106: FWEF: $1 Buyout Lease | F106: FWEF: Municipal Lease
C107: 24 Months | D107: FALSE | E107: 0 | F107: FALSE | G107: 0
C108: 30 Months | D108: FALSE | E108: 0 | F108: FALSE | G108: 0
C109: 36 Months | D109: FALSE | E109: 0 | F109: FALSE | G109: 0
C110: 48 Months | D110: 0 | E110: 0 | F110: 0 | G110: 0
D112: Benefits of Equipment Financing:
D113: • Spreads out investment over time. | F113: • Keep current with latest technology.
D114: • Preserve capital. | F114: • Service and parts bundling available.
D115: • Low monthly payment. | F115: • Pay for labor savings as you go.
B118: TennantTrue | D118: 0 | E118: 0
C120: Is customer interested in service program? | D120: Yes | E120: *State/County selection required for TennantTrue service options
C122: If not, why?
C124: Term: | D124: 36 | G124: AB Brushes | H124: No
C125: Monthly machine usage (hrs): | D125: < 30/mo. (Avg. 1hr./day)
C127: TennantTrue: | D127: Gold Contract | F127: Silver Contract
C128: Per Visit | F128: 460
C129: Monthly | D129: 202 | F129: 96
C130: Annually | F130: 1126
C131: Pre-Pay Full Term | D131: 6990 | F131: 3311
C132: Hourly Labor Rate
C133: Site Visit
C135: * Verify customer current pricing prior to quote.
C136: **All rates and fees above reflect service for one (1) unit with the exception of Block of Time service.
C137: *Block of Time is available in 1 Year Term only and is priced as such no matter the term selection on this template.
B141: Quote Special Instructions:
B144: =Start_Here!E36 -> Terms and Conditions
B145: =Start_Here!E37 -> Ask your local sales rep for estimated lead times. Verify when placing order
B146: =Start_Here!E38 -> All orders subject to acceptance by Tennant Sales and Service Company, Minneapolis, Minnesota
B147: =Start_Here!E39 -> Prices subject to change without notice. Subject to any applicable taxes.
B148: =Start_Here!E40 -> Terms: Net 30 days. Payable in Canadian Funds
B149: =Start_Here!E41 -> Freight: Accessories, parts, supplies, detergents, and floor coatings orders delivered DDP
B150: =Start_Here!E42 -> shipping point Frt PPD. Machine orders delivered DDP shipping point Frt PPD and add.
B151: =Start_Here!E43 -> Returned Merchandise is subject to a restocking fee.
B152: =Start_Here!E44 -> All orders are subject to Tennant’s General Terms and Conditions available at http://www.tennantco.com/terms.
B153: =Start_Here!E45 -> Printed General Terms and Conditions are also available upon request.
B154: =Start_Here!E46 -> 0
E156: Quote Date : | G156: =Letter!$A$25 -> 2020-09-22
B157: Order Placement Information: To place your order, fill in PO# and customer signatures,
B158: call or fax to the numbers listed below. Customer Purchase Order is required.
B159: If information is missing, orders will be entered and held until all information is received.
C161: Customer Number | E161: Cust Grp 3
C162: =Start_Here!$C$25 -> 0 | E162: =Start_Here!$C$29 -> 0
C163: =Start_Here!$B$18 -> Who Owns the Machine? (Sold-To Info) (Please Verify)
A164: Company | C164: =Start_Here!$C$19 -> Company Name
A165: Address | C165: =Start_Here!$C$20 -> Address
C166: =Start_Here!$C$21 -> City, State Zip
A167: Name | C167: =Start_Here!$C$22 -> Contact Name
A168: Phone | C168: =Start_Here!$C$23 -> Contact Phone
C169: =Start_Here!$B$11 -> Where is the Machine Being Shipped? (Ship-To Info) (Please Verify)
A170: Company | C170: =Start_Here!$C$12 -> Company Name
A171: Address | C171: =Start_Here!$C$13 -> Address
C172: =Start_Here!$C$14 -> City, State Zip
A173: Name | C173: =Start_Here!$C$15 -> Contact Name
A174: Phone | C174: =Start_Here!$C$16 -> Contact Phone
C175: =Start_Here!$B$31 -> Shipping / Carrier Instructions: | E175: Order Special Instructions:
C176: =Start_Here!$C$32 -> 0
C178: Customer Purchase Order No.
C179: (please attach copy)
C182: Tax Exempt | E182: Yes
E183: No
C184: If Yes, attach a copy of your exemption certificate.
C186: Requested Delivery Date
C187: =Start_Here!$C$28 -> 0
C189: =Start_Here!$C$26 -> 0 | E189: =Start_Here!$C$27 -> 0
C190: Authorized Buyer (please print) | E190: Phone Number
C193: Authorized Buyer Signature
C195: =Start_Here!$C$41 -> Rep Name
C196: Tennant Representative
D198: Specialized Maintenance Equipment
C199: =Start_Here!$C$48 -> TENNANT · 10400 Clean Street · Eden Prairie, MN 55344 ·
D200: =Start_Here!$C$49 -> PHONE:800-553-8033 · FAX:763-513-2116
B203: SPECIAL INFORMATION
B205: Notes
B207: 1 | C207: Natural Fiber Brush is mandator when the Carpet Care Package is selected.
B209: 2 | C209: Shipping Weights and Dimensions | E209: Crate
C211: Weight | E211: 184 Kg / 406 lbs
C212: Length | E212: 1530 mm / 61"
C213: Width | E213: 950 mm / 38"
C214: Height | E214: 1460 mm / 58"

Sheet S880
A1: S880 | C1: =Start_Here!$C19 -> Company Name
A2: =SUM(G94) -> 0 | C2: =Start_Here!$C20 -> Address
C3: =Start_Here!$C21 -> City, State Zip
C4: =Start_Here!$C22 -> Contact Name
C5: =Start_Here!$C$41 -> Rep Name
C6: =Start_Here!$C$37 -> Tennant Sales and Service Company
C7: =Start_Here!$C$38 -> 10400 Clean Street
C8: =Start_Here!$C$39 -> Eden Prairie, MN 55344
C9: =Start_Here!$C$43 -> 800-553-8033 | E9: Quote Date : | G9: =Letter!$A$25 -> 2020-09-22
C11: =Help!C2 -> CAN Date Rev - 9/30/2024
C12: BUILT-IN "TENNANT VALUE" INCLUDES:
B14: 48" (1200 mm) Sweep Path | D14: Hour Meter
B15: 2.4 ft3 / 67L High-Dump Hopper Volume Capacity | D15: Low Effort Steering
B16: Corrosion-Proof Shrouds | D16: Adjustable Side Brush RPM
B17: Front Corner Rollers | D17: 360o Visibility
B18: Front Bumpers | D18: Seat occupancy interlock safety switch
B19: Flap and Trap Debris Pedal | D19: Amber Strobe Light
B20: High Visibility Operation Decals | D20: Thermo-Sentry™ Hopper Fire Sensor
B21: Horn | D21: Wet 225AH C/20 Batteries
B22: Retractable Side Brush Assemblies | D22: 27A 85-270V AC 50/60Hz 1Ph Charger
B23: Standard Main Sweeping Brush (Select One) | D23: Battery Discharge Indicator
B24: Standard Dual Side Sweeping Brushes | D24: Power Shutdown Switch
B25: No-Tool Main Brush Change | D25: Operator Manual
B28: TENNANT COMPANY WARRANTY
B29: 2 YEARS OR 1000 HOURS - PARTS
B30: 6 MONTHS - LABOR
B31: 6 MONTHS - TRAVEL
E35: Quote Request Information
G36: Fax (quote only)
G37: Mail (quote,lit, specs)
G38: Fax + Mail
E40: Primary Use
G41: Inside
G42: Outside
C45: Description | D45: Reference # | E45: Price Each | F45: Qty | G45: Extended Price
B46: Base Configuration | F46: =SUM(F47,F50,F55) -> 0
C47: Cleaning Type | F47: =SUM(F48) -> 0 | L47: =SUM(F47) -> 0 | M47: Surcharge Qty
C48: S880 Ride-On Sweeper 1200 mm/48" w/ Dual Side Brushes | D48: S880_1200 | E48: 31147 | G48: =F48*E48 -> 0 | H48: =IFERROR(IFERROR(VLOOKUP(D48,Surcharge!A:B,2,FALSE)*F48, VLOOKUP(D48 & "",Surcharge!A:B,2,FALSE)*F48), "") -> 
H49: =IFERROR(IFERROR(VLOOKUP(D49,Surcharge!A:B,2,FALSE)*F49, VLOOKUP(D49 & "",Surcharge!A:B,2,FALSE)*F49), "") -> 
C50: Battery Type | F50: =SUM(F51:F53) -> 0 | H50: =IFERROR(IFERROR(VLOOKUP(D50,Surcharge!A:B,2,FALSE)*F50, VLOOKUP(D50 & "",Surcharge!A:B,2,FALSE)*F50), "") ->  | P50: =VLOOKUP(Q50,'MPF SAP Download Canada'!$A:$D,4,FALSE) -> N/C | Q50: M-6100VK_BTY_W225C20
C51: Wet 225AH C/20 | D51: 9022613 | E51: N/C | G51: =IF(F51=0," ","N/C") ->  | H51: =IFERROR(IFERROR(VLOOKUP(D51,Surcharge!A:B,2,FALSE)*F51, VLOOKUP(D51 & "",Surcharge!A:B,2,FALSE)*F51), "") ->  | P51: =VLOOKUP(Q51,'MPF SAP Download Canada'!$A:$D,4,FALSE) -> 3601 | Q51: M-6100VK_BTY_G180C20
C52: Sealed/MF AGM 245AH C/20 | D52: 9022614 | E52: 1512 | G52: =F52*E52 -> 0 | H52: =IFERROR(IFERROR(VLOOKUP(D52,Surcharge!A:B,2,FALSE)*F52, VLOOKUP(D52 & "",Surcharge!A:B,2,FALSE)*F52), "") ->  | P52: =VLOOKUP(Q52,'MPF SAP Download Canada'!$A:$D,4,FALSE) -> -695 | Q52: M-6100VK_BTY_WO
C53: Without Battery | D53: LESS BATTERY | E53: -630 | G53: =F53*E53 -> 0 | H53: =IFERROR(IFERROR(VLOOKUP(D53,Surcharge!A:B,2,FALSE)*F53, VLOOKUP(D53 & "",Surcharge!A:B,2,FALSE)*F53), "") -> 
H54: =IFERROR(IFERROR(VLOOKUP(D54,Surcharge!A:B,2,FALSE)*F54, VLOOKUP(D54 & "",Surcharge!A:B,2,FALSE)*F54), "") ->  | P54: =VLOOKUP(Q54,'MPF SAP Download Canada'!$A:$D,4,FALSE) -> 1074 | Q54: M-6100VK_BTYWTRSYS
C55: Charger | F55: =SUM(F56:F57) -> 0 | H55: =IFERROR(IFERROR(VLOOKUP(D55,Surcharge!A:B,2,FALSE)*F55, VLOOKUP(D55 & "",Surcharge!A:B,2,FALSE)*F55), "") -> 
C56: 27A 85-270V AC 50/60Hz 1Ph - Off Board | D56: 9015391 | E56: N/C | G56: =IF(F56=0," ","N/C") ->  | H56: =IFERROR(IFERROR(VLOOKUP(D56,Surcharge!A:B,2,FALSE)*F56, VLOOKUP(D56 & "",Surcharge!A:B,2,FALSE)*F56), "") -> 
C57: Without Charger | D57: LESS CHARGER | E57: -378 | G57: =F57*E57 -> 0 | H57: =IFERROR(IFERROR(VLOOKUP(D57,Surcharge!A:B,2,FALSE)*F57, VLOOKUP(D57 & "",Surcharge!A:B,2,FALSE)*F57), "") ->  | Q57: M-6100
H58: =IFERROR(IFERROR(VLOOKUP(D58,Surcharge!A:B,2,FALSE)*F58, VLOOKUP(D58 & "",Surcharge!A:B,2,FALSE)*F58), "") ->  | P58: =VLOOKUP(Q58,'MPF SAP Download Canada'!$A:$D,4,FALSE) -> 610 | Q58: M-6100VK_21A85V5060H1P_G180
B59: Brushes and Pads | D59: Reference Number | F59: =SUM(F60) -> 0 | H59: =IFERROR(IFERROR(VLOOKUP(D59,Surcharge!A:B,2,FALSE)*F59, VLOOKUP(D59 & "",Surcharge!A:B,2,FALSE)*F59), "") ->  | P59: =VLOOKUP(Q59,'MPF SAP Download Canada'!$A:$D,4,FALSE) -> 2803 | Q59: M-6100VK_21A85V5060H1P_W225_ON
C60: Main Sweeping Brushes | F60: =SUM(F61:F63) -> 0 | P60: =VLOOKUP(Q60,'MPF SAP Download Canada'!$A:$D,4,FALSE) -> 2482 | Q60: M-6100VK_21A85V5060H1P_G180_ON
C61: Polypropylene Brush | D61: 9022622 | E61: N/C | G61: =IF(F61=0," ","N/C") ->  | H61: =IFERROR(IFERROR(VLOOKUP(D61,Surcharge!A:B,2,FALSE)*F61, VLOOKUP(D61 & "",Surcharge!A:B,2,FALSE)*F61), "") ->  | P61: =VLOOKUP(Q61,'MPF SAP Download Canada'!$A:$D,4,FALSE) -> -450 | Q61: M-6100VK_CHG_WO
C62: Polypropylene and Wire Brush | D62: 9022624 | E62: N/C | H62: =IFERROR(IFERROR(VLOOKUP(D62,Surcharge!A:B,2,FALSE)*F62, VLOOKUP(D62 & "",Surcharge!A:B,2,FALSE)*F62), "") -> 
C63: Natural Fiber Brush | D63: 9022623 | E63: 231 | G63: =F63*E63 -> 0 | H63: =IFERROR(IFERROR(VLOOKUP(D63,Surcharge!A:B,2,FALSE)*F63, VLOOKUP(D63 & "",Surcharge!A:B,2,FALSE)*F63), "") -> 
H64: =IFERROR(IFERROR(VLOOKUP(D64,Surcharge!A:B,2,FALSE)*F64, VLOOKUP(D64 & "",Surcharge!A:B,2,FALSE)*F64), "") ->  | Q64: M-6100
C65: Side Sweeping Brushes | F65: =SUM(F66) -> 0 | H65: =IFERROR(IFERROR(VLOOKUP(D65,Surcharge!A:B,2,FALSE)*F65, VLOOKUP(D65 & "",Surcharge!A:B,2,FALSE)*F65), "") -> 
